Workbook

Sheet Overview
C27: ******************************************************************************************************************************************************
C28: COPYRIGHT NOTIFICATION
C30: GREET® SOFTWARE
C32: GREET1 MODEL
C34: Email contact: greet@anl.gov
C35: ******************************************************************************************************************************************************
C37: © COPYRIGHT 2017 UChicago Argonne, LLC ALL RIGHTS RESERVED
C39: THIS SOFTWARE DISCLOSES MATERIAL PROTECTED UNDER COPYRIGHT LAW, AND FURTHER DISSEMINATION IS PROHIBITED WITHOUT PRIOR WRITTEN CONSENT OF THE PATENT COUNSEL OF ARGONNE NATIONAL LABORATORY, EXCEPT AS NOTED IN THE “LICENSING TERMS AND CONDITIONS” NOTED BELOW.
C41: ******************************************************************************************************************************************************
C43: ARGONNE NATIONAL LABORATORY, WITH A FACILITY IN THE STATE OF ILLINOIS, IS OWNED BY THE UNITED STATES GOVERNMENT, AND OPERATED BY UCHICAGO ARGONNE, LLC UNDER PROVISION OF A CONTRACT WITH THE DEPARTMENT OF ENERGY.
C46: ******************************************************************************************************************************************************
C48: GOVERNMENT LICENSE
C50: ******************************************************************************************************************************************************
C52: NOTICE: This data was produced by UChicago Argonne, LLC under Contract No. DE-AC02-06CH11357 with the Department of Energy. During the period of commercialization or such other time period specified by DOE, the Government is granted for itself and others acting on its behalf a paid-up, nonexclusive, irrevocable worldwide license in such copyrighted data to reproduce, prepare derivative works and perform publicly and display publicly, by or on behalf of the Government. Subsequent to that period the Government is granted for itself and others acting on its behalf a paid-up, nonexclusive, irrevocable worldwide license in such copyrighted data to reproduce, distribute copies to the public, prepare derivative works, perform publicly and display publicly, and to permit others to do so. The specific term of the license can be identified by inquiry made to UChicago Argonne, LLC or DOE.
C54: ******************************************************************************************************************************************************
C56: END-USER LICENSING TERMS AND CONDITIONS
C58: ******************************************************************************************************************************************************
C60: Redistribution and use of the GREET software is permitted provided that the following conditions are met:
C62: 1. Redistributions of the GREET software must retain the above copyright notice, this list of conditions and the following disclaimer. Modification or reverse compilation of the source code is not permitted.
... 57 more rows

Sheet Inputs
Z5: Simulation years
A6: Scenario Control Variables and Input Assumptions
A7: 1. Key Options for Simulation | Z7: 1990
B8: 1.1) Target Year for Simulation | Z8: 1991
E9: 2021 | Z9: 1992
Z10: 1993
B11: 1.2) Point-Estimation or Probability-Estimation Option | Z11: 1994
F12: Load Stochastic Toolkit | G12: … To load the stochastic toolkit | Z12: 1995
F13: Unload Stochastic Toolkit | G13: … To unload the stochastic toolkit | Z13: 1996
Z14: 1997
A15: 2. Vehicle Types for Simulation | Z15: 1998
E16: 1 | F16: 1 -- Passenger Cars; 2 -- Light-Duty Trucks 1 (LDT1) (Sports utility vehicles [SUV]); 3 -- Light-Duty Trucks 2 (LDT2) (Pickup Truck [PUT]) | Z16: 1999
Z17: 2000
A18: 3. Petroleum-Based Fuels | Z18: 2001
B19: 3.1) Petroleum Recovery Options | Z19: 2002
C20: 3.1.a) Share of crude oil sources | Z20: 2003
E21: 1 | F21: Basis of share of crude oil sources: 1 -- EIA projection, 2 -- User defined | Z21: 2004
F22: U.S. Domestic | G22: Canada (Oil Sands) | H22: Canada (Conv. Crude) | I22: Mexico | J22: Middle East | K22: Latin America | L22: Africa | M22: Others | Z22: 2005
E23: EIA projection | F23: =Fuel_Prod_TS!$AV$9 -> 0.7747059368 | G23: =Fuel_Prod_TS!$AW$9 -> 0.07885476666 | H23: =Fuel_Prod_TS!$AX$9 -> 0.05931886861 | I23: =Fuel_Prod_TS!$AY$9 -> 0.02142046283 | J23: =Fuel_Prod_TS!$AZ$9 -> 0.02004793974 | K23: =Fuel_Prod_TS!$BA$9 -> 0.01893006493 | L23: =Fuel_Prod_TS!$BB$9 -> 0.01122899299 | M23: =1-SUM(F23:L23) -> 0.01549296744 | Z23: 2006
E24: User defined | F24: 0.7747059368 | G24: 0.07885476666 | H24: 0.05931886861 | I24: 0.02142046283 | J24: 0.02004793974 | K24: 0.01893006493 | L24: 0.01122899299 | M24: =1-SUM(F24:L24) -> 0.01549296744 | Z24: 2007
E25: Used in calculation | F25: =IF($E21=1,F23,F24) -> 0.7747059368 | G25: 0.07885476666 | H25: 0.05931886861 | I25: 0.02142046283 | J25: 0.02004793974 | K25: 0.01893006493 | L25: 0.01122899299 | M25: 0.01549296744 | Z25: 2008
E26: API gravity | F26: =AvgAPI(F31:H31,F32:H32) -> 34.22544737 | G26: =1/((G45+I45)/(32+131.5)+(F45+H45)/(8+131.5)+(F45+H45)*G40*(1-F42)/(80+131.5))*((G45+I45)+(F45+H45)*(1+G40*(1-F42)))-131.5 -> 18.07557347 | H26: 26.5 | I26: 26.5 | J26: 31.8 | K26: 24.8 | L26: 38.3 | M26: 32 | Z26: 2009
E27: S Content (wt %) | F27: 1.39 | G27: =(Fuel_Specs!H8*(G46+I46)+Fuel_Specs!H9*(F46+H46)+Fuel_Specs!H12*(F46+H46)*Petroleum!C23/Petroleum!B23)/((G46+I46)+(F46+H46)*(1+Petroleum!C23/Petroleum!B23))*100 -> 2.863911759 | H27: 1.94 | I27: 2.2 | J27: 2.26 | K27: 2.8 | L27: 0.289 | M27: 0.764 | Z27: 2010
E28: Average transportation distances (mi) | F28: See T&D_Flowcharts tab | G28: 1708 | H28: 1708 | I28: 797 | J28: 14596 | K28: 4620 | L28: 7280 | M28: 6128 | Z28: 2011
Z29: 2012
E30: U.S. Domestic crude | F30: Shale Oil (Bakken) | G30: Shale Oil (Eagle Ford) | H30: Rest of U.S. domestic crude | Z30: 2013
E31: API gravity | F31: 42 | G31: 48 | H31: 32 | Z31: 2014
E32: Vol. Share (%) | F32: =Fuel_Prod_TS!L30 -> 0.09980803923 | G32: =Fuel_Prod_TS!M30 -> 0.08611394233 | H32: =1-SUM(F32:G32) -> 0.8140780184 | Z32: 2015
Z33: 2016
C34: 3.1.b) Efficiency for Petroleum Recovery | Z34: 2017
E35: Conventional Crude Recovery | Z35: 2018
E36: =Fuel_Prod_TS!$C$9 -> 0.98 | Z36: 2019
Z37: 2020
C38: 3.1.c) Key parameters of Oil Sands Recovery Methods and Products | Z38: 2021
E39: Dilbit Composition | F39: Bitumen | G39: Diluent | Z39: 2022
E40: Volumetric Shares | F40: 0.7 | G40: =1-F40 -> 0.3 | Z40: 2023
Z41: 2024
E42: Recovered Diluent in Refineries | F42: 1 | G42: by volume | Z42: 2025
Z43: 2026
E44: Share of oil sands recovery methods and products | F44: Surface Mining + Bitumen | G44: Surface Mining + SCO | H44: In-Situ + Bitumen | I44: In-Situ + SCO | Z44: 2027
E45: Volumetric Shares | F45: =Fuel_Prod_TS!D30 -> 0.05037986411 | G45: =Fuel_Prod_TS!E30 -> 0.3963849686 | H45: =Fuel_Prod_TS!F30 -> 0.490722719 | I45: =Fuel_Prod_TS!G30 -> 0.06251244828 | Z45: 2028
E46: Mass Shares | F46: =F$45*Fuel_Specs!$E$10/(($F$45+$H$45)*Fuel_Specs!$E$10+($G$45+$I$45)*Fuel_Specs!$E$8) -> 0.05408833865 | G46: =G$45*Fuel_Specs!$E$8/(($F$45+$H$45)*Fuel_Specs!$E$10+($G$45+$I$45)*Fuel_Specs!$E$8) -> 0.3619801334 | H46: =H$45*Fuel_Specs!$E$10/(($F$45+$H$45)*Fuel_Specs!$E$10+($G$45+$I$45)*Fuel_Specs!$E$8) -> 0.5268449425 | I46: =1-SUM(F46:H46) -> 0.05708658543 | Z46: 2029
E47: Energy Shares | F47: =F$45*Fuel_Specs!$B$10/(($F$45+$H$45)*Fuel_Specs!$B$10+($G$45+$I$45)*Fuel_Specs!$B$8) -> 0.05314670469 | G47: =G$45*Fuel_Specs!$B$8/(($F$45+$H$45)*Fuel_Specs!$B$10+($G$45+$I$45)*Fuel_Specs!$B$8) -> 0.3707160061 | H47: =H$45*Fuel_Specs!$B$10/(($F$45+$H$45)*Fuel_Specs!$B$10+($G$45+$I$45)*Fuel_Specs!$B$8) -> 0.5176730007 | I47: =1-SUM(F47:H47) -> 0.0584642885 | Z47: 2030
Z48: 2031
B49: 3.2) Conventional Crude Transport Options | Z49: 2032
F50: Domestic: Alaska | G50: Domestic: U.S. 48 States | H50: Imported: Offshore Countries | I50: Imported Canada and Mexico | Z50: 2033
E51: Domestic Share of Crude Input to Refineries | G51: =1-SUM(F53,H53,I54,I55) -> 0.7809168482 | Z51: 2034
E52: Mode Shares | Z52: 2035
E53: Ocean Tanker | F53: =MIN(Fuel_Prod_TS!$BD$9,F24) -> 0.0306423561 | H53: =IFERROR(SUM(J25:M25)/(1-G25-F25*(F32+G32)),0) -> 0.08454393043 | Z53: 2036
E54: Pipeline | G54: See T&D_Flowcharts tab | I54: =IFERROR(H25/(1-G25-F25*(F32+G32)),0) -> 0.07633261743 | Z54: 2037
E55: Rail | G55: See T&D_Flowcharts tab | I55: =IFERROR(I25/(1-G25-F25*(F32+G32)),0) -> 0.02756424782 | Z55: 2038
E56: Average transportation distances (mi) | Z56: 2039
E57: Ocean Tanker | F57: 2100 | H57: =Fuel_Prod_TS!Q30 -> 8707.044912 | Z57: 2040
E58: Pipeline | G58: See T&D_Flowcharts tab | I58: =Fuel_Prod_TS!R30 -> 1671.898704 | Z58: 2041
E59: Rail | G59: See T&D_Flowcharts tab | I59: =I28 -> 797 | Z59: 2042
Z60: 2043
B61: 3.3) Petroleum Refining Efficiency | Z61: 2044
C62: 3.3.a) Simulation scenarios | Z62: 2045
... 72 more rows

Sheet Results
B1: WTW Results Menu | D1: Select a vehicle type from a pink drop down menu, then press "Go"
B2: SI ICE Vehicles | F2: SI Hybrid Vehicles (HEV) | J2: SI Plug-in Hybrids (PHEV) | N2: Performance-enhancing Fuels | R2: Per Vehicle Distnace Travelled | Y2: Per Energy in Fuels
B3: Select Fuels | F3: Select Fuels | J3: Select Fuels | N3: Selct Fuels | R3: Energy Unit | S3: Btu | T3: mBtu | U3: J | V3: kJ | W3: MJ | Y3: Energy Unit | Z3: Btu | AA3: mBtu | AB3: J | AC3: kJ | AD3: MJ
B4: SIDI ICE Vehicles | F4: CIDI Hybrid Vehicles (HEV) | J4: CIDI Plug-in Hybrids (PHEV) | S4: 1 | T4: 0.001 | U4: =BTU2J -> 1055.05585 | V4: =BTU2kJ -> 1.05505585 | W4: =BTU2MJ -> 0.00105505585 | Z4: 1 | AA4: 0.001 | AB4: =BTU2J -> 1055.05585 | AC4: =BTU2kJ -> 1.05505585 | AD4: =BTU2MJ -> 0.00105505585
B5: Select Fuels | F5: Select Fuels | J5: N/A | R5: Emission Unit | S5: g | T5: mg | U5: kg | V5: lb | W5: oz | Y5: Emission Unit | Z5: g | AA5: mg | AB5: kg | AC5: lb | AD5: oz
B6: CIDI ICE Vehicles | F6: BEV and FCV | J6: GCI ICE Vehicles | S6: 1 | T6: 1000 | U6: =g2kg -> 0.001 | V6: =g2lb -> 0.002204622622 | W6: =g2lb*16 -> 0.03527396195 | Z6: 1 | AA6: 1000 | AB6: =g2kg -> 0.001 | AC6: =g2lb -> 0.002204622622 | AD6: =g2lb*16 -> 0.03527396195
B7: CIDI - Diesel | F7: Select Fuels | J7: Select Fuels | R7: Functional Unit | S7: mile | T7: km | Y7: Functional Unit | Z7: mBtu | AA7: mmBtu | AB7: J | AC7: kJ | AD7: MJ
B8: Unit Selection | D8: Select units from a pink drop down menu for the Results | S8: 1 | T8: 1.60934 | Z8: 0.001 | AA8: 1e-06 | AB8: =BTU2J -> 1055.05585 | AC8: =BTU2kJ -> 1.05505585 | AD8: =BTU2MJ -> 0.00105505585
B9: Per Vehicle Distance Travelled | G9: Per Energy in Fuels
B10: Energy Unit: | C10: Btu | D10: Emission Unit: | E10: g | G10: Energy Unit: | H10: Btu | I10: Emission Unit: | J10: g
D11: Service Functional Unit: | E11: mile | I11: Energy Functional Unit: | J11: mmBtu
A12: ="1. Well-to-Pump Energy Consumption, Water Consmption and Emissions: "&Results_EnergyUnit_Energy&" or Gallon or "&Results_EnergyUnit_Emission&" per "&Results_EnergyFunctionalUnit&" of Fuel Available at Fuel Station Pumps" -> 1. Well-to-Pump Energy Consumption, Water Consmption and Emissions: Btu or Gallon or g per mmBtu of Fuel Available at Fuel Station Pumps
B13: Baseline Gasoline | C13: CA Gasoline | D13: ="Low-Level EtOH Blend with Gasoline (E"&Inputs!F861*100&", "&IF(EtOH!C7=1,"Corn"&IF(EtOH!C136=1,", dry",IF(EtOH!C136=0,", wet","")),IF(EtOH!D7=1,"Willow",IF(EtOH!E7=1,"Poplar",IF(EtOH!F7=1,"Switchgrass",IF(EtOH!G7=1,"Miscanthus",IF(EtOH!H7=1,"Corn Stover",IF(EtOH!I7=1,"Forest Residue",IF(EtOH!M7=1,"Sugarcane",IF(EtOH!J7=1,IF(EtOH!D233=1,"Grain",IF(EtOH!D233=3,"Forage","Sweet"))&" Sorghum",IF(EtOH!L7=1,"Solid Waste","Mixed Source"))))))))))&")" -> Low-Level EtOH Blend with Gasoline (E10, Corn) | E13: Baseline Conventional and LS Diesel | F13: ="Compressed Natural Gas, "& IF(Inputs!F114=1,"NA NG",IF(Inputs!F114=2,"Non-NA NG",IF(Inputs!F114=3,"FG",IF(RNG!G6=1,"LFG",IF(RNG!G7=1,"AD Gas","RNG"))))) -> Compressed Natural Gas, NA NG | G13: ="Liquefied Natural Gas, "&IF(Inputs!$G$114=1,"NA NG",IF(Inputs!$G$114=2,"Non-NA NG",IF(Inputs!$G$114=3,"FG",IF(RNG!$H$6=1,"LFG",IF(RNG!$H$6=0,"AD Gas","RNG"))))) -> Liquefied Natural Gas, NA NG | H13: ="Liquefied Petroleum Gas, " &IF(NG!C5=1, "Crude", IF(NG!C5=0, IF(Inputs!$G$114=1, "NA NG", IF(Inputs!$G$114=2, "Non-NA NG", IF(Inputs!$G$114=3, "FG", IF(RNG!$H$6=1, "LFG", IF(RNG!$H$6=0, "AD Gas", "RNG"))))), "Crude and NG Mix")) -> Liquefied Petroleum Gas, Crude and NG Mix | I13: ="Naphtha, "&IF(MeOH_FTD!E9=1,"Crude",IF(MeOH_FTD!E9=0,IF(Inputs!F155=1,"NA NG",IF(Inputs!F155=2,"Non-NA NG",IF(Inputs!F155=3,"FG",IF(RNG!E6=1,"LFG",IF(RNG!E7=1,"AD Gas","RNG"))))),"Mixed Sources")) -> Naphtha, NA NG | J13: ="M"&Vehicles!C5*100&" for MeOH FFV, "&IF(Inputs!F152=1,"NA NG",IF(Inputs!F152=2,"Non-NA NG",IF(Inputs!F152=3,"FG",IF(Inputs!F152=4,IF(RNG!E6=1,"LFG",IF(RNG!E7=1,"AD Gas","RNG")),IF(Inputs!F152=5,"Biomass",IF(Inputs!F152=9,"Black Liquor","Coal")))))) -> M85 for MeOH FFV, NA NG | K13: ="M"&Vehicles!C6*100&" for Dedi. MeOH Vehicles, "&IF(Inputs!F152=1,"NA NG",IF(Inputs!F152=2,"Non-NA NG",IF(Inputs!F152=3,"FG",IF(Inputs!F152=4,IF(RNG!E6=1,"LFG",IF(RNG!E7=1,"AD Gas","RNG")),IF(Inputs!F152=5,"Biomass",IF(Inputs!F152=9,"Black Liquor","Coal")))))) -> M90 for Dedi. MeOH Vehicles, NA NG | L13: ="MeOH for FCV: "&IF(Inputs!F152=1,"NA NG",IF(Inputs!F152=2,"Non-NA NG",IF(Inputs!F152=3,"FG",IF(Inputs!F152=4,IF(RNG!E6=1,"LFG",IF(RNG!E7=1,"AD Gas","RNG")),IF(Inputs!F152=5,"Biomass",IF(Inputs!F152=9,"Black Liquor","Coal")))))) -> MeOH for FCV: NA NG | M13: ="E"&Inputs!F862*100&" for FFV, "&IF(EtOH!C7=1,"Corn"&IF(EtOH!C136=1,", dry",IF(EtOH!C136=0,", wet","")),IF(EtOH!D7=1,"Willow",IF(EtOH!E7=1,"Poplar",IF(EtOH!F7=1,"Switchgrass",IF(EtOH!G7=1,"Miscanthus",IF(EtOH!H7=1,"Corn Stover",IF(EtOH!I7=1,"Forest Residue",IF(EtOH!M7=1,"Sugarcane",IF(EtOH!J7=1,IF(EtOH!D233=1,"Grain",IF(EtOH!D233=3,"Forage","Sweet"))&" Sorghum",IF(EtOH!L7=1,"Solid Waste","Mixed Source")))))))))) -> E85 for FFV, Corn | N13: ="BtOH for FFV: BtOH"&Vehicles!C12*100&", Corn" -> BtOH for FFV: BtOH100, Corn | O13: ="E"&Inputs!F863*100&" for Dedi. EtOH Vehicle, "&IF(EtOH!C7=1,"Corn"&IF(EtOH!C136=1,", dry",IF(EtOH!C136=0,", wet","")),IF(EtOH!D7=1,"Willow",IF(EtOH!E7=1,"Poplar",IF(EtOH!F7=1,"Switchgrass",IF(EtOH!G7=1,"Miscanthus",IF(EtOH!H7=1,"Corn Stover",IF(EtOH!I7=1,"Forest Residue",IF(EtOH!M7=1,"Sugarcane",IF(EtOH!J7=1,IF(EtOH!D233=1,"Grain",IF(EtOH!D233=3,"Forage","Sweet"))&" Sorghum",IF(EtOH!L7=1,"Solid Waste","Mixed Source")))))))))) -> E85 for Dedi. EtOH Vehicle, Corn | P13: ="EtOH for FCV, "&IF(EtOH!C6=1,"Corn"&IF(EtOH!C136=1,", dry",IF(EtOH!C136=0,", wet","")),IF(EtOH!D6=1,"Willow",IF(EtOH!E6=1,"Poplar",IF(EtOH!F6=1,"Switchgrass",IF(EtOH!G6=1,"Miscanthus",IF(EtOH!H6=1,"Corn Stover",IF(EtOH!I6=1,"Forest Residue",IF(EtOH!M6=1,"Sugarcane",IF(EtOH!J6=1,IF(EtOH!D233=1,"Grain",IF(EtOH!D233=3,"Forage","Sweet"))&" Sorghum",IF(EtOH!L6=1,"Solid Waste","Mixed Source")))))))))) -> EtOH for FCV, Corn | Q13: =IF(Inputs!$J$630=2,"Palm FFB",IF(Inputs!$J$630=3,"Canola",IF(Inputs!$J$630=4,"Jatropha",IF(Inputs!$J$630=5,"Camelina",IF(Inputs!$J$630=6,"Algae",IF(Inputs!$J$630=7,"Tallow",IF(Inputs!$J$630=8,"Corn Oil","Soybean")))))))&"-based RG"&Vehicles!C16*100 -> Soybean-based RG100 | R13: =IF(Pyrolysis_IDL!B26=1,"Corn Stover","Forest Residue")&"-based Pyrolysis RG"&Vehicles!C16*100 -> Forest Residue-based Pyrolysis RG100 | S13: ="Grid-Connected SI PHEV: Gasoline and Electricity ("&VLOOKUP(Inputs!$F$720,Inputs!$G$720:$H$756,2,FALSE)&")" -> Grid-Connected SI PHEV: Gasoline and Electricity (NWPP Mix) | T13: ="Grid-Connected SI PHEV: CA gasoline and Electricity ("&VLOOKUP(Inputs!$F$720,Inputs!$G$720:$H$756,2,FALSE)&")" -> Grid-Connected SI PHEV: CA gasoline and Electricity (NWPP Mix) | U13: ="Grid-Connected SI PHEV: Low-Level EtOH Blend with Gasoline (E"&Inputs!F861*100&", "&IF(EtOH!C6=1,"Corn"&IF(EtOH!C136=1,", dry",IF(EtOH!C136=0,", wet","")),IF(EtOH!D6=1,"Willow",IF(EtOH!E6=1,"Poplar",IF(EtOH!F6=1,"Switchgrass",IF(EtOH!G6=1,"Miscanthus",IF(EtOH!H6=1,"Corn Stover",IF(EtOH!I6=1,"Forest Residue",IF(EtOH!M6=1,"Sugarcane",IF(EtOH!J6=1,IF(EtOH!D233=1,"Grain",IF(EtOH!D233=3,"Forage","Sweet"))&" Sorghum",IF(EtOH!L6=1,"Solid Waste","Mixed Source"))))))))))&") and Electricity ("&VLOOKUP(Inputs!$F$720,Inputs!$G$720:$H$756,2,FALSE)&")" -> Grid-Connected SI PHEV: Low-Level EtOH Blend with Gasoline (E10, Corn) and Electricity (NWPP Mix) | V13: ="Grid-Connected SI PHEV: CNG ("&IF(Inputs!F114=1,"NA NG",IF(Inputs!F114=2,"Non-NA NG",IF(Inputs!F114=3,"FG",IF(RNG!G6=1,"LFG",IF(RNG!G7=1,"AD Gas","RNG")))))&") and Electricity ("&VLOOKUP(Inputs!$F$720,Inputs!$G$720:$H$756,2,FALSE)&")" -> Grid-Connected SI PHEV: CNG (NA NG) and Electricity (NWPP Mix) | W13: ="Grid-Connected SI PHEV: LNG ("&IF(Inputs!$H$114=1,"NA NG",IF(Inputs!$H$114=2,"Non-NA NG",IF(Inputs!$H$114=3,"FG",IF(RNG!$H$6=1,"LFG",IF(RNG!$H$6=0,"AD Gas","RNG")))))&") and Electricity ("&VLOOKUP(Inputs!$F$720,Inputs!$G$720:$H$756,2,FALSE)&")" -> Grid-Connected SI PHEV: LNG (NA NG) and Electricity (NWPP Mix) | X13: ="Grid-Connected SI PHEV: LPG ("&IF(NG!C5=1,"Crude",IF(NG!C5=0,IF(Inputs!$G$114=1,"NA NG",IF(Inputs!$G$114=2,"Non-NA NG",IF(Inputs!$G$114=3,"FG",IF(RNG!$H$6=1,"LFG",IF(RNG!$H$6=0,"AD Gas","RNG"))))),"Crude and NG Mix"))&") and Electricity ("&VLOOKUP(Inputs!$F$720,Inputs!$G$720:$H$756,2,FALSE)&")" -> Grid-Connected SI PHEV: LPG (Crude and NG Mix) and Electricity (NWPP Mix) | Y13: ="Grid-Connected SI PHEV: M"&Vehicles!C6*100&" ("&IF(Inputs!F152=1,"NA NG",IF(Inputs!F152=2,"Non-NA NG",IF(Inputs!F152=3,"FG",IF(Inputs!F152=4,IF(RNG!E6=1,"LFG",IF(RNG!E7=1,"AD Gas","RNG")),IF(Inputs!F152=5,"Biomass",IF(Inputs!F152=9,"Black Liquor","Coal"))))))&") and Electricity ("&VLOOKUP(Inputs!$F$720,Inputs!$G$720:$H$756,2,FALSE)&")" -> Grid-Connected SI PHEV: M90 (NA NG) and Electricity (NWPP Mix) | Z13: ="Grid-Connected SI PHEV: LPG ("&IF(NG!E5=1,"Crude",IF(NG!E5=0,IF(Inputs!$G$114=1,"NA NG",IF(Inputs!$G$114=2,"Non-NA NG",IF(Inputs!$G$114=3,"FG",IF(RNG!$H$6=1,"LFG",IF(RNG!$H$6=0,"AD Gas","RNG"))))),"Crude and NG Mix"))&") and Electricity ("&VLOOKUP(Inputs!$F$720,Inputs!$G$720:$H$756,2,FALSE)&")" -> Grid-Connected SI PHEV: LPG (Crude and NG Mix) and Electricity (NWPP Mix) | AA13: ="Grid-Connected SI PHEV: G.H2 ("&IF(Inputs!F211=1,"Central Plants, "&IF(Inputs!F216=1,IF(Inputs!F239=1,"NA NG",IF(Inputs!F239=2,"Non-NA NG",IF(Inputs!F239=3,"FG",IF(RNG!G6=1,"LFG",IF(RNG!G7=1,"Manure-based AD Gas",IF(RNG!G8=1,"WWTP-based AD Gas","RNG")))))),"")&IF(Inputs!F217=1,"Solar","")&IF(Inputs!F219=1,"Nuclear","")&IF(Inputs!F220=1,"Electrolysis (Nuclear HTGR)","")&IF(Inputs!F221=1,"Coal","")&IF(Inputs!F222=1,"Biomass","")&IF(Inputs!F224=1,"Coke Oven Gas","")&IF(Inputs!F227=1,"Pet Coke","")&IF(MAX(Inputs!F216:F227)<1,"Mixed Sources",""),"Refueling Station, "&IF(Inputs!F231=1,IF(Inputs!F240=1,"NA NG",IF(Inputs!F240=2,"Non-NA NG",IF(Inputs!F240=3,"FG",IF(RNG!G6=1,"LFG",IF(RNG!G7=1,"Manure-based AD Gas",IF(RNG!G8=1,"WWTP-based AD Gas","RNG")))))),"")&IF(Inputs!F232=1,"Electrolysis","")&IF(Inputs!F233=1,"EtOH","")&IF(Inputs!F235=1,"MeOH","")&IF(MAX(Inputs!F231:F235)<1,"Mixed Sources",""))&") and Electricity ("&VLOOKUP(Inputs!$F$720,Inputs!$G$720:$H$756,2,FALSE)&")" -> Grid-Connected SI PHEV: G.H2 (Central Plants, NA NG) and Electricity (NWPP Mix) | AB13: ="Grid-Connected SI PHEV: L.H2 ("&IF(Inputs!G211=1,"Central Plants, "&IF(Inputs!G216=1,IF(Inputs!G239=1,"NA NG",IF(Inputs!G239=2,"Non-NA NG",IF(Inputs!G239=3,"FG",IF(RNG!H6=1,"LFG",IF(RNG!H7=1,"Manure-based AD Gas",IF(RNG!H8=1,"WWTP-based AD Gas","RNG")))))),"")&IF(Inputs!G217=1,"Solar","")&IF(Inputs!G219=1,"Nuclear","")&IF(Inputs!G220=1,"Electrolysis (Nuclear HTGR)","")&IF(Inputs!G221=1,"Coal","")&IF(Inputs!G222=1,"Biomass","")&IF(Inputs!G224=1,"Coke Oven Gas","")&IF(Inputs!G227=1,"Pet Coke","")&IF(MAX(Inputs!G216:G227)<1,"Mixed Sources",""),"Refueling Station, "&IF(Inputs!G231=1,IF(Inputs!G240=1,"NA NG",IF(Inputs!G240=2,"Non-NA NG",IF(Inputs!G240=3,"FG",IF(RNG!H6=1,"LFG",IF(RNG!H7=1,"Manure-based AD Gas",IF(RNG!H8=1,"WWTP-based AD Gas","RNG")))))),"")&IF(Inputs!G232=1,"Electrolysis","")&IF(Inputs!G233=1,"EtOH","")&IF(Inputs!G235=1,"MeOH","")&IF(MAX(Inputs!G231:G235)<1,"Mixed Sources",""))&") and Electricity ("&VLOOKUP(Inputs!$F$720,Inputs!$G$720:$H$756,2,FALSE)&")" -> Grid-Connected SI PHEV: L.H2 (Central Plants, NA NG) and Electricity (NWPP Mix) | AC13: ="DME: "&IF(Inputs!F153=1,"NA NG",IF(Inputs!F153=2,"Non-NA NG",IF(Inputs!F153=3,"FG",IF(Inputs!F153=4,IF(RNG!E6=1,"LFG",IF(RNG!E7=1,"AD Gas","RNG")),IF(Inputs!F153=5,"Biomass",IF(Inputs!F153=9,"Black Liquor",IF(Inputs!F153=10,"NG via Methanol","Coal"))))))) -> DME: NA NG | AD13: ="FTD"&TEXT(Vehicles!C13*100,"0")&": "&IF(Inputs!F154=1,"NA NG",IF(Inputs!F154=2,"Non-NA NG",IF(Inputs!F154=3,"FG",IF(Inputs!F154=4,IF(RNG!E6=1,"LFG",IF(RNG!E7=1,"AD Gas","RNG")),IF(Inputs!F154=5,"Biomass",IF(Inputs!F154=6,"Coal",IF(Inputs!F154=8,"NG/Biomass("&TEXT(Inputs!J187*100,"0")&"/"&TEXT(Inputs!J188*100,"0")&")","Coal/Biomass("&TEXT(Inputs!F187*100,"0")&"/"&TEXT(Inputs!F188*100,"0")&")"))))))) -> FTD100: NA NG | AE13: =IF(Inputs!$F$630=11, "UCO", IF(Inputs!$F$630=2,"Palm FFB",IF(Inputs!$F$630=3,"Canola",IF(Inputs!$F$630=4,"Jatropha",IF(Inputs!$F$630=5,"Camelina",IF(Inputs!$F$630=6,"Algae",IF(Inputs!$F$630=7,"Tallow",IF(Inputs!$F$630=8,"Corn Oil","Soybean"))))))))&"-based BD"&Vehicles!C14*100 -> Soybean-based BD20 | AF13: =IF(Inputs!E670=1,IF(Inputs!$G$630=2,"Palm FFB",IF(Inputs!$G$630=3,"Canola",IF(Inputs!$G$630=4,"Jatropha",IF(Inputs!$G$630=5,"Camelina",IF(Inputs!$G$630=6,"Algae",IF(Inputs!$G$630=7,"Tallow",IF(Inputs!$G$630=8,"Corn Oil","Soybean"))))))),IF(Inputs!E670=3,IF(Inputs!$I$630=2,"Palm FFB",IF(Inputs!$I$630=3,"Canola",IF(Inputs!$I$630=4,"Jatropha",IF(Inputs!$I$630=5,"Camelina",IF(Inputs!$I$630=6,"Algae",IF(Inputs!$I$630=7,"Tallow",IF(Inputs!$I$630=8,"Corn Oil","Soybean"))))))),IF(Inputs!$H$630=11,"UCO", IF(Inputs!$H$630=2,"Palm FFB",IF(Inputs!$H$630=3,"Canola",IF(Inputs!$H$630=4,"Jatropha",IF(Inputs!$H$630=5,"Camelina",IF(Inputs!$H$630=6,"Algae",IF(Inputs!$H$630=7,"Tallow",IF(Inputs!$H$630=8,"Corn Oil","Soybean"))))))))))&"-based RD"&IF(Inputs!$E$670=3,"III","II")&" "&Vehicles!C15*100 -> Soybean-based RDII 100 | AG13: =IF(Pyrolysis_IDL!$B$26=1,"Corn Stover","Forest Residue")&"-based RD"&IF(Inputs!E670=1,"I ","II ")&Vehicles!C15*100 -> Forest Residue-based RDII 100 | AH13: ="EtOH-Diesel, "&IF(EtOH!C6=1,"Corn"&IF(EtOH!C136=1,", dry",IF(EtOH!C136=0,", wet","")),IF(EtOH!D6=1,"Willow",IF(EtOH!E6=1,"Poplar",IF(EtOH!F6=1,"Switchgrass",IF(EtOH!G6=1,"Miscanthus",IF(EtOH!H6=1,"Corn Stover",IF(EtOH!I6=1,"Forest Residue",IF(EtOH!M6=1,"Sugarcane",IF(EtOH!J6=1,IF(EtOH!D233=1,"Grain",IF(EtOH!D233=3,"Forage","Sweet"))&" Sorghum",IF(EtOH!L6=1,"Solid Waste","Mixed Source")))))))))) -> EtOH-Diesel, Corn | AI13: ="Grid-Connected CIDI PHEV: Diesel and Electricity ("&VLOOKUP(Inputs!$F$720,Inputs!$G$720:$H$756,2,FALSE)&")" -> Grid-Connected CIDI PHEV: Diesel and Electricity (NWPP Mix) | AJ13: ="Grid-Connected CIDI PHEV: DME ("&IF(Inputs!F153=1,"NA NG",IF(Inputs!F153=2,"Non-NA NG",IF(Inputs!F153=3,"FG",IF(Inputs!F153=4,IF(RNG!E6=1,"LFG",IF(RNG!E7=1,"AD Gas","RNG")),IF(Inputs!F153=5,"Biomass",IF(Inputs!F153=9,"Black Liquor",IF(Inputs!F153=10,"NG via Methanol","Coal")))))))&") and Electricity ("&VLOOKUP(Inputs!$F$720,Inputs!$G$720:$H$756,2,FALSE)&")" -> Grid-Connected CIDI PHEV: DME (NA NG) and Electricity (NWPP Mix) | AK13: ="Grid-Connected CIDI PHEV: FTD"&Vehicles!C13*100&" ("&IF(Inputs!F154=1,"NA NG",IF(Inputs!F154=2,"Non-NA NG",IF(Inputs!F154=3,"FG",IF(Inputs!F154=4,IF(RNG!E6=1,"LFG",IF(RNG!E7=1,"AD Gas","RNG")),IF(Inputs!F154=5,"Biomass",IF(Inputs!F154=6,"Coal","Coal/Biomass("&Inputs!F187*100&"/"&Inputs!F188*100&")"))))))&") and Electricity ("&VLOOKUP(Inputs!$F$720,Inputs!$G$720:$H$756,2,FALSE)&")" -> Grid-Connected CIDI PHEV: FTD100 (NA NG) and Electricity (NWPP Mix) | AL13: ="Grid-Connected CIDI PHEV: BD"&Vehicles!C14*100&" ("&IF(Inputs!$F$630=11,"UCO", IF(Inputs!$F$630=2,"Palm FFB",IF(Inputs!$F$630=3,"Canola",IF(Inputs!$F$630=4,"Jatropha",IF(Inputs!$F$630=5,"Camelina",IF(Inputs!$F$630=6,"Algae",IF(Inputs!$F$630=7,"Tallow",IF(Inputs!$F$630=8,"Corn Oil","Soybean"))))))))&") and Electricity ("&VLOOKUP(Inputs!$F$720,Inputs!$G$720:$H$756,2,FALSE)&")" -> Grid-Connected CIDI PHEV: BD20 (Soybean) and Electricity (NWPP Mix) | AM13: ="Grid-Connected CIDI PHEV: EtOH-Diesel ("&IF(EtOH!C6=1,"Corn"&IF(EtOH!C136=1,", dry",IF(EtOH!C136=0,", wet","")),IF(EtOH!D6=1,"Willow",IF(EtOH!E6=1,"Poplar",IF(EtOH!F6=1,"Switchgrass",IF(EtOH!G6=1,"Miscanthus",IF(EtOH!H6=1,"Corn Stover",IF(EtOH!I6=1,"Forest Residue",IF(EtOH!M6=1,"Sugarcane",IF(EtOH!J6=1,IF(EtOH!D233=1,"Grain",IF(EtOH!D233=3,"Forage","Sweet"))&" Sorghum",IF(EtOH!L6=1,"Solid Waste","Mixed Source"))))))))))&") and Electricity ("&VLOOKUP(Inputs!$F$720,Inputs!$G$720:$H$756,2,FALSE)&")" -> Grid-Connected CIDI PHEV: EtOH-Diesel (Corn) and Electricity (NWPP Mix) | AN13: ="Electricity ("&VLOOKUP(Inputs!$F$720,Inputs!$G$720:$H$756,2,FALSE)&")" -> Electricity (NWPP Mix) | AO13: ="FCV: G.H2"&IF(Inputs!F211=1,", Central Plants, "&IF(Inputs!F216=1,IF(Inputs!F239=1,"NA NG",IF(Inputs!F239=2,"Non-NA NG",IF(Inputs!F239=3,"FG",IF(RNG!G6=1,"LFG",IF(RNG!G7=1,"Manure-based AD Gas",IF(RNG!G8=1,"WWTP-based AD Gas","RNG")))))),"")&IF(Inputs!F217=1,"Solar","")&IF(Inputs!F219=1,"Nuclear","")&IF(Inputs!F220=1,"Electrolysis (Nuclear HTGR)","")&IF(Inputs!F221=1,"Coal","")&IF(Inputs!F222=1,"Biomass","")&IF(Inputs!F224=1,"Coke Oven Gas","")&IF(Inputs!F227=1,"Pet Coke","")&IF(MAX(Inputs!F216:F227)<1,"Mixed Sources",""),", Refueling Station, "&IF(Inputs!F231=1,IF(Inputs!F240=1,"NA NG",IF(Inputs!F240=2,"Non-NA NG",IF(Inputs!F240=3,"FG",IF(RNG!G6=1,"LFG",IF(RNG!G7=1,"Manure-based AD Gas",IF(RNG!G8=1,"WWTP-based AD Gas","RNG")))))),"")&IF(Inputs!F232=1,"Electrolysis","")&IF(Inputs!F233=1,"EtOH","")&IF(Inputs!F235=1,"MeOH","")&IF(MAX(Inputs!F231:F235)<1,"Mixed Sources","")) -> FCV: G.H2, Central Plants, NA NG | AP13: ="FCV: L.H2"&IF(Inputs!G211=1,", Central Plants, "&IF(Inputs!G216=1,IF(Inputs!G239=1,"NA NG",IF(Inputs!G239=2,"Non-NA NG",IF(Inputs!G239=3,"FG",IF(RNG!H6=1,"LFG",IF(RNG!H7=1,"Manure-based AD Gas",IF(RNG!H8=1,"WWTP-based AD Gas","RNG")))))),"")&IF(Inputs!G217=1,"Solar","")&IF(Inputs!G219=1,"Nuclear","")&IF(Inputs!G220=1,"Electrolysis (Nuclear HTGR)","")&IF(Inputs!G221=1,"Coal","")&IF(Inputs!G222=1,"Biomass","")&IF(Inputs!G224=1,"Coke Oven Gas","")&IF(Inputs!G227=1,"Pet Coke","")&IF(MAX(Inputs!G216:G227)<1,"Mixed Sources",""),", Refueling Station, "&IF(Inputs!G231=1,IF(Inputs!G240=1,"NA NG",IF(Inputs!G240=2,"Non-NA NG",IF(Inputs!G240=3,"FG",IF(RNG!H6=1,"LFG",IF(RNG!H7=1,"Manure-based AD Gas",IF(RNG!H8=1,"WWTP-based AD Gas","RNG")))))),"")&IF(Inputs!G232=1,"Electrolysis","")&IF(Inputs!G233=1,"EtOH","")&IF(Inputs!G235=1,"MeOH","")&IF(MAX(Inputs!G231:G235)<1,"Mixed Sources","")) -> FCV: L.H2, Central Plants, NA NG | AQ13: ="Grid-Connected FC PHEV: G.H2 ("&IF(Inputs!F211=1,"Central Plants, "&IF(Inputs!F216=1,IF(Inputs!F239=1,"NA NG",IF(Inputs!F239=2,"Non-NA NG",IF(Inputs!F239=3,"FG",IF(RNG!G6=1,"LFG",IF(RNG!G7=1,"Manure-based AD Gas",IF(RNG!G8=1,"WWTP-based AD Gas","RNG")))))),"")&IF(Inputs!F217=1,"Solar","")&IF(Inputs!F219=1,"Nuclear","")&IF(Inputs!F220=1,"Electrolysis (Nuclear HTGR)","")&IF(Inputs!F221=1,"Coal","")&IF(Inputs!F222=1,"Biomass","")&IF(Inputs!F224=1,"Coke Oven Gas","")&IF(Inputs!F227=1,"Pet Coke","")&IF(MAX(Inputs!F216:F227)<1,"Mixed Sources",""),"Refueling Station, "&IF(Inputs!F231=1,IF(Inputs!F240=1,"NA NG",IF(Inputs!F240=2,"Non-NA NG",IF(Inputs!F240=3,"FG",IF(RNG!G6=1,"LFG",IF(RNG!G7=1,"Manure-based AD Gas",IF(RNG!G8=1,"WWTP-based AD Gas","RNG")))))),"")&IF(Inputs!F232=1,"Electrolysis","")&IF(Inputs!F233=1,"EtOH","")&IF(Inputs!F235=1,"MeOH","")&IF(MAX(Inputs!F231:F235)<1,"Mixed Sources",""))&") and Electricity ("&VLOOKUP(Inputs!$F$720,Inputs!$G$720:$H$756,2,FALSE)&")" -> Grid-Connected FC PHEV: G.H2 (Central Plants, NA NG) and Electricity (NWPP Mix) | AR13: ="Grid-Connected FC PHEV: L.H2 ("&IF(Inputs!G211=1,"Central Plants, "&IF(Inputs!G216=1,IF(Inputs!G239=1,"NA NG",IF(Inputs!G239=2,"Non-NA NG",IF(Inputs!G239=3,"FG",IF(RNG!H6=1,"LFG",IF(RNG!H7=1,"Manure-based AD Gas",IF(RNG!H8=1,"WWTP-based AD Gas","RNG")))))),"")&IF(Inputs!G217=1,"Solar","")&IF(Inputs!G219=1,"Nuclear","")&IF(Inputs!G220=1,"Electrolysis (Nuclear HTGR)","")&IF(Inputs!G221=1,"Coal","")&IF(Inputs!G222=1,"Biomass","")&IF(Inputs!G224=1,"Coke Oven Gas","")&IF(Inputs!G227=1,"Pet Coke","")&IF(MAX(Inputs!G216:G227)<1,"Mixed Sources",""),"Refueling Station, "&IF(Inputs!G231=1,IF(Inputs!G240=1,"NA NG",IF(Inputs!G240=2,"Non-NA NG",IF(Inputs!G240=3,"FG",IF(RNG!H6=1,"LFG",IF(RNG!H7=1,"Manure-based AD Gas",IF(RNG!H8=1,"WWTP-based AD Gas","RNG")))))),"")&IF(Inputs!G232=1,"Electrolysis","")&IF(Inputs!G233=1,"EtOH","")&IF(Inputs!G235=1,"MeOH","")&IF(MAX(Inputs!G231:G235)<1,"Mixed Sources",""))&") and Electricity ("&VLOOKUP(Inputs!$F$720,Inputs!$G$720:$H$756,2,FALSE)&")" -> Grid-Connected FC PHEV: L.H2 (Central Plants, NA NG) and Electricity (NWPP Mix) | AS13: ="Blended feedstock-based RG"&Vehicles!C16*100&" via Indirect Liquefaction (IDL)" -> Blended feedstock-based RG100 via Indirect Liquefaction (IDL) | AT13: Low Octane Gasoline-Like Fuel | AU13: Boosted Spark Ignition (BSI) Isobutanol-gasoline blend | AV13: Boosted Spark Ignition (BSI) ARHC-gasoline blend
A14: Total Energy | B14: =(Inputs!$E$1518*(Petroleum!$B263*Petroleum!$F$262+Petroleum!$F263)+(1-Inputs!$E$1518)*(Petroleum!$B263*Petroleum!$D$262+Petroleum!$D263))/1000000*HLOOKUP($H$10,$Z$3:$AD$4,2,FALSE)/HLOOKUP($J$11,$Z$7:$AD$8,2,FALSE) -> 266206.9613 | C14: =(Petroleum!$C263*Petroleum!$G$262+Petroleum!$G263)/1000000*HLOOKUP($H$10,$Z$3:$AD$4,2,FALSE)/HLOOKUP($J$11,$Z$7:$AD$8,2,FALSE) -> 252356.6041 | D14: =((1-Vehicles!$C$35)*(1-Vehicles!$C$7)*Fuel_Specs!$B$15/((1-Vehicles!$C$35)*(1-Vehicles!$C$7)*Fuel_Specs!$B$15+Vehicles!$C$35*(1-Vehicles!$C$7)*Fuel_Specs!$B$17+Vehicles!$C$7*Fuel_Specs!$B$33)*(Petroleum!$B263*Petroleum!$D$262+(Petroleum!$D263-'T&D'!G215))+Vehicles!$C$35*(1-Vehicles!$C$7)*Fuel_Specs!$B$17/((1-Vehicles!$C$35)*(1-Vehicles!$C$7)*Fuel_Specs!$B$15+Vehicles!$C$35*(1-Vehicles!$C$7)*Fuel_Specs!$B$17+Vehicles!$C$7*Fuel_Specs!$B$33)*(Petroleum!B263*Petroleum!$F$262+Petroleum!$F263)+Vehicles!$C$7*Fuel_Specs!$B$33/((1-Vehicles!$C$35)*(1-Vehicles!$C$7)*Fuel_Specs!$B$15+Vehicles!$C$35*(1-Vehicles!$C$7)*Fuel_Specs!$B$17+Vehicles!$C$7*Fuel_Specs!$B$33)*(EtOH!BV547*EtOH!$BW$546+EtOH!$BW547)+Petroleum!AS124+Petroleum!AT124)/1000000*HLOOKUP($H$10,$Z$3:$AD$4,2,FALSE)/HLOOKUP($J$11,$Z$7:$AD$8,2,FALSE) -> 266206.9613 | E14: =(Inputs!$E$97*(IF(Inputs!F$102=1,Petroleum!$B263,Petroleum!$C263)*IF(Inputs!F$102=1,Petroleum!$K$262,Petroleum!$L$262)+IF(Inputs!F$102=1,Petroleum!$K263,Petroleum!$L263))+(1-Inputs!$E$97)*(IF(Inputs!F$101=1,Petroleum!$B263,Petroleum!$C263)*Petroleum!$J$262+Petroleum!$J263))/1000000*HLOOKUP($H$10,$Z$3:$AD$4,2,FALSE)/HLOOKUP($J$11,$Z$7:$AD$8,2,FALSE) -> 184587.7784 | F14: =(NG!$J85*NG!$K$84+NG!$K85)/1000000*HLOOKUP($H$10,$Z$3:$AD$4,2,FALSE)/HLOOKUP($J$11,$Z$7:$AD$8,2,FALSE) -> 201005.6958 | G14: =(NG!$R85*NG!$S$84+NG!$S85)/1000000*HLOOKUP($H$10,$Z$3:$AD$4,2,FALSE)/HLOOKUP($J$11,$Z$7:$AD$8,2,FALSE) -> 216309.5149 | H14: =(NG!$X85*NG!$Y$84+NG!$Y85)/1000000*HLOOKUP($H$10,$Z$3:$AD$4,2,FALSE)/HLOOKUP($J$11,$Z$7:$AD$8,2,FALSE) -> 163584.4919 | I14: =(MeOH_FTD!BJ163*MeOH_FTD!BK$162+MeOH_FTD!BK163)/1000000*HLOOKUP($H$10,$Z$3:$AD$4,2,FALSE)/HLOOKUP($J$11,$Z$7:$AD$8,2,FALSE) -> 790824.1655 | J14: =((1-Vehicles!$C$34)*(1-Vehicles!$C$5)*Fuel_Specs!$B$15/((1-Vehicles!$C$34)*(1-Vehicles!$C$5)*Fuel_Specs!$B$15+Vehicles!$C$34*(1-Vehicles!$C$5)*Fuel_Specs!$B$17+Vehicles!$C$5*Fuel_Specs!$B$32)*(Petroleum!$B263*Petroleum!$D$262+Petroleum!$D263)+Vehicles!$C$34*(1-Vehicles!$C$5)*Fuel_Specs!$B$17/((1-Vehicles!$C$34)*(1-Vehicles!$C$5)*Fuel_Specs!$B$15+Vehicles!$C$34*(1-Vehicles!$C$5)*Fuel_Specs!$B$17+Vehicles!$C$5*Fuel_Specs!$B$32)*(Petroleum!B263*Petroleum!$F$262+Petroleum!$F263)+Vehicles!$C$5*Fuel_Specs!$B$32/((1-Vehicles!$C$34)*(1-Vehicles!$C$5)*Fuel_Specs!$B$15+Vehicles!$C$34*(1-Vehicles!$C$5)*Fuel_Specs!$B$17+Vehicles!$C$5*Fuel_Specs!$B$32)*(MeOH_FTD!$N163*MeOH_FTD!$O$162+MeOH_FTD!$O163))/1000000*HLOOKUP($H$10,$Z$3:$AD$4,2,FALSE)/HLOOKUP($J$11,$Z$7:$AD$8,2,FALSE) -> 467296.9891 | K14: =((1-Vehicles!$C$34)*(1-Vehicles!$C$6)*Fuel_Specs!$B$15/((1-Vehicles!$C$34)*(1-Vehicles!$C$6)*Fuel_Specs!$B$15+Vehicles!$C$34*(1-Vehicles!$C$6)*Fuel_Specs!$B$17+Vehicles!$C$6*Fuel_Specs!$B$32)*(Petroleum!$B263*Petroleum!$D$262+Petroleum!$D263)+Vehicles!$C$34*(1-Vehicles!$C$6)*Fuel_Specs!$B$17/((1-Vehicles!$C$34)*(1-Vehicles!$C$6)*Fuel_Specs!$B$15+Vehicles!$C$34*(1-Vehicles!$C$6)*Fuel_Specs!$B$17+Vehicles!$C$6*Fuel_Specs!$B$32)*(Petroleum!B263*Petroleum!$F$262+Petroleum!$F263)+Vehicles!$C$6*Fuel_Specs!$B$32/((1-Vehicles!$C$34)*(1-Vehicles!$C$6)*Fuel_Specs!$B$15+Vehicles!$C$34*(1-Vehicles!$C$6)*Fuel_Specs!$B$17+Vehicles!$C$6*Fuel_Specs!$B$32)*(MeOH_FTD!$N163*MeOH_FTD!$O$162+MeOH_FTD!$O163))/1000000*HLOOKUP($H$10,$Z$3:$AD$4,2,FALSE)/HLOOKUP($J$11,$Z$7:$AD$8,2,FALSE) -> 492482.231 | L14: =(MeOH_FTD!$N163*MeOH_FTD!$O$162+MeOH_FTD!$O163)/1000000*HLOOKUP($H$10,$Z$3:$AD$4,2,FALSE)/HLOOKUP($J$11,$Z$7:$AD$8,2,FALSE) -> 550618.1277 | M14: =((1-Vehicles!$C$36)*(1-Vehicles!$C$8)*Fuel_Specs!$B$15/((1-Vehicles!$C$36)*(1-Vehicles!$C$8)*Fuel_Specs!$B$15+Vehicles!$C$36*(1-Vehicles!$C$8)*Fuel_Specs!$B$17+Vehicles!$C$8*Fuel_Specs!$B$33)*(Petroleum!$B263*Petroleum!$D$262+(Petroleum!$D263-'T&D'!G215))+Vehicles!$C$36*(1-Vehicles!$C$8)*Fuel_Specs!$B$17/((1-Vehicles!$C$36)*(1-Vehicles!$C$8)*Fuel_Specs!$B$15+Vehicles!$C$36*(1-Vehicles!$C$8)*Fuel_Specs!$B$17+Vehicles!$C$8*Fuel_Specs!$B$33)*(Petroleum!B263*Petroleum!$F$262+Petroleum!$F263)+Vehicles!$C$8*Fuel_Specs!$B$33/((1-Vehicles!$C$36)*(1-Vehicles!$C$8)*Fuel_Specs!$B$15+Vehicles!$C$36*(1-Vehicles!$C$8)*Fuel_Specs!$B$17+Vehicles!$C$8*Fuel_Specs!$B$33)*(EtOH!BV547*EtOH!$BW$546+EtOH!$BW547)+Petroleum!AS124+Petroleum!AT124)/1000000*HLOOKUP($H$10,$Z$3:$AD$4,2,FALSE)/HLOOKUP($J$11,$Z$7:$AD$8,2,FALSE) -> 610949.9482 | N14: =((1-Vehicles!$C$37)*(1-Vehicles!$C$12)*Fuel_Specs!$B$15/((1-Vehicles!$C$37)*(1-Vehicles!$C$12)*Fuel_Specs!$B$15+Vehicles!$C$37*(1-Vehicles!$C$12)*Fuel_Specs!$B$17+Vehicles!$C$12*Fuel_Specs!$B$34)*(Petroleum!$B263*Petroleum!$D$262+Petroleum!$D263)+Vehicles!$C$37*(1-Vehicles!$C$12)*Fuel_Specs!$B$17/((1-Vehicles!$C$37)*(1-Vehicles!$C$12)*Fuel_Specs!$B$15+Vehicles!$C$37*(1-Vehicles!$C$12)*Fuel_Specs!$B$17+Vehicles!$C$12*Fuel_Specs!$B$34)*(Petroleum!B263*Petroleum!$F$262+Petroleum!$F263)+Vehicles!$C$12*Fuel_Specs!$B$34/((1-Vehicles!$C$37)*(1-Vehicles!$C$12)*Fuel_Specs!$B$15+Vehicles!$C$37*(1-Vehicles!$C$12)*Fuel_Specs!$B$17+Vehicles!$C$12*Fuel_Specs!$B$34)*(EtOH!$BX547*EtOH!$BY$546+EtOH!$BY547))/1000000*HLOOKUP($H$10,$Z$3:$AD$4,2,FALSE)/HLOOKUP($J$11,$Z$7:$AD$8,2,FALSE) -> 715549.3665 | O14: =((1-Vehicles!$C$36)*(1-Vehicles!$C$9)*Fuel_Specs!$B$15/((1-Vehicles!$C$36)*(1-Vehicles!$C$9)*Fuel_Specs!$B$15+Vehicles!$C$36*(1-Vehicles!$C$9)*Fuel_Specs!$B$17+Vehicles!$C$9*Fuel_Specs!$B$33)*(Petroleum!$B263*Petroleum!$D$262+(Petroleum!$D263-'T&D'!G215))+Vehicles!$C$36*(1-Vehicles!$C$9)*Fuel_Specs!$B$17/((1-Vehicles!$C$36)*(1-Vehicles!$C$9)*Fuel_Specs!$B$15+Vehicles!$C$36*(1-Vehicles!$C$9)*Fuel_Specs!$B$17+Vehicles!$C$9*Fuel_Specs!$B$33)*(Petroleum!B263*Petroleum!$F$262+Petroleum!$F263)+Vehicles!$C$9*Fuel_Specs!$B$33/((1-Vehicles!$C$36)*(1-Vehicles!$C$9)*Fuel_Specs!$B$15+Vehicles!$C$36*(1-Vehicles!$C$9)*Fuel_Specs!$B$17+Vehicles!$C$9*Fuel_Specs!$B$33)*(EtOH!BV547*EtOH!$BW$546+EtOH!$BW547)+Petroleum!AS124+Petroleum!AT124)/1000000*HLOOKUP($H$10,$Z$3:$AD$4,2,FALSE)/HLOOKUP($J$11,$Z$7:$AD$8,2,FALSE) -> 610949.9482 | P14: =(EtOH!$BT547*EtOH!$BU$546+EtOH!$BU547)/1000000*HLOOKUP($H$10,$Z$3:$AD$4,2,FALSE)/HLOOKUP($J$11,$Z$7:$AD$8,2,FALSE) -> 727085.0874 | Q14: =((1-Vehicles!$C$40)*(1-Vehicles!$C$16)*Fuel_Specs!$B$15/((1-Vehicles!$C$40)*(1-Vehicles!$C$16)*Fuel_Specs!$B$15+Vehicles!$C$40*(1-Vehicles!$C$16)*Fuel_Specs!$B$17+Vehicles!$C$16*Fuel_Specs!$B$47)*(Petroleum!$B263*Petroleum!$D$262+Petroleum!$D263)+Vehicles!$C$40*(1-Vehicles!$C$16)*Fuel_Specs!$B$17/((1-Vehicles!$C$40)*(1-Vehicles!$C$16)*Fuel_Specs!$B$15+Vehicles!$C$40*(1-Vehicles!$C$16)*Fuel_Specs!$B$17+Vehicles!$C$16*Fuel_Specs!$B$47)*(Petroleum!B263*Petroleum!$F$262+Petroleum!$F263)+Vehicles!$C$16*Fuel_Specs!$B$47/((1-Vehicles!$C$40)*(1-Vehicles!$C$16)*Fuel_Specs!$B$15+Vehicles!$C$40*(1-Vehicles!$C$16)*Fuel_Specs!$B$17+Vehicles!$C$16*Fuel_Specs!$B$47)*(BioOil!$CE433*BioOil!$CF$431+BioOil!$CF433))/1000000*HLOOKUP($H$10,$Z$3:$AD$4,2,FALSE)/HLOOKUP($J$11,$Z$7:$AD$8,2,FALSE) -> 426193.1371 | R14: =((1-Vehicles!$C$40)*(1-Vehicles!$C$16)*Fuel_Specs!$B$15/((1-Vehicles!$C$40)*(1-Vehicles!$C$16)*Fuel_Specs!$B$15+Vehicles!$C$40*(1-Vehicles!$C$16)*Fuel_Specs!$B$17+Vehicles!$C$16*Fuel_Specs!$B$47)*(Petroleum!$B263*Petroleum!$D$262+Petroleum!$D263)+Vehicles!$C$40*(1-Vehicles!$C$16)*Fuel_Specs!$B$17/((1-Vehicles!$C$40)*(1-Vehicles!$C$16)*Fuel_Specs!$B$15+Vehicles!$C$40*(1-Vehicles!$C$16)*Fuel_Specs!$B$17+Vehicles!$C$16*Fuel_Specs!$B$47)*(Petroleum!B263*Petroleum!$F$262+Petroleum!$F263)+Vehicles!$C$16*Fuel_Specs!$B$47/((1-Vehicles!$C$40)*(1-Vehicles!$C$16)*Fuel_Specs!$B$15+Vehicles!$C$40*(1-Vehicles!$C$16)*Fuel_Specs!$B$17+Vehicles!$C$16*Fuel_Specs!$B$47)*(Pyrolysis_IDL!$AD298*Pyrolysis_IDL!$AE$297+Pyrolysis_IDL!$AE298))/1000000*HLOOKUP($H$10,$Z$3:$AD$4,2,FALSE)/HLOOKUP($J$11,$Z$7:$AD$8,2,FALSE) -> 947437.0948 | S14: =AN14*(Vehicles!$C$30/Vehicles!$AT$72)/(Vehicles!$C$30*(1/Vehicles!$AT$72+1/Vehicles!$AU$72)+Vehicles!$C$31/Vehicles!$AV$72)+B14*(Vehicles!$C$30/Vehicles!$AU$72+Vehicles!$C$31/Vehicles!$AV$72)/(Vehicles!$C$30*(1/Vehicles!$AT$72+1/Vehicles!$AU$72)+Vehicles!$C$31/Vehicles!$AV$72) -> 482137.6221 | T14: =AN14*(Vehicles!$D$30/Vehicles!$AX$72)/(Vehicles!$D$30*(1/Vehicles!$AX$72+1/Vehicles!$AY$72)+Vehicles!$D$31/Vehicles!$AZ$72)+C14*(Vehicles!$D$30/Vehicles!$AY$72+Vehicles!$D$31/Vehicles!$AZ$72)/(Vehicles!$D$30*(1/Vehicles!$AX$72+1/Vehicles!$AY$72)+Vehicles!$D$31/Vehicles!$AZ$72) -> 473520.7844 | U14: =AN14*(Vehicles!$F$30/Vehicles!$BF$72)/(Vehicles!$F$30*(1/Vehicles!$BF$72+1/Vehicles!$BG$72)+Vehicles!$F$31/Vehicles!$BH$72)+D14*(Vehicles!$F$30/Vehicles!$BG$72+Vehicles!$F$31/Vehicles!$BH$72)/(Vehicles!$F$30*(1/Vehicles!$BF$72+1/Vehicles!$BG$72)+Vehicles!$F$31/Vehicles!$BH$72) -> 482137.6221 | V14: =AN14*(Vehicles!$G$30/Vehicles!$BJ$72)/(Vehicles!$G$30*(1/Vehicles!$BJ$72+1/Vehicles!$BK$72)+Vehicles!$G$31/Vehicles!$BL$72)+F14*(Vehicles!$G$30/Vehicles!$BK$72+Vehicles!$G$31/Vehicles!$BL$72)/(Vehicles!$G$30*(1/Vehicles!$BJ$72+1/Vehicles!$BK$72)+Vehicles!$G$31/Vehicles!$BL$72) -> 441573.4174 | W14: =AN14*(Vehicles!$H$30/Vehicles!$BN$72)/(Vehicles!$H$30*(1/Vehicles!$BN$72+1/Vehicles!$BO$72)+Vehicles!$H$31/Vehicles!$BP$72)+G14*(Vehicles!$H$30/Vehicles!$BO$72+Vehicles!$H$31/Vehicles!$BP$72)/(Vehicles!$H$30*(1/Vehicles!$BN$72+1/Vehicles!$BO$72)+Vehicles!$H$31/Vehicles!$BP$72) -> 451094.5094 | X14: =AN14*(Vehicles!$I$30/Vehicles!$BR$72)/(Vehicles!$I$30*(1/Vehicles!$BR$72+1/Vehicles!$BS$72)+Vehicles!$I$31/Vehicles!$BT$72)+H14*(Vehicles!$I$30/Vehicles!$BS$72+Vehicles!$I$31/Vehicles!$BT$72)/(Vehicles!$I$30*(1/Vehicles!$BR$72+1/Vehicles!$BS$72)+Vehicles!$I$31/Vehicles!$BT$72) -> 418292.253 | Y14: =AN14*(Vehicles!$J$30/Vehicles!$BV$72)/(Vehicles!$J$30*(1/Vehicles!$BV$72+1/Vehicles!$BW$72)+Vehicles!$J$31/Vehicles!$BX$72)+K14*(Vehicles!$J$30/Vehicles!$BW$72+Vehicles!$J$31/Vehicles!$BX$72)/(Vehicles!$J$30*(1/Vehicles!$BV$72+1/Vehicles!$BW$72)+Vehicles!$J$31/Vehicles!$BX$72) -> 622912.1347 | Z14: =AN14*(Vehicles!$K$30/Vehicles!$BZ$72)/(Vehicles!$K$30*(1/Vehicles!$BZ$72+1/Vehicles!$CA$72)+Vehicles!$K$31/Vehicles!$CB$72)+O14*(Vehicles!$K$30/Vehicles!$CA$72+Vehicles!$K$31/Vehicles!$CB$72)/(Vehicles!$K$30*(1/Vehicles!$BZ$72+1/Vehicles!$CA$72)+Vehicles!$K$31/Vehicles!$CB$72) -> 696615.4395 | AA14: =AN14*(Vehicles!$L$30/Vehicles!$CD$72)/(Vehicles!$L$30*(1/Vehicles!$CD$72+1/Vehicles!$CE$72)+Vehicles!$L$31/Vehicles!$CF$72)+AO14*(Vehicles!$L$30/Vehicles!$CE$72+Vehicles!$L$31/Vehicles!$CF$72)/(Vehicles!$L$30*(1/Vehicles!$CD$72+1/Vehicles!$CE$72)+Vehicles!$L$31/Vehicles!$CF$72) -> 675380.1835 | AB14: =AN14*(Vehicles!$L$30/Vehicles!$CD$72)/(Vehicles!$L$30*(1/Vehicles!$CD$72+1/Vehicles!$CE$72)+Vehicles!$L$31/Vehicles!$CG$72)+AP14*(Vehicles!$L$30/Vehicles!$CE$72+Vehicles!$L$31/Vehicles!$CG$72)/(Vehicles!$L$30*(1/Vehicles!$CD$72+1/Vehicles!$CE$72)+Vehicles!$L$31/Vehicles!$CG$72) -> 989197.5989 | AC14: =(MeOH_FTD!$AJ163*MeOH_FTD!$AK$162+MeOH_FTD!$AK163)/1000000*HLOOKUP($H$10,$Z$3:$AD$4,2,FALSE)/HLOOKUP($J$11,$Z$7:$AD$8,2,FALSE) -> 644837.2791 | AD14: =((1-Vehicles!$C$41)*(1-Vehicles!$C$13)*Fuel_Specs!$B$21/((1-Vehicles!$C$41)*(1-Vehicles!$C$13)*Fuel_Specs!$B$21+Vehicles!$C$41*(1-Vehicles!$C$13)*Fuel_Specs!$B$24+Vehicles!$C$13*Fuel_Specs!$B$42)*(Petroleum!B263*Petroleum!$J$262+Petroleum!$J263)+Vehicles!$C$41*(1-Vehicles!$C$13)*Fuel_Specs!$B$24/((1-Vehicles!$C$41)*(1-Vehicles!$C$13)*Fuel_Specs!$B$21+Vehicles!$C$41*(1-Vehicles!$C$13)*Fuel_Specs!$B$24+Vehicles!$C$13*Fuel_Specs!$B$42)*(Petroleum!B263*IF(Inputs!F$102=1,Petroleum!$K$262,Petroleum!$L$262)+IF(Inputs!F$102=1,Petroleum!$K263,Petroleum!$L263))+Vehicles!$C$13*Fuel_Specs!$B$42/((1-Vehicles!$C$41)*(1-Vehicles!$C$13)*Fuel_Specs!$B$21+Vehicles!$C$41*(1-Vehicles!$C$13)*Fuel_Specs!$B$24+Vehicles!$C$13*Fuel_Specs!$B$42)*(MeOH_FTD!$AZ163*MeOH_FTD!$BA$162+MeOH_FTD!$BA163))/1000000*HLOOKUP($H$10,$Z$3:$AD$4,2,FALSE)/HLOOKUP($J$11,$Z$7:$AD$8,2,FALSE) -> 689990.2856 | AE14: =((1-Vehicles!$C$42)*(1-Vehicles!$C$14)*Fuel_Specs!$B$21/((1-Vehicles!$C$42)*(1-Vehicles!$C$14)*Fuel_Specs!$B$21+Vehicles!$C$42*(1-Vehicles!$C$14)*Fuel_Specs!$B$24+Vehicles!$C$14*Fuel_Specs!$B$41)*(Petroleum!B263*Petroleum!$J$262+Petroleum!$J263)+Vehicles!$C$42*(1-Vehicles!$C$14)*Fuel_Specs!$B$24/((1-Vehicles!$C$42)*(1-Vehicles!$C$14)*Fuel_Specs!$B$21+Vehicles!$C$42*(1-Vehicles!$C$14)*Fuel_Specs!$B$24+Vehicles!$C$14*Fuel_Specs!$B$41)*(Petroleum!B263*IF(Inputs!F$102=1,Petroleum!$K$262,Petroleum!$L$262)+IF(Inputs!F$102=1,Petroleum!$K263,Petroleum!$L263))+Vehicles!$C$14*Fuel_Specs!$B$41/((1-Vehicles!$C$42)*(1-Vehicles!$C$14)*Fuel_Specs!$B$21+Vehicles!$C$42*(1-Vehicles!$C$14)*Fuel_Specs!$B$24+Vehicles!$C$14*Fuel_Specs!$B$41)*(BioOil!$Y433*BioOil!$Z$431+BioOil!$Z433))/1000000*HLOOKUP($H$10,$Z$3:$AD$4,2,FALSE)/HLOOKUP($J$11,$Z$7:$AD$8,2,FALSE) -> 243057.335 | AF14: =((1-Vehicles!$C$43)*(1-Vehicles!$C$15)*Fuel_Specs!$B$21/((1-Vehicles!$C$43)*(1-Vehicles!$C$15)*Fuel_Specs!$B$21+Vehicles!$C$43*(1-Vehicles!$C$15)*Fuel_Specs!$B$24+Vehicles!$C$15*IF(Inputs!$E$670=1,IF(Inputs!$E$670=1,Fuel_Specs!$B$43,IF(Inputs!$E$670=3,Fuel_Specs!$B$45,Fuel_Specs!$B$44)),Fuel_Specs!$B$44))*(Petroleum!B263*Petroleum!$J$262+Petroleum!$J263)+Vehicles!$C$43*(1-Vehicles!$C$15)*Fuel_Specs!$B$24/((1-Vehicles!$C$43)*(1-Vehicles!$C$15)*Fuel_Specs!$B$21+Vehicles!$C$43*(1-Vehicles!$C$15)*Fuel_Specs!$B$24+Vehicles!$C$15*IF(Inputs!$E$670=1,IF(Inputs!$E$670=1,Fuel_Specs!$B$43,IF(Inputs!$E$670=3,Fuel_Specs!$B$45,Fuel_Specs!$B$44)),Fuel_Specs!$B$44))*(Petroleum!B263*IF(Inputs!F$102=1,Petroleum!$K$262,Petroleum!$L$262)+IF(Inputs!F$102=1,Petroleum!$K263,Petroleum!$L263))+Vehicles!$C$15*IF(Inputs!$E$670=1,IF(Inputs!$E$670=1,Fuel_Specs!$B$43,IF(Inputs!$E$670=3,Fuel_Specs!$B$45,Fuel_Specs!$B$44)),Fuel_Specs!$B$44)/((1-Vehicles!$C$43)*(1-Vehicles!$C$15)*Fuel_Specs!$B$21+Vehicles!$C$43*(1-Vehicles!$C$15)*Fuel_Specs!$B$24+Vehicles!$C$15*IF(Inputs!$E$670=1,IF(Inputs!$E$670=1,Fuel_Specs!$B$43,IF(Inputs!$E$670=3,Fuel_Specs!$B$45,Fuel_Specs!$B$44)),Fuel_Specs!$B$44))*(BioOil!$BQ433*BioOil!$BR$431+BioOil!$BR433))/1000000*HLOOKUP($H$10,$Z$3:$AD$4,2,FALSE)/HLOOKUP($J$11,$Z$7:$AD$8,2,FALSE) -> 519242.4389 | AG14: =((1-Vehicles!$C$43)*(1-Vehicles!$C$15)*Fuel_Specs!$B$21/((1-Vehicles!$C$43)*(1-Vehicles!$C$15)*Fuel_Specs!$B$21+Vehicles!$C$43*(1-Vehicles!$C$15)*Fuel_Specs!$B$24+Vehicles!$C$15*IF(Inputs!$E$670=1,Fuel_Specs!$B$43,Fuel_Specs!$B$44))*(Petroleum!B263*Petroleum!$J$262+Petroleum!$J263)+Vehicles!$C$43*(1-Vehicles!$C$15)*Fuel_Specs!$B$24/((1-Vehicles!$C$43)*(1-Vehicles!$C$15)*Fuel_Specs!$B$21+Vehicles!$C$43*(1-Vehicles!$C$15)*Fuel_Specs!$B$24+Vehicles!$C$15*IF(Inputs!$E$670=1,Fuel_Specs!$B$43,Fuel_Specs!$B$44))*(Petroleum!B263*IF(Inputs!F$102=1,Petroleum!$K$262,Petroleum!$L$262)+IF(Inputs!F$102=1,Petroleum!$K263,Petroleum!$L263))+Vehicles!$C$15*IF(Inputs!$E$670=1,Fuel_Specs!$B$43,Fuel_Specs!$B$44)/((1-Vehicles!$C$43)*(1-Vehicles!$C$15)*Fuel_Specs!$B$21+Vehicles!$C$43*(1-Vehicles!$C$15)*Fuel_Specs!$B$24+Vehicles!$C$15*IF(Inputs!$E$670=1,Fuel_Specs!$B$43,Fuel_Specs!$B$44))*(Pyrolysis_IDL!$AF298*Pyrolysis_IDL!$AG$297+Pyrolysis_IDL!$AG298))/1000000*HLOOKUP($H$10,$Z$3:$AD$4,2,FALSE)/HLOOKUP($J$11,$Z$7:$AD$8,2,FALSE) -> 948904.6787 | AH14: =(((1-Vehicles!$C$44)*(1-Vehicles!$C$17-Vehicles!$C$18)*Fuel_Specs!$B$21*(Petroleum!B263*Petroleum!$J$262+Petroleum!$J263)+Vehicles!$C$44*(1-Vehicles!$C$17-Vehicles!$C$18)*Fuel_Specs!$B$24*(Petroleum!B263*IF(Inputs!F$102=1,Petroleum!$K$262,Petroleum!$L$262)+IF(Inputs!F$102=1,Petroleum!$K263,Petroleum!$L263))+Vehicles!$C$17*Fuel_Specs!$B$33*(EtOH!BT547*EtOH!$BU$546+EtOH!$BU547)+Vehicles!$C$18*Fuel_Specs!$B$36*('EtOH-Diesel Additives'!$B54*'EtOH-Diesel Additives'!$B$53))/((1-Vehicles!$C$44)*(1-Vehicles!$C$17-Vehicles!$C$18)*Fuel_Specs!$B$21+Vehicles!$C$44*(1-Vehicles!$C$17-Vehicles!$C$18)*Fuel_Specs!$B$24+Vehicles!$C$17*Fuel_Specs!$B$33+Vehicles!$C$18*Fuel_Specs!$B$36))/1000000*HLOOKUP($H$10,$Z$3:$AD$4,2,FALSE)/HLOOKUP($J$11,$Z$7:$AD$8,2,FALSE) -> 220526.4854 | AI14: =AN14*(Vehicles!$M$30/Vehicles!$CO$72)/(Vehicles!$M$30*(1/Vehicles!$CO$72+1/Vehicles!$CP$72)+Vehicles!$M$31/Vehicles!$CQ$72)+E14*(Vehicles!$M$30/Vehicles!$CP$72+Vehicles!$M$31/Vehicles!$CQ$72)/(Vehicles!$M$30*(1/Vehicles!$CO$72+1/Vehicles!$CP$72)+Vehicles!$M$31/Vehicles!$CQ$72) -> 378615.7947 | AJ14: =AN14*(Vehicles!$N$30/Vehicles!$CS$72)/(Vehicles!$N$30*(1/Vehicles!$CS$72+1/Vehicles!$CT$72)+Vehicles!$N$31/Vehicles!$CU$72)+AC14*(Vehicles!$N$30/Vehicles!$CT$72+Vehicles!$N$31/Vehicles!$CU$72)/(Vehicles!$N$30*(1/Vehicles!$CS$72+1/Vehicles!$CT$72)+Vehicles!$N$31/Vehicles!$CU$72) -> 702125.2336 | AK14: =AN14*(Vehicles!$O$30/Vehicles!$CW$72)/(Vehicles!$O$30*(1/Vehicles!$CW$72+1/Vehicles!$CX$72)+Vehicles!$O$31/Vehicles!$CY$72)+AD14*(Vehicles!$O$30/Vehicles!$CX$72+Vehicles!$O$31/Vehicles!$CY$72)/(Vehicles!$O$30*(1/Vehicles!$CW$72+1/Vehicles!$CX$72)+Vehicles!$O$31/Vehicles!$CY$72) -> 733863.2882 | AL14: =AN14*(Vehicles!$P$30/Vehicles!$DA$72)/(Vehicles!$P$30*(1/Vehicles!$DA$72+1/Vehicles!$DB$72)+Vehicles!$P$31/Vehicles!$DC$72)+AE14*(Vehicles!$P$30/Vehicles!$DB$72+Vehicles!$P$31/Vehicles!$DC$72)/(Vehicles!$P$30*(1/Vehicles!$DA$72+1/Vehicles!$DB$72)+Vehicles!$P$31/Vehicles!$DC$72) -> 419714.0543 | AM14: =AN14*(Vehicles!$R$30/Vehicles!$DI$72)/(Vehicles!$R$30*(1/Vehicles!$DI$72+1/Vehicles!$DJ$72)+Vehicles!$R$31/Vehicles!$DK$72)+AH14*(Vehicles!$R$30/Vehicles!$DJ$72+Vehicles!$R$31/Vehicles!$DK$72)/(Vehicles!$R$30*(1/Vehicles!$DI$72+1/Vehicles!$DJ$72)+Vehicles!$R$31/Vehicles!$DK$72) -> 403877.1169 | AN14: =(Electric!$G204+Electric!$F204-1000000)/1000000*HLOOKUP($H$10,$Z$3:$AD$4,2,FALSE)/HLOOKUP($J$11,$Z$7:$AD$8,2,FALSE) -> 837661.1821 | AO14: =((Hydrogen!$AJ306*Hydrogen!$AK$305+Hydrogen!$AK306)-1000000*(Hydrogen!$O$7+Hydrogen!$C$7+Hydrogen!$D$7+Hydrogen!$E$7))/1000000*HLOOKUP($H$10,$Z$3:$AD$4,2,FALSE)/HLOOKUP($J$11,$Z$7:$AD$8,2,FALSE) -> 576817.2549 | AP14: =((Hydrogen!$BT306*Hydrogen!$BU$305+Hydrogen!$BU306)-1000000*(Hydrogen!$O$8+Hydrogen!$C$8+Hydrogen!$D$8+Hydrogen!$E$8))/1000000*HLOOKUP($H$10,$Z$3:$AD$4,2,FALSE)/HLOOKUP($J$11,$Z$7:$AD$8,2,FALSE) -> 1081234.702 | AQ14: =AN14*(Vehicles!$S$30/Vehicles!$DY$72)/(Vehicles!$S$30*(1/Vehicles!$DY$72+1/Vehicles!$DZ$72)+Vehicles!$S$31/Vehicles!$EA$72)+AO14*(Vehicles!$S$30/Vehicles!$DZ$72+Vehicles!$S$31/Vehicles!$EA$72)/(Vehicles!$S$30*(1/Vehicles!$DY$72+1/Vehicles!$DZ$72)+Vehicles!$S$31/Vehicles!$EA$72) -> 682328.7509 | AR14: =AN14*(Vehicles!$S$30/Vehicles!$DY$72)/(Vehicles!$S$30*(1/Vehicles!$DY$72+1/Vehicles!$DZ$72)+Vehicles!$S$31/Vehicles!$EA$72)+AP14*(Vehicles!$S$30/Vehicles!$DZ$72+Vehicles!$S$31/Vehicles!$EA$72)/(Vehicles!$S$30*(1/Vehicles!$DY$72+1/Vehicles!$DZ$72)+Vehicles!$S$31/Vehicles!$EA$72) -> 982709.0943 | AS14: =((1-Vehicles!$C$40)*(1-Vehicles!$C$16)*Fuel_Specs!$B$15/((1-Vehicles!$C$40)*(1-Vehicles!$C$16)*Fuel_Specs!$B$15+Vehicles!$C$40*(1-Vehicles!$C$16)*Fuel_Specs!$B$17+Vehicles!$C$16*Fuel_Specs!$B$48)*(Petroleum!$B263*Petroleum!$D$262+Petroleum!$D263)+Vehicles!$C$40*(1-Vehicles!$C$16)*Fuel_Specs!$B$17/((1-Vehicles!$C$40)*(1-Vehicles!$C$16)*Fuel_Specs!$B$15+Vehicles!$C$40*(1-Vehicles!$C$16)*Fuel_Specs!$B$17+Vehicles!$C$16*Fuel_Specs!$B$48)*(Petroleum!B263*Petroleum!$F$262+Petroleum!$F263)+Vehicles!$C$16*Fuel_Specs!$B$48/((1-Vehicles!$C$40)*(1-Vehicles!$C$16)*Fuel_Specs!$B$15+Vehicles!$C$40*(1-Vehicles!$C$16)*Fuel_Specs!$B$17+Vehicles!$C$16*Fuel_Specs!$B$48)*(Pyrolysis_IDL!$AP298*Pyrolysis_IDL!$AQ$297+Pyrolysis_IDL!$AQ298))/1000000*HLOOKUP($H$10,$Z$3:$AD$4,2,FALSE)/HLOOKUP($J$11,$Z$7:$AD$8,2,FALSE) -> 1730227.106 | AT14: =(Petroleum!$B263*Petroleum!$S$262+Petroleum!$S263)/1000000*HLOOKUP($H$10,$Z$3:$AD$4,2,FALSE)/HLOOKUP($J$11,$Z$7:$AD$8,2,FALSE) -> 194900.8275 | AU14: =F2537+G2537 -> 289718.4067 | AV14: =F2568+G2568 -> 237676.7385 | BB14: Select Fuels | BE14: Select Fuels | BH14: Select Fuels | BK14: Select Fuels | BN14: Select Fuels | BQ14: Select Fuels | BT14: Select Fuels | BW14: Select Fuels | BZ14: Select Fuels | CB14: Selct Fuels
A15: WTP Efficiency | B15: =HLOOKUP($H$10,$Z$3:$AD$4,2,FALSE)/HLOOKUP($J$11,$Z$7:$AD$8,2,FALSE)/(HLOOKUP($H$10,$Z$3:$AD$4,2,FALSE)/HLOOKUP($J$11,$Z$7:$AD$8,2,FALSE)+B14) -> 0.7897603082 | C15: 0.7984946114 | D15: 0.7897603082 | E15: 0.8441755168 | F15: 0.8326355183 | G15: 0.8221591525 | H15: 0.8594133103 | I15: 0.5584021141 | J15: 0.6815252859 | K15: 0.6700247274 | L15: 0.6449041077 | M15: 0.6207517503 | N15: 0.5829036573 | O15: 0.6207517503 | P15: 0.5790102684 | Q15: 0.7011673062 | R15: 0.5134954052 | S15: 0.6747011783 | T15: 0.678646688 | U15: 0.6747011783 | V15: 0.6936864872 | W15: 0.6891349898 | X15: 0.7050733006 | Y15: 0.6161763034 | Z15: 0.5894087586 | AA15: 0.5968794485 | AB15: 0.502715266 | AC15: 0.6079628743 | AD15: 0.5917193776 | AE15: 0.8044681222 | AF15: 0.6582227921 | AG15: 0.5131087277 | AH15: 0.819318558 | AI15: 0.7253652568 | AJ15: 0.5875008374 | AK15: 0.5767467405 | AL15: 0.7043671907 | AM15: 0.7123130564 | AN15: 0.5441699535 | AO15: 0.6341888998 | AP15: 0.4804840122 | AQ15: 0.5944141414 | AR15: 0.5043604243 | AS15: 0.3662698966 | AT15: 0.8368895368 | AU15: =HLOOKUP($H$10,$Z$3:$AD$4,2,FALSE)/HLOOKUP($J$11,$Z$7:$AD$8,2,FALSE)/(HLOOKUP($H$10,$Z$3:$AD$4,2,FALSE)/HLOOKUP($J$11,$Z$7:$AD$8,2,FALSE)+AU14) -> 0.775363052 | AV15: =HLOOKUP($H$10,$Z$3:$AD$4,2,FALSE)/HLOOKUP($J$11,$Z$7:$AD$8,2,FALSE)/(HLOOKUP($H$10,$Z$3:$AD$4,2,FALSE)/HLOOKUP($J$11,$Z$7:$AD$8,2,FALSE)+AV14) -> 0.8079654153 | BB15: SI - Gasoline | BC15: RNAVGASCRFG | BE15: SIDI - Gasoline | BF15: RNAVGASCRFGSIDI | BH15: CIDI - Diesel | BI15: RNAVDIESELCIDI | BK15: SI HEV - Gasoline | BL15: RNAVHEV | BN15: SI PHEV - Gasoline and Electricity | BO15: RNAVPHEV | BQ15: CIDI HEV - Diesel | BR15: RNAVHEVDIESEL | BT15: CIDI PHEV - Diesel and Electricity | BU15: RNAVPHEVDIESEL | BW15: BEV - Electricity | BX15: RNAVPHEVELECTRIC | BZ15: GCI - Low Octane Fuel (LOF) | CA15: RNAVGCILOF | CB15: BSI - Isobutanol | CC15: RNAVCOOPISOBUOH
A16: Fossil Fuels | B16: =(Inputs!$E$1518*(Petroleum!$B264*Petroleum!$F$262+Petroleum!$F264)+(1-Inputs!$E$1518)*(Petroleum!$B264*Petroleum!$D$262+Petroleum!$D264))/1000000*HLOOKUP($H$10,$Z$3:$AD$4,2,FALSE)/HLOOKUP($J$11,$Z$7:$AD$8,2,FALSE) -> 244253.4523 | C16: =(Petroleum!$C264*Petroleum!$G$262+Petroleum!$G264)/1000000*HLOOKUP($H$10,$Z$3:$AD$4,2,FALSE)/HLOOKUP($J$11,$Z$7:$AD$8,2,FALSE) -> 234159.493 | D16: =((1-Vehicles!$C$35)*(1-Vehicles!$C$7)*Fuel_Specs!$B$15/((1-Vehicles!$C$35)*(1-Vehicles!$C$7)*Fuel_Specs!$B$15+Vehicles!$C$35*(1-Vehicles!$C$7)*Fuel_Specs!$B$17+Vehicles!$C$7*Fuel_Specs!$B$33)*(Petroleum!$B264*Petroleum!$D$262+(Petroleum!$D264-'T&D'!G216))+Vehicles!$C$35*(1-Vehicles!$C$7)*Fuel_Specs!$B$17/((1-Vehicles!$C$35)*(1-Vehicles!$C$7)*Fuel_Specs!$B$15+Vehicles!$C$35*(1-Vehicles!$C$7)*Fuel_Specs!$B$17+Vehicles!$C$7*Fuel_Specs!$B$33)*(Petroleum!B264*Petroleum!$F$262+Petroleum!$F264)+Vehicles!$C$7*Fuel_Specs!$B$33/((1-Vehicles!$C$35)*(1-Vehicles!$C$7)*Fuel_Specs!$B$15+Vehicles!$C$35*(1-Vehicles!$C$7)*Fuel_Specs!$B$17+Vehicles!$C$7*Fuel_Specs!$B$33)*(EtOH!BV548*EtOH!$BW$546+EtOH!$BW548)+Petroleum!AS125+Petroleum!AT125)/1000000*HLOOKUP($H$10,$Z$3:$AD$4,2,FALSE)/HLOOKUP($J$11,$Z$7:$AD$8,2,FALSE) -> 244253.4523 | E16: =(Inputs!$E$97*(IF(Inputs!F$102=1,Petroleum!$B264,Petroleum!$C264)*IF(Inputs!F$102=1,Petroleum!$K$262,Petroleum!$L$262)+IF(Inputs!F$102=1,Petroleum!$K264,Petroleum!$L264))+(1-Inputs!$E$97)*(IF(Inputs!F$101=1,Petroleum!$B264,Petroleum!$C264)*Petroleum!$J$262+Petroleum!$J264))/1000000*HLOOKUP($H$10,$Z$3:$AD$4,2,FALSE)/HLOOKUP($J$11,$Z$7:$AD$8,2,FALSE) -> 175165.2954 | F16: =(NG!$J86*NG!$K$84+NG!$K86)/1000000*HLOOKUP($H$10,$Z$3:$AD$4,2,FALSE)/HLOOKUP($J$11,$Z$7:$AD$8,2,FALSE) -> 178061.9476 | G16: =(NG!$R86*NG!$S$84+NG!$S86)/1000000*HLOOKUP($H$10,$Z$3:$AD$4,2,FALSE)/HLOOKUP($J$11,$Z$7:$AD$8,2,FALSE) -> 213957.6914 | H16: =(NG!$X86*NG!$Y$84+NG!$Y86)/1000000*HLOOKUP($H$10,$Z$3:$AD$4,2,FALSE)/HLOOKUP($J$11,$Z$7:$AD$8,2,FALSE) -> 159927.623 | I16: =(MeOH_FTD!BJ164*MeOH_FTD!BK$162+MeOH_FTD!BK164)/1000000*HLOOKUP($H$10,$Z$3:$AD$4,2,FALSE)/HLOOKUP($J$11,$Z$7:$AD$8,2,FALSE) -> 827253.5527 | J16: =((1-Vehicles!$C$34)*(1-Vehicles!$C$5)*Fuel_Specs!$B$15/((1-Vehicles!$C$34)*(1-Vehicles!$C$5)*Fuel_Specs!$B$15+Vehicles!$C$34*(1-Vehicles!$C$5)*Fuel_Specs!$B$17+Vehicles!$C$5*Fuel_Specs!$B$32)*(Petroleum!$B264*Petroleum!$D$262+Petroleum!$D264)+Vehicles!$C$34*(1-Vehicles!$C$5)*Fuel_Specs!$B$17/((1-Vehicles!$C$34)*(1-Vehicles!$C$5)*Fuel_Specs!$B$15+Vehicles!$C$34*(1-Vehicles!$C$5)*Fuel_Specs!$B$17+Vehicles!$C$5*Fuel_Specs!$B$32)*(Petroleum!B264*Petroleum!$F$262+Petroleum!$F264)+Vehicles!$C$5*Fuel_Specs!$B$32/((1-Vehicles!$C$34)*(1-Vehicles!$C$5)*Fuel_Specs!$B$15+Vehicles!$C$34*(1-Vehicles!$C$5)*Fuel_Specs!$B$17+Vehicles!$C$5*Fuel_Specs!$B$32)*(MeOH_FTD!$N164*MeOH_FTD!$O$162+MeOH_FTD!$O164))/1000000*HLOOKUP($H$10,$Z$3:$AD$4,2,FALSE)/HLOOKUP($J$11,$Z$7:$AD$8,2,FALSE) -> 441671.2236 | K16: =((1-Vehicles!$C$34)*(1-Vehicles!$C$6)*Fuel_Specs!$B$15/((1-Vehicles!$C$34)*(1-Vehicles!$C$6)*Fuel_Specs!$B$15+Vehicles!$C$34*(1-Vehicles!$C$6)*Fuel_Specs!$B$17+Vehicles!$C$6*Fuel_Specs!$B$32)*(Petroleum!$B264*Petroleum!$D$262+Petroleum!$D264)+Vehicles!$C$34*(1-Vehicles!$C$6)*Fuel_Specs!$B$17/((1-Vehicles!$C$34)*(1-Vehicles!$C$6)*Fuel_Specs!$B$15+Vehicles!$C$34*(1-Vehicles!$C$6)*Fuel_Specs!$B$17+Vehicles!$C$6*Fuel_Specs!$B$32)*(Petroleum!B264*Petroleum!$F$262+Petroleum!$F264)+Vehicles!$C$6*Fuel_Specs!$B$32/((1-Vehicles!$C$34)*(1-Vehicles!$C$6)*Fuel_Specs!$B$15+Vehicles!$C$34*(1-Vehicles!$C$6)*Fuel_Specs!$B$17+Vehicles!$C$6*Fuel_Specs!$B$32)*(MeOH_FTD!$N164*MeOH_FTD!$O$162+MeOH_FTD!$O164))/1000000*HLOOKUP($H$10,$Z$3:$AD$4,2,FALSE)/HLOOKUP($J$11,$Z$7:$AD$8,2,FALSE) -> 465329.0875 | L16: =(MeOH_FTD!$N164*MeOH_FTD!$O$162+MeOH_FTD!$O164)/1000000*HLOOKUP($H$10,$Z$3:$AD$4,2,FALSE)/HLOOKUP($J$11,$Z$7:$AD$8,2,FALSE) -> 519939.2888 | M16: =((1-Vehicles!$C$36)*(1-Vehicles!$C$8)*Fuel_Specs!$B$15/((1-Vehicles!$C$36)*(1-Vehicles!$C$8)*Fuel_Specs!$B$15+Vehicles!$C$36*(1-Vehicles!$C$8)*Fuel_Specs!$B$17+Vehicles!$C$8*Fuel_Specs!$B$33)*(Petroleum!$B264*Petroleum!$D$262+(Petroleum!$D264-'T&D'!G216))+Vehicles!$C$36*(1-Vehicles!$C$8)*Fuel_Specs!$B$17/((1-Vehicles!$C$36)*(1-Vehicles!$C$8)*Fuel_Specs!$B$15+Vehicles!$C$36*(1-Vehicles!$C$8)*Fuel_Specs!$B$17+Vehicles!$C$8*Fuel_Specs!$B$33)*(Petroleum!B264*Petroleum!$F$262+Petroleum!$F264)+Vehicles!$C$8*Fuel_Specs!$B$33/((1-Vehicles!$C$36)*(1-Vehicles!$C$8)*Fuel_Specs!$B$15+Vehicles!$C$36*(1-Vehicles!$C$8)*Fuel_Specs!$B$17+Vehicles!$C$8*Fuel_Specs!$B$33)*(EtOH!BV548*EtOH!$BW$546+EtOH!$BW548)+Petroleum!AS125+Petroleum!AT125)/1000000*HLOOKUP($H$10,$Z$3:$AD$4,2,FALSE)/HLOOKUP($J$11,$Z$7:$AD$8,2,FALSE) -> 479257.6302 | N16: =((1-Vehicles!$C$37)*(1-Vehicles!$C$12)*Fuel_Specs!$B$15/((1-Vehicles!$C$37)*(1-Vehicles!$C$12)*Fuel_Specs!$B$15+Vehicles!$C$37*(1-Vehicles!$C$12)*Fuel_Specs!$B$17+Vehicles!$C$12*Fuel_Specs!$B$34)*(Petroleum!$B264*Petroleum!$D$262+Petroleum!$D264)+Vehicles!$C$37*(1-Vehicles!$C$12)*Fuel_Specs!$B$17/((1-Vehicles!$C$37)*(1-Vehicles!$C$12)*Fuel_Specs!$B$15+Vehicles!$C$37*(1-Vehicles!$C$12)*Fuel_Specs!$B$17+Vehicles!$C$12*Fuel_Specs!$B$34)*(Petroleum!B264*Petroleum!$F$262+Petroleum!$F264)+Vehicles!$C$12*Fuel_Specs!$B$34/((1-Vehicles!$C$37)*(1-Vehicles!$C$12)*Fuel_Specs!$B$15+Vehicles!$C$37*(1-Vehicles!$C$12)*Fuel_Specs!$B$17+Vehicles!$C$12*Fuel_Specs!$B$34)*(EtOH!$BX548*EtOH!$BY$546+EtOH!$BY548))/1000000*HLOOKUP($H$10,$Z$3:$AD$4,2,FALSE)/HLOOKUP($J$11,$Z$7:$AD$8,2,FALSE) -> 670945.2244 | O16: =((1-Vehicles!$C$36)*(1-Vehicles!$C$9)*Fuel_Specs!$B$15/((1-Vehicles!$C$36)*(1-Vehicles!$C$9)*Fuel_Specs!$B$15+Vehicles!$C$36*(1-Vehicles!$C$9)*Fuel_Specs!$B$17+Vehicles!$C$9*Fuel_Specs!$B$33)*(Petroleum!$B264*Petroleum!$D$262+(Petroleum!$D264-'T&D'!G216))+Vehicles!$C$36*(1-Vehicles!$C$9)*Fuel_Specs!$B$17/((1-Vehicles!$C$36)*(1-Vehicles!$C$9)*Fuel_Specs!$B$15+Vehicles!$C$36*(1-Vehicles!$C$9)*Fuel_Specs!$B$17+Vehicles!$C$9*Fuel_Specs!$B$33)*(Petroleum!B264*Petroleum!$F$262+Petroleum!$F264)+Vehicles!$C$9*Fuel_Specs!$B$33/((1-Vehicles!$C$36)*(1-Vehicles!$C$9)*Fuel_Specs!$B$15+Vehicles!$C$36*(1-Vehicles!$C$9)*Fuel_Specs!$B$17+Vehicles!$C$9*Fuel_Specs!$B$33)*(EtOH!BV548*EtOH!$BW$546+EtOH!$BW548)+Petroleum!AS125+Petroleum!AT125)/1000000*HLOOKUP($H$10,$Z$3:$AD$4,2,FALSE)/HLOOKUP($J$11,$Z$7:$AD$8,2,FALSE) -> 479257.6302 | P16: =(EtOH!$BT548*EtOH!$BU$546+EtOH!$BU548)/1000000*HLOOKUP($H$10,$Z$3:$AD$4,2,FALSE)/HLOOKUP($J$11,$Z$7:$AD$8,2,FALSE) -> 558735.8192 | Q16: =((1-Vehicles!$C$40)*(1-Vehicles!$C$16)*Fuel_Specs!$B$15/((1-Vehicles!$C$40)*(1-Vehicles!$C$16)*Fuel_Specs!$B$15+Vehicles!$C$40*(1-Vehicles!$C$16)*Fuel_Specs!$B$17+Vehicles!$C$16*Fuel_Specs!$B$47)*(Petroleum!$B264*Petroleum!$D$262+Petroleum!$D264)+Vehicles!$C$40*(1-Vehicles!$C$16)*Fuel_Specs!$B$17/((1-Vehicles!$C$40)*(1-Vehicles!$C$16)*Fuel_Specs!$B$15+Vehicles!$C$40*(1-Vehicles!$C$16)*Fuel_Specs!$B$17+Vehicles!$C$16*Fuel_Specs!$B$47)*(Petroleum!B264*Petroleum!$F$262+Petroleum!$F264)+Vehicles!$C$16*Fuel_Specs!$B$47/((1-Vehicles!$C$40)*(1-Vehicles!$C$16)*Fuel_Specs!$B$15+Vehicles!$C$40*(1-Vehicles!$C$16)*Fuel_Specs!$B$17+Vehicles!$C$16*Fuel_Specs!$B$47)*(BioOil!$CE434*BioOil!$CF$431+BioOil!$CF434))/1000000*HLOOKUP($H$10,$Z$3:$AD$4,2,FALSE)/HLOOKUP($J$11,$Z$7:$AD$8,2,FALSE) -> 110827.4949 | R16: =((1-Vehicles!$C$40)*(1-Vehicles!$C$16)*Fuel_Specs!$B$15/((1-Vehicles!$C$40)*(1-Vehicles!$C$16)*Fuel_Specs!$B$15+Vehicles!$C$40*(1-Vehicles!$C$16)*Fuel_Specs!$B$17+Vehicles!$C$16*Fuel_Specs!$B$47)*(Petroleum!$B264*Petroleum!$D$262+Petroleum!$D264)+Vehicles!$C$40*(1-Vehicles!$C$16)*Fuel_Specs!$B$17/((1-Vehicles!$C$40)*(1-Vehicles!$C$16)*Fuel_Specs!$B$15+Vehicles!$C$40*(1-Vehicles!$C$16)*Fuel_Specs!$B$17+Vehicles!$C$16*Fuel_Specs!$B$47)*(Petroleum!B264*Petroleum!$F$262+Petroleum!$F264)+Vehicles!$C$16*Fuel_Specs!$B$47/((1-Vehicles!$C$40)*(1-Vehicles!$C$16)*Fuel_Specs!$B$15+Vehicles!$C$40*(1-Vehicles!$C$16)*Fuel_Specs!$B$17+Vehicles!$C$16*Fuel_Specs!$B$47)*(Pyrolysis_IDL!$AD299*Pyrolysis_IDL!$AE$297+Pyrolysis_IDL!$AE299))/1000000*HLOOKUP($H$10,$Z$3:$AD$4,2,FALSE)/HLOOKUP($J$11,$Z$7:$AD$8,2,FALSE) -> 335814.8557 | S16: =AN16*(Vehicles!$C$30/Vehicles!$AT$72)/(Vehicles!$C$30*(1/Vehicles!$AT$72+1/Vehicles!$AU$72)+Vehicles!$C$31/Vehicles!$AV$72)+B16*(Vehicles!$C$30/Vehicles!$AU$72+Vehicles!$C$31/Vehicles!$AV$72)/(Vehicles!$C$30*(1/Vehicles!$AT$72+1/Vehicles!$AU$72)+Vehicles!$C$31/Vehicles!$AV$72) -> 351821.1703 | T16: =AN16*(Vehicles!$D$30/Vehicles!$AX$72)/(Vehicles!$D$30*(1/Vehicles!$AX$72+1/Vehicles!$AY$72)+Vehicles!$D$31/Vehicles!$AZ$72)+C16*(Vehicles!$D$30/Vehicles!$AY$72+Vehicles!$D$31/Vehicles!$AZ$72)/(Vehicles!$D$30*(1/Vehicles!$AX$72+1/Vehicles!$AY$72)+Vehicles!$D$31/Vehicles!$AZ$72) -> 345541.3316 | U16: =AN16*(Vehicles!$F$30/Vehicles!$BF$72)/(Vehicles!$F$30*(1/Vehicles!$BF$72+1/Vehicles!$BG$72)+Vehicles!$F$31/Vehicles!$BH$72)+D16*(Vehicles!$F$30/Vehicles!$BG$72+Vehicles!$F$31/Vehicles!$BH$72)/(Vehicles!$F$30*(1/Vehicles!$BF$72+1/Vehicles!$BG$72)+Vehicles!$F$31/Vehicles!$BH$72) -> 351821.1703 | V16: =AN16*(Vehicles!$G$30/Vehicles!$BJ$72)/(Vehicles!$G$30*(1/Vehicles!$BJ$72+1/Vehicles!$BK$72)+Vehicles!$G$31/Vehicles!$BL$72)+F16*(Vehicles!$G$30/Vehicles!$BK$72+Vehicles!$G$31/Vehicles!$BL$72)/(Vehicles!$G$30*(1/Vehicles!$BJ$72+1/Vehicles!$BK$72)+Vehicles!$G$31/Vehicles!$BL$72) -> 310640.8997 | W16: =AN16*(Vehicles!$H$30/Vehicles!$BN$72)/(Vehicles!$H$30*(1/Vehicles!$BN$72+1/Vehicles!$BO$72)+Vehicles!$H$31/Vehicles!$BP$72)+G16*(Vehicles!$H$30/Vehicles!$BO$72+Vehicles!$H$31/Vehicles!$BP$72)/(Vehicles!$H$30*(1/Vehicles!$BN$72+1/Vehicles!$BO$72)+Vehicles!$H$31/Vehicles!$BP$72) -> 332973.017 | X16: =AN16*(Vehicles!$I$30/Vehicles!$BR$72)/(Vehicles!$I$30*(1/Vehicles!$BR$72+1/Vehicles!$BS$72)+Vehicles!$I$31/Vehicles!$BT$72)+H16*(Vehicles!$I$30/Vehicles!$BS$72+Vehicles!$I$31/Vehicles!$BT$72)/(Vehicles!$I$30*(1/Vehicles!$BR$72+1/Vehicles!$BS$72)+Vehicles!$I$31/Vehicles!$BT$72) -> 299358.8418 | Y16: =AN16*(Vehicles!$J$30/Vehicles!$BV$72)/(Vehicles!$J$30*(1/Vehicles!$BV$72+1/Vehicles!$BW$72)+Vehicles!$J$31/Vehicles!$BX$72)+K16*(Vehicles!$J$30/Vehicles!$BW$72+Vehicles!$J$31/Vehicles!$BX$72)/(Vehicles!$J$30*(1/Vehicles!$BV$72+1/Vehicles!$BW$72)+Vehicles!$J$31/Vehicles!$BX$72) -> 489360.7911 | Z16: =AN16*(Vehicles!$K$30/Vehicles!$BZ$72)/(Vehicles!$K$30*(1/Vehicles!$BZ$72+1/Vehicles!$CA$72)+Vehicles!$K$31/Vehicles!$CB$72)+O16*(Vehicles!$K$30/Vehicles!$CA$72+Vehicles!$K$31/Vehicles!$CB$72)/(Vehicles!$K$30*(1/Vehicles!$BZ$72+1/Vehicles!$CA$72)+Vehicles!$K$31/Vehicles!$CB$72) -> 498026.271 | AA16: =AN16*(Vehicles!$L$30/Vehicles!$CD$72)/(Vehicles!$L$30*(1/Vehicles!$CD$72+1/Vehicles!$CE$72)+Vehicles!$L$31/Vehicles!$CF$72)+AO16*(Vehicles!$L$30/Vehicles!$CE$72+Vehicles!$L$31/Vehicles!$CF$72)/(Vehicles!$L$30*(1/Vehicles!$CD$72+1/Vehicles!$CE$72)+Vehicles!$L$31/Vehicles!$CF$72) -> 515765.0051 | AB16: =AN16*(Vehicles!$L$30/Vehicles!$CD$72)/(Vehicles!$L$30*(1/Vehicles!$CD$72+1/Vehicles!$CE$72)+Vehicles!$L$31/Vehicles!$CG$72)+AP16*(Vehicles!$L$30/Vehicles!$CE$72+Vehicles!$L$31/Vehicles!$CG$72)/(Vehicles!$L$30*(1/Vehicles!$CD$72+1/Vehicles!$CE$72)+Vehicles!$L$31/Vehicles!$CG$72) -> 710608.3892 | AC16: =(MeOH_FTD!$AJ164*MeOH_FTD!$AK$162+MeOH_FTD!$AK164)/1000000*HLOOKUP($H$10,$Z$3:$AD$4,2,FALSE)/HLOOKUP($J$11,$Z$7:$AD$8,2,FALSE) -> 613075.9696 | AD16: =((1-Vehicles!$C$41)*(1-Vehicles!$C$13)*Fuel_Specs!$B$21/((1-Vehicles!$C$41)*(1-Vehicles!$C$13)*Fuel_Specs!$B$21+Vehicles!$C$41*(1-Vehicles!$C$13)*Fuel_Specs!$B$24+Vehicles!$C$13*Fuel_Specs!$B$42)*(Petroleum!B264*Petroleum!$J$262+Petroleum!$J264)+Vehicles!$C$41*(1-Vehicles!$C$13)*Fuel_Specs!$B$24/((1-Vehicles!$C$41)*(1-Vehicles!$C$13)*Fuel_Specs!$B$21+Vehicles!$C$41*(1-Vehicles!$C$13)*Fuel_Specs!$B$24+Vehicles!$C$13*Fuel_Specs!$B$42)*(Petroleum!B264*IF(Inputs!F$102=1,Petroleum!$K$262,Petroleum!$L$262)+IF(Inputs!F$102=1,Petroleum!$K264,Petroleum!$L264))+Vehicles!$C$13*Fuel_Specs!$B$42/((1-Vehicles!$C$41)*(1-Vehicles!$C$13)*Fuel_Specs!$B$21+Vehicles!$C$41*(1-Vehicles!$C$13)*Fuel_Specs!$B$24+Vehicles!$C$13*Fuel_Specs!$B$42)*(MeOH_FTD!$AZ164*MeOH_FTD!$BA$162+MeOH_FTD!$BA164))/1000000*HLOOKUP($H$10,$Z$3:$AD$4,2,FALSE)/HLOOKUP($J$11,$Z$7:$AD$8,2,FALSE) -> 688174.9823 | AE16: =((1-Vehicles!$C$42)*(1-Vehicles!$C$14)*Fuel_Specs!$B$21/((1-Vehicles!$C$42)*(1-Vehicles!$C$14)*Fuel_Specs!$B$21+Vehicles!$C$42*(1-Vehicles!$C$14)*Fuel_Specs!$B$24+Vehicles!$C$14*Fuel_Specs!$B$41)*(Petroleum!B264*Petroleum!$J$262+Petroleum!$J264)+Vehicles!$C$42*(1-Vehicles!$C$14)*Fuel_Specs!$B$24/((1-Vehicles!$C$42)*(1-Vehicles!$C$14)*Fuel_Specs!$B$21+Vehicles!$C$42*(1-Vehicles!$C$14)*Fuel_Specs!$B$24+Vehicles!$C$14*Fuel_Specs!$B$41)*(Petroleum!B264*IF(Inputs!F$102=1,Petroleum!$K$262,Petroleum!$L$262)+IF(Inputs!F$102=1,Petroleum!$K264,Petroleum!$L264))+Vehicles!$C$14*Fuel_Specs!$B$41/((1-Vehicles!$C$42)*(1-Vehicles!$C$14)*Fuel_Specs!$B$21+Vehicles!$C$42*(1-Vehicles!$C$14)*Fuel_Specs!$B$24+Vehicles!$C$14*Fuel_Specs!$B$41)*(BioOil!$Y434*BioOil!$Z$431+BioOil!$Z434))/1000000*HLOOKUP($H$10,$Z$3:$AD$4,2,FALSE)/HLOOKUP($J$11,$Z$7:$AD$8,2,FALSE) -> 184089.4091 | AF16: =((1-Vehicles!$C$43)*(1-Vehicles!$C$15)*Fuel_Specs!$B$21/((1-Vehicles!$C$43)*(1-Vehicles!$C$15)*Fuel_Specs!$B$21+Vehicles!$C$43*(1-Vehicles!$C$15)*Fuel_Specs!$B$24+Vehicles!$C$15*IF(Inputs!$E$670=1,IF(Inputs!$E$670=1,Fuel_Specs!$B$43,IF(Inputs!$E$670=3,Fuel_Specs!$B$45,Fuel_Specs!$B$44)),Fuel_Specs!$B$44))*(Petroleum!B264*Petroleum!$J$262+Petroleum!$J264)+Vehicles!$C$43*(1-Vehicles!$C$15)*Fuel_Specs!$B$24/((1-Vehicles!$C$43)*(1-Vehicles!$C$15)*Fuel_Specs!$B$21+Vehicles!$C$43*(1-Vehicles!$C$15)*Fuel_Specs!$B$24+Vehicles!$C$15*IF(Inputs!$E$670=1,IF(Inputs!$E$670=1,Fuel_Specs!$B$43,IF(Inputs!$E$670=3,Fuel_Specs!$B$45,Fuel_Specs!$B$44)),Fuel_Specs!$B$44))*(Petroleum!B264*IF(Inputs!F$102=1,Petroleum!$K$262,Petroleum!$L$262)+IF(Inputs!F$102=1,Petroleum!$K264,Petroleum!$L264))+Vehicles!$C$15*IF(Inputs!$E$670=1,IF(Inputs!$E$670=1,Fuel_Specs!$B$43,IF(Inputs!$E$670=3,Fuel_Specs!$B$45,Fuel_Specs!$B$44)),Fuel_Specs!$B$44)/((1-Vehicles!$C$43)*(1-Vehicles!$C$15)*Fuel_Specs!$B$21+Vehicles!$C$43*(1-Vehicles!$C$15)*Fuel_Specs!$B$24+Vehicles!$C$15*IF(Inputs!$E$670=1,IF(Inputs!$E$670=1,Fuel_Specs!$B$43,IF(Inputs!$E$670=3,Fuel_Specs!$B$45,Fuel_Specs!$B$44)),Fuel_Specs!$B$44))*(BioOil!$BQ434*BioOil!$BR$431+BioOil!$BR434))/1000000*HLOOKUP($H$10,$Z$3:$AD$4,2,FALSE)/HLOOKUP($J$11,$Z$7:$AD$8,2,FALSE) -> 256013.0499 | AG16: =((1-Vehicles!$C$43)*(1-Vehicles!$C$15)*Fuel_Specs!$B$21/((1-Vehicles!$C$43)*(1-Vehicles!$C$15)*Fuel_Specs!$B$21+Vehicles!$C$43*(1-Vehicles!$C$15)*Fuel_Specs!$B$24+Vehicles!$C$15*IF(Inputs!$E$670=1,Fuel_Specs!$B$43,Fuel_Specs!$B$44))*(Petroleum!B264*Petroleum!$J$262+Petroleum!$J264)+Vehicles!$C$43*(1-Vehicles!$C$15)*Fuel_Specs!$B$24/((1-Vehicles!$C$43)*(1-Vehicles!$C$15)*Fuel_Specs!$B$21+Vehicles!$C$43*(1-Vehicles!$C$15)*Fuel_Specs!$B$24+Vehicles!$C$15*IF(Inputs!$E$670=1,Fuel_Specs!$B$43,Fuel_Specs!$B$44))*(Petroleum!B264*IF(Inputs!F$102=1,Petroleum!$K$262,Petroleum!$L$262)+IF(Inputs!F$102=1,Petroleum!$K264,Petroleum!$L264))+Vehicles!$C$15*IF(Inputs!$E$670=1,Fuel_Specs!$B$43,Fuel_Specs!$B$44)/((1-Vehicles!$C$43)*(1-Vehicles!$C$15)*Fuel_Specs!$B$21+Vehicles!$C$43*(1-Vehicles!$C$15)*Fuel_Specs!$B$24+Vehicles!$C$15*IF(Inputs!$E$670=1,Fuel_Specs!$B$43,Fuel_Specs!$B$44))*(Pyrolysis_IDL!$AF299*Pyrolysis_IDL!$AG$297+Pyrolysis_IDL!$AG299))/1000000*HLOOKUP($H$10,$Z$3:$AD$4,2,FALSE)/HLOOKUP($J$11,$Z$7:$AD$8,2,FALSE) -> 385247.7665 | AH16: =(((1-Vehicles!$C$44)*(1-Vehicles!$C$17-Vehicles!$C$18)*Fuel_Specs!$B$21*(Petroleum!B264*Petroleum!$J$262+Petroleum!$J264)+Vehicles!$C$44*(1-Vehicles!$C$17-Vehicles!$C$18)*Fuel_Specs!$B$24*(Petroleum!B264*IF(Inputs!F$102=1,Petroleum!$K$262,Petroleum!$L$262)+IF(Inputs!F$102=1,Petroleum!$K264,Petroleum!$L264))+Vehicles!$C$17*Fuel_Specs!$B$33*(EtOH!BT548*EtOH!$BU$546+EtOH!$BU548)+Vehicles!$C$18*Fuel_Specs!$B$36*('EtOH-Diesel Additives'!$B55*'EtOH-Diesel Additives'!$B$53))/((1-Vehicles!$C$44)*(1-Vehicles!$C$17-Vehicles!$C$18)*Fuel_Specs!$B$21+Vehicles!$C$44*(1-Vehicles!$C$17-Vehicles!$C$18)*Fuel_Specs!$B$24+Vehicles!$C$17*Fuel_Specs!$B$33+Vehicles!$C$18*Fuel_Specs!$B$36))/1000000*HLOOKUP($H$10,$Z$3:$AD$4,2,FALSE)/HLOOKUP($J$11,$Z$7:$AD$8,2,FALSE) -> 200870.1701 | AI16: =AN16*(Vehicles!$M$30/Vehicles!$CO$72)/(Vehicles!$M$30*(1/Vehicles!$CO$72+1/Vehicles!$CP$72)+Vehicles!$M$31/Vehicles!$CQ$72)+E16*(Vehicles!$M$30/Vehicles!$CP$72+Vehicles!$M$31/Vehicles!$CQ$72)/(Vehicles!$M$30*(1/Vehicles!$CO$72+1/Vehicles!$CP$72)+Vehicles!$M$31/Vehicles!$CQ$72) -> 280268.2322 | AJ16: =AN16*(Vehicles!$N$30/Vehicles!$CS$72)/(Vehicles!$N$30*(1/Vehicles!$CS$72+1/Vehicles!$CT$72)+Vehicles!$N$31/Vehicles!$CU$72)+AC16*(Vehicles!$N$30/Vehicles!$CT$72+Vehicles!$N$31/Vehicles!$CU$72)/(Vehicles!$N$30*(1/Vehicles!$CS$72+1/Vehicles!$CT$72)+Vehicles!$N$31/Vehicles!$CU$72) -> 588075.7067 | AK16: =AN16*(Vehicles!$O$30/Vehicles!$CW$72)/(Vehicles!$O$30*(1/Vehicles!$CW$72+1/Vehicles!$CX$72)+Vehicles!$O$31/Vehicles!$CY$72)+AD16*(Vehicles!$O$30/Vehicles!$CX$72+Vehicles!$O$31/Vehicles!$CY$72)/(Vehicles!$O$30*(1/Vehicles!$CW$72+1/Vehicles!$CX$72)+Vehicles!$O$31/Vehicles!$CY$72) -> 640862.8133 | AL16: =AN16*(Vehicles!$P$30/Vehicles!$DA$72)/(Vehicles!$P$30*(1/Vehicles!$DA$72+1/Vehicles!$DB$72)+Vehicles!$P$31/Vehicles!$DC$72)+AE16*(Vehicles!$P$30/Vehicles!$DB$72+Vehicles!$P$31/Vehicles!$DC$72)/(Vehicles!$P$30*(1/Vehicles!$DA$72+1/Vehicles!$DB$72)+Vehicles!$P$31/Vehicles!$DC$72) -> 286540.9929 | AM16: =AN16*(Vehicles!$R$30/Vehicles!$DI$72)/(Vehicles!$R$30*(1/Vehicles!$DI$72+1/Vehicles!$DJ$72)+Vehicles!$R$31/Vehicles!$DK$72)+AH16*(Vehicles!$R$30/Vehicles!$DJ$72+Vehicles!$R$31/Vehicles!$DK$72)/(Vehicles!$R$30*(1/Vehicles!$DI$72+1/Vehicles!$DJ$72)+Vehicles!$R$31/Vehicles!$DK$72) -> 298336.1922 | AN16: =(Electric!$G205+Electric!$F205-1000000*(Electric!$F205+Electric!$G205)/(Electric!$F$204+Electric!$G$204))/1000000*HLOOKUP($H$10,$Z$3:$AD$4,2,FALSE)/HLOOKUP($J$11,$Z$7:$AD$8,2,FALSE) -> 528928.2929 | AO16: =((Hydrogen!$AJ307*Hydrogen!$AK$305+Hydrogen!$AK307)-1000000*(Hydrogen!$O$7+Hydrogen!$C$7+Hydrogen!$D$7+Hydrogen!$E$7))/1000000*HLOOKUP($H$10,$Z$3:$AD$4,2,FALSE)/HLOOKUP($J$11,$Z$7:$AD$8,2,FALSE) -> 507770.1554 | AP16: =((Hydrogen!$BT307*Hydrogen!$BU$305+Hydrogen!$BU307)-1000000*(Hydrogen!$O$8+Hydrogen!$C$8+Hydrogen!$D$8+Hydrogen!$E$8))/1000000*HLOOKUP($H$10,$Z$3:$AD$4,2,FALSE)/HLOOKUP($J$11,$Z$7:$AD$8,2,FALSE) -> 820953.5468 | AQ16: =AN16*(Vehicles!$S$30/Vehicles!$DY$72)/(Vehicles!$S$30*(1/Vehicles!$DY$72+1/Vehicles!$DZ$72)+Vehicles!$S$31/Vehicles!$EA$72)+AO16*(Vehicles!$S$30/Vehicles!$DZ$72+Vehicles!$S$31/Vehicles!$EA$72)/(Vehicles!$S$30*(1/Vehicles!$DY$72+1/Vehicles!$DZ$72)+Vehicles!$S$31/Vehicles!$EA$72) -> 516328.6324 | AR16: =AN16*(Vehicles!$S$30/Vehicles!$DY$72)/(Vehicles!$S$30*(1/Vehicles!$DY$72+1/Vehicles!$DZ$72)+Vehicles!$S$31/Vehicles!$EA$72)+AP16*(Vehicles!$S$30/Vehicles!$DZ$72+Vehicles!$S$31/Vehicles!$EA$72)/(Vehicles!$S$30*(1/Vehicles!$DY$72+1/Vehicles!$DZ$72)+Vehicles!$S$31/Vehicles!$EA$72) -> 702829.1889 | AS16: =((1-Vehicles!$C$40)*(1-Vehicles!$C$16)*Fuel_Specs!$B$15/((1-Vehicles!$C$40)*(1-Vehicles!$C$16)*Fuel_Specs!$B$15+Vehicles!$C$40*(1-Vehicles!$C$16)*Fuel_Specs!$B$17+Vehicles!$C$16*Fuel_Specs!$B$48)*(Petroleum!$B264*Petroleum!$D$262+Petroleum!$D264)+Vehicles!$C$40*(1-Vehicles!$C$16)*Fuel_Specs!$B$17/((1-Vehicles!$C$40)*(1-Vehicles!$C$16)*Fuel_Specs!$B$15+Vehicles!$C$40*(1-Vehicles!$C$16)*Fuel_Specs!$B$17+Vehicles!$C$16*Fuel_Specs!$B$48)*(Petroleum!B264*Petroleum!$F$262+Petroleum!$F264)+Vehicles!$C$16*Fuel_Specs!$B$48/((1-Vehicles!$C$40)*(1-Vehicles!$C$16)*Fuel_Specs!$B$15+Vehicles!$C$40*(1-Vehicles!$C$16)*Fuel_Specs!$B$17+Vehicles!$C$16*Fuel_Specs!$B$48)*(Pyrolysis_IDL!$AP299*Pyrolysis_IDL!$AQ$297+Pyrolysis_IDL!$AQ299))/1000000*HLOOKUP($H$10,$Z$3:$AD$4,2,FALSE)/HLOOKUP($J$11,$Z$7:$AD$8,2,FALSE) -> 203571.3475 | AT16: =(Petroleum!$B264*Petroleum!$S$262+Petroleum!$S264)/1000000*HLOOKUP($H$10,$Z$3:$AD$4,2,FALSE)/HLOOKUP($J$11,$Z$7:$AD$8,2,FALSE) -> 184847.5452 | AU16: =F2538+G2538 -> 238929.4974 | AV16: =F2569+G2569 -> 218793.7659 | BB16: SI - CA gasoline | BC16: RNAVGASCARFG | BE16: SIDI - CA gasoline | BF16: RNAVGASCARFGSIDI | BH16: CIDI - DME | BI16: RNAVDMECIDI | BK16: SI HEV - CA gasoline | BL16: RNAVHEVCRFG | BN16: SI PHEV - CA gasoline and Electricity | BO16: RNAVPHEVCRFG | BQ16: CIDI HEV - DME | BR16: RNAVHEVDMETHER | BT16: CIDI PHEV - DME and Electricity | BU16: RNAVPHEVDMETHER | BW16: FCV - Gaseous H2 | BX16: RNAVFCVGH2 | CB16: BSI - ARHC | CC16: RNAVCOOPARHC
A17: Coal | B17: =(Inputs!$E$1518*(Petroleum!$B265*Petroleum!$F$262+Petroleum!$F265)+(1-Inputs!$E$1518)*(Petroleum!$B265*Petroleum!$D$262+Petroleum!$D265))/1000000*HLOOKUP($H$10,$Z$3:$AD$4,2,FALSE)/HLOOKUP($J$11,$Z$7:$AD$8,2,FALSE) -> 13337.70559 | C17: =(Petroleum!$C265*Petroleum!$G$262+Petroleum!$G265)/1000000*HLOOKUP($H$10,$Z$3:$AD$4,2,FALSE)/HLOOKUP($J$11,$Z$7:$AD$8,2,FALSE) -> 10528.03523 | D17: =((1-Vehicles!$C$35)*(1-Vehicles!$C$7)*Fuel_Specs!$B$15/((1-Vehicles!$C$35)*(1-Vehicles!$C$7)*Fuel_Specs!$B$15+Vehicles!$C$35*(1-Vehicles!$C$7)*Fuel_Specs!$B$17+Vehicles!$C$7*Fuel_Specs!$B$33)*(Petroleum!$B265*Petroleum!$D$262+(Petroleum!$D265-'T&D'!G217))+Vehicles!$C$35*(1-Vehicles!$C$7)*Fuel_Specs!$B$17/((1-Vehicles!$C$35)*(1-Vehicles!$C$7)*Fuel_Specs!$B$15+Vehicles!$C$35*(1-Vehicles!$C$7)*Fuel_Specs!$B$17+Vehicles!$C$7*Fuel_Specs!$B$33)*(Petroleum!B265*Petroleum!$F$262+Petroleum!$F265)+Vehicles!$C$7*Fuel_Specs!$B$33/((1-Vehicles!$C$35)*(1-Vehicles!$C$7)*Fuel_Specs!$B$15+Vehicles!$C$35*(1-Vehicles!$C$7)*Fuel_Specs!$B$17+Vehicles!$C$7*Fuel_Specs!$B$33)*(EtOH!BV549*EtOH!$BW$546+EtOH!$BW549)+Petroleum!AS126+Petroleum!AT126)/1000000*HLOOKUP($H$10,$Z$3:$AD$4,2,FALSE)/HLOOKUP($J$11,$Z$7:$AD$8,2,FALSE) -> 13337.70559 | E17: =(Inputs!$E$97*(IF(Inputs!F$102=1,Petroleum!$B265,Petroleum!$C265)*IF(Inputs!F$102=1,Petroleum!$K$262,Petroleum!$L$262)+IF(Inputs!F$102=1,Petroleum!$K265,Petroleum!$L265))+(1-Inputs!$E$97)*(IF(Inputs!F$101=1,Petroleum!$B265,Petroleum!$C265)*Petroleum!$J$262+Petroleum!$J265))/1000000*HLOOKUP($H$10,$Z$3:$AD$4,2,FALSE)/HLOOKUP($J$11,$Z$7:$AD$8,2,FALSE) -> 7921.190672 | F17: =(NG!$J87*NG!$K$84+NG!$K87)/1000000*HLOOKUP($H$10,$Z$3:$AD$4,2,FALSE)/HLOOKUP($J$11,$Z$7:$AD$8,2,FALSE) -> 19663.60858 | G17: =(NG!$R87*NG!$S$84+NG!$S87)/1000000*HLOOKUP($H$10,$Z$3:$AD$4,2,FALSE)/HLOOKUP($J$11,$Z$7:$AD$8,2,FALSE) -> 2058.048433 | H17: =(NG!$X87*NG!$Y$84+NG!$Y87)/1000000*HLOOKUP($H$10,$Z$3:$AD$4,2,FALSE)/HLOOKUP($J$11,$Z$7:$AD$8,2,FALSE) -> 3114.67226 | I17: =(MeOH_FTD!BJ165*MeOH_FTD!BK$162+MeOH_FTD!BK165)/1000000*HLOOKUP($H$10,$Z$3:$AD$4,2,FALSE)/HLOOKUP($J$11,$Z$7:$AD$8,2,FALSE) -> -31946.24878 | J17: =((1-Vehicles!$C$34)*(1-Vehicles!$C$5)*Fuel_Specs!$B$15/((1-Vehicles!$C$34)*(1-Vehicles!$C$5)*Fuel_Specs!$B$15+Vehicles!$C$34*(1-Vehicles!$C$5)*Fuel_Specs!$B$17+Vehicles!$C$5*Fuel_Specs!$B$32)*(Petroleum!$B265*Petroleum!$D$262+Petroleum!$D265)+Vehicles!$C$34*(1-Vehicles!$C$5)*Fuel_Specs!$B$17/((1-Vehicles!$C$34)*(1-Vehicles!$C$5)*Fuel_Specs!$B$15+Vehicles!$C$34*(1-Vehicles!$C$5)*Fuel_Specs!$B$17+Vehicles!$C$5*Fuel_Specs!$B$32)*(Petroleum!B265*Petroleum!$F$262+Petroleum!$F265)+Vehicles!$C$5*Fuel_Specs!$B$32/((1-Vehicles!$C$34)*(1-Vehicles!$C$5)*Fuel_Specs!$B$15+Vehicles!$C$34*(1-Vehicles!$C$5)*Fuel_Specs!$B$17+Vehicles!$C$5*Fuel_Specs!$B$32)*(MeOH_FTD!$N165*MeOH_FTD!$O$162+MeOH_FTD!$O165))/1000000*HLOOKUP($H$10,$Z$3:$AD$4,2,FALSE)/HLOOKUP($J$11,$Z$7:$AD$8,2,FALSE) -> 22372.61758 | K17: =((1-Vehicles!$C$34)*(1-Vehicles!$C$6)*Fuel_Specs!$B$15/((1-Vehicles!$C$34)*(1-Vehicles!$C$6)*Fuel_Specs!$B$15+Vehicles!$C$34*(1-Vehicles!$C$6)*Fuel_Specs!$B$17+Vehicles!$C$6*Fuel_Specs!$B$32)*(Petroleum!$B265*Petroleum!$D$262+Petroleum!$D265)+Vehicles!$C$34*(1-Vehicles!$C$6)*Fuel_Specs!$B$17/((1-Vehicles!$C$34)*(1-Vehicles!$C$6)*Fuel_Specs!$B$15+Vehicles!$C$34*(1-Vehicles!$C$6)*Fuel_Specs!$B$17+Vehicles!$C$6*Fuel_Specs!$B$32)*(Petroleum!B265*Petroleum!$F$262+Petroleum!$F265)+Vehicles!$C$6*Fuel_Specs!$B$32/((1-Vehicles!$C$34)*(1-Vehicles!$C$6)*Fuel_Specs!$B$15+Vehicles!$C$34*(1-Vehicles!$C$6)*Fuel_Specs!$B$17+Vehicles!$C$6*Fuel_Specs!$B$32)*(MeOH_FTD!$N165*MeOH_FTD!$O$162+MeOH_FTD!$O165))/1000000*HLOOKUP($H$10,$Z$3:$AD$4,2,FALSE)/HLOOKUP($J$11,$Z$7:$AD$8,2,FALSE) -> 23739.16525 | L17: =(MeOH_FTD!$N165*MeOH_FTD!$O$162+MeOH_FTD!$O165)/1000000*HLOOKUP($H$10,$Z$3:$AD$4,2,FALSE)/HLOOKUP($J$11,$Z$7:$AD$8,2,FALSE) -> 26893.6108 | M17: =((1-Vehicles!$C$36)*(1-Vehicles!$C$8)*Fuel_Specs!$B$15/((1-Vehicles!$C$36)*(1-Vehicles!$C$8)*Fuel_Specs!$B$15+Vehicles!$C$36*(1-Vehicles!$C$8)*Fuel_Specs!$B$17+Vehicles!$C$8*Fuel_Specs!$B$33)*(Petroleum!$B265*Petroleum!$D$262+(Petroleum!$D265-'T&D'!G217))+Vehicles!$C$36*(1-Vehicles!$C$8)*Fuel_Specs!$B$17/((1-Vehicles!$C$36)*(1-Vehicles!$C$8)*Fuel_Specs!$B$15+Vehicles!$C$36*(1-Vehicles!$C$8)*Fuel_Specs!$B$17+Vehicles!$C$8*Fuel_Specs!$B$33)*(Petroleum!B265*Petroleum!$F$262+Petroleum!$F265)+Vehicles!$C$8*Fuel_Specs!$B$33/((1-Vehicles!$C$36)*(1-Vehicles!$C$8)*Fuel_Specs!$B$15+Vehicles!$C$36*(1-Vehicles!$C$8)*Fuel_Specs!$B$17+Vehicles!$C$8*Fuel_Specs!$B$33)*(EtOH!BV549*EtOH!$BW$546+EtOH!$BW549)+Petroleum!AS126+Petroleum!AT126)/1000000*HLOOKUP($H$10,$Z$3:$AD$4,2,FALSE)/HLOOKUP($J$11,$Z$7:$AD$8,2,FALSE) -> 51183.48225 | N17: =((1-Vehicles!$C$37)*(1-Vehicles!$C$12)*Fuel_Specs!$B$15/((1-Vehicles!$C$37)*(1-Vehicles!$C$12)*Fuel_Specs!$B$15+Vehicles!$C$37*(1-Vehicles!$C$12)*Fuel_Specs!$B$17+Vehicles!$C$12*Fuel_Specs!$B$34)*(Petroleum!$B265*Petroleum!$D$262+Petroleum!$D265)+Vehicles!$C$37*(1-Vehicles!$C$12)*Fuel_Specs!$B$17/((1-Vehicles!$C$37)*(1-Vehicles!$C$12)*Fuel_Specs!$B$15+Vehicles!$C$37*(1-Vehicles!$C$12)*Fuel_Specs!$B$17+Vehicles!$C$12*Fuel_Specs!$B$34)*(Petroleum!B265*Petroleum!$F$262+Petroleum!$F265)+Vehicles!$C$12*Fuel_Specs!$B$34/((1-Vehicles!$C$37)*(1-Vehicles!$C$12)*Fuel_Specs!$B$15+Vehicles!$C$37*(1-Vehicles!$C$12)*Fuel_Specs!$B$17+Vehicles!$C$12*Fuel_Specs!$B$34)*(EtOH!$BX549*EtOH!$BY$546+EtOH!$BY549))/1000000*HLOOKUP($H$10,$Z$3:$AD$4,2,FALSE)/HLOOKUP($J$11,$Z$7:$AD$8,2,FALSE) -> 19818.16942 | O17: =((1-Vehicles!$C$36)*(1-Vehicles!$C$9)*Fuel_Specs!$B$15/((1-Vehicles!$C$36)*(1-Vehicles!$C$9)*Fuel_Specs!$B$15+Vehicles!$C$36*(1-Vehicles!$C$9)*Fuel_Specs!$B$17+Vehicles!$C$9*Fuel_Specs!$B$33)*(Petroleum!$B265*Petroleum!$D$262+(Petroleum!$D265-'T&D'!G217))+Vehicles!$C$36*(1-Vehicles!$C$9)*Fuel_Specs!$B$17/((1-Vehicles!$C$36)*(1-Vehicles!$C$9)*Fuel_Specs!$B$15+Vehicles!$C$36*(1-Vehicles!$C$9)*Fuel_Specs!$B$17+Vehicles!$C$9*Fuel_Specs!$B$33)*(Petroleum!B265*Petroleum!$F$262+Petroleum!$F265)+Vehicles!$C$9*Fuel_Specs!$B$33/((1-Vehicles!$C$36)*(1-Vehicles!$C$9)*Fuel_Specs!$B$15+Vehicles!$C$36*(1-Vehicles!$C$9)*Fuel_Specs!$B$17+Vehicles!$C$9*Fuel_Specs!$B$33)*(EtOH!BV549*EtOH!$BW$546+EtOH!$BW549)+Petroleum!AS126+Petroleum!AT126)/1000000*HLOOKUP($H$10,$Z$3:$AD$4,2,FALSE)/HLOOKUP($J$11,$Z$7:$AD$8,2,FALSE) -> 51183.48225 | P17: =(EtOH!$BT549*EtOH!$BU$546+EtOH!$BU549)/1000000*HLOOKUP($H$10,$Z$3:$AD$4,2,FALSE)/HLOOKUP($J$11,$Z$7:$AD$8,2,FALSE) -> 63829.36756 | Q17: =((1-Vehicles!$C$40)*(1-Vehicles!$C$16)*Fuel_Specs!$B$15/((1-Vehicles!$C$40)*(1-Vehicles!$C$16)*Fuel_Specs!$B$15+Vehicles!$C$40*(1-Vehicles!$C$16)*Fuel_Specs!$B$17+Vehicles!$C$16*Fuel_Specs!$B$47)*(Petroleum!$B265*Petroleum!$D$262+Petroleum!$D265)+Vehicles!$C$40*(1-Vehicles!$C$16)*Fuel_Specs!$B$17/((1-Vehicles!$C$40)*(1-Vehicles!$C$16)*Fuel_Specs!$B$15+Vehicles!$C$40*(1-Vehicles!$C$16)*Fuel_Specs!$B$17+Vehicles!$C$16*Fuel_Specs!$B$47)*(Petroleum!B265*Petroleum!$F$262+Petroleum!$F265)+Vehicles!$C$16*Fuel_Specs!$B$47/((1-Vehicles!$C$40)*(1-Vehicles!$C$16)*Fuel_Specs!$B$15+Vehicles!$C$40*(1-Vehicles!$C$16)*Fuel_Specs!$B$17+Vehicles!$C$16*Fuel_Specs!$B$47)*(BioOil!$CE435*BioOil!$CF$431+BioOil!$CF435))/1000000*HLOOKUP($H$10,$Z$3:$AD$4,2,FALSE)/HLOOKUP($J$11,$Z$7:$AD$8,2,FALSE) -> 22347.61312 | R17: =((1-Vehicles!$C$40)*(1-Vehicles!$C$16)*Fuel_Specs!$B$15/((1-Vehicles!$C$40)*(1-Vehicles!$C$16)*Fuel_Specs!$B$15+Vehicles!$C$40*(1-Vehicles!$C$16)*Fuel_Specs!$B$17+Vehicles!$C$16*Fuel_Specs!$B$47)*(Petroleum!$B265*Petroleum!$D$262+Petroleum!$D265)+Vehicles!$C$40*(1-Vehicles!$C$16)*Fuel_Specs!$B$17/((1-Vehicles!$C$40)*(1-Vehicles!$C$16)*Fuel_Specs!$B$15+Vehicles!$C$40*(1-Vehicles!$C$16)*Fuel_Specs!$B$17+Vehicles!$C$16*Fuel_Specs!$B$47)*(Petroleum!B265*Petroleum!$F$262+Petroleum!$F265)+Vehicles!$C$16*Fuel_Specs!$B$47/((1-Vehicles!$C$40)*(1-Vehicles!$C$16)*Fuel_Specs!$B$15+Vehicles!$C$40*(1-Vehicles!$C$16)*Fuel_Specs!$B$17+Vehicles!$C$16*Fuel_Specs!$B$47)*(Pyrolysis_IDL!$AD300*Pyrolysis_IDL!$AE$297+Pyrolysis_IDL!$AE300))/1000000*HLOOKUP($H$10,$Z$3:$AD$4,2,FALSE)/HLOOKUP($J$11,$Z$7:$AD$8,2,FALSE) -> 28206.75655 | S17: =AN17*(Vehicles!$C$30/Vehicles!$AT$72)/(Vehicles!$C$30*(1/Vehicles!$AT$72+1/Vehicles!$AU$72)+Vehicles!$C$31/Vehicles!$AV$72)+B17*(Vehicles!$C$30/Vehicles!$AU$72+Vehicles!$C$31/Vehicles!$AV$72)/(Vehicles!$C$30*(1/Vehicles!$AT$72+1/Vehicles!$AU$72)+Vehicles!$C$31/Vehicles!$AV$72) -> 110586.8464 | T17: =AN17*(Vehicles!$D$30/Vehicles!$AX$72)/(Vehicles!$D$30*(1/Vehicles!$AX$72+1/Vehicles!$AY$72)+Vehicles!$D$31/Vehicles!$AZ$72)+C17*(Vehicles!$D$30/Vehicles!$AY$72+Vehicles!$D$31/Vehicles!$AZ$72)/(Vehicles!$D$30*(1/Vehicles!$AX$72+1/Vehicles!$AY$72)+Vehicles!$D$31/Vehicles!$AZ$72) -> 108838.8428 | U17: =AN17*(Vehicles!$F$30/Vehicles!$BF$72)/(Vehicles!$F$30*(1/Vehicles!$BF$72+1/Vehicles!$BG$72)+Vehicles!$F$31/Vehicles!$BH$72)+D17*(Vehicles!$F$30/Vehicles!$BG$72+Vehicles!$F$31/Vehicles!$BH$72)/(Vehicles!$F$30*(1/Vehicles!$BF$72+1/Vehicles!$BG$72)+Vehicles!$F$31/Vehicles!$BH$72) -> 110586.8464 | V17: =AN17*(Vehicles!$G$30/Vehicles!$BJ$72)/(Vehicles!$G$30*(1/Vehicles!$BJ$72+1/Vehicles!$BK$72)+Vehicles!$G$31/Vehicles!$BL$72)+F17*(Vehicles!$G$30/Vehicles!$BK$72+Vehicles!$G$31/Vehicles!$BL$72)/(Vehicles!$G$30*(1/Vehicles!$BJ$72+1/Vehicles!$BK$72)+Vehicles!$G$31/Vehicles!$BL$72) -> 114522.4329 | W17: =AN17*(Vehicles!$H$30/Vehicles!$BN$72)/(Vehicles!$H$30*(1/Vehicles!$BN$72+1/Vehicles!$BO$72)+Vehicles!$H$31/Vehicles!$BP$72)+G17*(Vehicles!$H$30/Vehicles!$BO$72+Vehicles!$H$31/Vehicles!$BP$72)/(Vehicles!$H$30*(1/Vehicles!$BN$72+1/Vehicles!$BO$72)+Vehicles!$H$31/Vehicles!$BP$72) -> 103569.3396 | X17: =AN17*(Vehicles!$I$30/Vehicles!$BR$72)/(Vehicles!$I$30*(1/Vehicles!$BR$72+1/Vehicles!$BS$72)+Vehicles!$I$31/Vehicles!$BT$72)+H17*(Vehicles!$I$30/Vehicles!$BS$72+Vehicles!$I$31/Vehicles!$BT$72)/(Vehicles!$I$30*(1/Vehicles!$BR$72+1/Vehicles!$BS$72)+Vehicles!$I$31/Vehicles!$BT$72) -> 104226.7057 | Y17: =AN17*(Vehicles!$J$30/Vehicles!$BV$72)/(Vehicles!$J$30*(1/Vehicles!$BV$72+1/Vehicles!$BW$72)+Vehicles!$J$31/Vehicles!$BX$72)+K17*(Vehicles!$J$30/Vehicles!$BW$72+Vehicles!$J$31/Vehicles!$BX$72)/(Vehicles!$J$30*(1/Vehicles!$BV$72+1/Vehicles!$BW$72)+Vehicles!$J$31/Vehicles!$BX$72) -> 117057.9928 | Z17: =AN17*(Vehicles!$K$30/Vehicles!$BZ$72)/(Vehicles!$K$30*(1/Vehicles!$BZ$72+1/Vehicles!$CA$72)+Vehicles!$K$31/Vehicles!$CB$72)+O17*(Vehicles!$K$30/Vehicles!$CA$72+Vehicles!$K$31/Vehicles!$CB$72)/(Vehicles!$K$30*(1/Vehicles!$BZ$72+1/Vehicles!$CA$72)+Vehicles!$K$31/Vehicles!$CB$72) -> 134132.1537 | AA17: =AN17*(Vehicles!$L$30/Vehicles!$CD$72)/(Vehicles!$L$30*(1/Vehicles!$CD$72+1/Vehicles!$CE$72)+Vehicles!$L$31/Vehicles!$CF$72)+AO17*(Vehicles!$L$30/Vehicles!$CE$72+Vehicles!$L$31/Vehicles!$CF$72)/(Vehicles!$L$30*(1/Vehicles!$CD$72+1/Vehicles!$CE$72)+Vehicles!$L$31/Vehicles!$CF$72) -> 139929.6494 | AB17: =AN17*(Vehicles!$L$30/Vehicles!$CD$72)/(Vehicles!$L$30*(1/Vehicles!$CD$72+1/Vehicles!$CE$72)+Vehicles!$L$31/Vehicles!$CG$72)+AP17*(Vehicles!$L$30/Vehicles!$CE$72+Vehicles!$L$31/Vehicles!$CG$72)/(Vehicles!$L$30*(1/Vehicles!$CD$72+1/Vehicles!$CE$72)+Vehicles!$L$31/Vehicles!$CG$72) -> 244270.1199 | AC17: =(MeOH_FTD!$AJ165*MeOH_FTD!$AK$162+MeOH_FTD!$AK165)/1000000*HLOOKUP($H$10,$Z$3:$AD$4,2,FALSE)/HLOOKUP($J$11,$Z$7:$AD$8,2,FALSE) -> 27844.44942 | AD17: =((1-Vehicles!$C$41)*(1-Vehicles!$C$13)*Fuel_Specs!$B$21/((1-Vehicles!$C$41)*(1-Vehicles!$C$13)*Fuel_Specs!$B$21+Vehicles!$C$41*(1-Vehicles!$C$13)*Fuel_Specs!$B$24+Vehicles!$C$13*Fuel_Specs!$B$42)*(Petroleum!B265*Petroleum!$J$262+Petroleum!$J265)+Vehicles!$C$41*(1-Vehicles!$C$13)*Fuel_Specs!$B$24/((1-Vehicles!$C$41)*(1-Vehicles!$C$13)*Fuel_Specs!$B$21+Vehicles!$C$41*(1-Vehicles!$C$13)*Fuel_Specs!$B$24+Vehicles!$C$13*Fuel_Specs!$B$42)*(Petroleum!B265*IF(Inputs!F$102=1,Petroleum!$K$262,Petroleum!$L$262)+IF(Inputs!F$102=1,Petroleum!$K265,Petroleum!$L265))+Vehicles!$C$13*Fuel_Specs!$B$42/((1-Vehicles!$C$41)*(1-Vehicles!$C$13)*Fuel_Specs!$B$21+Vehicles!$C$41*(1-Vehicles!$C$13)*Fuel_Specs!$B$24+Vehicles!$C$13*Fuel_Specs!$B$42)*(MeOH_FTD!$AZ165*MeOH_FTD!$BA$162+MeOH_FTD!$BA165))/1000000*HLOOKUP($H$10,$Z$3:$AD$4,2,FALSE)/HLOOKUP($J$11,$Z$7:$AD$8,2,FALSE) -> 1588.026171 | AE17: =((1-Vehicles!$C$42)*(1-Vehicles!$C$14)*Fuel_Specs!$B$21/((1-Vehicles!$C$42)*(1-Vehicles!$C$14)*Fuel_Specs!$B$21+Vehicles!$C$42*(1-Vehicles!$C$14)*Fuel_Specs!$B$24+Vehicles!$C$14*Fuel_Specs!$B$41)*(Petroleum!B265*Petroleum!$J$262+Petroleum!$J265)+Vehicles!$C$42*(1-Vehicles!$C$14)*Fuel_Specs!$B$24/((1-Vehicles!$C$42)*(1-Vehicles!$C$14)*Fuel_Specs!$B$21+Vehicles!$C$42*(1-Vehicles!$C$14)*Fuel_Specs!$B$24+Vehicles!$C$14*Fuel_Specs!$B$41)*(Petroleum!B265*IF(Inputs!F$102=1,Petroleum!$K$262,Petroleum!$L$262)+IF(Inputs!F$102=1,Petroleum!$K265,Petroleum!$L265))+Vehicles!$C$14*Fuel_Specs!$B$41/((1-Vehicles!$C$42)*(1-Vehicles!$C$14)*Fuel_Specs!$B$21+Vehicles!$C$42*(1-Vehicles!$C$14)*Fuel_Specs!$B$24+Vehicles!$C$14*Fuel_Specs!$B$41)*(BioOil!$Y435*BioOil!$Z$431+BioOil!$Z435))/1000000*HLOOKUP($H$10,$Z$3:$AD$4,2,FALSE)/HLOOKUP($J$11,$Z$7:$AD$8,2,FALSE) -> 10414.62052 | AF17: =((1-Vehicles!$C$43)*(1-Vehicles!$C$15)*Fuel_Specs!$B$21/((1-Vehicles!$C$43)*(1-Vehicles!$C$15)*Fuel_Specs!$B$21+Vehicles!$C$43*(1-Vehicles!$C$15)*Fuel_Specs!$B$24+Vehicles!$C$15*IF(Inputs!$E$670=1,IF(Inputs!$E$670=1,Fuel_Specs!$B$43,IF(Inputs!$E$670=3,Fuel_Specs!$B$45,Fuel_Specs!$B$44)),Fuel_Specs!$B$44))*(Petroleum!B265*Petroleum!$J$262+Petroleum!$J265)+Vehicles!$C$43*(1-Vehicles!$C$15)*Fuel_Specs!$B$24/((1-Vehicles!$C$43)*(1-Vehicles!$C$15)*Fuel_Specs!$B$21+Vehicles!$C$43*(1-Vehicles!$C$15)*Fuel_Specs!$B$24+Vehicles!$C$15*IF(Inputs!$E$670=1,IF(Inputs!$E$670=1,Fuel_Specs!$B$43,IF(Inputs!$E$670=3,Fuel_Specs!$B$45,Fuel_Specs!$B$44)),Fuel_Specs!$B$44))*(Petroleum!B265*IF(Inputs!F$102=1,Petroleum!$K$262,Petroleum!$L$262)+IF(Inputs!F$102=1,Petroleum!$K265,Petroleum!$L265))+Vehicles!$C$15*IF(Inputs!$E$670=1,IF(Inputs!$E$670=1,Fuel_Specs!$B$43,IF(Inputs!$E$670=3,Fuel_Specs!$B$45,Fuel_Specs!$B$44)),Fuel_Specs!$B$44)/((1-Vehicles!$C$43)*(1-Vehicles!$C$15)*Fuel_Specs!$B$21+Vehicles!$C$43*(1-Vehicles!$C$15)*Fuel_Specs!$B$24+Vehicles!$C$15*IF(Inputs!$E$670=1,IF(Inputs!$E$670=1,Fuel_Specs!$B$43,IF(Inputs!$E$670=3,Fuel_Specs!$B$45,Fuel_Specs!$B$44)),Fuel_Specs!$B$44))*(BioOil!$BQ435*BioOil!$BR$431+BioOil!$BR435))/1000000*HLOOKUP($H$10,$Z$3:$AD$4,2,FALSE)/HLOOKUP($J$11,$Z$7:$AD$8,2,FALSE) -> 22947.96286 | AG17: =((1-Vehicles!$C$43)*(1-Vehicles!$C$15)*Fuel_Specs!$B$21/((1-Vehicles!$C$43)*(1-Vehicles!$C$15)*Fuel_Specs!$B$21+Vehicles!$C$43*(1-Vehicles!$C$15)*Fuel_Specs!$B$24+Vehicles!$C$15*IF(Inputs!$E$670=1,Fuel_Specs!$B$43,Fuel_Specs!$B$44))*(Petroleum!B265*Petroleum!$J$262+Petroleum!$J265)+Vehicles!$C$43*(1-Vehicles!$C$15)*Fuel_Specs!$B$24/((1-Vehicles!$C$43)*(1-Vehicles!$C$15)*Fuel_Specs!$B$21+Vehicles!$C$43*(1-Vehicles!$C$15)*Fuel_Specs!$B$24+Vehicles!$C$15*IF(Inputs!$E$670=1,Fuel_Specs!$B$43,Fuel_Specs!$B$44))*(Petroleum!B265*IF(Inputs!F$102=1,Petroleum!$K$262,Petroleum!$L$262)+IF(Inputs!F$102=1,Petroleum!$K265,Petroleum!$L265))+Vehicles!$C$15*IF(Inputs!$E$670=1,Fuel_Specs!$B$43,Fuel_Specs!$B$44)/((1-Vehicles!$C$43)*(1-Vehicles!$C$15)*Fuel_Specs!$B$21+Vehicles!$C$43*(1-Vehicles!$C$15)*Fuel_Specs!$B$24+Vehicles!$C$15*IF(Inputs!$E$670=1,Fuel_Specs!$B$43,Fuel_Specs!$B$44))*(Pyrolysis_IDL!$AF300*Pyrolysis_IDL!$AG$297+Pyrolysis_IDL!$AG300))/1000000*HLOOKUP($H$10,$Z$3:$AD$4,2,FALSE)/HLOOKUP($J$11,$Z$7:$AD$8,2,FALSE) -> 27143.72669 | AH17: =(((1-Vehicles!$C$44)*(1-Vehicles!$C$17-Vehicles!$C$18)*Fuel_Specs!$B$21*(Petroleum!B265*Petroleum!$J$262+Petroleum!$J265)+Vehicles!$C$44*(1-Vehicles!$C$17-Vehicles!$C$18)*Fuel_Specs!$B$24*(Petroleum!B265*IF(Inputs!F$102=1,Petroleum!$K$262,Petroleum!$L$262)+IF(Inputs!F$102=1,Petroleum!$K265,Petroleum!$L265))+Vehicles!$C$17*Fuel_Specs!$B$33*(EtOH!BT549*EtOH!$BU$546+EtOH!$BU549)+Vehicles!$C$18*Fuel_Specs!$B$36*('EtOH-Diesel Additives'!$B56*'EtOH-Diesel Additives'!$B$53))/((1-Vehicles!$C$44)*(1-Vehicles!$C$17-Vehicles!$C$18)*Fuel_Specs!$B$21+Vehicles!$C$44*(1-Vehicles!$C$17-Vehicles!$C$18)*Fuel_Specs!$B$24+Vehicles!$C$17*Fuel_Specs!$B$33+Vehicles!$C$18*Fuel_Specs!$B$36))/1000000*HLOOKUP($H$10,$Z$3:$AD$4,2,FALSE)/HLOOKUP($J$11,$Z$7:$AD$8,2,FALSE) -> 11686.72458 | AI17: =AN17*(Vehicles!$M$30/Vehicles!$CO$72)/(Vehicles!$M$30*(1/Vehicles!$CO$72+1/Vehicles!$CP$72)+Vehicles!$M$31/Vehicles!$CQ$72)+E17*(Vehicles!$M$30/Vehicles!$CP$72+Vehicles!$M$31/Vehicles!$CQ$72)/(Vehicles!$M$30*(1/Vehicles!$CO$72+1/Vehicles!$CP$72)+Vehicles!$M$31/Vehicles!$CQ$72) -> 85994.14364 | AJ17: =AN17*(Vehicles!$N$30/Vehicles!$CS$72)/(Vehicles!$N$30*(1/Vehicles!$CS$72+1/Vehicles!$CT$72)+Vehicles!$N$31/Vehicles!$CU$72)+AC17*(Vehicles!$N$30/Vehicles!$CT$72+Vehicles!$N$31/Vehicles!$CU$72)/(Vehicles!$N$30*(1/Vehicles!$CS$72+1/Vehicles!$CT$72)+Vehicles!$N$31/Vehicles!$CU$72) -> 99998.20503 | AK17: =AN17*(Vehicles!$O$30/Vehicles!$CW$72)/(Vehicles!$O$30*(1/Vehicles!$CW$72+1/Vehicles!$CX$72)+Vehicles!$O$31/Vehicles!$CY$72)+AD17*(Vehicles!$O$30/Vehicles!$CX$72+Vehicles!$O$31/Vehicles!$CY$72)/(Vehicles!$O$30*(1/Vehicles!$CW$72+1/Vehicles!$CX$72)+Vehicles!$O$31/Vehicles!$CY$72) -> 81542.56143 | AL17: =AN17*(Vehicles!$P$30/Vehicles!$DA$72)/(Vehicles!$P$30*(1/Vehicles!$DA$72+1/Vehicles!$DB$72)+Vehicles!$P$31/Vehicles!$DC$72)+AE17*(Vehicles!$P$30/Vehicles!$DB$72+Vehicles!$P$31/Vehicles!$DC$72)/(Vehicles!$P$30*(1/Vehicles!$DA$72+1/Vehicles!$DB$72)+Vehicles!$P$31/Vehicles!$DC$72) -> 87746.77584 | AM17: =AN17*(Vehicles!$R$30/Vehicles!$DI$72)/(Vehicles!$R$30*(1/Vehicles!$DI$72+1/Vehicles!$DJ$72)+Vehicles!$R$31/Vehicles!$DK$72)+AH17*(Vehicles!$R$30/Vehicles!$DJ$72+Vehicles!$R$31/Vehicles!$DK$72)/(Vehicles!$R$30*(1/Vehicles!$DI$72+1/Vehicles!$DJ$72)+Vehicles!$R$31/Vehicles!$DK$72) -> 88640.93796 | AN17: =(Electric!$G206+Electric!$F206-1000000*(Electric!$F206+Electric!$G206)/(Electric!$F$204+Electric!$G$204))/1000000*HLOOKUP($H$10,$Z$3:$AD$4,2,FALSE)/HLOOKUP($J$11,$Z$7:$AD$8,2,FALSE) -> 270704.7315 | AO17: =((Hydrogen!$AJ308*Hydrogen!$AK$305+Hydrogen!$AK308)-1000000*(Hydrogen!$O$7+Hydrogen!$C$7+Hydrogen!$D$7+Hydrogen!$E$7))/1000000*HLOOKUP($H$10,$Z$3:$AD$4,2,FALSE)/HLOOKUP($J$11,$Z$7:$AD$8,2,FALSE) -> 60502.14287 | AP17: =((Hydrogen!$BT308*Hydrogen!$BU$305+Hydrogen!$BU308)-1000000*(Hydrogen!$O$8+Hydrogen!$C$8+Hydrogen!$D$8+Hydrogen!$E$8))/1000000*HLOOKUP($H$10,$Z$3:$AD$4,2,FALSE)/HLOOKUP($J$11,$Z$7:$AD$8,2,FALSE) -> 228214.8037 | AQ17: =AN17*(Vehicles!$S$30/Vehicles!$DY$72)/(Vehicles!$S$30*(1/Vehicles!$DY$72+1/Vehicles!$DZ$72)+Vehicles!$S$31/Vehicles!$EA$72)+AO17*(Vehicles!$S$30/Vehicles!$DZ$72+Vehicles!$S$31/Vehicles!$EA$72)/(Vehicles!$S$30*(1/Vehicles!$DY$72+1/Vehicles!$DZ$72)+Vehicles!$S$31/Vehicles!$EA$72) -> 145529.1927 | AR17: =AN17*(Vehicles!$S$30/Vehicles!$DY$72)/(Vehicles!$S$30*(1/Vehicles!$DY$72+1/Vehicles!$DZ$72)+Vehicles!$S$31/Vehicles!$EA$72)+AP17*(Vehicles!$S$30/Vehicles!$DZ$72+Vehicles!$S$31/Vehicles!$EA$72)/(Vehicles!$S$30*(1/Vehicles!$DY$72+1/Vehicles!$DZ$72)+Vehicles!$S$31/Vehicles!$EA$72) -> 245402.0003 | AS17: =((1-Vehicles!$C$40)*(1-Vehicles!$C$16)*Fuel_Specs!$B$15/((1-Vehicles!$C$40)*(1-Vehicles!$C$16)*Fuel_Specs!$B$15+Vehicles!$C$40*(1-Vehicles!$C$16)*Fuel_Specs!$B$17+Vehicles!$C$16*Fuel_Specs!$B$48)*(Petroleum!$B265*Petroleum!$D$262+Petroleum!$D265)+Vehicles!$C$40*(1-Vehicles!$C$16)*Fuel_Specs!$B$17/((1-Vehicles!$C$40)*(1-Vehicles!$C$16)*Fuel_Specs!$B$15+Vehicles!$C$40*(1-Vehicles!$C$16)*Fuel_Specs!$B$17+Vehicles!$C$16*Fuel_Specs!$B$48)*(Petroleum!B265*Petroleum!$F$262+Petroleum!$F265)+Vehicles!$C$16*Fuel_Specs!$B$48/((1-Vehicles!$C$40)*(1-Vehicles!$C$16)*Fuel_Specs!$B$15+Vehicles!$C$40*(1-Vehicles!$C$16)*Fuel_Specs!$B$17+Vehicles!$C$16*Fuel_Specs!$B$48)*(Pyrolysis_IDL!$AP300*Pyrolysis_IDL!$AQ$297+Pyrolysis_IDL!$AQ300))/1000000*HLOOKUP($H$10,$Z$3:$AD$4,2,FALSE)/HLOOKUP($J$11,$Z$7:$AD$8,2,FALSE) -> 27096.09653 | AT17: =(Petroleum!$B265*Petroleum!$S$262+Petroleum!$S265)/1000000*HLOOKUP($H$10,$Z$3:$AD$4,2,FALSE)/HLOOKUP($J$11,$Z$7:$AD$8,2,FALSE) -> 8475.952116 | AU17: 16053.81948 | AV17: 15978.70286 | BB17: ="SI - E"&TEXT(Vehicles_EtOH_LLBlend_EtOHShare*100,"0") -> SI - E10 | BC17: RNAVGASLLETOH | BE17: ="SIDI - E"&TEXT(Vehicles_EtOH_LLBlend_EtOHShare*100,"0") -> SIDI - E10 | BF17: RNAVGASLLETOHSIDI | BH17: CIDI - FT Diesel | BI17: RNAVFTDCIDI | BK17: SI HEV - RG from Pyrolysis | BL17: RNAVHEVRENGAS | BN17: SI PHEV - RG and Electricity | BO17: RNAVPHEVRENGAS | BQ17: CIDI HEV - FT Diesel | BR17: RNAVHEVFTDIESEL | BT17: CIDI PHEV - FTD and Electricity | BU17: RNAVPHEVFTDIESEL | BW17: FCV - Liquid H2 | BX17: RNAVFCVLH2 | CB17: MM - BioMethanol | CC17: RNAVCOOPBIOMEOH
A18: Natural Gas | B18: =B16-B17-B19 -> 158545.6224 | C18: 159925.8161 | D18: 158545.6224 | E18: 120236.4801 | F18: 152085.7703 | G18: 199245.8164 | H18: 124757.2935 | I18: 848149.6217 | J18: 384368.3109 | K18: 410953.8006 | L18: 472321.9339 | M18: 369237.4425 | N18: 601756.2344 | O18: 369237.4425 | P18: 439703.036 | Q18: 49236.62075 | R18: 241512.5056 | S18: 191752.9733 | T18: 192611.6447 | U18: 191752.9733 | V18: 187734.0519 | W18: 217074.123 | X18: 170731.9597 | Y18: 348785.7693 | Z18: 322832.425 | AA18: 293122.1756 | AB18: 443778.9015 | AC18: 569693.0117 | AD18: 675219.4331 | AE18: 128320.8374 | AF18: 193043.5531 | AG18: =AG16-AG17-AG19 -> 286369.3579 | AH18: 141994.879 | AI18: 157727.9367 | AJ18: 473650.996 | AK18: 547825.5325 | AL18: 163410.4326 | AM18: 173021.9184 | AN18: 246427.9119 | AO18: 321482.3867 | AP18: 563641.9271 | AQ18: 291122.815 | AR18: 435328.7029 | AS18: 63168.86535 | AT18: =AT16-AT17-AT19 -> 134442.4545 | AU18: 144502.7284 | AV18: 122217.699 | BB18: SI - EtOH FFV | BC18: RNAVETOHFFV | BE18: SIDI - Dedi. MeOH | BF18: RNAVMEOHSIDI | BH18: CIDI - Biodiesel | BI18: RNAVBIODIESELCIDI | BK18: ="SI HEV - E"&TEXT(Vehicles_EtOH_LLBlend_EtOHShare*100,"0") -> SI HEV - E10 | BL18: RNAVHEVLLETOH | BN18: ="SI PHEV - E"&TEXT(Vehicles_EtOH_LLBlend_EtOHShare*100,"0") -> SI PHEV - E10 | BO18: RNAVPHEVLLETOH | BQ18: CIDI HEV - Biodiesel | BR18: RNAVHEVBIODIESEL | BT18: CIDI PHEV - BD and Electricity | BU18: RNAVPHEVBIODIESEL
A19: Petroleum | B19: =(Inputs!$E$1518*(Petroleum!$B267*Petroleum!$F$262+Petroleum!$F267)+(1-Inputs!$E$1518)*(Petroleum!$B267*Petroleum!$D$262+Petroleum!$D267))/1000000*HLOOKUP($H$10,$Z$3:$AD$4,2,FALSE)/HLOOKUP($J$11,$Z$7:$AD$8,2,FALSE) -> 72370.12429 | C19: =(Petroleum!$C267*Petroleum!$G$262+Petroleum!$G267)/1000000*HLOOKUP($H$10,$Z$3:$AD$4,2,FALSE)/HLOOKUP($J$11,$Z$7:$AD$8,2,FALSE) -> 63705.64171 | D19: =((1-Vehicles!$C$35)*(1-Vehicles!$C$7)*Fuel_Specs!$B$15/((1-Vehicles!$C$35)*(1-Vehicles!$C$7)*Fuel_Specs!$B$15+Vehicles!$C$35*(1-Vehicles!$C$7)*Fuel_Specs!$B$17+Vehicles!$C$7*Fuel_Specs!$B$33)*(Petroleum!$B267*Petroleum!$D$262+(Petroleum!$D267-'T&D'!G219))+Vehicles!$C$35*(1-Vehicles!$C$7)*Fuel_Specs!$B$17/((1-Vehicles!$C$35)*(1-Vehicles!$C$7)*Fuel_Specs!$B$15+Vehicles!$C$35*(1-Vehicles!$C$7)*Fuel_Specs!$B$17+Vehicles!$C$7*Fuel_Specs!$B$33)*(Petroleum!B267*Petroleum!$F$262+Petroleum!$F267)+Vehicles!$C$7*Fuel_Specs!$B$33/((1-Vehicles!$C$35)*(1-Vehicles!$C$7)*Fuel_Specs!$B$15+Vehicles!$C$35*(1-Vehicles!$C$7)*Fuel_Specs!$B$17+Vehicles!$C$7*Fuel_Specs!$B$33)*(EtOH!BV551*EtOH!$BW$546+EtOH!$BW551)+Petroleum!AS128+Petroleum!AT128)/1000000*HLOOKUP($H$10,$Z$3:$AD$4,2,FALSE)/HLOOKUP($J$11,$Z$7:$AD$8,2,FALSE) -> 72370.12429 | E19: =(Inputs!$E$97*(IF(Inputs!F$102=1,Petroleum!$B267,Petroleum!$C267)*IF(Inputs!F$102=1,Petroleum!$K$262,Petroleum!$L$262)+IF(Inputs!F$102=1,Petroleum!$K267,Petroleum!$L267))+(1-Inputs!$E$97)*(IF(Inputs!F$101=1,Petroleum!$B267,Petroleum!$C267)*Petroleum!$J$262+Petroleum!$J267))/1000000*HLOOKUP($H$10,$Z$3:$AD$4,2,FALSE)/HLOOKUP($J$11,$Z$7:$AD$8,2,FALSE) -> 47007.62471 | F19: =(NG!$J89*NG!$K$84+NG!$K89)/1000000*HLOOKUP($H$10,$Z$3:$AD$4,2,FALSE)/HLOOKUP($J$11,$Z$7:$AD$8,2,FALSE) -> 6312.568742 | G19: =(NG!$R89*NG!$S$84+NG!$S89)/1000000*HLOOKUP($H$10,$Z$3:$AD$4,2,FALSE)/HLOOKUP($J$11,$Z$7:$AD$8,2,FALSE) -> 12653.82657 | H19: =(NG!$X89*NG!$Y$84+NG!$Y89)/1000000*HLOOKUP($H$10,$Z$3:$AD$4,2,FALSE)/HLOOKUP($J$11,$Z$7:$AD$8,2,FALSE) -> 32055.65721 | I19: =(MeOH_FTD!BJ167*MeOH_FTD!BK$162+MeOH_FTD!BK167)/1000000*HLOOKUP($H$10,$Z$3:$AD$4,2,FALSE)/HLOOKUP($J$11,$Z$7:$AD$8,2,FALSE) -> 11050.17976 | J19: =((1-Vehicles!$C$34)*(1-Vehicles!$C$5)*Fuel_Specs!$B$15/((1-Vehicles!$C$34)*(1-Vehicles!$C$5)*Fuel_Specs!$B$15+Vehicles!$C$34*(1-Vehicles!$C$5)*Fuel_Specs!$B$17+Vehicles!$C$5*Fuel_Specs!$B$32)*(Petroleum!$B267*Petroleum!$D$262+Petroleum!$D267)+Vehicles!$C$34*(1-Vehicles!$C$5)*Fuel_Specs!$B$17/((1-Vehicles!$C$34)*(1-Vehicles!$C$5)*Fuel_Specs!$B$15+Vehicles!$C$34*(1-Vehicles!$C$5)*Fuel_Specs!$B$17+Vehicles!$C$5*Fuel_Specs!$B$32)*(Petroleum!B267*Petroleum!$F$262+Petroleum!$F267)+Vehicles!$C$5*Fuel_Specs!$B$32/((1-Vehicles!$C$34)*(1-Vehicles!$C$5)*Fuel_Specs!$B$15+Vehicles!$C$34*(1-Vehicles!$C$5)*Fuel_Specs!$B$17+Vehicles!$C$5*Fuel_Specs!$B$32)*(MeOH_FTD!$N167*MeOH_FTD!$O$162+MeOH_FTD!$O167))/1000000*HLOOKUP($H$10,$Z$3:$AD$4,2,FALSE)/HLOOKUP($J$11,$Z$7:$AD$8,2,FALSE) -> 34930.29514 | K19: =((1-Vehicles!$C$34)*(1-Vehicles!$C$6)*Fuel_Specs!$B$15/((1-Vehicles!$C$34)*(1-Vehicles!$C$6)*Fuel_Specs!$B$15+Vehicles!$C$34*(1-Vehicles!$C$6)*Fuel_Specs!$B$17+Vehicles!$C$6*Fuel_Specs!$B$32)*(Petroleum!$B267*Petroleum!$D$262+Petroleum!$D267)+Vehicles!$C$34*(1-Vehicles!$C$6)*Fuel_Specs!$B$17/((1-Vehicles!$C$34)*(1-Vehicles!$C$6)*Fuel_Specs!$B$15+Vehicles!$C$34*(1-Vehicles!$C$6)*Fuel_Specs!$B$17+Vehicles!$C$6*Fuel_Specs!$B$32)*(Petroleum!B267*Petroleum!$F$262+Petroleum!$F267)+Vehicles!$C$6*Fuel_Specs!$B$32/((1-Vehicles!$C$34)*(1-Vehicles!$C$6)*Fuel_Specs!$B$15+Vehicles!$C$34*(1-Vehicles!$C$6)*Fuel_Specs!$B$17+Vehicles!$C$6*Fuel_Specs!$B$32)*(MeOH_FTD!$N167*MeOH_FTD!$O$162+MeOH_FTD!$O167))/1000000*HLOOKUP($H$10,$Z$3:$AD$4,2,FALSE)/HLOOKUP($J$11,$Z$7:$AD$8,2,FALSE) -> 30636.12164 | L19: =(MeOH_FTD!$N167*MeOH_FTD!$O$162+MeOH_FTD!$O167)/1000000*HLOOKUP($H$10,$Z$3:$AD$4,2,FALSE)/HLOOKUP($J$11,$Z$7:$AD$8,2,FALSE) -> 20723.74407 | M19: =((1-Vehicles!$C$36)*(1-Vehicles!$C$8)*Fuel_Specs!$B$15/((1-Vehicles!$C$36)*(1-Vehicles!$C$8)*Fuel_Specs!$B$15+Vehicles!$C$36*(1-Vehicles!$C$8)*Fuel_Specs!$B$17+Vehicles!$C$8*Fuel_Specs!$B$33)*(Petroleum!$B267*Petroleum!$D$262+(Petroleum!$D267-'T&D'!G219))+Vehicles!$C$36*(1-Vehicles!$C$8)*Fuel_Specs!$B$17/((1-Vehicles!$C$36)*(1-Vehicles!$C$8)*Fuel_Specs!$B$15+Vehicles!$C$36*(1-Vehicles!$C$8)*Fuel_Specs!$B$17+Vehicles!$C$8*Fuel_Specs!$B$33)*(Petroleum!B267*Petroleum!$F$262+Petroleum!$F267)+Vehicles!$C$8*Fuel_Specs!$B$33/((1-Vehicles!$C$36)*(1-Vehicles!$C$8)*Fuel_Specs!$B$15+Vehicles!$C$36*(1-Vehicles!$C$8)*Fuel_Specs!$B$17+Vehicles!$C$8*Fuel_Specs!$B$33)*(EtOH!BV551*EtOH!$BW$546+EtOH!$BW551)+Petroleum!AS128+Petroleum!AT128)/1000000*HLOOKUP($H$10,$Z$3:$AD$4,2,FALSE)/HLOOKUP($J$11,$Z$7:$AD$8,2,FALSE) -> 58836.70543 | N19: =((1-Vehicles!$C$37)*(1-Vehicles!$C$12)*Fuel_Specs!$B$15/((1-Vehicles!$C$37)*(1-Vehicles!$C$12)*Fuel_Specs!$B$15+Vehicles!$C$37*(1-Vehicles!$C$12)*Fuel_Specs!$B$17+Vehicles!$C$12*Fuel_Specs!$B$34)*(Petroleum!$B267*Petroleum!$D$262+Petroleum!$D267)+Vehicles!$C$37*(1-Vehicles!$C$12)*Fuel_Specs!$B$17/((1-Vehicles!$C$37)*(1-Vehicles!$C$12)*Fuel_Specs!$B$15+Vehicles!$C$37*(1-Vehicles!$C$12)*Fuel_Specs!$B$17+Vehicles!$C$12*Fuel_Specs!$B$34)*(Petroleum!B267*Petroleum!$F$262+Petroleum!$F267)+Vehicles!$C$12*Fuel_Specs!$B$34/((1-Vehicles!$C$37)*(1-Vehicles!$C$12)*Fuel_Specs!$B$15+Vehicles!$C$37*(1-Vehicles!$C$12)*Fuel_Specs!$B$17+Vehicles!$C$12*Fuel_Specs!$B$34)*(EtOH!$BX551*EtOH!$BY$546+EtOH!$BY551))/1000000*HLOOKUP($H$10,$Z$3:$AD$4,2,FALSE)/HLOOKUP($J$11,$Z$7:$AD$8,2,FALSE) -> 49370.82065 | O19: =((1-Vehicles!$C$36)*(1-Vehicles!$C$9)*Fuel_Specs!$B$15/((1-Vehicles!$C$36)*(1-Vehicles!$C$9)*Fuel_Specs!$B$15+Vehicles!$C$36*(1-Vehicles!$C$9)*Fuel_Specs!$B$17+Vehicles!$C$9*Fuel_Specs!$B$33)*(Petroleum!$B267*Petroleum!$D$262+(Petroleum!$D267-'T&D'!G219))+Vehicles!$C$36*(1-Vehicles!$C$9)*Fuel_Specs!$B$17/((1-Vehicles!$C$36)*(1-Vehicles!$C$9)*Fuel_Specs!$B$15+Vehicles!$C$36*(1-Vehicles!$C$9)*Fuel_Specs!$B$17+Vehicles!$C$9*Fuel_Specs!$B$33)*(Petroleum!B267*Petroleum!$F$262+Petroleum!$F267)+Vehicles!$C$9*Fuel_Specs!$B$33/((1-Vehicles!$C$36)*(1-Vehicles!$C$9)*Fuel_Specs!$B$15+Vehicles!$C$36*(1-Vehicles!$C$9)*Fuel_Specs!$B$17+Vehicles!$C$9*Fuel_Specs!$B$33)*(EtOH!BV551*EtOH!$BW$546+EtOH!$BW551)+Petroleum!AS128+Petroleum!AT128)/1000000*HLOOKUP($H$10,$Z$3:$AD$4,2,FALSE)/HLOOKUP($J$11,$Z$7:$AD$8,2,FALSE) -> 58836.70543 | P19: =(EtOH!$BT551*EtOH!$BU$546+EtOH!$BU551)/1000000*HLOOKUP($H$10,$Z$3:$AD$4,2,FALSE)/HLOOKUP($J$11,$Z$7:$AD$8,2,FALSE) -> 55203.41562 | Q19: =((1-Vehicles!$C$40)*(1-Vehicles!$C$16)*Fuel_Specs!$B$15/((1-Vehicles!$C$40)*(1-Vehicles!$C$16)*Fuel_Specs!$B$15+Vehicles!$C$40*(1-Vehicles!$C$16)*Fuel_Specs!$B$17+Vehicles!$C$16*Fuel_Specs!$B$47)*(Petroleum!$B267*Petroleum!$D$262+Petroleum!$D267)+Vehicles!$C$40*(1-Vehicles!$C$16)*Fuel_Specs!$B$17/((1-Vehicles!$C$40)*(1-Vehicles!$C$16)*Fuel_Specs!$B$15+Vehicles!$C$40*(1-Vehicles!$C$16)*Fuel_Specs!$B$17+Vehicles!$C$16*Fuel_Specs!$B$47)*(Petroleum!B267*Petroleum!$F$262+Petroleum!$F267)+Vehicles!$C$16*Fuel_Specs!$B$47/((1-Vehicles!$C$40)*(1-Vehicles!$C$16)*Fuel_Specs!$B$15+Vehicles!$C$40*(1-Vehicles!$C$16)*Fuel_Specs!$B$17+Vehicles!$C$16*Fuel_Specs!$B$47)*(BioOil!$CE437*BioOil!$CF$431+BioOil!$CF437))/1000000*HLOOKUP($H$10,$Z$3:$AD$4,2,FALSE)/HLOOKUP($J$11,$Z$7:$AD$8,2,FALSE) -> 39243.26099 | R19: =((1-Vehicles!$C$40)*(1-Vehicles!$C$16)*Fuel_Specs!$B$15/((1-Vehicles!$C$40)*(1-Vehicles!$C$16)*Fuel_Specs!$B$15+Vehicles!$C$40*(1-Vehicles!$C$16)*Fuel_Specs!$B$17+Vehicles!$C$16*Fuel_Specs!$B$47)*(Petroleum!$B267*Petroleum!$D$262+Petroleum!$D267)+Vehicles!$C$40*(1-Vehicles!$C$16)*Fuel_Specs!$B$17/((1-Vehicles!$C$40)*(1-Vehicles!$C$16)*Fuel_Specs!$B$15+Vehicles!$C$40*(1-Vehicles!$C$16)*Fuel_Specs!$B$17+Vehicles!$C$16*Fuel_Specs!$B$47)*(Petroleum!B267*Petroleum!$F$262+Petroleum!$F267)+Vehicles!$C$16*Fuel_Specs!$B$47/((1-Vehicles!$C$40)*(1-Vehicles!$C$16)*Fuel_Specs!$B$15+Vehicles!$C$40*(1-Vehicles!$C$16)*Fuel_Specs!$B$17+Vehicles!$C$16*Fuel_Specs!$B$47)*(Pyrolysis_IDL!$AD302*Pyrolysis_IDL!$AE$297+Pyrolysis_IDL!$AE302))/1000000*HLOOKUP($H$10,$Z$3:$AD$4,2,FALSE)/HLOOKUP($J$11,$Z$7:$AD$8,2,FALSE) -> 66095.59346 | S19: =AN19*(Vehicles!$C$30/Vehicles!$AT$72)/(Vehicles!$C$30*(1/Vehicles!$AT$72+1/Vehicles!$AU$72)+Vehicles!$C$31/Vehicles!$AV$72)+B19*(Vehicles!$C$30/Vehicles!$AU$72+Vehicles!$C$31/Vehicles!$AV$72)/(Vehicles!$C$30*(1/Vehicles!$AT$72+1/Vehicles!$AU$72)+Vehicles!$C$31/Vehicles!$AV$72) -> 49481.35056 | T19: =AN19*(Vehicles!$D$30/Vehicles!$AX$72)/(Vehicles!$D$30*(1/Vehicles!$AX$72+1/Vehicles!$AY$72)+Vehicles!$D$31/Vehicles!$AZ$72)+C19*(Vehicles!$D$30/Vehicles!$AY$72+Vehicles!$D$31/Vehicles!$AZ$72)/(Vehicles!$D$30*(1/Vehicles!$AX$72+1/Vehicles!$AY$72)+Vehicles!$D$31/Vehicles!$AZ$72) -> 44090.84406 | U19: =AN19*(Vehicles!$F$30/Vehicles!$BF$72)/(Vehicles!$F$30*(1/Vehicles!$BF$72+1/Vehicles!$BG$72)+Vehicles!$F$31/Vehicles!$BH$72)+D19*(Vehicles!$F$30/Vehicles!$BG$72+Vehicles!$F$31/Vehicles!$BH$72)/(Vehicles!$F$30*(1/Vehicles!$BF$72+1/Vehicles!$BG$72)+Vehicles!$F$31/Vehicles!$BH$72) -> 49481.35056 | V19: =AN19*(Vehicles!$G$30/Vehicles!$BJ$72)/(Vehicles!$G$30*(1/Vehicles!$BJ$72+1/Vehicles!$BK$72)+Vehicles!$G$31/Vehicles!$BL$72)+F19*(Vehicles!$G$30/Vehicles!$BK$72+Vehicles!$G$31/Vehicles!$BL$72)/(Vehicles!$G$30*(1/Vehicles!$BJ$72+1/Vehicles!$BK$72)+Vehicles!$G$31/Vehicles!$BL$72) -> 8384.414958 | W19: =AN19*(Vehicles!$H$30/Vehicles!$BN$72)/(Vehicles!$H$30*(1/Vehicles!$BN$72+1/Vehicles!$BO$72)+Vehicles!$H$31/Vehicles!$BP$72)+G19*(Vehicles!$H$30/Vehicles!$BO$72+Vehicles!$H$31/Vehicles!$BP$72)/(Vehicles!$H$30*(1/Vehicles!$BN$72+1/Vehicles!$BO$72)+Vehicles!$H$31/Vehicles!$BP$72) -> 12329.55435 | X19: =AN19*(Vehicles!$I$30/Vehicles!$BR$72)/(Vehicles!$I$30*(1/Vehicles!$BR$72+1/Vehicles!$BS$72)+Vehicles!$I$31/Vehicles!$BT$72)+H19*(Vehicles!$I$30/Vehicles!$BS$72+Vehicles!$I$31/Vehicles!$BT$72)/(Vehicles!$I$30*(1/Vehicles!$BR$72+1/Vehicles!$BS$72)+Vehicles!$I$31/Vehicles!$BT$72) -> 24400.17637 | Y19: =AN19*(Vehicles!$J$30/Vehicles!$BV$72)/(Vehicles!$J$30*(1/Vehicles!$BV$72+1/Vehicles!$BW$72)+Vehicles!$J$31/Vehicles!$BX$72)+K19*(Vehicles!$J$30/Vehicles!$BW$72+Vehicles!$J$31/Vehicles!$BX$72)/(Vehicles!$J$30*(1/Vehicles!$BV$72+1/Vehicles!$BW$72)+Vehicles!$J$31/Vehicles!$BX$72) -> 23517.02892 | Z19: =AN19*(Vehicles!$K$30/Vehicles!$BZ$72)/(Vehicles!$K$30*(1/Vehicles!$BZ$72+1/Vehicles!$CA$72)+Vehicles!$K$31/Vehicles!$CB$72)+O19*(Vehicles!$K$30/Vehicles!$CA$72+Vehicles!$K$31/Vehicles!$CB$72)/(Vehicles!$K$30*(1/Vehicles!$BZ$72+1/Vehicles!$CA$72)+Vehicles!$K$31/Vehicles!$CB$72) -> 41061.6923 | AA19: =AN19*(Vehicles!$L$30/Vehicles!$CD$72)/(Vehicles!$L$30*(1/Vehicles!$CD$72+1/Vehicles!$CE$72)+Vehicles!$L$31/Vehicles!$CF$72)+AO19*(Vehicles!$L$30/Vehicles!$CE$72+Vehicles!$L$31/Vehicles!$CF$72)/(Vehicles!$L$30*(1/Vehicles!$CD$72+1/Vehicles!$CE$72)+Vehicles!$L$31/Vehicles!$CF$72) -> 82713.18012 | AB19: =AN19*(Vehicles!$L$30/Vehicles!$CD$72)/(Vehicles!$L$30*(1/Vehicles!$CD$72+1/Vehicles!$CE$72)+Vehicles!$L$31/Vehicles!$CG$72)+AP19*(Vehicles!$L$30/Vehicles!$CE$72+Vehicles!$L$31/Vehicles!$CG$72)/(Vehicles!$L$30*(1/Vehicles!$CD$72+1/Vehicles!$CE$72)+Vehicles!$L$31/Vehicles!$CG$72) -> 22559.36787 | AC19: =(MeOH_FTD!$AJ167*MeOH_FTD!$AK$162+MeOH_FTD!$AK167)/1000000*HLOOKUP($H$10,$Z$3:$AD$4,2,FALSE)/HLOOKUP($J$11,$Z$7:$AD$8,2,FALSE) -> 15538.5085 | AD19: =((1-Vehicles!$C$41)*(1-Vehicles!$C$13)*Fuel_Specs!$B$21/((1-Vehicles!$C$41)*(1-Vehicles!$C$13)*Fuel_Specs!$B$21+Vehicles!$C$41*(1-Vehicles!$C$13)*Fuel_Specs!$B$24+Vehicles!$C$13*Fuel_Specs!$B$42)*(Petroleum!B267*Petroleum!$J$262+Petroleum!$J267)+Vehicles!$C$41*(1-Vehicles!$C$13)*Fuel_Specs!$B$24/((1-Vehicles!$C$41)*(1-Vehicles!$C$13)*Fuel_Specs!$B$21+Vehicles!$C$41*(1-Vehicles!$C$13)*Fuel_Specs!$B$24+Vehicles!$C$13*Fuel_Specs!$B$42)*(Petroleum!B267*IF(Inputs!F$102=1,Petroleum!$K$262,Petroleum!$L$262)+IF(Inputs!F$102=1,Petroleum!$K267,Petroleum!$L267))+Vehicles!$C$13*Fuel_Specs!$B$42/((1-Vehicles!$C$41)*(1-Vehicles!$C$13)*Fuel_Specs!$B$21+Vehicles!$C$41*(1-Vehicles!$C$13)*Fuel_Specs!$B$24+Vehicles!$C$13*Fuel_Specs!$B$42)*(MeOH_FTD!$AZ167*MeOH_FTD!$BA$162+MeOH_FTD!$BA167))/1000000*HLOOKUP($H$10,$Z$3:$AD$4,2,FALSE)/HLOOKUP($J$11,$Z$7:$AD$8,2,FALSE) -> 11367.52303 | AE19: =((1-Vehicles!$C$42)*(1-Vehicles!$C$14)*Fuel_Specs!$B$21/((1-Vehicles!$C$42)*(1-Vehicles!$C$14)*Fuel_Specs!$B$21+Vehicles!$C$42*(1-Vehicles!$C$14)*Fuel_Specs!$B$24+Vehicles!$C$14*Fuel_Specs!$B$41)*(Petroleum!B267*Petroleum!$J$262+Petroleum!$J267)+Vehicles!$C$42*(1-Vehicles!$C$14)*Fuel_Specs!$B$24/((1-Vehicles!$C$42)*(1-Vehicles!$C$14)*Fuel_Specs!$B$21+Vehicles!$C$42*(1-Vehicles!$C$14)*Fuel_Specs!$B$24+Vehicles!$C$14*Fuel_Specs!$B$41)*(Petroleum!B267*IF(Inputs!F$102=1,Petroleum!$K$262,Petroleum!$L$262)+IF(Inputs!F$102=1,Petroleum!$K267,Petroleum!$L267))+Vehicles!$C$14*Fuel_Specs!$B$41/((1-Vehicles!$C$42)*(1-Vehicles!$C$14)*Fuel_Specs!$B$21+Vehicles!$C$42*(1-Vehicles!$C$14)*Fuel_Specs!$B$24+Vehicles!$C$14*Fuel_Specs!$B$41)*(BioOil!$Y437*BioOil!$Z$431+BioOil!$Z437))/1000000*HLOOKUP($H$10,$Z$3:$AD$4,2,FALSE)/HLOOKUP($J$11,$Z$7:$AD$8,2,FALSE) -> 45353.95118 | AF19: =((1-Vehicles!$C$43)*(1-Vehicles!$C$15)*Fuel_Specs!$B$21/((1-Vehicles!$C$43)*(1-Vehicles!$C$15)*Fuel_Specs!$B$21+Vehicles!$C$43*(1-Vehicles!$C$15)*Fuel_Specs!$B$24+Vehicles!$C$15*IF(Inputs!$E$670=1,IF(Inputs!$E$670=1,Fuel_Specs!$B$43,IF(Inputs!$E$670=3,Fuel_Specs!$B$45,Fuel_Specs!$B$44)),Fuel_Specs!$B$44))*(Petroleum!B267*Petroleum!$J$262+Petroleum!$J267)+Vehicles!$C$43*(1-Vehicles!$C$15)*Fuel_Specs!$B$24/((1-Vehicles!$C$43)*(1-Vehicles!$C$15)*Fuel_Specs!$B$21+Vehicles!$C$43*(1-Vehicles!$C$15)*Fuel_Specs!$B$24+Vehicles!$C$15*IF(Inputs!$E$670=1,IF(Inputs!$E$670=1,Fuel_Specs!$B$43,IF(Inputs!$E$670=3,Fuel_Specs!$B$45,Fuel_Specs!$B$44)),Fuel_Specs!$B$44))*(Petroleum!B267*IF(Inputs!F$102=1,Petroleum!$K$262,Petroleum!$L$262)+IF(Inputs!F$102=1,Petroleum!$K267,Petroleum!$L267))+Vehicles!$C$15*IF(Inputs!$E$670=1,IF(Inputs!$E$670=1,Fuel_Specs!$B$43,IF(Inputs!$E$670=3,Fuel_Specs!$B$45,Fuel_Specs!$B$44)),Fuel_Specs!$B$44)/((1-Vehicles!$C$43)*(1-Vehicles!$C$15)*Fuel_Specs!$B$21+Vehicles!$C$43*(1-Vehicles!$C$15)*Fuel_Specs!$B$24+Vehicles!$C$15*IF(Inputs!$E$670=1,IF(Inputs!$E$670=1,Fuel_Specs!$B$43,IF(Inputs!$E$670=3,Fuel_Specs!$B$45,Fuel_Specs!$B$44)),Fuel_Specs!$B$44))*(BioOil!$BQ437*BioOil!$BR$431+BioOil!$BR437))/1000000*HLOOKUP($H$10,$Z$3:$AD$4,2,FALSE)/HLOOKUP($J$11,$Z$7:$AD$8,2,FALSE) -> 40021.53395 | AG19: =((1-Vehicles!$C$43)*(1-Vehicles!$C$15)*Fuel_Specs!$B$21/((1-Vehicles!$C$43)*(1-Vehicles!$C$15)*Fuel_Specs!$B$21+Vehicles!$C$43*(1-Vehicles!$C$15)*Fuel_Specs!$B$24+Vehicles!$C$15*IF(Inputs!$E$670=1,Fuel_Specs!$B$43,Fuel_Specs!$B$44))*(Petroleum!B267*Petroleum!$J$262+Petroleum!$J267)+Vehicles!$C$43*(1-Vehicles!$C$15)*Fuel_Specs!$B$24/((1-Vehicles!$C$43)*(1-Vehicles!$C$15)*Fuel_Specs!$B$21+Vehicles!$C$43*(1-Vehicles!$C$15)*Fuel_Specs!$B$24+Vehicles!$C$15*IF(Inputs!$E$670=1,Fuel_Specs!$B$43,Fuel_Specs!$B$44))*(Petroleum!B267*IF(Inputs!F$102=1,Petroleum!$K$262,Petroleum!$L$262)+IF(Inputs!F$102=1,Petroleum!$K267,Petroleum!$L267))+Vehicles!$C$15*IF(Inputs!$E$670=1,Fuel_Specs!$B$43,Fuel_Specs!$B$44)/((1-Vehicles!$C$43)*(1-Vehicles!$C$15)*Fuel_Specs!$B$21+Vehicles!$C$43*(1-Vehicles!$C$15)*Fuel_Specs!$B$24+Vehicles!$C$15*IF(Inputs!$E$670=1,Fuel_Specs!$B$43,Fuel_Specs!$B$44))*(Pyrolysis_IDL!$AF302*Pyrolysis_IDL!$AG$297+Pyrolysis_IDL!$AG302))/1000000*HLOOKUP($H$10,$Z$3:$AD$4,2,FALSE)/HLOOKUP($J$11,$Z$7:$AD$8,2,FALSE) -> 71734.68198 | AH19: =(((1-Vehicles!$C$44)*(1-Vehicles!$C$17-Vehicles!$C$18)*Fuel_Specs!$B$21*(Petroleum!B267*Petroleum!$J$262+Petroleum!$J267)+Vehicles!$C$44*(1-Vehicles!$C$17-Vehicles!$C$18)*Fuel_Specs!$B$24*(Petroleum!B267*IF(Inputs!F$102=1,Petroleum!$K$262,Petroleum!$L$262)+IF(Inputs!F$102=1,Petroleum!$K267,Petroleum!$L267))+Vehicles!$C$17*Fuel_Specs!$B$33*(EtOH!BT551*EtOH!$BU$546+EtOH!$BU551)+Vehicles!$C$18*Fuel_Specs!$B$36*('EtOH-Diesel Additives'!$B58*'EtOH-Diesel Additives'!$B$53))/((1-Vehicles!$C$44)*(1-Vehicles!$C$17-Vehicles!$C$18)*Fuel_Specs!$B$21+Vehicles!$C$44*(1-Vehicles!$C$17-Vehicles!$C$18)*Fuel_Specs!$B$24+Vehicles!$C$17*Fuel_Specs!$B$33+Vehicles!$C$18*Fuel_Specs!$B$36))/1000000*HLOOKUP($H$10,$Z$3:$AD$4,2,FALSE)/HLOOKUP($J$11,$Z$7:$AD$8,2,FALSE) -> 47188.56645 | AI19: =AN19*(Vehicles!$M$30/Vehicles!$CO$72)/(Vehicles!$M$30*(1/Vehicles!$CO$72+1/Vehicles!$CP$72)+Vehicles!$M$31/Vehicles!$CQ$72)+E19*(Vehicles!$M$30/Vehicles!$CP$72+Vehicles!$M$31/Vehicles!$CQ$72)/(Vehicles!$M$30*(1/Vehicles!$CO$72+1/Vehicles!$CP$72)+Vehicles!$M$31/Vehicles!$CQ$72) -> 36546.15185 | AJ19: =AN19*(Vehicles!$N$30/Vehicles!$CS$72)/(Vehicles!$N$30*(1/Vehicles!$CS$72+1/Vehicles!$CT$72)+Vehicles!$N$31/Vehicles!$CU$72)+AC19*(Vehicles!$N$30/Vehicles!$CT$72+Vehicles!$N$31/Vehicles!$CU$72)/(Vehicles!$N$30*(1/Vehicles!$CS$72+1/Vehicles!$CT$72)+Vehicles!$N$31/Vehicles!$CU$72) -> 14426.50564 | AK19: =AN19*(Vehicles!$O$30/Vehicles!$CW$72)/(Vehicles!$O$30*(1/Vehicles!$CW$72+1/Vehicles!$CX$72)+Vehicles!$O$31/Vehicles!$CY$72)+AD19*(Vehicles!$O$30/Vehicles!$CX$72+Vehicles!$O$31/Vehicles!$CY$72)/(Vehicles!$O$30*(1/Vehicles!$CW$72+1/Vehicles!$CX$72)+Vehicles!$O$31/Vehicles!$CY$72) -> 11494.71936 | AL19: =AN19*(Vehicles!$P$30/Vehicles!$DA$72)/(Vehicles!$P$30*(1/Vehicles!$DA$72+1/Vehicles!$DB$72)+Vehicles!$P$31/Vehicles!$DC$72)+AE19*(Vehicles!$P$30/Vehicles!$DB$72+Vehicles!$P$31/Vehicles!$DC$72)/(Vehicles!$P$30*(1/Vehicles!$DA$72+1/Vehicles!$DB$72)+Vehicles!$P$31/Vehicles!$DC$72) -> 35383.7845 | AM19: =AN19*(Vehicles!$R$30/Vehicles!$DI$72)/(Vehicles!$R$30*(1/Vehicles!$DI$72+1/Vehicles!$DJ$72)+Vehicles!$R$31/Vehicles!$DK$72)+AH19*(Vehicles!$R$30/Vehicles!$DJ$72+Vehicles!$R$31/Vehicles!$DK$72)/(Vehicles!$R$30*(1/Vehicles!$DI$72+1/Vehicles!$DJ$72)+Vehicles!$R$31/Vehicles!$DK$72) -> 36673.33583 | AN19: =(Electric!$G208+Electric!$F208-1000000*(Electric!$F208+Electric!$G208)/(Electric!$F$204+Electric!$G$204))/1000000*HLOOKUP($H$10,$Z$3:$AD$4,2,FALSE)/HLOOKUP($J$11,$Z$7:$AD$8,2,FALSE) -> 11795.64956 | AO19: =((Hydrogen!$AJ310*Hydrogen!$AK$305+Hydrogen!$AK310)-1000000*(Hydrogen!$O$7+Hydrogen!$C$7+Hydrogen!$D$7+Hydrogen!$E$7))/1000000*HLOOKUP($H$10,$Z$3:$AD$4,2,FALSE)/HLOOKUP($J$11,$Z$7:$AD$8,2,FALSE) -> 125785.6258 | AP19: =((Hydrogen!$BT310*Hydrogen!$BU$305+Hydrogen!$BU310)-1000000*(Hydrogen!$O$8+Hydrogen!$C$8+Hydrogen!$D$8+Hydrogen!$E$8))/1000000*HLOOKUP($H$10,$Z$3:$AD$4,2,FALSE)/HLOOKUP($J$11,$Z$7:$AD$8,2,FALSE) -> 29096.81593 | AQ19: =AN19*(Vehicles!$S$30/Vehicles!$DY$72)/(Vehicles!$S$30*(1/Vehicles!$DY$72+1/Vehicles!$DZ$72)+Vehicles!$S$31/Vehicles!$EA$72)+AO19*(Vehicles!$S$30/Vehicles!$DZ$72+Vehicles!$S$31/Vehicles!$EA$72)/(Vehicles!$S$30*(1/Vehicles!$DY$72+1/Vehicles!$DZ$72)+Vehicles!$S$31/Vehicles!$EA$72) -> 79676.62471 | AR19: =AN19*(Vehicles!$S$30/Vehicles!$DY$72)/(Vehicles!$S$30*(1/Vehicles!$DY$72+1/Vehicles!$DZ$72)+Vehicles!$S$31/Vehicles!$EA$72)+AP19*(Vehicles!$S$30/Vehicles!$DZ$72+Vehicles!$S$31/Vehicles!$EA$72)/(Vehicles!$S$30*(1/Vehicles!$DY$72+1/Vehicles!$DZ$72)+Vehicles!$S$31/Vehicles!$EA$72) -> 22098.48568 | AS19: =((1-Vehicles!$C$40)*(1-Vehicles!$C$16)*Fuel_Specs!$B$15/((1-Vehicles!$C$40)*(1-Vehicles!$C$16)*Fuel_Specs!$B$15+Vehicles!$C$40*(1-Vehicles!$C$16)*Fuel_Specs!$B$17+Vehicles!$C$16*Fuel_Specs!$B$48)*(Petroleum!$B267*Petroleum!$D$262+Petroleum!$D267)+Vehicles!$C$40*(1-Vehicles!$C$16)*Fuel_Specs!$B$17/((1-Vehicles!$C$40)*(1-Vehicles!$C$16)*Fuel_Specs!$B$15+Vehicles!$C$40*(1-Vehicles!$C$16)*Fuel_Specs!$B$17+Vehicles!$C$16*Fuel_Specs!$B$48)*(Petroleum!B267*Petroleum!$F$262+Petroleum!$F267)+Vehicles!$C$16*Fuel_Specs!$B$48/((1-Vehicles!$C$40)*(1-Vehicles!$C$16)*Fuel_Specs!$B$15+Vehicles!$C$40*(1-Vehicles!$C$16)*Fuel_Specs!$B$17+Vehicles!$C$16*Fuel_Specs!$B$48)*(Pyrolysis_IDL!$AP302*Pyrolysis_IDL!$AQ$297+Pyrolysis_IDL!$AQ302))/1000000*HLOOKUP($H$10,$Z$3:$AD$4,2,FALSE)/HLOOKUP($J$11,$Z$7:$AD$8,2,FALSE) -> 113306.3856 | AT19: =(Petroleum!$B267*Petroleum!$S$262+Petroleum!$S267)/1000000*HLOOKUP($H$10,$Z$3:$AD$4,2,FALSE)/HLOOKUP($J$11,$Z$7:$AD$8,2,FALSE) -> 41929.13864 | AU19: 78372.9495 | AV19: 80597.36408 | BB19: SI - BtOH FFV | BC19: RNAVBTOHFFV | BE19: SIDI - Dedi. EtOH | BF19: RNAVETOHSIDI | BH19: CIDI - RD from Bio Oil | BI19: RNAVRENDIESEL1CIDI | BK19: SI HEV - CNG | BL19: RNAVHEVCNG | BN19: SI PHEV - CNG and Electricity | BO19: RNAVPHEVCNG | BQ19: CIDI HEV - RD from Pyrolysis | BR19: RNAVHEVRENDIESEL | BT19: CIDI PHEV - RD from Pyrolysis and Electricity | BU19: RNAVPHEVRENDIESEL
A20: Water consumption | B20: =(Inputs!$E$1518*(Petroleum!$B268*Petroleum!$F$262+Petroleum!$F268)+(1-Inputs!$E$1518)*(Petroleum!$B268*Petroleum!$D$262+Petroleum!$D268))/1000000/HLOOKUP(Results_EnergyFunctionalUnit,$Z$7:$AD$8,2,0) -> 54.93815729 | C20: =(Petroleum!$C268*Petroleum!$G$262+Petroleum!$G268)/1000000/HLOOKUP(Results_EnergyFunctionalUnit,$Z$7:$AD$8,2,0) -> 54.58430748 | D20: =((1-Vehicles!$C$35)*(1-Vehicles!$C$7)*Fuel_Specs!$B$15/((1-Vehicles!$C$35)*(1-Vehicles!$C$7)*Fuel_Specs!$B$15+Vehicles!$C$35*(1-Vehicles!$C$7)*Fuel_Specs!$B$17+Vehicles!$C$7*Fuel_Specs!$B$33)*(Petroleum!$B268*Petroleum!$D$262+(Petroleum!$D268-'T&D'!G220))+Vehicles!$C$35*(1-Vehicles!$C$7)*Fuel_Specs!$B$17/((1-Vehicles!$C$35)*(1-Vehicles!$C$7)*Fuel_Specs!$B$15+Vehicles!$C$35*(1-Vehicles!$C$7)*Fuel_Specs!$B$17+Vehicles!$C$7*Fuel_Specs!$B$33)*(Petroleum!B268*Petroleum!$F$262+Petroleum!$F268)+Vehicles!$C$7*Fuel_Specs!$B$33/((1-Vehicles!$C$35)*(1-Vehicles!$C$7)*Fuel_Specs!$B$15+Vehicles!$C$35*(1-Vehicles!$C$7)*Fuel_Specs!$B$17+Vehicles!$C$7*Fuel_Specs!$B$33)*(EtOH!BV552*EtOH!$BW$546+EtOH!$BW552)+Petroleum!AS129+Petroleum!AT129)/1000000/HLOOKUP(Results_EnergyFunctionalUnit,$Z$7:$AD$8,2,0) -> 54.93815729 | E20: =(Inputs!$E$97*(IF(Inputs!F$102=1,Petroleum!$B268,Petroleum!$C268)*IF(Inputs!F$102=1,Petroleum!$K$262,Petroleum!$L$262)+IF(Inputs!F$102=1,Petroleum!$K268,Petroleum!$L268))+(1-Inputs!$E$97)*(IF(Inputs!F$101=1,Petroleum!$B268,Petroleum!$C268)*Petroleum!$J$262+Petroleum!$J268))/1000000/HLOOKUP(Results_EnergyFunctionalUnit,$Z$7:$AD$8,2,0) -> 27.4765873 | F20: =(NG!$J90*NG!$K$84+NG!$K90)/1000000/HLOOKUP(Results_EnergyFunctionalUnit,$Z$7:$AD$8,2,0) -> 18.77813877 | G20: =(NG!$R90*NG!$S$84+NG!$S90)/1000000/HLOOKUP(Results_EnergyFunctionalUnit,$Z$7:$AD$8,2,0) -> 4.924370263 | H20: =(NG!$X90*NG!$Y$84+NG!$Y90)/1000000/HLOOKUP(Results_EnergyFunctionalUnit,$Z$7:$AD$8,2,0) -> 10.7932003 | I20: =(MeOH_FTD!BJ168*MeOH_FTD!BK$162+MeOH_FTD!BK168)/1000000/HLOOKUP(Results_EnergyFunctionalUnit,$Z$7:$AD$8,2,0) -> -20.76856129 | J20: =((1-Vehicles!$C$34)*(1-Vehicles!$C$5)*Fuel_Specs!$B$15/((1-Vehicles!$C$34)*(1-Vehicles!$C$5)*Fuel_Specs!$B$15+Vehicles!$C$34*(1-Vehicles!$C$5)*Fuel_Specs!$B$17+Vehicles!$C$5*Fuel_Specs!$B$32)*(Petroleum!$B268*Petroleum!$D$262+Petroleum!$D268)+Vehicles!$C$34*(1-Vehicles!$C$5)*Fuel_Specs!$B$17/((1-Vehicles!$C$34)*(1-Vehicles!$C$5)*Fuel_Specs!$B$15+Vehicles!$C$34*(1-Vehicles!$C$5)*Fuel_Specs!$B$17+Vehicles!$C$5*Fuel_Specs!$B$32)*(Petroleum!B268*Petroleum!$F$262+Petroleum!$F268)+Vehicles!$C$5*Fuel_Specs!$B$32/((1-Vehicles!$C$34)*(1-Vehicles!$C$5)*Fuel_Specs!$B$15+Vehicles!$C$34*(1-Vehicles!$C$5)*Fuel_Specs!$B$17+Vehicles!$C$5*Fuel_Specs!$B$32)*(MeOH_FTD!$N168*MeOH_FTD!$O$162+MeOH_FTD!$O168))/1000000/HLOOKUP(Results_EnergyFunctionalUnit,$Z$7:$AD$8,2,0) -> 27.51400002 | K20: =((1-Vehicles!$C$34)*(1-Vehicles!$C$6)*Fuel_Specs!$B$15/((1-Vehicles!$C$34)*(1-Vehicles!$C$6)*Fuel_Specs!$B$15+Vehicles!$C$34*(1-Vehicles!$C$6)*Fuel_Specs!$B$17+Vehicles!$C$6*Fuel_Specs!$B$32)*(Petroleum!$B268*Petroleum!$D$262+Petroleum!$D268)+Vehicles!$C$34*(1-Vehicles!$C$6)*Fuel_Specs!$B$17/((1-Vehicles!$C$34)*(1-Vehicles!$C$6)*Fuel_Specs!$B$15+Vehicles!$C$34*(1-Vehicles!$C$6)*Fuel_Specs!$B$17+Vehicles!$C$6*Fuel_Specs!$B$32)*(Petroleum!B268*Petroleum!$F$262+Petroleum!$F268)+Vehicles!$C$6*Fuel_Specs!$B$32/((1-Vehicles!$C$34)*(1-Vehicles!$C$6)*Fuel_Specs!$B$15+Vehicles!$C$34*(1-Vehicles!$C$6)*Fuel_Specs!$B$17+Vehicles!$C$6*Fuel_Specs!$B$32)*(MeOH_FTD!$N168*MeOH_FTD!$O$162+MeOH_FTD!$O168))/1000000/HLOOKUP(Results_EnergyFunctionalUnit,$Z$7:$AD$8,2,0) -> 26.95457714 | L20: =(MeOH_FTD!$N168*MeOH_FTD!$O$162+MeOH_FTD!$O168)/1000000/HLOOKUP(Results_EnergyFunctionalUnit,$Z$7:$AD$8,2,0) -> 25.66324348 | M20: =((1-Vehicles!$C$36)*(1-Vehicles!$C$8)*Fuel_Specs!$B$15/((1-Vehicles!$C$36)*(1-Vehicles!$C$8)*Fuel_Specs!$B$15+Vehicles!$C$36*(1-Vehicles!$C$8)*Fuel_Specs!$B$17+Vehicles!$C$8*Fuel_Specs!$B$33)*(Petroleum!$B268*Petroleum!$D$262+(Petroleum!$D268-'T&D'!G220))+Vehicles!$C$36*(1-Vehicles!$C$8)*Fuel_Specs!$B$17/((1-Vehicles!$C$36)*(1-Vehicles!$C$8)*Fuel_Specs!$B$15+Vehicles!$C$36*(1-Vehicles!$C$8)*Fuel_Specs!$B$17+Vehicles!$C$8*Fuel_Specs!$B$33)*(Petroleum!B268*Petroleum!$F$262+Petroleum!$F268)+Vehicles!$C$8*Fuel_Specs!$B$33/((1-Vehicles!$C$36)*(1-Vehicles!$C$8)*Fuel_Specs!$B$15+Vehicles!$C$36*(1-Vehicles!$C$8)*Fuel_Specs!$B$17+Vehicles!$C$8*Fuel_Specs!$B$33)*(EtOH!BV552*EtOH!$BW$546+EtOH!$BW552)+Petroleum!AS129+Petroleum!AT129)/1000000/HLOOKUP(Results_EnergyFunctionalUnit,$Z$7:$AD$8,2,0) -> 288.7167465 | N20: =((1-Vehicles!$C$37)*(1-Vehicles!$C$12)*Fuel_Specs!$B$15/((1-Vehicles!$C$37)*(1-Vehicles!$C$12)*Fuel_Specs!$B$15+Vehicles!$C$37*(1-Vehicles!$C$12)*Fuel_Specs!$B$17+Vehicles!$C$12*Fuel_Specs!$B$34)*(Petroleum!$B268*Petroleum!$D$262+Petroleum!$D268)+Vehicles!$C$37*(1-Vehicles!$C$12)*Fuel_Specs!$B$17/((1-Vehicles!$C$37)*(1-Vehicles!$C$12)*Fuel_Specs!$B$15+Vehicles!$C$37*(1-Vehicles!$C$12)*Fuel_Specs!$B$17+Vehicles!$C$12*Fuel_Specs!$B$34)*(Petroleum!B268*Petroleum!$F$262+Petroleum!$F268)+Vehicles!$C$12*Fuel_Specs!$B$34/((1-Vehicles!$C$37)*(1-Vehicles!$C$12)*Fuel_Specs!$B$15+Vehicles!$C$37*(1-Vehicles!$C$12)*Fuel_Specs!$B$17+Vehicles!$C$12*Fuel_Specs!$B$34)*(EtOH!$BX552*EtOH!$BY$546+EtOH!$BY552))/1000000/HLOOKUP(Results_EnergyFunctionalUnit,$Z$7:$AD$8,2,0) -> 419.7186966 | O20: =((1-Vehicles!$C$36)*(1-Vehicles!$C$9)*Fuel_Specs!$B$15/((1-Vehicles!$C$36)*(1-Vehicles!$C$9)*Fuel_Specs!$B$15+Vehicles!$C$36*(1-Vehicles!$C$9)*Fuel_Specs!$B$17+Vehicles!$C$9*Fuel_Specs!$B$33)*(Petroleum!$B268*Petroleum!$D$262+(Petroleum!$D268-'T&D'!G220))+Vehicles!$C$36*(1-Vehicles!$C$9)*Fuel_Specs!$B$17/((1-Vehicles!$C$36)*(1-Vehicles!$C$9)*Fuel_Specs!$B$15+Vehicles!$C$36*(1-Vehicles!$C$9)*Fuel_Specs!$B$17+Vehicles!$C$9*Fuel_Specs!$B$33)*(Petroleum!B268*Petroleum!$F$262+Petroleum!$F268)+Vehicles!$C$9*Fuel_Specs!$B$33/((1-Vehicles!$C$36)*(1-Vehicles!$C$9)*Fuel_Specs!$B$15+Vehicles!$C$36*(1-Vehicles!$C$9)*Fuel_Specs!$B$17+Vehicles!$C$9*Fuel_Specs!$B$33)*(EtOH!BV552*EtOH!$BW$546+EtOH!$BW552)+Petroleum!AS129+Petroleum!AT129)/1000000/HLOOKUP(Results_EnergyFunctionalUnit,$Z$7:$AD$8,2,0) -> 288.7167465 | P20: =(EtOH!$BT552*EtOH!$BU$546+EtOH!$BU552)/1000000/HLOOKUP(Results_EnergyFunctionalUnit,$Z$7:$AD$8,2,0) -> 366.8139943 | Q20: =((1-Vehicles!$C$40)*(1-Vehicles!$C$16)*Fuel_Specs!$B$15/((1-Vehicles!$C$40)*(1-Vehicles!$C$16)*Fuel_Specs!$B$15+Vehicles!$C$40*(1-Vehicles!$C$16)*Fuel_Specs!$B$17+Vehicles!$C$16*Fuel_Specs!$B$47)*(Petroleum!$B268*Petroleum!$D$262+Petroleum!$D268)+Vehicles!$C$40*(1-Vehicles!$C$16)*Fuel_Specs!$B$17/((1-Vehicles!$C$40)*(1-Vehicles!$C$16)*Fuel_Specs!$B$15+Vehicles!$C$40*(1-Vehicles!$C$16)*Fuel_Specs!$B$17+Vehicles!$C$16*Fuel_Specs!$B$47)*(Petroleum!B268*Petroleum!$F$262+Petroleum!$F268)+Vehicles!$C$16*Fuel_Specs!$B$47/((1-Vehicles!$C$40)*(1-Vehicles!$C$16)*Fuel_Specs!$B$15+Vehicles!$C$40*(1-Vehicles!$C$16)*Fuel_Specs!$B$17+Vehicles!$C$16*Fuel_Specs!$B$47)*(BioOil!$CE438*BioOil!$CF$431+BioOil!$CF438))/1000000/HLOOKUP(Results_EnergyFunctionalUnit,$Z$7:$AD$8,2,0) -> 663.1357144 | R20: =((1-Vehicles!$C$40)*(1-Vehicles!$C$16)*Fuel_Specs!$B$15/((1-Vehicles!$C$40)*(1-Vehicles!$C$16)*Fuel_Specs!$B$15+Vehicles!$C$40*(1-Vehicles!$C$16)*Fuel_Specs!$B$17+Vehicles!$C$16*Fuel_Specs!$B$47)*(Petroleum!$B268*Petroleum!$D$262+Petroleum!$D268)+Vehicles!$C$40*(1-Vehicles!$C$16)*Fuel_Specs!$B$17/((1-Vehicles!$C$40)*(1-Vehicles!$C$16)*Fuel_Specs!$B$15+Vehicles!$C$40*(1-Vehicles!$C$16)*Fuel_Specs!$B$17+Vehicles!$C$16*Fuel_Specs!$B$47)*(Petroleum!B268*Petroleum!$F$262+Petroleum!$F268)+Vehicles!$C$16*Fuel_Specs!$B$47/((1-Vehicles!$C$40)*(1-Vehicles!$C$16)*Fuel_Specs!$B$15+Vehicles!$C$40*(1-Vehicles!$C$16)*Fuel_Specs!$B$17+Vehicles!$C$16*Fuel_Specs!$B$47)*(Pyrolysis_IDL!$AD303*Pyrolysis_IDL!$AE$297+Pyrolysis_IDL!$AE303))/1000000/HLOOKUP(Results_EnergyFunctionalUnit,$Z$7:$AD$8,2,0) -> 26.79741414 | S20: =AN20*(Vehicles!$C$30/Vehicles!$AT$72)/(Vehicles!$C$30*(1/Vehicles!$AT$72+1/Vehicles!$AU$72)+Vehicles!$C$31/Vehicles!$AV$72)+B20*(Vehicles!$C$30/Vehicles!$AU$72+Vehicles!$C$31/Vehicles!$AV$72)/(Vehicles!$C$30*(1/Vehicles!$AT$72+1/Vehicles!$AU$72)+Vehicles!$C$31/Vehicles!$AV$72) -> 214.8205084 | T20: =AN20*(Vehicles!$D$30/Vehicles!$AX$72)/(Vehicles!$D$30*(1/Vehicles!$AX$72+1/Vehicles!$AY$72)+Vehicles!$D$31/Vehicles!$AZ$72)+C20*(Vehicles!$D$30/Vehicles!$AY$72+Vehicles!$D$31/Vehicles!$AZ$72)/(Vehicles!$D$30*(1/Vehicles!$AX$72+1/Vehicles!$AY$72)+Vehicles!$D$31/Vehicles!$AZ$72) -> 214.6003649 | U20: =AN20*(Vehicles!$F$30/Vehicles!$BF$72)/(Vehicles!$F$30*(1/Vehicles!$BF$72+1/Vehicles!$BG$72)+Vehicles!$F$31/Vehicles!$BH$72)+D20*(Vehicles!$F$30/Vehicles!$BG$72+Vehicles!$F$31/Vehicles!$BH$72)/(Vehicles!$F$30*(1/Vehicles!$BF$72+1/Vehicles!$BG$72)+Vehicles!$F$31/Vehicles!$BH$72) -> 214.8205084 | V20: =AN20*(Vehicles!$G$30/Vehicles!$BJ$72)/(Vehicles!$G$30*(1/Vehicles!$BJ$72+1/Vehicles!$BK$72)+Vehicles!$G$31/Vehicles!$BL$72)+F20*(Vehicles!$G$30/Vehicles!$BK$72+Vehicles!$G$31/Vehicles!$BL$72)/(Vehicles!$G$30*(1/Vehicles!$BJ$72+1/Vehicles!$BK$72)+Vehicles!$G$31/Vehicles!$BL$72) -> 192.3239758 | W20: =AN20*(Vehicles!$H$30/Vehicles!$BN$72)/(Vehicles!$H$30*(1/Vehicles!$BN$72+1/Vehicles!$BO$72)+Vehicles!$H$31/Vehicles!$BP$72)+G20*(Vehicles!$H$30/Vehicles!$BO$72+Vehicles!$H$31/Vehicles!$BP$72)/(Vehicles!$H$30*(1/Vehicles!$BN$72+1/Vehicles!$BO$72)+Vehicles!$H$31/Vehicles!$BP$72) -> 183.7050157 | X20: =AN20*(Vehicles!$I$30/Vehicles!$BR$72)/(Vehicles!$I$30*(1/Vehicles!$BR$72+1/Vehicles!$BS$72)+Vehicles!$I$31/Vehicles!$BT$72)+H20*(Vehicles!$I$30/Vehicles!$BS$72+Vehicles!$I$31/Vehicles!$BT$72)/(Vehicles!$I$30*(1/Vehicles!$BR$72+1/Vehicles!$BS$72)+Vehicles!$I$31/Vehicles!$BT$72) -> 187.3562397 | Y20: =AN20*(Vehicles!$J$30/Vehicles!$BV$72)/(Vehicles!$J$30*(1/Vehicles!$BV$72+1/Vehicles!$BW$72)+Vehicles!$J$31/Vehicles!$BX$72)+K20*(Vehicles!$J$30/Vehicles!$BW$72+Vehicles!$J$31/Vehicles!$BX$72)/(Vehicles!$J$30*(1/Vehicles!$BV$72+1/Vehicles!$BW$72)+Vehicles!$J$31/Vehicles!$BX$72) -> 197.4108513 | Z20: =AN20*(Vehicles!$K$30/Vehicles!$BZ$72)/(Vehicles!$K$30*(1/Vehicles!$BZ$72+1/Vehicles!$CA$72)+Vehicles!$K$31/Vehicles!$CB$72)+O20*(Vehicles!$K$30/Vehicles!$CA$72+Vehicles!$K$31/Vehicles!$CB$72)/(Vehicles!$K$30*(1/Vehicles!$BZ$72+1/Vehicles!$CA$72)+Vehicles!$K$31/Vehicles!$CB$72) -> 360.2631235 | AA20: =AN20*(Vehicles!$L$30/Vehicles!$CD$72)/(Vehicles!$L$30*(1/Vehicles!$CD$72+1/Vehicles!$CE$72)+Vehicles!$L$31/Vehicles!$CF$72)+AO20*(Vehicles!$L$30/Vehicles!$CE$72+Vehicles!$L$31/Vehicles!$CF$72)/(Vehicles!$L$30*(1/Vehicles!$CD$72+1/Vehicles!$CE$72)+Vehicles!$L$31/Vehicles!$CF$72) -> 237.2567768 | AB20: =AN20*(Vehicles!$L$30/Vehicles!$CD$72)/(Vehicles!$L$30*(1/Vehicles!$CD$72+1/Vehicles!$CE$72)+Vehicles!$L$31/Vehicles!$CG$72)+AP20*(Vehicles!$L$30/Vehicles!$CE$72+Vehicles!$L$31/Vehicles!$CG$72)/(Vehicles!$L$30*(1/Vehicles!$CD$72+1/Vehicles!$CE$72)+Vehicles!$L$31/Vehicles!$CG$72) -> 321.935762 | AC20: =(MeOH_FTD!$AJ168*MeOH_FTD!$AK$162+MeOH_FTD!$AK168)/1000000/HLOOKUP(Results_EnergyFunctionalUnit,$Z$7:$AD$8,2,0) -> 26.56634712 | AD20: =((1-Vehicles!$C$41)*(1-Vehicles!$C$13)*Fuel_Specs!$B$21/((1-Vehicles!$C$41)*(1-Vehicles!$C$13)*Fuel_Specs!$B$21+Vehicles!$C$41*(1-Vehicles!$C$13)*Fuel_Specs!$B$24+Vehicles!$C$13*Fuel_Specs!$B$42)*(Petroleum!B268*Petroleum!$J$262+Petroleum!$J268)+Vehicles!$C$41*(1-Vehicles!$C$13)*Fuel_Specs!$B$24/((1-Vehicles!$C$41)*(1-Vehicles!$C$13)*Fuel_Specs!$B$21+Vehicles!$C$41*(1-Vehicles!$C$13)*Fuel_Specs!$B$24+Vehicles!$C$13*Fuel_Specs!$B$42)*(Petroleum!B268*IF(Inputs!F$102=1,Petroleum!$K$262,Petroleum!$L$262)+IF(Inputs!F$102=1,Petroleum!$K268,Petroleum!$L268))+Vehicles!$C$13*Fuel_Specs!$B$42/((1-Vehicles!$C$41)*(1-Vehicles!$C$13)*Fuel_Specs!$B$21+Vehicles!$C$41*(1-Vehicles!$C$13)*Fuel_Specs!$B$24+Vehicles!$C$13*Fuel_Specs!$B$42)*(MeOH_FTD!$AZ168*MeOH_FTD!$BA$162+MeOH_FTD!$BA168))/1000000/HLOOKUP(Results_EnergyFunctionalUnit,$Z$7:$AD$8,2,0) -> 31.89398603 | AE20: =((1-Vehicles!$C$42)*(1-Vehicles!$C$14)*Fuel_Specs!$B$21/((1-Vehicles!$C$42)*(1-Vehicles!$C$14)*Fuel_Specs!$B$21+Vehicles!$C$42*(1-Vehicles!$C$14)*Fuel_Specs!$B$24+Vehicles!$C$14*Fuel_Specs!$B$41)*(Petroleum!B268*Petroleum!$J$262+Petroleum!$J268)+Vehicles!$C$42*(1-Vehicles!$C$14)*Fuel_Specs!$B$24/((1-Vehicles!$C$42)*(1-Vehicles!$C$14)*Fuel_Specs!$B$21+Vehicles!$C$42*(1-Vehicles!$C$14)*Fuel_Specs!$B$24+Vehicles!$C$14*Fuel_Specs!$B$41)*(Petroleum!B268*IF(Inputs!F$102=1,Petroleum!$K$262,Petroleum!$L$262)+IF(Inputs!F$102=1,Petroleum!$K268,Petroleum!$L268))+Vehicles!$C$14*Fuel_Specs!$B$41/((1-Vehicles!$C$42)*(1-Vehicles!$C$14)*Fuel_Specs!$B$21+Vehicles!$C$42*(1-Vehicles!$C$14)*Fuel_Specs!$B$24+Vehicles!$C$14*Fuel_Specs!$B$41)*(BioOil!$Y438*BioOil!$Z$431+BioOil!$Z438))/1000000/HLOOKUP(Results_EnergyFunctionalUnit,$Z$7:$AD$8,2,0) -> 142.096496 | AF20: =((1-Vehicles!$C$43)*(1-Vehicles!$C$15)*Fuel_Specs!$B$21/((1-Vehicles!$C$43)*(1-Vehicles!$C$15)*Fuel_Specs!$B$21+Vehicles!$C$43*(1-Vehicles!$C$15)*Fuel_Specs!$B$24+Vehicles!$C$15*IF(Inputs!$E$670=1,IF(Inputs!$E$670=1,Fuel_Specs!$B$43,IF(Inputs!$E$670=3,Fuel_Specs!$B$45,Fuel_Specs!$B$44)),Fuel_Specs!$B$44))*(Petroleum!B268*Petroleum!$J$262+Petroleum!$J268)+Vehicles!$C$43*(1-Vehicles!$C$15)*Fuel_Specs!$B$24/((1-Vehicles!$C$43)*(1-Vehicles!$C$15)*Fuel_Specs!$B$21+Vehicles!$C$43*(1-Vehicles!$C$15)*Fuel_Specs!$B$24+Vehicles!$C$15*IF(Inputs!$E$670=1,IF(Inputs!$E$670=1,Fuel_Specs!$B$43,IF(Inputs!$E$670=3,Fuel_Specs!$B$45,Fuel_Specs!$B$44)),Fuel_Specs!$B$44))*(Petroleum!B268*IF(Inputs!F$102=1,Petroleum!$K$262,Petroleum!$L$262)+IF(Inputs!F$102=1,Petroleum!$K268,Petroleum!$L268))+Vehicles!$C$15*IF(Inputs!$E$670=1,IF(Inputs!$E$670=1,Fuel_Specs!$B$43,IF(Inputs!$E$670=3,Fuel_Specs!$B$45,Fuel_Specs!$B$44)),Fuel_Specs!$B$44)/((1-Vehicles!$C$43)*(1-Vehicles!$C$15)*Fuel_Specs!$B$21+Vehicles!$C$43*(1-Vehicles!$C$15)*Fuel_Specs!$B$24+Vehicles!$C$15*IF(Inputs!$E$670=1,IF(Inputs!$E$670=1,Fuel_Specs!$B$43,IF(Inputs!$E$670=3,Fuel_Specs!$B$45,Fuel_Specs!$B$44)),Fuel_Specs!$B$44))*(BioOil!$BQ438*BioOil!$BR$431+BioOil!$BR438))/1000000/HLOOKUP(Results_EnergyFunctionalUnit,$Z$7:$AD$8,2,0) -> 641.2695528 | AG20: =((1-Vehicles!$C$43)*(1-Vehicles!$C$15)*Fuel_Specs!$B$21/((1-Vehicles!$C$43)*(1-Vehicles!$C$15)*Fuel_Specs!$B$21+Vehicles!$C$43*(1-Vehicles!$C$15)*Fuel_Specs!$B$24+Vehicles!$C$15*IF(Inputs!$E$670=1,Fuel_Specs!$B$43,Fuel_Specs!$B$44))*(Petroleum!B268*Petroleum!$J$262+Petroleum!$J268)+Vehicles!$C$43*(1-Vehicles!$C$15)*Fuel_Specs!$B$24/((1-Vehicles!$C$43)*(1-Vehicles!$C$15)*Fuel_Specs!$B$21+Vehicles!$C$43*(1-Vehicles!$C$15)*Fuel_Specs!$B$24+Vehicles!$C$15*IF(Inputs!$E$670=1,Fuel_Specs!$B$43,Fuel_Specs!$B$44))*(Petroleum!B268*IF(Inputs!F$102=1,Petroleum!$K$262,Petroleum!$L$262)+IF(Inputs!F$102=1,Petroleum!$K268,Petroleum!$L268))+Vehicles!$C$15*IF(Inputs!$E$670=1,Fuel_Specs!$B$43,Fuel_Specs!$B$44)/((1-Vehicles!$C$43)*(1-Vehicles!$C$15)*Fuel_Specs!$B$21+Vehicles!$C$43*(1-Vehicles!$C$15)*Fuel_Specs!$B$24+Vehicles!$C$15*IF(Inputs!$E$670=1,Fuel_Specs!$B$43,Fuel_Specs!$B$44))*(Pyrolysis_IDL!$AF303*Pyrolysis_IDL!$AG$297+Pyrolysis_IDL!$AG303))/1000000/HLOOKUP(Results_EnergyFunctionalUnit,$Z$7:$AD$8,2,0) -> 23.90513152 | AH20: =(((1-Vehicles!$C$44)*(1-Vehicles!$C$17-Vehicles!$C$18)*Fuel_Specs!$B$21*(Petroleum!B268*Petroleum!$J$262+Petroleum!$J268)+Vehicles!$C$44*(1-Vehicles!$C$17-Vehicles!$C$18)*Fuel_Specs!$B$24*(Petroleum!B268*IF(Inputs!F$102=1,Petroleum!$K$262,Petroleum!$L$262)+IF(Inputs!F$102=1,Petroleum!$K268,Petroleum!$L268))+Vehicles!$C$17*Fuel_Specs!$B$33*(EtOH!BT552*EtOH!$BU$546+EtOH!$BU552)+Vehicles!$C$18*Fuel_Specs!$B$36*('EtOH-Diesel Additives'!$B59*'EtOH-Diesel Additives'!$B$53))/((1-Vehicles!$C$44)*(1-Vehicles!$C$17-Vehicles!$C$18)*Fuel_Specs!$B$21+Vehicles!$C$44*(1-Vehicles!$C$17-Vehicles!$C$18)*Fuel_Specs!$B$24+Vehicles!$C$17*Fuel_Specs!$B$33+Vehicles!$C$18*Fuel_Specs!$B$36))/1000000/HLOOKUP(Results_EnergyFunctionalUnit,$Z$7:$AD$8,2,0) -> 48.69678273 | AI20: =AN20*(Vehicles!$M$30/Vehicles!$CO$72)/(Vehicles!$M$30*(1/Vehicles!$CO$72+1/Vehicles!$CP$72)+Vehicles!$M$31/Vehicles!$CQ$72)+E20*(Vehicles!$M$30/Vehicles!$CP$72+Vehicles!$M$31/Vehicles!$CQ$72)/(Vehicles!$M$30*(1/Vehicles!$CO$72+1/Vehicles!$CP$72)+Vehicles!$M$31/Vehicles!$CQ$72) -> 161.3454959 | AJ20: =AN20*(Vehicles!$N$30/Vehicles!$CS$72)/(Vehicles!$N$30*(1/Vehicles!$CS$72+1/Vehicles!$CT$72)+Vehicles!$N$31/Vehicles!$CU$72)+AC20*(Vehicles!$N$30/Vehicles!$CT$72+Vehicles!$N$31/Vehicles!$CU$72)/(Vehicles!$N$30*(1/Vehicles!$CS$72+1/Vehicles!$CT$72)+Vehicles!$N$31/Vehicles!$CU$72) -> 160.705688 | AK20: =AN20*(Vehicles!$O$30/Vehicles!$CW$72)/(Vehicles!$O$30*(1/Vehicles!$CW$72+1/Vehicles!$CX$72)+Vehicles!$O$31/Vehicles!$CY$72)+AD20*(Vehicles!$O$30/Vehicles!$CX$72+Vehicles!$O$31/Vehicles!$CY$72)/(Vehicles!$O$30*(1/Vehicles!$CW$72+1/Vehicles!$CX$72)+Vehicles!$O$31/Vehicles!$CY$72) -> 164.4504861 | AL20: =AN20*(Vehicles!$P$30/Vehicles!$DA$72)/(Vehicles!$P$30*(1/Vehicles!$DA$72+1/Vehicles!$DB$72)+Vehicles!$P$31/Vehicles!$DC$72)+AE20*(Vehicles!$P$30/Vehicles!$DB$72+Vehicles!$P$31/Vehicles!$DC$72)/(Vehicles!$P$30*(1/Vehicles!$DA$72+1/Vehicles!$DB$72)+Vehicles!$P$31/Vehicles!$DC$72) -> 241.9118459 | AM20: =AN20*(Vehicles!$R$30/Vehicles!$DI$72)/(Vehicles!$R$30*(1/Vehicles!$DI$72+1/Vehicles!$DJ$72)+Vehicles!$R$31/Vehicles!$DK$72)+AH20*(Vehicles!$R$30/Vehicles!$DJ$72+Vehicles!$R$31/Vehicles!$DK$72)/(Vehicles!$R$30*(1/Vehicles!$DI$72+1/Vehicles!$DJ$72)+Vehicles!$R$31/Vehicles!$DK$72) -> 176.2611743 | AN20: =(Electric!$G209+Electric!$F209)/1000000/HLOOKUP(Results_EnergyFunctionalUnit,$Z$7:$AD$8,2,0) -> 478.0621547 | AO20: =(Hydrogen!$AJ311*Hydrogen!$AK$305+Hydrogen!$AK311)/1000000*HLOOKUP($H$10,$Z$3:$AD$4,2,FALSE)/HLOOKUP($J$11,$Z$7:$AD$8,2,FALSE) -> 91.00130949 | AP20: =(Hydrogen!$BT311*Hydrogen!$BU$305+Hydrogen!$BU311)/1000000/HLOOKUP(Results_EnergyFunctionalUnit,$Z$7:$AD$8,2,0) -> 227.1108925 | AQ20: =AN20*(Vehicles!$S$30/Vehicles!$DY$72)/(Vehicles!$S$30*(1/Vehicles!$DY$72+1/Vehicles!$DZ$72)+Vehicles!$S$31/Vehicles!$EA$72)+AO20*(Vehicles!$S$30/Vehicles!$DZ$72+Vehicles!$S$31/Vehicles!$EA$72)/(Vehicles!$S$30*(1/Vehicles!$DY$72+1/Vehicles!$DZ$72)+Vehicles!$S$31/Vehicles!$EA$72) -> 247.5676106 | AR20: =AN20*(Vehicles!$S$30/Vehicles!$DY$72)/(Vehicles!$S$30*(1/Vehicles!$DY$72+1/Vehicles!$DZ$72)+Vehicles!$S$31/Vehicles!$EA$72)+AP20*(Vehicles!$S$30/Vehicles!$DZ$72+Vehicles!$S$31/Vehicles!$EA$72)/(Vehicles!$S$30*(1/Vehicles!$DY$72+1/Vehicles!$DZ$72)+Vehicles!$S$31/Vehicles!$EA$72) -> 328.6208007 | AS20: =((1-Vehicles!$C$40)*(1-Vehicles!$C$16)*Fuel_Specs!$B$15/((1-Vehicles!$C$40)*(1-Vehicles!$C$16)*Fuel_Specs!$B$15+Vehicles!$C$40*(1-Vehicles!$C$16)*Fuel_Specs!$B$17+Vehicles!$C$16*Fuel_Specs!$B$48)*(Petroleum!$B268*Petroleum!$D$262+Petroleum!$D268)+Vehicles!$C$40*(1-Vehicles!$C$16)*Fuel_Specs!$B$17/((1-Vehicles!$C$40)*(1-Vehicles!$C$16)*Fuel_Specs!$B$15+Vehicles!$C$40*(1-Vehicles!$C$16)*Fuel_Specs!$B$17+Vehicles!$C$16*Fuel_Specs!$B$48)*(Petroleum!B268*Petroleum!$F$262+Petroleum!$F268)+Vehicles!$C$16*Fuel_Specs!$B$48/((1-Vehicles!$C$40)*(1-Vehicles!$C$16)*Fuel_Specs!$B$15+Vehicles!$C$40*(1-Vehicles!$C$16)*Fuel_Specs!$B$17+Vehicles!$C$16*Fuel_Specs!$B$48)*(Pyrolysis_IDL!$AP303*Pyrolysis_IDL!$AQ$297+Pyrolysis_IDL!$AQ303))/1000000/HLOOKUP(Results_EnergyFunctionalUnit,$Z$7:$AD$8,2,0) -> 54.83243766 | AT20: =(Petroleum!$B268*Petroleum!$S$262+Petroleum!$S268)/1000000/HLOOKUP(Results_EnergyFunctionalUnit,$Z$7:$AD$8,2,0) -> 26.38884043 | AU20: 60.08317437 | AV20: 43.33740594 | BB20: SI - MeOH FFV | BC20: RNAVMEOHFFV | BH20: CIDI - RD from Pyrolysis | BI20: RNAVRENDIESEL2CIDI | BK20: SI HEV - LNG | BL20: RNAVHEVLNG | BN20: SI PHEV - LNG and Electricity | BO20: RNAVPHEVLNG | BQ20: CIDI HEV - EtOH-Diesel | BR20: RNAVHEVEDIESEL | BT20: CIDI PHEV - EtOH-Diesel and Electricity | BU20: RNAVPHEVEDIESEL
A21: CO2 (w/ C in VOC & CO) | B21: =(Inputs!$E$1518*(Petroleum!$B279*Petroleum!$F$262+Petroleum!$F279)+(1-Inputs!$E$1518)*(Petroleum!$B279*Petroleum!$D$262+Petroleum!$D279)+Vehicles!B95/Vehicles!B73*1000000)/1000000*HLOOKUP($J$10,$Z$5:$AD$6,2,FALSE)/HLOOKUP($J$11,$Z$7:$AD$8,2,FALSE)+B25*Fuel_Specs!$B$154/Fuel_Specs!$B$157+B26*Fuel_Specs!$B$155/Fuel_Specs!$B$157 -> 13561.50142 | C21: =((Petroleum!$C279*Petroleum!$G$262+Petroleum!$G279)+Vehicles!C95/Vehicles!C73*1000000)/1000000*HLOOKUP($J$10,$Z$5:$AD$6,2,FALSE)/HLOOKUP($J$11,$Z$7:$AD$8,2,FALSE)+C25*Fuel_Specs!$B$154/Fuel_Specs!$B$157+C26*Fuel_Specs!$B$155/Fuel_Specs!$B$157 -> 12899.82843 | D21: =((1-Vehicles!$C$35)*(1-Vehicles!$C$7)*Fuel_Specs!$B$15/((1-Vehicles!$C$35)*(1-Vehicles!$C$7)*Fuel_Specs!$B$15+Vehicles!$C$35*(1-Vehicles!$C$7)*Fuel_Specs!$B$17+Vehicles!$C$7*Fuel_Specs!$B$33)*(Petroleum!$B279*Petroleum!$D$262+(Petroleum!$D279-'T&D'!G232))+Vehicles!$C$35*(1-Vehicles!$C$7)*Fuel_Specs!$B$17/((1-Vehicles!$C$35)*(1-Vehicles!$C$7)*Fuel_Specs!$B$15+Vehicles!$C$35*(1-Vehicles!$C$7)*Fuel_Specs!$B$17+Vehicles!$C$7*Fuel_Specs!$B$33)*(Petroleum!B279*Petroleum!$F$262+Petroleum!$F279)+Vehicles!$C$7*Fuel_Specs!$B$33/((1-Vehicles!$C$35)*(1-Vehicles!$C$7)*Fuel_Specs!$B$15+Vehicles!$C$35*(1-Vehicles!$C$7)*Fuel_Specs!$B$17+Vehicles!$C$7*Fuel_Specs!$B$33)*(EtOH!BV563*EtOH!$BW$546+EtOH!$BW563)+Petroleum!AS141+Petroleum!AT141+Vehicles!D95/Vehicles!D73*1000000)/1000000*HLOOKUP($J$10,$Z$5:$AD$6,2,FALSE)/HLOOKUP($J$11,$Z$7:$AD$8,2,FALSE)+D25*Fuel_Specs!$B$154/Fuel_Specs!$B$157+D26*Fuel_Specs!$B$155/Fuel_Specs!$B$157 -> 13561.50142 | E21: =(Inputs!$E$97*(IF(Inputs!F$102=1,Petroleum!$B279,Petroleum!$C279)*IF(Inputs!F$102=1,Petroleum!$K$262,Petroleum!$L$262)+IF(Inputs!F$102=1,Petroleum!$K279,Petroleum!$L279))+(1-Inputs!$E$97)*(IF(Inputs!F$101=1,Petroleum!$B279,Petroleum!$C279)*Petroleum!$J$262+Petroleum!$J279))/1000000*HLOOKUP($J$10,$Z$5:$AD$6,2,FALSE)/HLOOKUP($J$11,$Z$7:$AD$8,2,FALSE)+E25*Fuel_Specs!$B$154/Fuel_Specs!$B$157+E26*Fuel_Specs!$B$155/Fuel_Specs!$B$157 -> 12648.40488 | F21: =(NG!$J101*NG!$K$84+NG!$K101)/1000000*HLOOKUP($J$10,$Z$5:$AD$6,2,FALSE)/HLOOKUP($J$11,$Z$7:$AD$8,2,FALSE)+F25*Fuel_Specs!$B$154/Fuel_Specs!$B$157+F26*Fuel_Specs!$B$155/Fuel_Specs!$B$157 -> 11162.1204 | G21: =(NG!$R101*NG!$S$84+NG!$S101)/1000000*HLOOKUP($J$10,$Z$5:$AD$6,2,FALSE)/HLOOKUP($J$11,$Z$7:$AD$8,2,FALSE)+G25*Fuel_Specs!$B$154/Fuel_Specs!$B$157+G26*Fuel_Specs!$B$155/Fuel_Specs!$B$157 -> 12644.80963 | H21: =(NG!$X101*NG!$Y$84+NG!$Y101)/1000000*HLOOKUP($J$10,$Z$5:$AD$6,2,FALSE)/HLOOKUP($J$11,$Z$7:$AD$8,2,FALSE)+H25*Fuel_Specs!$B$154/Fuel_Specs!$B$157+H26*Fuel_Specs!$B$155/Fuel_Specs!$B$157 -> 11102.16464 | I21: =(MeOH_FTD!BJ179*MeOH_FTD!BK$162+MeOH_FTD!BK179)/1000000*HLOOKUP($J$10,$Z$5:$AD$6,2,FALSE)/HLOOKUP($J$11,$Z$7:$AD$8,2,FALSE)+I25*Fuel_Specs!$B$154/Fuel_Specs!$B$157+I26*Fuel_Specs!$B$155/Fuel_Specs!$B$157 -> 33783.71963 | J21: =((1-Vehicles!$C$34)*(1-Vehicles!$C$5)*Fuel_Specs!$B$15/((1-Vehicles!$C$34)*(1-Vehicles!$C$5)*Fuel_Specs!$B$15+Vehicles!$C$34*(1-Vehicles!$C$5)*Fuel_Specs!$B$17+Vehicles!$C$5*Fuel_Specs!$B$32)*(Petroleum!$B279*Petroleum!$D$262+Petroleum!$D279)+Vehicles!$C$34*(1-Vehicles!$C$5)*Fuel_Specs!$B$17/((1-Vehicles!$C$34)*(1-Vehicles!$C$5)*Fuel_Specs!$B$15+Vehicles!$C$34*(1-Vehicles!$C$5)*Fuel_Specs!$B$17+Vehicles!$C$5*Fuel_Specs!$B$32)*(Petroleum!B279*Petroleum!$F$262+Petroleum!$F279)+Vehicles!$C$5*Fuel_Specs!$B$32/((1-Vehicles!$C$34)*(1-Vehicles!$C$5)*Fuel_Specs!$B$15+Vehicles!$C$34*(1-Vehicles!$C$5)*Fuel_Specs!$B$17+Vehicles!$C$5*Fuel_Specs!$B$32)*(MeOH_FTD!$N179*MeOH_FTD!$O$162+MeOH_FTD!$O179)+Vehicles!I95/Vehicles!I73*1000000)/1000000*HLOOKUP($J$10,$Z$5:$AD$6,2,FALSE)/HLOOKUP($J$11,$Z$7:$AD$8,2,FALSE)+J25*Fuel_Specs!$B$154/Fuel_Specs!$B$157+J26*Fuel_Specs!$B$155/Fuel_Specs!$B$157 -> 18778.80332 | K21: =((1-Vehicles!$C$34)*(1-Vehicles!$C$6)*Fuel_Specs!$B$15/((1-Vehicles!$C$34)*(1-Vehicles!$C$6)*Fuel_Specs!$B$15+Vehicles!$C$34*(1-Vehicles!$C$6)*Fuel_Specs!$B$17+Vehicles!$C$6*Fuel_Specs!$B$32)*(Petroleum!$B279*Petroleum!$D$262+Petroleum!$D279)+Vehicles!$C$34*(1-Vehicles!$C$6)*Fuel_Specs!$B$17/((1-Vehicles!$C$34)*(1-Vehicles!$C$6)*Fuel_Specs!$B$15+Vehicles!$C$34*(1-Vehicles!$C$6)*Fuel_Specs!$B$17+Vehicles!$C$6*Fuel_Specs!$B$32)*(Petroleum!B279*Petroleum!$F$262+Petroleum!$F279)+Vehicles!$C$6*Fuel_Specs!$B$32/((1-Vehicles!$C$34)*(1-Vehicles!$C$6)*Fuel_Specs!$B$15+Vehicles!$C$34*(1-Vehicles!$C$6)*Fuel_Specs!$B$17+Vehicles!$C$6*Fuel_Specs!$B$32)*(MeOH_FTD!$N179*MeOH_FTD!$O$162+MeOH_FTD!$O179)+Vehicles!J95/Vehicles!J73*1000000)/1000000*HLOOKUP($J$10,$Z$5:$AD$6,2,FALSE)/HLOOKUP($J$11,$Z$7:$AD$8,2,FALSE)+K25*Fuel_Specs!$B$154/Fuel_Specs!$B$157+K26*Fuel_Specs!$B$155/Fuel_Specs!$B$157 -> 18994.94902 | L21: =(MeOH_FTD!$N179*MeOH_FTD!$O$162+MeOH_FTD!$O179)/1000000*HLOOKUP($J$10,$Z$5:$AD$6,2,FALSE)/HLOOKUP($J$11,$Z$7:$AD$8,2,FALSE)+L25*Fuel_Specs!$B$154/Fuel_Specs!$B$157+L26*Fuel_Specs!$B$155/Fuel_Specs!$B$157 -> 19493.88504 | M21: =((1-Vehicles!$C$36)*(1-Vehicles!$C$8)*Fuel_Specs!$B$15/((1-Vehicles!$C$36)*(1-Vehicles!$C$8)*Fuel_Specs!$B$15+Vehicles!$C$36*(1-Vehicles!$C$8)*Fuel_Specs!$B$17+Vehicles!$C$8*Fuel_Specs!$B$33)*(Petroleum!$B279*Petroleum!$D$262+(Petroleum!$D279-'T&D'!G232))+Vehicles!$C$36*(1-Vehicles!$C$8)*Fuel_Specs!$B$17/((1-Vehicles!$C$36)*(1-Vehicles!$C$8)*Fuel_Specs!$B$15+Vehicles!$C$36*(1-Vehicles!$C$8)*Fuel_Specs!$B$17+Vehicles!$C$8*Fuel_Specs!$B$33)*(Petroleum!B279*Petroleum!$F$262+Petroleum!$F279)+Vehicles!$C$8*Fuel_Specs!$B$33/((1-Vehicles!$C$36)*(1-Vehicles!$C$8)*Fuel_Specs!$B$15+Vehicles!$C$36*(1-Vehicles!$C$8)*Fuel_Specs!$B$17+Vehicles!$C$8*Fuel_Specs!$B$33)*(EtOH!BV563*EtOH!$BW$546+EtOH!$BW563)+Petroleum!AS141+Petroleum!AT141+Vehicles!K95/Vehicles!K73*1000000)/1000000*HLOOKUP($J$10,$Z$5:$AD$6,2,FALSE)/HLOOKUP($J$11,$Z$7:$AD$8,2,FALSE)+M25*Fuel_Specs!$B$154/Fuel_Specs!$B$157+M26*Fuel_Specs!$B$155/Fuel_Specs!$B$157 -> -19333.89421 | N21: =((1-Vehicles!$C$37)*(1-Vehicles!$C$12)*Fuel_Specs!$B$15/((1-Vehicles!$C$37)*(1-Vehicles!$C$12)*Fuel_Specs!$B$15+Vehicles!$C$37*(1-Vehicles!$C$12)*Fuel_Specs!$B$17+Vehicles!$C$12*Fuel_Specs!$B$34)*(Petroleum!$B279*Petroleum!$D$262+Petroleum!$D279)+Vehicles!$C$37*(1-Vehicles!$C$12)*Fuel_Specs!$B$17/((1-Vehicles!$C$37)*(1-Vehicles!$C$12)*Fuel_Specs!$B$15+Vehicles!$C$37*(1-Vehicles!$C$12)*Fuel_Specs!$B$17+Vehicles!$C$12*Fuel_Specs!$B$34)*(Petroleum!B279*Petroleum!$F$262+Petroleum!$F279)+Vehicles!$C$12*Fuel_Specs!$B$34/((1-Vehicles!$C$37)*(1-Vehicles!$C$12)*Fuel_Specs!$B$15+Vehicles!$C$37*(1-Vehicles!$C$12)*Fuel_Specs!$B$17+Vehicles!$C$12*Fuel_Specs!$B$34)*(EtOH!$BX563*EtOH!$BY$546+EtOH!$BY563)+Vehicles!L95/Vehicles!L73*1000000)/1000000*HLOOKUP($J$10,$Z$5:$AD$6,2,FALSE)/HLOOKUP($J$11,$Z$7:$AD$8,2,FALSE)+N25*Fuel_Specs!$B$154/Fuel_Specs!$B$157+N26*Fuel_Specs!$B$155/Fuel_Specs!$B$157 -> -30399.54303 | O21: =((1-Vehicles!$C$36)*(1-Vehicles!$C$9)*Fuel_Specs!$B$15/((1-Vehicles!$C$36)*(1-Vehicles!$C$9)*Fuel_Specs!$B$15+Vehicles!$C$36*(1-Vehicles!$C$9)*Fuel_Specs!$B$17+Vehicles!$C$9*Fuel_Specs!$B$33)*(Petroleum!$B279*Petroleum!$D$262+(Petroleum!$D279-'T&D'!G232))+Vehicles!$C$36*(1-Vehicles!$C$9)*Fuel_Specs!$B$17/((1-Vehicles!$C$36)*(1-Vehicles!$C$9)*Fuel_Specs!$B$15+Vehicles!$C$36*(1-Vehicles!$C$9)*Fuel_Specs!$B$17+Vehicles!$C$9*Fuel_Specs!$B$33)*(Petroleum!B279*Petroleum!$F$262+Petroleum!$F279)+Vehicles!$C$9*Fuel_Specs!$B$33/((1-Vehicles!$C$36)*(1-Vehicles!$C$9)*Fuel_Specs!$B$15+Vehicles!$C$36*(1-Vehicles!$C$9)*Fuel_Specs!$B$17+Vehicles!$C$9*Fuel_Specs!$B$33)*(EtOH!BV563*EtOH!$BW$546+EtOH!$BW563)+Petroleum!AS141+Petroleum!AT141+Vehicles!M95/Vehicles!M73*1000000)/1000000*HLOOKUP($J$10,$Z$5:$AD$6,2,FALSE)/HLOOKUP($J$11,$Z$7:$AD$8,2,FALSE)+O25*Fuel_Specs!$B$154/Fuel_Specs!$B$157+O26*Fuel_Specs!$B$155/Fuel_Specs!$B$157 -> -19333.89421 | P21: =(EtOH!$BT563*EtOH!$BU$546+EtOH!$BU563+Vehicles!DS95/Vehicles!DS73*1000000)/1000000*HLOOKUP($J$10,$Z$5:$AD$6,2,FALSE)/HLOOKUP($J$11,$Z$7:$AD$8,2,FALSE)+P25*Fuel_Specs!$B$154/Fuel_Specs!$B$157+P26*Fuel_Specs!$B$155/Fuel_Specs!$B$157 -> -30242.9126 | Q21: =((1-Vehicles!$C$40)*(1-Vehicles!$C$16)*Fuel_Specs!$B$15/((1-Vehicles!$C$40)*(1-Vehicles!$C$16)*Fuel_Specs!$B$15+Vehicles!$C$40*(1-Vehicles!$C$16)*Fuel_Specs!$B$17+Vehicles!$C$16*Fuel_Specs!$B47)*(Petroleum!$B279*Petroleum!$D$262+Petroleum!$D279)+Vehicles!$C$40*(1-Vehicles!$C$16)*Fuel_Specs!$B$17/((1-Vehicles!$C$40)*(1-Vehicles!$C$16)*Fuel_Specs!$B$15+Vehicles!$C$40*(1-Vehicles!$C$16)*Fuel_Specs!$B$17+Vehicles!$C$16*Fuel_Specs!$B47)*(Petroleum!B279*Petroleum!$F$262+Petroleum!$F279)+Vehicles!$C$16*Fuel_Specs!$B47/((1-Vehicles!$C$40)*(1-Vehicles!$C$16)*Fuel_Specs!$B$15+Vehicles!$C$40*(1-Vehicles!$C$16)*Fuel_Specs!$B$17+Vehicles!$C$16*Fuel_Specs!$B47)*(BioOil!$CE449*BioOil!$CF$431+BioOil!$CF449)+Vehicles!P95/Vehicles!P73*1000000)/1000000*HLOOKUP($J$10,$Z$5:$AD$6,2,FALSE)/HLOOKUP($J$11,$Z$7:$AD$8,2,FALSE)+Q25*Fuel_Specs!$B$154/Fuel_Specs!$B$157+Q26*Fuel_Specs!$B$155/Fuel_Specs!$B$157 -> -66619.86424 | R21: =((1-Vehicles!$C$40)*(1-Vehicles!$C$16)*Fuel_Specs!$B$15/((1-Vehicles!$C$40)*(1-Vehicles!$C$16)*Fuel_Specs!$B$15+Vehicles!$C$40*(1-Vehicles!$C$16)*Fuel_Specs!$B$17+Vehicles!$C$16*Fuel_Specs!$B47)*(Petroleum!$B279*Petroleum!$D$262+Petroleum!$D279)+Vehicles!$C$40*(1-Vehicles!$C$16)*Fuel_Specs!$B$17/((1-Vehicles!$C$40)*(1-Vehicles!$C$16)*Fuel_Specs!$B$15+Vehicles!$C$40*(1-Vehicles!$C$16)*Fuel_Specs!$B$17+Vehicles!$C$16*Fuel_Specs!$B47)*(Petroleum!B279*Petroleum!$F$262+Petroleum!$F279)+Vehicles!$C$16*Fuel_Specs!$B47/((1-Vehicles!$C$40)*(1-Vehicles!$C$16)*Fuel_Specs!$B$15+Vehicles!$C$40*(1-Vehicles!$C$16)*Fuel_Specs!$B$17+Vehicles!$C$16*Fuel_Specs!$B47)*(Pyrolysis_IDL!$AD314*Pyrolysis_IDL!$AE$297+Pyrolysis_IDL!$AE314)+Vehicles!P95/Vehicles!P73*1000000)/1000000*HLOOKUP($J$10,$Z$5:$AD$6,2,FALSE)/HLOOKUP($J$11,$Z$7:$AD$8,2,FALSE)+R25*Fuel_Specs!$B$154/Fuel_Specs!$B$157+R26*Fuel_Specs!$B$155/Fuel_Specs!$B$157 -> -52631.18902 | S21: =AN21*(Vehicles!$C$30/Vehicles!$AT$72)/(Vehicles!$C$30*(1/Vehicles!$AT$72+1/Vehicles!$AU$72)+Vehicles!$C$31/Vehicles!$AV$72)+B21*(Vehicles!$C$30/Vehicles!$AU$72+Vehicles!$C$31/Vehicles!$AV$72)/(Vehicles!$C$30*(1/Vehicles!$AT$72+1/Vehicles!$AU$72)+Vehicles!$C$31/Vehicles!$AV$72) -> 43868.04104 | T21: =AN21*(Vehicles!$D$30/Vehicles!$AX$72)/(Vehicles!$D$30*(1/Vehicles!$AX$72+1/Vehicles!$AY$72)+Vehicles!$D$31/Vehicles!$AZ$72)+C21*(Vehicles!$D$30/Vehicles!$AY$72+Vehicles!$D$31/Vehicles!$AZ$72)/(Vehicles!$D$30*(1/Vehicles!$AX$72+1/Vehicles!$AY$72)+Vehicles!$D$31/Vehicles!$AZ$72) -> 43456.38893 | U21: =AN21*(Vehicles!$F$30/Vehicles!$BF$72)/(Vehicles!$F$30*(1/Vehicles!$BF$72+1/Vehicles!$BG$72)+Vehicles!$F$31/Vehicles!$BH$72)+D21*(Vehicles!$F$30/Vehicles!$BG$72+Vehicles!$F$31/Vehicles!$BH$72)/(Vehicles!$F$30*(1/Vehicles!$BF$72+1/Vehicles!$BG$72)+Vehicles!$F$31/Vehicles!$BH$72) -> 43868.04104 | V21: =AN21*(Vehicles!$G$30/Vehicles!$BJ$72)/(Vehicles!$G$30*(1/Vehicles!$BJ$72+1/Vehicles!$BK$72)+Vehicles!$G$31/Vehicles!$BL$72)+F21*(Vehicles!$G$30/Vehicles!$BK$72+Vehicles!$G$31/Vehicles!$BL$72)/(Vehicles!$G$30*(1/Vehicles!$BJ$72+1/Vehicles!$BK$72)+Vehicles!$G$31/Vehicles!$BL$72) -> 42375.2942 | W21: =AN21*(Vehicles!$H$30/Vehicles!$BN$72)/(Vehicles!$H$30*(1/Vehicles!$BN$72+1/Vehicles!$BO$72)+Vehicles!$H$31/Vehicles!$BP$72)+G21*(Vehicles!$H$30/Vehicles!$BO$72+Vehicles!$H$31/Vehicles!$BP$72)/(Vehicles!$H$30*(1/Vehicles!$BN$72+1/Vehicles!$BO$72)+Vehicles!$H$31/Vehicles!$BP$72) -> 43297.73196 | X21: =AN21*(Vehicles!$I$30/Vehicles!$BR$72)/(Vehicles!$I$30*(1/Vehicles!$BR$72+1/Vehicles!$BS$72)+Vehicles!$I$31/Vehicles!$BT$72)+H21*(Vehicles!$I$30/Vehicles!$BS$72+Vehicles!$I$31/Vehicles!$BT$72)/(Vehicles!$I$30*(1/Vehicles!$BR$72+1/Vehicles!$BS$72)+Vehicles!$I$31/Vehicles!$BT$72) -> 42337.99342 | Y21: =AN21*(Vehicles!$J$30/Vehicles!$BV$72)/(Vehicles!$J$30*(1/Vehicles!$BV$72+1/Vehicles!$BW$72)+Vehicles!$J$31/Vehicles!$BX$72)+K21*(Vehicles!$J$30/Vehicles!$BW$72+Vehicles!$J$31/Vehicles!$BX$72)/(Vehicles!$J$30*(1/Vehicles!$BV$72+1/Vehicles!$BW$72)+Vehicles!$J$31/Vehicles!$BX$72) -> 47248.39691 | Z21: =AN21*(Vehicles!$K$30/Vehicles!$BZ$72)/(Vehicles!$K$30*(1/Vehicles!$BZ$72+1/Vehicles!$CA$72)+Vehicles!$K$31/Vehicles!$CB$72)+O21*(Vehicles!$K$30/Vehicles!$CA$72+Vehicles!$K$31/Vehicles!$CB$72)/(Vehicles!$K$30*(1/Vehicles!$BZ$72+1/Vehicles!$CA$72)+Vehicles!$K$31/Vehicles!$CB$72) -> 23402.55537 | AA21: =AN21*(Vehicles!$L$30/Vehicles!$CD$72)/(Vehicles!$L$30*(1/Vehicles!$CD$72+1/Vehicles!$CE$72)+Vehicles!$L$31/Vehicles!$CF$72)+AO21*(Vehicles!$L$30/Vehicles!$CE$72+Vehicles!$L$31/Vehicles!$CF$72)/(Vehicles!$L$30*(1/Vehicles!$CD$72+1/Vehicles!$CE$72)+Vehicles!$L$31/Vehicles!$CF$72) -> 94071.11095 | AB21: =AN21*(Vehicles!$L$30/Vehicles!$CD$72)/(Vehicles!$L$30*(1/Vehicles!$CD$72+1/Vehicles!$CE$72)+Vehicles!$L$31/Vehicles!$CG$72)+AP21*(Vehicles!$L$30/Vehicles!$CE$72+Vehicles!$L$31/Vehicles!$CG$72)/(Vehicles!$L$30*(1/Vehicles!$CD$72+1/Vehicles!$CE$72)+Vehicles!$L$31/Vehicles!$CG$72) -> 108713.9421 | AC21: =(MeOH_FTD!$AJ179*MeOH_FTD!$AK$162+MeOH_FTD!$AK179+Vehicles!AB95/Vehicles!AB73*1000000)/1000000*HLOOKUP($J$10,$Z$5:$AD$6,2,FALSE)/HLOOKUP($J$11,$Z$7:$AD$8,2,FALSE)+AC25*Fuel_Specs!$B$154/Fuel_Specs!$B$157+AC26*Fuel_Specs!$B$155/Fuel_Specs!$B$157 -> 27210.78488 | AD21: =((1-Vehicles!$C$41)*(1-Vehicles!$C$13)*Fuel_Specs!$B$21/((1-Vehicles!$C$41)*(1-Vehicles!$C$13)*Fuel_Specs!$B$21+Vehicles!$C$41*(1-Vehicles!$C$13)*Fuel_Specs!$B$24+Vehicles!$C$13*Fuel_Specs!$B$42)*(Petroleum!B279*Petroleum!$J$262+Petroleum!$J279)+Vehicles!$C$41*(1-Vehicles!$C$13)*Fuel_Specs!$B$24/((1-Vehicles!$C$41)*(1-Vehicles!$C$13)*Fuel_Specs!$B$21+Vehicles!$C$41*(1-Vehicles!$C$13)*Fuel_Specs!$B$24+Vehicles!$C$13*Fuel_Specs!$B$42)*(Petroleum!B279*IF(Inputs!F$102=1,Petroleum!$K$262,Petroleum!$L$262)+IF(Inputs!F$102=1,Petroleum!$K279,Petroleum!$L279))+Vehicles!$C$13*Fuel_Specs!$B$42/((1-Vehicles!$C$41)*(1-Vehicles!$C$13)*Fuel_Specs!$B$21+Vehicles!$C$41*(1-Vehicles!$C$13)*Fuel_Specs!$B$24+Vehicles!$C$13*Fuel_Specs!$B$42)*(MeOH_FTD!$AZ179*MeOH_FTD!$BA$162+MeOH_FTD!$BA179)+Vehicles!AC95/Vehicles!AC73*1000000)/1000000*HLOOKUP($J$10,$Z$5:$AD$6,2,FALSE)/HLOOKUP($J$11,$Z$7:$AD$8,2,FALSE)+AD25*Fuel_Specs!$B$154/Fuel_Specs!$B$157+AD26*Fuel_Specs!$B$155/Fuel_Specs!$B$157 -> 15346.96972 | AE21: =((1-Vehicles!$C$42)*(1-Vehicles!$C$14)*Fuel_Specs!$B$21/((1-Vehicles!$C$42)*(1-Vehicles!$C$14)*Fuel_Specs!$B$21+Vehicles!$C$42*(1-Vehicles!$C$14)*Fuel_Specs!$B$24+Vehicles!$C$14*Fuel_Specs!$B41)*(Petroleum!B279*Petroleum!$J$262+Petroleum!$J279)+Vehicles!$C$42*(1-Vehicles!$C$14)*Fuel_Specs!$B$24/((1-Vehicles!$C$42)*(1-Vehicles!$C$14)*Fuel_Specs!$B$21+Vehicles!$C$42*(1-Vehicles!$C$14)*Fuel_Specs!$B$24+Vehicles!$C$14*Fuel_Specs!$B41)*(Petroleum!B279*IF(Inputs!F$102=1,Petroleum!$K$262,Petroleum!$L$262)+IF(Inputs!F$102=1,Petroleum!$K279,Petroleum!$L279))+Vehicles!$C$14*Fuel_Specs!$B41/((1-Vehicles!$C$42)*(1-Vehicles!$C$14)*Fuel_Specs!$B$21+Vehicles!$C$42*(1-Vehicles!$C$14)*Fuel_Specs!$B$24+Vehicles!$C$14*Fuel_Specs!$B41)*(BioOil!$Y449*BioOil!$Z$431+BioOil!$Z449)+Vehicles!AD95/Vehicles!AD73*1000000)/1000000*HLOOKUP($J$10,$Z$5:$AD$6,2,FALSE)/HLOOKUP($J$11,$Z$7:$AD$8,2,FALSE)+AE25*Fuel_Specs!$B$154/Fuel_Specs!$B$157+AE26*Fuel_Specs!$B$155/Fuel_Specs!$B$157 -> -121.84812 | AF21: =((1-Vehicles!$C$43)*(1-Vehicles!$C$15)*Fuel_Specs!$B$21/((1-Vehicles!$C$43)*(1-Vehicles!$C$15)*Fuel_Specs!$B$21+Vehicles!$C$43*(1-Vehicles!$C$15)*Fuel_Specs!$B$24+Vehicles!$C$15*IF(Inputs!$E$670=1,Fuel_Specs!$B$43,Fuel_Specs!$B$44))*(Petroleum!B279*Petroleum!$J$262+Petroleum!$J279)+Vehicles!$C$43*(1-Vehicles!$C$15)*Fuel_Specs!$B$24/((1-Vehicles!$C$43)*(1-Vehicles!$C$15)*Fuel_Specs!$B$21+Vehicles!$C$43*(1-Vehicles!$C$15)*Fuel_Specs!$B$24+Vehicles!$C$15*IF(Inputs!$E$670=1,Fuel_Specs!$B$43,Fuel_Specs!$B$44))*(Petroleum!B279*IF(Inputs!F$102=1,Petroleum!$K$262,Petroleum!$L$262)+IF(Inputs!F$102=1,Petroleum!$K279,Petroleum!$L279))+Vehicles!$C$15*IF(Inputs!$E$670=1,Fuel_Specs!$B$43,Fuel_Specs!$B$44)/((1-Vehicles!$C$43)*(1-Vehicles!$C$15)*Fuel_Specs!$B$21+Vehicles!$C$43*(1-Vehicles!$C$15)*Fuel_Specs!$B$24+Vehicles!$C$15*IF(Inputs!$E$670=1,Fuel_Specs!$B$43,Fuel_Specs!$B$44))*(BioOil!$BQ449*BioOil!$BR$431+BioOil!$BR449)+Vehicles!AE95/Vehicles!AE73*1000000)/1000000*HLOOKUP($J$10,$Z$5:$AD$6,2,FALSE)/HLOOKUP($J$11,$Z$7:$AD$8,2,FALSE)+AF25*Fuel_Specs!$B$154/Fuel_Specs!$B$157+AF26*Fuel_Specs!$B$155/Fuel_Specs!$B$157 -> -49918.33748 | AG21: =((1-Vehicles!$C$43)*(1-Vehicles!$C$15)*Fuel_Specs!$B$21/((1-Vehicles!$C$43)*(1-Vehicles!$C$15)*Fuel_Specs!$B$21+Vehicles!$C$43*(1-Vehicles!$C$15)*Fuel_Specs!$B$24+Vehicles!$C$15*IF(Inputs!$E$670=1,Fuel_Specs!$B$43,Fuel_Specs!$B$44))*(Petroleum!B279*Petroleum!$J$262+Petroleum!$J279)+Vehicles!$C$43*(1-Vehicles!$C$15)*Fuel_Specs!$B$24/((1-Vehicles!$C$43)*(1-Vehicles!$C$15)*Fuel_Specs!$B$21+Vehicles!$C$43*(1-Vehicles!$C$15)*Fuel_Specs!$B$24+Vehicles!$C$15*IF(Inputs!$E$670=1,Fuel_Specs!$B$43,Fuel_Specs!$B$44))*(Petroleum!B279*IF(Inputs!F$102=1,Petroleum!$K$262,Petroleum!$L$262)+IF(Inputs!F$102=1,Petroleum!$K279,Petroleum!$L279))+Vehicles!$C$15*IF(Inputs!$E$670=1,Fuel_Specs!$B$43,Fuel_Specs!$B$44)/((1-Vehicles!$C$43)*(1-Vehicles!$C$15)*Fuel_Specs!$B$21+Vehicles!$C$43*(1-Vehicles!$C$15)*Fuel_Specs!$B$24+Vehicles!$C$15*IF(Inputs!$E$670=1,Fuel_Specs!$B$43,Fuel_Specs!$B$44))*(Pyrolysis_IDL!$AF314*Pyrolysis_IDL!$AG$297+Pyrolysis_IDL!$AG314)+Vehicles!AE95/Vehicles!AE73*1000000)/1000000*HLOOKUP($J$10,$Z$5:$AD$6,2,FALSE)/HLOOKUP($J$11,$Z$7:$AD$8,2,FALSE)+AG25*Fuel_Specs!$B$154/Fuel_Specs!$B$157+AG26*Fuel_Specs!$B$155/Fuel_Specs!$B$157 -> -51253.92991 | AH21: =(((1-Vehicles!$C$44)*(1-Vehicles!$C$17-Vehicles!$C$18)*Fuel_Specs!$B$21*(Petroleum!B279*Petroleum!$J$262+Petroleum!$J279)+Vehicles!$C$44*(1-Vehicles!$C$17-Vehicles!$C$18)*Fuel_Specs!$B$24*(Petroleum!B279*IF(Inputs!F$102=1,Petroleum!$K$262,Petroleum!$L$262)+IF(Inputs!F$102=1,Petroleum!$K279,Petroleum!$L279))+Vehicles!$C$17*Fuel_Specs!$B$33*(EtOH!BT563*EtOH!$BU$546+EtOH!$BU563)+Vehicles!$C$18*Fuel_Specs!$B$36*('EtOH-Diesel Additives'!$B70*'EtOH-Diesel Additives'!$B$53))/((1-Vehicles!$C$44)*(1-Vehicles!$C$17-Vehicles!$C$18)*Fuel_Specs!$B$21+Vehicles!$C$44*(1-Vehicles!$C$17-Vehicles!$C$18)*Fuel_Specs!$B$24+Vehicles!$C$17*Fuel_Specs!$B$33+Vehicles!$C$18*Fuel_Specs!$B$36)+Vehicles!AF95/Vehicles!AF73*1000000)/1000000*HLOOKUP($J$10,$Z$5:$AD$6,2,FALSE)/HLOOKUP($J$11,$Z$7:$AD$8,2,FALSE)+AH25*Fuel_Specs!$B$154/Fuel_Specs!$B$157+AH26*Fuel_Specs!$B$155/Fuel_Specs!$B$157 -> 10068.58925 | AI21: =AN21*(Vehicles!$M$30/Vehicles!$CO$72)/(Vehicles!$M$30*(1/Vehicles!$CO$72+1/Vehicles!$CP$72)+Vehicles!$M$31/Vehicles!$CQ$72)+E21*(Vehicles!$M$30/Vehicles!$CP$72+Vehicles!$M$31/Vehicles!$CQ$72)/(Vehicles!$M$30*(1/Vehicles!$CO$72+1/Vehicles!$CP$72)+Vehicles!$M$31/Vehicles!$CQ$72) -> 36748.69185 | AJ21: =AN21*(Vehicles!$N$30/Vehicles!$CS$72)/(Vehicles!$N$30*(1/Vehicles!$CS$72+1/Vehicles!$CT$72)+Vehicles!$N$31/Vehicles!$CU$72)+AC21*(Vehicles!$N$30/Vehicles!$CT$72+Vehicles!$N$31/Vehicles!$CU$72)/(Vehicles!$N$30*(1/Vehicles!$CS$72+1/Vehicles!$CT$72)+Vehicles!$N$31/Vehicles!$CU$72) -> 46984.5908 | AK21: =AN21*(Vehicles!$O$30/Vehicles!$CW$72)/(Vehicles!$O$30*(1/Vehicles!$CW$72+1/Vehicles!$CX$72)+Vehicles!$O$31/Vehicles!$CY$72)+AD21*(Vehicles!$O$30/Vehicles!$CX$72+Vehicles!$O$31/Vehicles!$CY$72)/(Vehicles!$O$30*(1/Vehicles!$CW$72+1/Vehicles!$CX$72)+Vehicles!$O$31/Vehicles!$CY$72) -> 38645.51345 | AL21: =AN21*(Vehicles!$P$30/Vehicles!$DA$72)/(Vehicles!$P$30*(1/Vehicles!$DA$72+1/Vehicles!$DB$72)+Vehicles!$P$31/Vehicles!$DC$72)+AE21*(Vehicles!$P$30/Vehicles!$DB$72+Vehicles!$P$31/Vehicles!$DC$72)/(Vehicles!$P$30*(1/Vehicles!$DA$72+1/Vehicles!$DB$72)+Vehicles!$P$31/Vehicles!$DC$72) -> 27772.47921 | AM21: =AN21*(Vehicles!$R$30/Vehicles!$DI$72)/(Vehicles!$R$30*(1/Vehicles!$DI$72+1/Vehicles!$DJ$72)+Vehicles!$R$31/Vehicles!$DK$72)+AH21*(Vehicles!$R$30/Vehicles!$DJ$72+Vehicles!$R$31/Vehicles!$DK$72)/(Vehicles!$R$30*(1/Vehicles!$DI$72+1/Vehicles!$DJ$72)+Vehicles!$R$31/Vehicles!$DK$72) -> 34935.33908 | AN21: =(Electric!$G220+Electric!$F220)/1000000*HLOOKUP($J$10,$Z$5:$AD$6,2,FALSE)/HLOOKUP($J$11,$Z$7:$AD$8,2,FALSE)+AN25*Fuel_Specs!$B$154/Fuel_Specs!$B$157+AN26*Fuel_Specs!$B$155/Fuel_Specs!$B$157 -> 93766.87808 | AO21: =(Hydrogen!$AJ322*Hydrogen!$AK$305+Hydrogen!$AK322)/1000000*HLOOKUP($J$10,$Z$5:$AD$6,2,FALSE)/HLOOKUP($J$11,$Z$7:$AD$8,2,FALSE)+AO25*Fuel_Specs!$B$154/Fuel_Specs!$B$157+AO26*Fuel_Specs!$B$155/Fuel_Specs!$B$157 -> 94255.88972 | AP21: =(Hydrogen!$BT322*Hydrogen!$BU$305+Hydrogen!$BU322)/1000000*HLOOKUP($J$10,$Z$5:$AD$6,2,FALSE)/HLOOKUP($J$11,$Z$7:$AD$8,2,FALSE)+AP25*Fuel_Specs!$B$154/Fuel_Specs!$B$157+AP26*Fuel_Specs!$B$155/Fuel_Specs!$B$157 -> 117792.1855 | AQ21: =AN21*(Vehicles!$S$30/Vehicles!$DY$72)/(Vehicles!$S$30*(1/Vehicles!$DY$72+1/Vehicles!$DZ$72)+Vehicles!$S$31/Vehicles!$EA$72)+AO21*(Vehicles!$S$30/Vehicles!$DZ$72+Vehicles!$S$31/Vehicles!$EA$72)/(Vehicles!$S$30*(1/Vehicles!$DY$72+1/Vehicles!$DZ$72)+Vehicles!$S$31/Vehicles!$EA$72) -> 94058.08427 | AR21: =AN21*(Vehicles!$S$30/Vehicles!$DY$72)/(Vehicles!$S$30*(1/Vehicles!$DY$72+1/Vehicles!$DZ$72)+Vehicles!$S$31/Vehicles!$EA$72)+AP21*(Vehicles!$S$30/Vehicles!$DZ$72+Vehicles!$S$31/Vehicles!$EA$72)/(Vehicles!$S$30*(1/Vehicles!$DY$72+1/Vehicles!$DZ$72)+Vehicles!$S$31/Vehicles!$EA$72) -> 108073.9369 | AS21: =((1-Vehicles!$C$40)*(1-Vehicles!$C$16)*Fuel_Specs!$B$15/((1-Vehicles!$C$40)*(1-Vehicles!$C$16)*Fuel_Specs!$B$15+Vehicles!$C$40*(1-Vehicles!$C$16)*Fuel_Specs!$B$17+Vehicles!$C$16*Fuel_Specs!$B$48)*(Petroleum!$B279*Petroleum!$D$262+Petroleum!$D279)+Vehicles!$C$40*(1-Vehicles!$C$16)*Fuel_Specs!$B$17/((1-Vehicles!$C$40)*(1-Vehicles!$C$16)*Fuel_Specs!$B$15+Vehicles!$C$40*(1-Vehicles!$C$16)*Fuel_Specs!$B$17+Vehicles!$C$16*Fuel_Specs!$B$48)*(Petroleum!B279*Petroleum!$F$262+Petroleum!$F279)+Vehicles!$C$16*Fuel_Specs!$B$48/((1-Vehicles!$C$40)*(1-Vehicles!$C$16)*Fuel_Specs!$B$15+Vehicles!$C$40*(1-Vehicles!$C$16)*Fuel_Specs!$B$17+Vehicles!$C$16*Fuel_Specs!$B$48)*(Pyrolysis_IDL!$AP314*Pyrolysis_IDL!$AQ$297+Pyrolysis_IDL!$AQ314)+Vehicles!Q95/Vehicles!Q73*1000000)/1000000*HLOOKUP($J$10,$Z$5:$AD$6,2,FALSE)/HLOOKUP($J$11,$Z$7:$AD$8,2,FALSE)+AS25*Fuel_Specs!$B$154/Fuel_Specs!$B$157+AS26*Fuel_Specs!$B$155/Fuel_Specs!$B$157 -> -57208.08445 | AT21: =(Petroleum!$B279*Petroleum!$S$262+Petroleum!$S279)/1000000*HLOOKUP($J$10,$Z$5:$AD$6,2,FALSE)/HLOOKUP($J$11,$Z$7:$AD$8,2,FALSE)+AT25*Fuel_Specs!$B$154/Fuel_Specs!$B$157+AT26*Fuel_Specs!$B$155/Fuel_Specs!$B$157 -> 12586.59638 | AU21: 4761.615273 | AV21: 1574.771971 | BB21: SI - CNG Vehicle | BC21: RNAVCNG | BH21: CIDI - EtOH-Diesel | BI21: RNAVEDIESELCIDI | BK21: SI HEV - LPG | BL21: RNAVHEVLPG | BN21: SI PHEV - LPG and Electricity | BO21: RNAVPHEVLPG
A22: CH4 | B22: =(Inputs!$E$1518*(Petroleum!$B277*Petroleum!$F$262+Petroleum!$F277)+(1-Inputs!$E$1518)*(Petroleum!$B277*Petroleum!$D$262+Petroleum!$D277))/1000000*HLOOKUP($J$10,$Z$5:$AD$6,2,FALSE)/HLOOKUP($J$11,$Z$7:$AD$8,2,FALSE) -> 126.2562166 | C22: =(Petroleum!$C277*Petroleum!$G$262+Petroleum!$G277)/1000000*HLOOKUP($J$10,$Z$5:$AD$6,2,FALSE)/HLOOKUP($J$11,$Z$7:$AD$8,2,FALSE) -> 127.1154891 | D22: =((1-Vehicles!$C$35)*(1-Vehicles!$C$7)*Fuel_Specs!$B$15/((1-Vehicles!$C$35)*(1-Vehicles!$C$7)*Fuel_Specs!$B$15+Vehicles!$C$35*(1-Vehicles!$C$7)*Fuel_Specs!$B$17+Vehicles!$C$7*Fuel_Specs!$B$33)*(Petroleum!$B277*Petroleum!$D$262+(Petroleum!$D277-'T&D'!G230))+Vehicles!$C$35*(1-Vehicles!$C$7)*Fuel_Specs!$B$17/((1-Vehicles!$C$35)*(1-Vehicles!$C$7)*Fuel_Specs!$B$15+Vehicles!$C$35*(1-Vehicles!$C$7)*Fuel_Specs!$B$17+Vehicles!$C$7*Fuel_Specs!$B$33)*(Petroleum!B277*Petroleum!$F$262+Petroleum!$F277)+Vehicles!$C$7*Fuel_Specs!$B$33/((1-Vehicles!$C$35)*(1-Vehicles!$C$7)*Fuel_Specs!$B$15+Vehicles!$C$35*(1-Vehicles!$C$7)*Fuel_Specs!$B$17+Vehicles!$C$7*Fuel_Specs!$B$33)*(EtOH!BV561*EtOH!$BW$546+EtOH!$BW561)+Petroleum!AS139+Petroleum!AT139)/1000000*HLOOKUP($J$10,$Z$5:$AD$6,2,FALSE)/HLOOKUP($J$11,$Z$7:$AD$8,2,FALSE) -> 126.2562166 | E22: =(Inputs!$E$97*(IF(Inputs!F$102=1,Petroleum!$B277,Petroleum!$C277)*IF(Inputs!F$102=1,Petroleum!$K$262,Petroleum!$L$262)+IF(Inputs!F$102=1,Petroleum!$K277,Petroleum!$L277))+(1-Inputs!$E$97)*(IF(Inputs!F$101=1,Petroleum!$B277,Petroleum!$C277)*Petroleum!$J$262+Petroleum!$J277))/1000000*HLOOKUP($J$10,$Z$5:$AD$6,2,FALSE)/HLOOKUP($J$11,$Z$7:$AD$8,2,FALSE) -> 117.1071817 | F22: =(NG!$J99*NG!$K$84+NG!$K99)/1000000*HLOOKUP($J$10,$Z$5:$AD$6,2,FALSE)/HLOOKUP($J$11,$Z$7:$AD$8,2,FALSE) -> 366.8140044 | G22: =(NG!$R99*NG!$S$84+NG!$S99)/1000000*HLOOKUP($J$10,$Z$5:$AD$6,2,FALSE)/HLOOKUP($J$11,$Z$7:$AD$8,2,FALSE) -> 385.7296729 | H22: =(NG!$X99*NG!$Y$84+NG!$Y99)/1000000*HLOOKUP($J$10,$Z$5:$AD$6,2,FALSE)/HLOOKUP($J$11,$Z$7:$AD$8,2,FALSE) -> 232.1149204 | I22: =(MeOH_FTD!BJ177*MeOH_FTD!BK$162+MeOH_FTD!BK177)/1000000*HLOOKUP($J$10,$Z$5:$AD$6,2,FALSE)/HLOOKUP($J$11,$Z$7:$AD$8,2,FALSE) -> 391.5893991 | J22: =((1-Vehicles!$C$34)*(1-Vehicles!$C$5)*Fuel_Specs!$B$15/((1-Vehicles!$C$34)*(1-Vehicles!$C$5)*Fuel_Specs!$B$15+Vehicles!$C$34*(1-Vehicles!$C$5)*Fuel_Specs!$B$17+Vehicles!$C$5*Fuel_Specs!$B$32)*(Petroleum!$B277*Petroleum!$D$262+Petroleum!$D277)+Vehicles!$C$34*(1-Vehicles!$C$5)*Fuel_Specs!$B$17/((1-Vehicles!$C$34)*(1-Vehicles!$C$5)*Fuel_Specs!$B$15+Vehicles!$C$34*(1-Vehicles!$C$5)*Fuel_Specs!$B$17+Vehicles!$C$5*Fuel_Specs!$B$32)*(Petroleum!B277*Petroleum!$F$262+Petroleum!$F277)+Vehicles!$C$5*Fuel_Specs!$B$32/((1-Vehicles!$C$34)*(1-Vehicles!$C$5)*Fuel_Specs!$B$15+Vehicles!$C$34*(1-Vehicles!$C$5)*Fuel_Specs!$B$17+Vehicles!$C$5*Fuel_Specs!$B$32)*(MeOH_FTD!$N177*MeOH_FTD!$O$162+MeOH_FTD!$O177))/1000000*HLOOKUP($J$10,$Z$5:$AD$6,2,FALSE)/HLOOKUP($J$11,$Z$7:$AD$8,2,FALSE) -> 274.9037296 | K22: =((1-Vehicles!$C$34)*(1-Vehicles!$C$6)*Fuel_Specs!$B$15/((1-Vehicles!$C$34)*(1-Vehicles!$C$6)*Fuel_Specs!$B$15+Vehicles!$C$34*(1-Vehicles!$C$6)*Fuel_Specs!$B$17+Vehicles!$C$6*Fuel_Specs!$B$32)*(Petroleum!$B277*Petroleum!$D$262+Petroleum!$D277)+Vehicles!$C$34*(1-Vehicles!$C$6)*Fuel_Specs!$B$17/((1-Vehicles!$C$34)*(1-Vehicles!$C$6)*Fuel_Specs!$B$15+Vehicles!$C$34*(1-Vehicles!$C$6)*Fuel_Specs!$B$17+Vehicles!$C$6*Fuel_Specs!$B$32)*(Petroleum!B277*Petroleum!$F$262+Petroleum!$F277)+Vehicles!$C$6*Fuel_Specs!$B$32/((1-Vehicles!$C$34)*(1-Vehicles!$C$6)*Fuel_Specs!$B$15+Vehicles!$C$34*(1-Vehicles!$C$6)*Fuel_Specs!$B$17+Vehicles!$C$6*Fuel_Specs!$B$32)*(MeOH_FTD!$N177*MeOH_FTD!$O$162+MeOH_FTD!$O177))/1000000*HLOOKUP($J$10,$Z$5:$AD$6,2,FALSE)/HLOOKUP($J$11,$Z$7:$AD$8,2,FALSE) -> 291.1829254 | L22: =(MeOH_FTD!$N177*MeOH_FTD!$O$162+MeOH_FTD!$O177)/1000000*HLOOKUP($J$10,$Z$5:$AD$6,2,FALSE)/HLOOKUP($J$11,$Z$7:$AD$8,2,FALSE) -> 328.7607122 | M22: =((1-Vehicles!$C$36)*(1-Vehicles!$C$8)*Fuel_Specs!$B$15/((1-Vehicles!$C$36)*(1-Vehicles!$C$8)*Fuel_Specs!$B$15+Vehicles!$C$36*(1-Vehicles!$C$8)*Fuel_Specs!$B$17+Vehicles!$C$8*Fuel_Specs!$B$33)*(Petroleum!$B277*Petroleum!$D$262+(Petroleum!$D277-'T&D'!G230))+Vehicles!$C$36*(1-Vehicles!$C$8)*Fuel_Specs!$B$17/((1-Vehicles!$C$36)*(1-Vehicles!$C$8)*Fuel_Specs!$B$15+Vehicles!$C$36*(1-Vehicles!$C$8)*Fuel_Specs!$B$17+Vehicles!$C$8*Fuel_Specs!$B$33)*(Petroleum!B277*Petroleum!$F$262+Petroleum!$F277)+Vehicles!$C$8*Fuel_Specs!$B$33/((1-Vehicles!$C$36)*(1-Vehicles!$C$8)*Fuel_Specs!$B$15+Vehicles!$C$36*(1-Vehicles!$C$8)*Fuel_Specs!$B$17+Vehicles!$C$8*Fuel_Specs!$B$33)*(EtOH!BV561*EtOH!$BW$546+EtOH!$BW561)+Petroleum!AS139+Petroleum!AT139)/1000000*HLOOKUP($J$10,$Z$5:$AD$6,2,FALSE)/HLOOKUP($J$11,$Z$7:$AD$8,2,FALSE) -> 146.8922077 | N22: =((1-Vehicles!$C$37)*(1-Vehicles!$C$12)*Fuel_Specs!$B$15/((1-Vehicles!$C$37)*(1-Vehicles!$C$12)*Fuel_Specs!$B$15+Vehicles!$C$37*(1-Vehicles!$C$12)*Fuel_Specs!$B$17+Vehicles!$C$12*Fuel_Specs!$B$34)*(Petroleum!$B277*Petroleum!$D$262+Petroleum!$D277)+Vehicles!$C$37*(1-Vehicles!$C$12)*Fuel_Specs!$B$17/((1-Vehicles!$C$37)*(1-Vehicles!$C$12)*Fuel_Specs!$B$15+Vehicles!$C$37*(1-Vehicles!$C$12)*Fuel_Specs!$B$17+Vehicles!$C$12*Fuel_Specs!$B$34)*(Petroleum!B277*Petroleum!$F$262+Petroleum!$F277)+Vehicles!$C$12*Fuel_Specs!$B$34/((1-Vehicles!$C$37)*(1-Vehicles!$C$12)*Fuel_Specs!$B$15+Vehicles!$C$37*(1-Vehicles!$C$12)*Fuel_Specs!$B$17+Vehicles!$C$12*Fuel_Specs!$B$34)*(EtOH!$BX561*EtOH!$BY$546+EtOH!$BY561))/1000000*HLOOKUP($J$10,$Z$5:$AD$6,2,FALSE)/HLOOKUP($J$11,$Z$7:$AD$8,2,FALSE) -> 186.7482681 | O22: =((1-Vehicles!$C$36)*(1-Vehicles!$C$9)*Fuel_Specs!$B$15/((1-Vehicles!$C$36)*(1-Vehicles!$C$9)*Fuel_Specs!$B$15+Vehicles!$C$36*(1-Vehicles!$C$9)*Fuel_Specs!$B$17+Vehicles!$C$9*Fuel_Specs!$B$33)*(Petroleum!$B277*Petroleum!$D$262+(Petroleum!$D277-'T&D'!G230))+Vehicles!$C$36*(1-Vehicles!$C$9)*Fuel_Specs!$B$17/((1-Vehicles!$C$36)*(1-Vehicles!$C$9)*Fuel_Specs!$B$15+Vehicles!$C$36*(1-Vehicles!$C$9)*Fuel_Specs!$B$17+Vehicles!$C$9*Fuel_Specs!$B$33)*(Petroleum!B277*Petroleum!$F$262+Petroleum!$F277)+Vehicles!$C$9*Fuel_Specs!$B$33/((1-Vehicles!$C$36)*(1-Vehicles!$C$9)*Fuel_Specs!$B$15+Vehicles!$C$36*(1-Vehicles!$C$9)*Fuel_Specs!$B$17+Vehicles!$C$9*Fuel_Specs!$B$33)*(EtOH!BV561*EtOH!$BW$546+EtOH!$BW561)+Petroleum!AS139+Petroleum!AT139)/1000000*HLOOKUP($J$10,$Z$5:$AD$6,2,FALSE)/HLOOKUP($J$11,$Z$7:$AD$8,2,FALSE) -> 146.8922077 | P22: =(EtOH!$BT561*EtOH!$BU$546+EtOH!$BU561)/1000000*HLOOKUP($J$10,$Z$5:$AD$6,2,FALSE)/HLOOKUP($J$11,$Z$7:$AD$8,2,FALSE) -> 153.8835832 | Q22: =((1-Vehicles!$C$40)*(1-Vehicles!$C$16)*Fuel_Specs!$B$15/((1-Vehicles!$C$40)*(1-Vehicles!$C$16)*Fuel_Specs!$B$15+Vehicles!$C$40*(1-Vehicles!$C$16)*Fuel_Specs!$B$17+Vehicles!$C$16*Fuel_Specs!$B$47)*(Petroleum!$B277*Petroleum!$D$262+Petroleum!$D277)+Vehicles!$C$40*(1-Vehicles!$C$16)*Fuel_Specs!$B$17/((1-Vehicles!$C$40)*(1-Vehicles!$C$16)*Fuel_Specs!$B$15+Vehicles!$C$40*(1-Vehicles!$C$16)*Fuel_Specs!$B$17+Vehicles!$C$16*Fuel_Specs!$B$47)*(Petroleum!B277*Petroleum!$F$262+Petroleum!$F277)+Vehicles!$C$16*Fuel_Specs!$B$47/((1-Vehicles!$C$40)*(1-Vehicles!$C$16)*Fuel_Specs!$B$15+Vehicles!$C$40*(1-Vehicles!$C$16)*Fuel_Specs!$B$17+Vehicles!$C$16*Fuel_Specs!$B$47)*(BioOil!$CE447*BioOil!$CF$431+BioOil!$CF447))/1000000*HLOOKUP($J$10,$Z$5:$AD$6,2,FALSE)/HLOOKUP($J$11,$Z$7:$AD$8,2,FALSE) -> 21.37222183 | R22: =((1-Vehicles!$C$40)*(1-Vehicles!$C$16)*Fuel_Specs!$B$15/((1-Vehicles!$C$40)*(1-Vehicles!$C$16)*Fuel_Specs!$B$15+Vehicles!$C$40*(1-Vehicles!$C$16)*Fuel_Specs!$B$17+Vehicles!$C$16*Fuel_Specs!$B$47)*(Petroleum!$B277*Petroleum!$D$262+Petroleum!$D277)+Vehicles!$C$40*(1-Vehicles!$C$16)*Fuel_Specs!$B$17/((1-Vehicles!$C$40)*(1-Vehicles!$C$16)*Fuel_Specs!$B$15+Vehicles!$C$40*(1-Vehicles!$C$16)*Fuel_Specs!$B$17+Vehicles!$C$16*Fuel_Specs!$B$47)*(Petroleum!B277*Petroleum!$F$262+Petroleum!$F277)+Vehicles!$C$16*Fuel_Specs!$B$47/((1-Vehicles!$C$40)*(1-Vehicles!$C$16)*Fuel_Specs!$B$15+Vehicles!$C$40*(1-Vehicles!$C$16)*Fuel_Specs!$B$17+Vehicles!$C$16*Fuel_Specs!$B$47)*(Pyrolysis_IDL!$AD312*Pyrolysis_IDL!$AE$297+Pyrolysis_IDL!$AE312))/1000000*HLOOKUP($J$10,$Z$5:$AD$6,2,FALSE)/HLOOKUP($J$11,$Z$7:$AD$8,2,FALSE) -> 76.66967463 | S22: =AN22*(Vehicles!$C$30/Vehicles!$AT$72)/(Vehicles!$C$30*(1/Vehicles!$AT$72+1/Vehicles!$AU$72)+Vehicles!$C$31/Vehicles!$AV$72)+B22*(Vehicles!$C$30/Vehicles!$AU$72+Vehicles!$C$31/Vehicles!$AV$72)/(Vehicles!$C$30*(1/Vehicles!$AT$72+1/Vehicles!$AU$72)+Vehicles!$C$31/Vehicles!$AV$72) -> 165.5179729 | T22: =AN22*(Vehicles!$D$30/Vehicles!$AX$72)/(Vehicles!$D$30*(1/Vehicles!$AX$72+1/Vehicles!$AY$72)+Vehicles!$D$31/Vehicles!$AZ$72)+C22*(Vehicles!$D$30/Vehicles!$AY$72+Vehicles!$D$31/Vehicles!$AZ$72)/(Vehicles!$D$30*(1/Vehicles!$AX$72+1/Vehicles!$AY$72)+Vehicles!$D$31/Vehicles!$AZ$72) -> 166.0525592 | U22: =AN22*(Vehicles!$F$30/Vehicles!$BF$72)/(Vehicles!$F$30*(1/Vehicles!$BF$72+1/Vehicles!$BG$72)+Vehicles!$F$31/Vehicles!$BH$72)+D22*(Vehicles!$F$30/Vehicles!$BG$72+Vehicles!$F$31/Vehicles!$BH$72)/(Vehicles!$F$30*(1/Vehicles!$BF$72+1/Vehicles!$BG$72)+Vehicles!$F$31/Vehicles!$BH$72) -> 165.5179729 | V22: =AN22*(Vehicles!$G$30/Vehicles!$BJ$72)/(Vehicles!$G$30*(1/Vehicles!$BJ$72+1/Vehicles!$BK$72)+Vehicles!$G$31/Vehicles!$BL$72)+F22*(Vehicles!$G$30/Vehicles!$BK$72+Vehicles!$G$31/Vehicles!$BL$72)/(Vehicles!$G$30*(1/Vehicles!$BJ$72+1/Vehicles!$BK$72)+Vehicles!$G$31/Vehicles!$BL$72) -> 315.1781872 | W22: =AN22*(Vehicles!$H$30/Vehicles!$BN$72)/(Vehicles!$H$30*(1/Vehicles!$BN$72+1/Vehicles!$BO$72)+Vehicles!$H$31/Vehicles!$BP$72)+G22*(Vehicles!$H$30/Vehicles!$BO$72+Vehicles!$H$31/Vehicles!$BP$72)/(Vehicles!$H$30*(1/Vehicles!$BN$72+1/Vehicles!$BO$72)+Vehicles!$H$31/Vehicles!$BP$72) -> 326.9463491 | X22: =AN22*(Vehicles!$I$30/Vehicles!$BR$72)/(Vehicles!$I$30*(1/Vehicles!$BR$72+1/Vehicles!$BS$72)+Vehicles!$I$31/Vehicles!$BT$72)+H22*(Vehicles!$I$30/Vehicles!$BS$72+Vehicles!$I$31/Vehicles!$BT$72)/(Vehicles!$I$30*(1/Vehicles!$BR$72+1/Vehicles!$BS$72)+Vehicles!$I$31/Vehicles!$BT$72) -> 231.3767274 | Y22: =AN22*(Vehicles!$J$30/Vehicles!$BV$72)/(Vehicles!$J$30*(1/Vehicles!$BV$72+1/Vehicles!$BW$72)+Vehicles!$J$31/Vehicles!$BX$72)+K22*(Vehicles!$J$30/Vehicles!$BW$72+Vehicles!$J$31/Vehicles!$BX$72)/(Vehicles!$J$30*(1/Vehicles!$BV$72+1/Vehicles!$BW$72)+Vehicles!$J$31/Vehicles!$BX$72) -> 268.1251959 | Z22: =AN22*(Vehicles!$K$30/Vehicles!$BZ$72)/(Vehicles!$K$30*(1/Vehicles!$BZ$72+1/Vehicles!$CA$72)+Vehicles!$K$31/Vehicles!$CB$72)+O22*(Vehicles!$K$30/Vehicles!$CA$72+Vehicles!$K$31/Vehicles!$CB$72)/(Vehicles!$K$30*(1/Vehicles!$BZ$72+1/Vehicles!$CA$72)+Vehicles!$K$31/Vehicles!$CB$72) -> 178.3564135 | AA22: =AN22*(Vehicles!$L$30/Vehicles!$CD$72)/(Vehicles!$L$30*(1/Vehicles!$CD$72+1/Vehicles!$CE$72)+Vehicles!$L$31/Vehicles!$CF$72)+AO22*(Vehicles!$L$30/Vehicles!$CE$72+Vehicles!$L$31/Vehicles!$CF$72)/(Vehicles!$L$30*(1/Vehicles!$CD$72+1/Vehicles!$CE$72)+Vehicles!$L$31/Vehicles!$CF$72) -> 317.2859623 | AB22: =AN22*(Vehicles!$L$30/Vehicles!$CD$72)/(Vehicles!$L$30*(1/Vehicles!$CD$72+1/Vehicles!$CE$72)+Vehicles!$L$31/Vehicles!$CG$72)+AP22*(Vehicles!$L$30/Vehicles!$CE$72+Vehicles!$L$31/Vehicles!$CG$72)/(Vehicles!$L$30*(1/Vehicles!$CD$72+1/Vehicles!$CE$72)+Vehicles!$L$31/Vehicles!$CG$72) -> 367.294216 | AC22: =(MeOH_FTD!$AJ177*MeOH_FTD!$AK$162+MeOH_FTD!$AK177)/1000000*HLOOKUP($J$10,$Z$5:$AD$6,2,FALSE)/HLOOKUP($J$11,$Z$7:$AD$8,2,FALSE) -> 349.9235052 | AD22: =((1-Vehicles!$C$41)*(1-Vehicles!$C$13)*Fuel_Specs!$B$21/((1-Vehicles!$C$41)*(1-Vehicles!$C$13)*Fuel_Specs!$B$21+Vehicles!$C$41*(1-Vehicles!$C$13)*Fuel_Specs!$B$24+Vehicles!$C$13*Fuel_Specs!$B$42)*(Petroleum!B277*Petroleum!$J$262+Petroleum!$J277)+Vehicles!$C$41*(1-Vehicles!$C$13)*Fuel_Specs!$B$24/((1-Vehicles!$C$41)*(1-Vehicles!$C$13)*Fuel_Specs!$B$21+Vehicles!$C$41*(1-Vehicles!$C$13)*Fuel_Specs!$B$24+Vehicles!$C$13*Fuel_Specs!$B$42)*(Petroleum!B277*IF(Inputs!F$102=1,Petroleum!$K$262,Petroleum!$L$262)+IF(Inputs!F$102=1,Petroleum!$K277,Petroleum!$L277))+Vehicles!$C$13*Fuel_Specs!$B$42/((1-Vehicles!$C$41)*(1-Vehicles!$C$13)*Fuel_Specs!$B$21+Vehicles!$C$41*(1-Vehicles!$C$13)*Fuel_Specs!$B$24+Vehicles!$C$13*Fuel_Specs!$B$42)*(MeOH_FTD!$AZ177*MeOH_FTD!$BA$162+MeOH_FTD!$BA177))/1000000*HLOOKUP($J$10,$Z$5:$AD$6,2,FALSE)/HLOOKUP($J$11,$Z$7:$AD$8,2,FALSE) -> 360.8208721 | AE22: =((1-Vehicles!$C$42)*(1-Vehicles!$C$14)*Fuel_Specs!$B$21/((1-Vehicles!$C$42)*(1-Vehicles!$C$14)*Fuel_Specs!$B$21+Vehicles!$C$42*(1-Vehicles!$C$14)*Fuel_Specs!$B$24+Vehicles!$C$14*Fuel_Specs!$B$41)*(Petroleum!B277*Petroleum!$J$262+Petroleum!$J277)+Vehicles!$C$42*(1-Vehicles!$C$14)*Fuel_Specs!$B$24/((1-Vehicles!$C$42)*(1-Vehicles!$C$14)*Fuel_Specs!$B$21+Vehicles!$C$42*(1-Vehicles!$C$14)*Fuel_Specs!$B$24+Vehicles!$C$14*Fuel_Specs!$B$41)*(Petroleum!B277*IF(Inputs!F$102=1,Petroleum!$K$262,Petroleum!$L$262)+IF(Inputs!F$102=1,Petroleum!$K277,Petroleum!$L277))+Vehicles!$C$14*Fuel_Specs!$B$41/((1-Vehicles!$C$42)*(1-Vehicles!$C$14)*Fuel_Specs!$B$21+Vehicles!$C$42*(1-Vehicles!$C$14)*Fuel_Specs!$B$24+Vehicles!$C$14*Fuel_Specs!$B$41)*(BioOil!$Y447*BioOil!$Z$431+BioOil!$Z447))/1000000*HLOOKUP($J$10,$Z$5:$AD$6,2,FALSE)/HLOOKUP($J$11,$Z$7:$AD$8,2,FALSE) -> 103.844642 | AF22: =((1-Vehicles!$C$43)*(1-Vehicles!$C$15)*Fuel_Specs!$B$21/((1-Vehicles!$C$43)*(1-Vehicles!$C$15)*Fuel_Specs!$B$21+Vehicles!$C$43*(1-Vehicles!$C$15)*Fuel_Specs!$B$24+Vehicles!$C$15*IF(Inputs!$E$670=1,IF(Inputs!$E$670=1,Fuel_Specs!$B$43,IF(Inputs!$E$670=3,Fuel_Specs!$B$45,Fuel_Specs!$B$44)),Fuel_Specs!$B$44))*(Petroleum!B277*Petroleum!$J$262+Petroleum!$J277)+Vehicles!$C$43*(1-Vehicles!$C$15)*Fuel_Specs!$B$24/((1-Vehicles!$C$43)*(1-Vehicles!$C$15)*Fuel_Specs!$B$21+Vehicles!$C$43*(1-Vehicles!$C$15)*Fuel_Specs!$B$24+Vehicles!$C$15*IF(Inputs!$E$670=1,IF(Inputs!$E$670=1,Fuel_Specs!$B$43,IF(Inputs!$E$670=3,Fuel_Specs!$B$45,Fuel_Specs!$B$44)),Fuel_Specs!$B$44))*(Petroleum!B277*IF(Inputs!F$102=1,Petroleum!$K$262,Petroleum!$L$262)+IF(Inputs!F$102=1,Petroleum!$K277,Petroleum!$L277))+Vehicles!$C$15*IF(Inputs!$E$670=1,IF(Inputs!$E$670=1,Fuel_Specs!$B$43,IF(Inputs!$E$670=3,Fuel_Specs!$B$45,Fuel_Specs!$B$44)),Fuel_Specs!$B$44)/((1-Vehicles!$C$43)*(1-Vehicles!$C$15)*Fuel_Specs!$B$21+Vehicles!$C$43*(1-Vehicles!$C$15)*Fuel_Specs!$B$24+Vehicles!$C$15*IF(Inputs!$E$670=1,IF(Inputs!$E$670=1,Fuel_Specs!$B$43,IF(Inputs!$E$670=3,Fuel_Specs!$B$45,Fuel_Specs!$B$44)),Fuel_Specs!$B$44))*(BioOil!$BQ447*BioOil!$BR$431+BioOil!$BR447))/1000000*HLOOKUP($J$10,$Z$5:$AD$6,2,FALSE)/HLOOKUP($J$11,$Z$7:$AD$8,2,FALSE) -> 59.71389454 | AG22: =((1-Vehicles!$C$43)*(1-Vehicles!$C$15)*Fuel_Specs!$B$21/((1-Vehicles!$C$43)*(1-Vehicles!$C$15)*Fuel_Specs!$B$21+Vehicles!$C$43*(1-Vehicles!$C$15)*Fuel_Specs!$B$24+Vehicles!$C$15*IF(Inputs!$E$670=1,Fuel_Specs!$B$43,Fuel_Specs!$B$44))*(Petroleum!B277*Petroleum!$J$262+Petroleum!$J277)+Vehicles!$C$43*(1-Vehicles!$C$15)*Fuel_Specs!$B$24/((1-Vehicles!$C$43)*(1-Vehicles!$C$15)*Fuel_Specs!$B$21+Vehicles!$C$43*(1-Vehicles!$C$15)*Fuel_Specs!$B$24+Vehicles!$C$15*IF(Inputs!$E$670=1,Fuel_Specs!$B$43,Fuel_Specs!$B$44))*(Petroleum!B277*IF(Inputs!F$102=1,Petroleum!$K$262,Petroleum!$L$262)+IF(Inputs!F$102=1,Petroleum!$K277,Petroleum!$L277))+Vehicles!$C$15*IF(Inputs!$E$670=1,Fuel_Specs!$B$43,Fuel_Specs!$B$44)/((1-Vehicles!$C$43)*(1-Vehicles!$C$15)*Fuel_Specs!$B$21+Vehicles!$C$43*(1-Vehicles!$C$15)*Fuel_Specs!$B$24+Vehicles!$C$15*IF(Inputs!$E$670=1,Fuel_Specs!$B$43,Fuel_Specs!$B$44))*(Pyrolysis_IDL!$AF312*Pyrolysis_IDL!$AG$297+Pyrolysis_IDL!$AG312))/1000000*HLOOKUP($J$10,$Z$5:$AD$6,2,FALSE)/HLOOKUP($J$11,$Z$7:$AD$8,2,FALSE) -> 85.95660786 | AH22: =(((1-Vehicles!$C$44)*(1-Vehicles!$C$17-Vehicles!$C$18)*Fuel_Specs!$B$21*(Petroleum!B277*Petroleum!$J$262+Petroleum!$J277)+Vehicles!$C$44*(1-Vehicles!$C$17-Vehicles!$C$18)*Fuel_Specs!$B$24*(Petroleum!B277*IF(Inputs!F$102=1,Petroleum!$K$262,Petroleum!$L$262)+IF(Inputs!F$102=1,Petroleum!$K277,Petroleum!$L277))+Vehicles!$C$17*Fuel_Specs!$B$33*(EtOH!BT561*EtOH!$BU$546+EtOH!$BU561)+Vehicles!$C$18*Fuel_Specs!$B$36*('EtOH-Diesel Additives'!$B68*'EtOH-Diesel Additives'!$B$53))/((1-Vehicles!$C$44)*(1-Vehicles!$C$17-Vehicles!$C$18)*Fuel_Specs!$B$21+Vehicles!$C$44*(1-Vehicles!$C$17-Vehicles!$C$18)*Fuel_Specs!$B$24+Vehicles!$C$17*Fuel_Specs!$B$33+Vehicles!$C$18*Fuel_Specs!$B$36))/1000000*HLOOKUP($J$10,$Z$5:$AD$6,2,FALSE)/HLOOKUP($J$11,$Z$7:$AD$8,2,FALSE) -> 119.1389642 | AI22: =AN22*(Vehicles!$M$30/Vehicles!$CO$72)/(Vehicles!$M$30*(1/Vehicles!$CO$72+1/Vehicles!$CP$72)+Vehicles!$M$31/Vehicles!$CQ$72)+E22*(Vehicles!$M$30/Vehicles!$CP$72+Vehicles!$M$31/Vehicles!$CQ$72)/(Vehicles!$M$30*(1/Vehicles!$CO$72+1/Vehicles!$CP$72)+Vehicles!$M$31/Vehicles!$CQ$72) -> 150.6955485 | AJ22: =AN22*(Vehicles!$N$30/Vehicles!$CS$72)/(Vehicles!$N$30*(1/Vehicles!$CS$72+1/Vehicles!$CT$72)+Vehicles!$N$31/Vehicles!$CU$72)+AC22*(Vehicles!$N$30/Vehicles!$CT$72+Vehicles!$N$31/Vehicles!$CU$72)/(Vehicles!$N$30*(1/Vehicles!$CS$72+1/Vehicles!$CT$72)+Vehicles!$N$31/Vehicles!$CU$72) -> 314.3421751 | AK22: =AN22*(Vehicles!$O$30/Vehicles!$CW$72)/(Vehicles!$O$30*(1/Vehicles!$CW$72+1/Vehicles!$CX$72)+Vehicles!$O$31/Vehicles!$CY$72)+AD22*(Vehicles!$O$30/Vehicles!$CX$72+Vehicles!$O$31/Vehicles!$CY$72)/(Vehicles!$O$30*(1/Vehicles!$CW$72+1/Vehicles!$CX$72)+Vehicles!$O$31/Vehicles!$CY$72) -> 322.0019359 | AL22: =AN22*(Vehicles!$P$30/Vehicles!$DA$72)/(Vehicles!$P$30*(1/Vehicles!$DA$72+1/Vehicles!$DB$72)+Vehicles!$P$31/Vehicles!$DC$72)+AE22*(Vehicles!$P$30/Vehicles!$DB$72+Vehicles!$P$31/Vehicles!$DC$72)/(Vehicles!$P$30*(1/Vehicles!$DA$72+1/Vehicles!$DB$72)+Vehicles!$P$31/Vehicles!$DC$72) -> 141.3733075 | AM22: =AN22*(Vehicles!$R$30/Vehicles!$DI$72)/(Vehicles!$R$30*(1/Vehicles!$DI$72+1/Vehicles!$DJ$72)+Vehicles!$R$31/Vehicles!$DK$72)+AH22*(Vehicles!$R$30/Vehicles!$DJ$72+Vehicles!$R$31/Vehicles!$DK$72)/(Vehicles!$R$30*(1/Vehicles!$DI$72+1/Vehicles!$DJ$72)+Vehicles!$R$31/Vehicles!$DK$72) -> 152.1236887 | AN22: =(Electric!$G218+Electric!$F218)/1000000*HLOOKUP($J$10,$Z$5:$AD$6,2,FALSE)/HLOOKUP($J$11,$Z$7:$AD$8,2,FALSE) -> 230.1613142 | AO22: =(Hydrogen!$AJ320*Hydrogen!$AK$305+Hydrogen!$AK320)/1000000*HLOOKUP($J$10,$Z$5:$AD$6,2,FALSE)/HLOOKUP($J$11,$Z$7:$AD$8,2,FALSE) -> 370.201957 | AP22: =(Hydrogen!$BT320*Hydrogen!$BU$305+Hydrogen!$BU320)/1000000*HLOOKUP($J$10,$Z$5:$AD$6,2,FALSE)/HLOOKUP($J$11,$Z$7:$AD$8,2,FALSE) -> 450.5832057 | AQ22: =AN22*(Vehicles!$S$30/Vehicles!$DY$72)/(Vehicles!$S$30*(1/Vehicles!$DY$72+1/Vehicles!$DZ$72)+Vehicles!$S$31/Vehicles!$EA$72)+AO22*(Vehicles!$S$30/Vehicles!$DZ$72+Vehicles!$S$31/Vehicles!$EA$72)/(Vehicles!$S$30*(1/Vehicles!$DY$72+1/Vehicles!$DZ$72)+Vehicles!$S$31/Vehicles!$EA$72) -> 313.5554485 | AR22: =AN22*(Vehicles!$S$30/Vehicles!$DY$72)/(Vehicles!$S$30*(1/Vehicles!$DY$72+1/Vehicles!$DZ$72)+Vehicles!$S$31/Vehicles!$EA$72)+AP22*(Vehicles!$S$30/Vehicles!$DZ$72+Vehicles!$S$31/Vehicles!$EA$72)/(Vehicles!$S$30*(1/Vehicles!$DY$72+1/Vehicles!$DZ$72)+Vehicles!$S$31/Vehicles!$EA$72) -> 361.4224428 | AS22: =((1-Vehicles!$C$40)*(1-Vehicles!$C$16)*Fuel_Specs!$B$15/((1-Vehicles!$C$40)*(1-Vehicles!$C$16)*Fuel_Specs!$B$15+Vehicles!$C$40*(1-Vehicles!$C$16)*Fuel_Specs!$B$17+Vehicles!$C$16*Fuel_Specs!$B$48)*(Petroleum!$B277*Petroleum!$D$262+Petroleum!$D277)+Vehicles!$C$40*(1-Vehicles!$C$16)*Fuel_Specs!$B$17/((1-Vehicles!$C$40)*(1-Vehicles!$C$16)*Fuel_Specs!$B$15+Vehicles!$C$40*(1-Vehicles!$C$16)*Fuel_Specs!$B$17+Vehicles!$C$16*Fuel_Specs!$B$48)*(Petroleum!B277*Petroleum!$F$262+Petroleum!$F277)+Vehicles!$C$16*Fuel_Specs!$B$48/((1-Vehicles!$C$40)*(1-Vehicles!$C$16)*Fuel_Specs!$B$15+Vehicles!$C$40*(1-Vehicles!$C$16)*Fuel_Specs!$B$17+Vehicles!$C$16*Fuel_Specs!$B$48)*(Pyrolysis_IDL!$AP312*Pyrolysis_IDL!$AQ$297+Pyrolysis_IDL!$AQ312))/1000000*HLOOKUP($J$10,$Z$5:$AD$6,2,FALSE)/HLOOKUP($J$11,$Z$7:$AD$8,2,FALSE) -> 36.62194981 | AT22: =(Petroleum!$B277*Petroleum!$S$262+Petroleum!$S277)/1000000*HLOOKUP($J$10,$Z$5:$AD$6,2,FALSE)/HLOOKUP($J$11,$Z$7:$AD$8,2,FALSE) -> 120.6189335 | AU22: 117.946696 | AV22: 58.35263041 | BB22: SI - LNG Vehicle | BC22: RNAVLNG | BH22: CIDI - PUP-derived Diesel | BI22: RNAVNRPDIESELCIDI | BK22: SI HEV - MeOH | BL22: RNAVHEVMEOH | BN22: SI PHEV - MeOH and Electricity | BO22: RNAVPHEVMEOH
A23: N2O | B23: =(Inputs!$E$1518*(Petroleum!$B278*Petroleum!$F$262+Petroleum!$F278)+(1-Inputs!$E$1518)*(Petroleum!$B278*Petroleum!$D$262+Petroleum!$D278))/1000000*HLOOKUP($J$10,$Z$5:$AD$6,2,FALSE)/HLOOKUP($J$11,$Z$7:$AD$8,2,FALSE) -> 2.706654233 | C23: =(Petroleum!$C278*Petroleum!$G$262+Petroleum!$G278)/1000000*HLOOKUP($J$10,$Z$5:$AD$6,2,FALSE)/HLOOKUP($J$11,$Z$7:$AD$8,2,FALSE) -> 2.635154459 | D23: =((1-Vehicles!$C$35)*(1-Vehicles!$C$7)*Fuel_Specs!$B$15/((1-Vehicles!$C$35)*(1-Vehicles!$C$7)*Fuel_Specs!$B$15+Vehicles!$C$35*(1-Vehicles!$C$7)*Fuel_Specs!$B$17+Vehicles!$C$7*Fuel_Specs!$B$33)*(Petroleum!$B278*Petroleum!$D$262+(Petroleum!$D278-'T&D'!G231))+Vehicles!$C$35*(1-Vehicles!$C$7)*Fuel_Specs!$B$17/((1-Vehicles!$C$35)*(1-Vehicles!$C$7)*Fuel_Specs!$B$15+Vehicles!$C$35*(1-Vehicles!$C$7)*Fuel_Specs!$B$17+Vehicles!$C$7*Fuel_Specs!$B$33)*(Petroleum!B278*Petroleum!$F$262+Petroleum!$F278)+Vehicles!$C$7*Fuel_Specs!$B$33/((1-Vehicles!$C$35)*(1-Vehicles!$C$7)*Fuel_Specs!$B$15+Vehicles!$C$35*(1-Vehicles!$C$7)*Fuel_Specs!$B$17+Vehicles!$C$7*Fuel_Specs!$B$33)*(EtOH!BV562*EtOH!$BW$546+EtOH!$BW562)+Petroleum!AS140+Petroleum!AT140)/1000000*HLOOKUP($J$10,$Z$5:$AD$6,2,FALSE)/HLOOKUP($J$11,$Z$7:$AD$8,2,FALSE) -> 2.706654233 | E23: =(Inputs!$E$97*(IF(Inputs!F$102=1,Petroleum!$B278,Petroleum!$C278)*IF(Inputs!F$102=1,Petroleum!$K$262,Petroleum!$L$262)+IF(Inputs!F$102=1,Petroleum!$K278,Petroleum!$L278))+(1-Inputs!$E$97)*(IF(Inputs!F$101=1,Petroleum!$B278,Petroleum!$C278)*Petroleum!$J$262+Petroleum!$J278))/1000000*HLOOKUP($J$10,$Z$5:$AD$6,2,FALSE)/HLOOKUP($J$11,$Z$7:$AD$8,2,FALSE) -> 0.2382984108 | F23: =(NG!$J100*NG!$K$84+NG!$K100)/1000000*HLOOKUP($J$10,$Z$5:$AD$6,2,FALSE)/HLOOKUP($J$11,$Z$7:$AD$8,2,FALSE) -> 2.150209736 | G23: =(NG!$R100*NG!$S$84+NG!$S100)/1000000*HLOOKUP($J$10,$Z$5:$AD$6,2,FALSE)/HLOOKUP($J$11,$Z$7:$AD$8,2,FALSE) -> 0.187025795 | H23: =(NG!$X100*NG!$Y$84+NG!$Y100)/1000000*HLOOKUP($J$10,$Z$5:$AD$6,2,FALSE)/HLOOKUP($J$11,$Z$7:$AD$8,2,FALSE) -> 0.1903434013 | I23: =(MeOH_FTD!BJ178*MeOH_FTD!BK$162+MeOH_FTD!BK178)/1000000*HLOOKUP($J$10,$Z$5:$AD$6,2,FALSE)/HLOOKUP($J$11,$Z$7:$AD$8,2,FALSE) -> 0.1349425846 | J23: =((1-Vehicles!$C$34)*(1-Vehicles!$C$5)*Fuel_Specs!$B$15/((1-Vehicles!$C$34)*(1-Vehicles!$C$5)*Fuel_Specs!$B$15+Vehicles!$C$34*(1-Vehicles!$C$5)*Fuel_Specs!$B$17+Vehicles!$C$5*Fuel_Specs!$B$32)*(Petroleum!$B278*Petroleum!$D$262+Petroleum!$D278)+Vehicles!$C$34*(1-Vehicles!$C$5)*Fuel_Specs!$B$17/((1-Vehicles!$C$34)*(1-Vehicles!$C$5)*Fuel_Specs!$B$15+Vehicles!$C$34*(1-Vehicles!$C$5)*Fuel_Specs!$B$17+Vehicles!$C$5*Fuel_Specs!$B$32)*(Petroleum!B278*Petroleum!$F$262+Petroleum!$F278)+Vehicles!$C$5*Fuel_Specs!$B$32/((1-Vehicles!$C$34)*(1-Vehicles!$C$5)*Fuel_Specs!$B$15+Vehicles!$C$34*(1-Vehicles!$C$5)*Fuel_Specs!$B$17+Vehicles!$C$5*Fuel_Specs!$B$32)*(MeOH_FTD!$N178*MeOH_FTD!$O$162+MeOH_FTD!$O178))/1000000*HLOOKUP($J$10,$Z$5:$AD$6,2,FALSE)/HLOOKUP($J$11,$Z$7:$AD$8,2,FALSE) -> 0.3286797741 | K23: =((1-Vehicles!$C$34)*(1-Vehicles!$C$6)*Fuel_Specs!$B$15/((1-Vehicles!$C$34)*(1-Vehicles!$C$6)*Fuel_Specs!$B$15+Vehicles!$C$34*(1-Vehicles!$C$6)*Fuel_Specs!$B$17+Vehicles!$C$6*Fuel_Specs!$B$32)*(Petroleum!$B278*Petroleum!$D$262+Petroleum!$D278)+Vehicles!$C$34*(1-Vehicles!$C$6)*Fuel_Specs!$B$17/((1-Vehicles!$C$34)*(1-Vehicles!$C$6)*Fuel_Specs!$B$15+Vehicles!$C$34*(1-Vehicles!$C$6)*Fuel_Specs!$B$17+Vehicles!$C$6*Fuel_Specs!$B$32)*(Petroleum!B278*Petroleum!$F$262+Petroleum!$F278)+Vehicles!$C$6*Fuel_Specs!$B$32/((1-Vehicles!$C$34)*(1-Vehicles!$C$6)*Fuel_Specs!$B$15+Vehicles!$C$34*(1-Vehicles!$C$6)*Fuel_Specs!$B$17+Vehicles!$C$6*Fuel_Specs!$B$32)*(MeOH_FTD!$N178*MeOH_FTD!$O$162+MeOH_FTD!$O178))/1000000*HLOOKUP($J$10,$Z$5:$AD$6,2,FALSE)/HLOOKUP($J$11,$Z$7:$AD$8,2,FALSE) -> 0.3318311722 | L23: =(MeOH_FTD!$N178*MeOH_FTD!$O$162+MeOH_FTD!$O178)/1000000*HLOOKUP($J$10,$Z$5:$AD$6,2,FALSE)/HLOOKUP($J$11,$Z$7:$AD$8,2,FALSE) -> 0.3391056449 | M23: =((1-Vehicles!$C$36)*(1-Vehicles!$C$8)*Fuel_Specs!$B$15/((1-Vehicles!$C$36)*(1-Vehicles!$C$8)*Fuel_Specs!$B$15+Vehicles!$C$36*(1-Vehicles!$C$8)*Fuel_Specs!$B$17+Vehicles!$C$8*Fuel_Specs!$B$33)*(Petroleum!$B278*Petroleum!$D$262+(Petroleum!$D278-'T&D'!G231))+Vehicles!$C$36*(1-Vehicles!$C$8)*Fuel_Specs!$B$17/((1-Vehicles!$C$36)*(1-Vehicles!$C$8)*Fuel_Specs!$B$15+Vehicles!$C$36*(1-Vehicles!$C$8)*Fuel_Specs!$B$17+Vehicles!$C$8*Fuel_Specs!$B$33)*(Petroleum!B278*Petroleum!$F$262+Petroleum!$F278)+Vehicles!$C$8*Fuel_Specs!$B$33/((1-Vehicles!$C$36)*(1-Vehicles!$C$8)*Fuel_Specs!$B$15+Vehicles!$C$36*(1-Vehicles!$C$8)*Fuel_Specs!$B$17+Vehicles!$C$8*Fuel_Specs!$B$33)*(EtOH!BV562*EtOH!$BW$546+EtOH!$BW562)+Petroleum!AS140+Petroleum!AT140)/1000000*HLOOKUP($J$10,$Z$5:$AD$6,2,FALSE)/HLOOKUP($J$11,$Z$7:$AD$8,2,FALSE) -> 27.96966311 | N23: =((1-Vehicles!$C$37)*(1-Vehicles!$C$12)*Fuel_Specs!$B$15/((1-Vehicles!$C$37)*(1-Vehicles!$C$12)*Fuel_Specs!$B$15+Vehicles!$C$37*(1-Vehicles!$C$12)*Fuel_Specs!$B$17+Vehicles!$C$12*Fuel_Specs!$B$34)*(Petroleum!$B278*Petroleum!$D$262+Petroleum!$D278)+Vehicles!$C$37*(1-Vehicles!$C$12)*Fuel_Specs!$B$17/((1-Vehicles!$C$37)*(1-Vehicles!$C$12)*Fuel_Specs!$B$15+Vehicles!$C$37*(1-Vehicles!$C$12)*Fuel_Specs!$B$17+Vehicles!$C$12*Fuel_Specs!$B$34)*(Petroleum!B278*Petroleum!$F$262+Petroleum!$F278)+Vehicles!$C$12*Fuel_Specs!$B$34/((1-Vehicles!$C$37)*(1-Vehicles!$C$12)*Fuel_Specs!$B$15+Vehicles!$C$37*(1-Vehicles!$C$12)*Fuel_Specs!$B$17+Vehicles!$C$12*Fuel_Specs!$B$34)*(EtOH!$BX562*EtOH!$BY$546+EtOH!$BY562))/1000000*HLOOKUP($J$10,$Z$5:$AD$6,2,FALSE)/HLOOKUP($J$11,$Z$7:$AD$8,2,FALSE) -> 33.98188936 | O23: =((1-Vehicles!$C$36)*(1-Vehicles!$C$9)*Fuel_Specs!$B$15/((1-Vehicles!$C$36)*(1-Vehicles!$C$9)*Fuel_Specs!$B$15+Vehicles!$C$36*(1-Vehicles!$C$9)*Fuel_Specs!$B$17+Vehicles!$C$9*Fuel_Specs!$B$33)*(Petroleum!$B278*Petroleum!$D$262+(Petroleum!$D278-'T&D'!G231))+Vehicles!$C$36*(1-Vehicles!$C$9)*Fuel_Specs!$B$17/((1-Vehicles!$C$36)*(1-Vehicles!$C$9)*Fuel_Specs!$B$15+Vehicles!$C$36*(1-Vehicles!$C$9)*Fuel_Specs!$B$17+Vehicles!$C$9*Fuel_Specs!$B$33)*(Petroleum!B278*Petroleum!$F$262+Petroleum!$F278)+Vehicles!$C$9*Fuel_Specs!$B$33/((1-Vehicles!$C$36)*(1-Vehicles!$C$9)*Fuel_Specs!$B$15+Vehicles!$C$36*(1-Vehicles!$C$9)*Fuel_Specs!$B$17+Vehicles!$C$9*Fuel_Specs!$B$33)*(EtOH!BV562*EtOH!$BW$546+EtOH!$BW562)+Petroleum!AS140+Petroleum!AT140)/1000000*HLOOKUP($J$10,$Z$5:$AD$6,2,FALSE)/HLOOKUP($J$11,$Z$7:$AD$8,2,FALSE) -> 27.96966311 | P23: =(EtOH!$BT562*EtOH!$BU$546+EtOH!$BU562)/1000000*HLOOKUP($J$10,$Z$5:$AD$6,2,FALSE)/HLOOKUP($J$11,$Z$7:$AD$8,2,FALSE) -> 36.40690926 | Q23: =((1-Vehicles!$C$40)*(1-Vehicles!$C$16)*Fuel_Specs!$B$15/((1-Vehicles!$C$40)*(1-Vehicles!$C$16)*Fuel_Specs!$B$15+Vehicles!$C$40*(1-Vehicles!$C$16)*Fuel_Specs!$B$17+Vehicles!$C$16*Fuel_Specs!$B$47)*(Petroleum!$B278*Petroleum!$D$262+Petroleum!$D278)+Vehicles!$C$40*(1-Vehicles!$C$16)*Fuel_Specs!$B$17/((1-Vehicles!$C$40)*(1-Vehicles!$C$16)*Fuel_Specs!$B$15+Vehicles!$C$40*(1-Vehicles!$C$16)*Fuel_Specs!$B$17+Vehicles!$C$16*Fuel_Specs!$B$47)*(Petroleum!B278*Petroleum!$F$262+Petroleum!$F278)+Vehicles!$C$16*Fuel_Specs!$B$47/((1-Vehicles!$C$40)*(1-Vehicles!$C$16)*Fuel_Specs!$B$15+Vehicles!$C$40*(1-Vehicles!$C$16)*Fuel_Specs!$B$17+Vehicles!$C$16*Fuel_Specs!$B$47)*(BioOil!$CE448*BioOil!$CF$431+BioOil!$CF448))/1000000*HLOOKUP($J$10,$Z$5:$AD$6,2,FALSE)/HLOOKUP($J$11,$Z$7:$AD$8,2,FALSE) -> 23.88244718 | R23: =((1-Vehicles!$C$40)*(1-Vehicles!$C$16)*Fuel_Specs!$B$15/((1-Vehicles!$C$40)*(1-Vehicles!$C$16)*Fuel_Specs!$B$15+Vehicles!$C$40*(1-Vehicles!$C$16)*Fuel_Specs!$B$17+Vehicles!$C$16*Fuel_Specs!$B$47)*(Petroleum!$B278*Petroleum!$D$262+Petroleum!$D278)+Vehicles!$C$40*(1-Vehicles!$C$16)*Fuel_Specs!$B$17/((1-Vehicles!$C$40)*(1-Vehicles!$C$16)*Fuel_Specs!$B$15+Vehicles!$C$40*(1-Vehicles!$C$16)*Fuel_Specs!$B$17+Vehicles!$C$16*Fuel_Specs!$B$47)*(Petroleum!B278*Petroleum!$F$262+Petroleum!$F278)+Vehicles!$C$16*Fuel_Specs!$B$47/((1-Vehicles!$C$40)*(1-Vehicles!$C$16)*Fuel_Specs!$B$15+Vehicles!$C$40*(1-Vehicles!$C$16)*Fuel_Specs!$B$17+Vehicles!$C$16*Fuel_Specs!$B$47)*(Pyrolysis_IDL!$AD313*Pyrolysis_IDL!$AE$297+Pyrolysis_IDL!$AE313))/1000000*HLOOKUP($J$10,$Z$5:$AD$6,2,FALSE)/HLOOKUP($J$11,$Z$7:$AD$8,2,FALSE) -> 0.4354699623 | S23: =AN23*(Vehicles!$C$30/Vehicles!$AT$72)/(Vehicles!$C$30*(1/Vehicles!$AT$72+1/Vehicles!$AU$72)+Vehicles!$C$31/Vehicles!$AV$72)+B23*(Vehicles!$C$30/Vehicles!$AU$72+Vehicles!$C$31/Vehicles!$AV$72)/(Vehicles!$C$30*(1/Vehicles!$AT$72+1/Vehicles!$AU$72)+Vehicles!$C$31/Vehicles!$AV$72) -> 2.483880384 | T23: =AN23*(Vehicles!$D$30/Vehicles!$AX$72)/(Vehicles!$D$30*(1/Vehicles!$AX$72+1/Vehicles!$AY$72)+Vehicles!$D$31/Vehicles!$AZ$72)+C23*(Vehicles!$D$30/Vehicles!$AY$72+Vehicles!$D$31/Vehicles!$AZ$72)/(Vehicles!$D$30*(1/Vehicles!$AX$72+1/Vehicles!$AY$72)+Vehicles!$D$31/Vehicles!$AZ$72) -> 2.439397635 | U23: =AN23*(Vehicles!$F$30/Vehicles!$BF$72)/(Vehicles!$F$30*(1/Vehicles!$BF$72+1/Vehicles!$BG$72)+Vehicles!$F$31/Vehicles!$BH$72)+D23*(Vehicles!$F$30/Vehicles!$BG$72+Vehicles!$F$31/Vehicles!$BH$72)/(Vehicles!$F$30*(1/Vehicles!$BF$72+1/Vehicles!$BG$72)+Vehicles!$F$31/Vehicles!$BH$72) -> 2.483880384 | V23: =AN23*(Vehicles!$G$30/Vehicles!$BJ$72)/(Vehicles!$G$30*(1/Vehicles!$BJ$72+1/Vehicles!$BK$72)+Vehicles!$G$31/Vehicles!$BL$72)+F23*(Vehicles!$G$30/Vehicles!$BK$72+Vehicles!$G$31/Vehicles!$BL$72)/(Vehicles!$G$30*(1/Vehicles!$BJ$72+1/Vehicles!$BK$72)+Vehicles!$G$31/Vehicles!$BL$72) -> 2.137694948 | W23: =AN23*(Vehicles!$H$30/Vehicles!$BN$72)/(Vehicles!$H$30*(1/Vehicles!$BN$72+1/Vehicles!$BO$72)+Vehicles!$H$31/Vehicles!$BP$72)+G23*(Vehicles!$H$30/Vehicles!$BO$72+Vehicles!$H$31/Vehicles!$BP$72)/(Vehicles!$H$30*(1/Vehicles!$BN$72+1/Vehicles!$BO$72)+Vehicles!$H$31/Vehicles!$BP$72) -> 0.9163230194 | X23: =AN23*(Vehicles!$I$30/Vehicles!$BR$72)/(Vehicles!$I$30*(1/Vehicles!$BR$72+1/Vehicles!$BS$72)+Vehicles!$I$31/Vehicles!$BT$72)+H23*(Vehicles!$I$30/Vehicles!$BS$72+Vehicles!$I$31/Vehicles!$BT$72)/(Vehicles!$I$30*(1/Vehicles!$BR$72+1/Vehicles!$BS$72)+Vehicles!$I$31/Vehicles!$BT$72) -> 0.9183870293 | Y23: =AN23*(Vehicles!$J$30/Vehicles!$BV$72)/(Vehicles!$J$30*(1/Vehicles!$BV$72+1/Vehicles!$BW$72)+Vehicles!$J$31/Vehicles!$BX$72)+K23*(Vehicles!$J$30/Vehicles!$BW$72+Vehicles!$J$31/Vehicles!$BX$72)/(Vehicles!$J$30*(1/Vehicles!$BV$72+1/Vehicles!$BW$72)+Vehicles!$J$31/Vehicles!$BX$72) -> 1.006411991 | Z23: =AN23*(Vehicles!$K$30/Vehicles!$BZ$72)/(Vehicles!$K$30*(1/Vehicles!$BZ$72+1/Vehicles!$CA$72)+Vehicles!$K$31/Vehicles!$CB$72)+O23*(Vehicles!$K$30/Vehicles!$CA$72+Vehicles!$K$31/Vehicles!$CB$72)/(Vehicles!$K$30*(1/Vehicles!$BZ$72+1/Vehicles!$CA$72)+Vehicles!$K$31/Vehicles!$CB$72) -> 18.20096589 | AA23: =AN23*(Vehicles!$L$30/Vehicles!$CD$72)/(Vehicles!$L$30*(1/Vehicles!$CD$72+1/Vehicles!$CE$72)+Vehicles!$L$31/Vehicles!$CF$72)+AO23*(Vehicles!$L$30/Vehicles!$CE$72+Vehicles!$L$31/Vehicles!$CF$72)/(Vehicles!$L$30*(1/Vehicles!$CD$72+1/Vehicles!$CE$72)+Vehicles!$L$31/Vehicles!$CF$72) -> 2.024676152 | AB23: =AN23*(Vehicles!$L$30/Vehicles!$CD$72)/(Vehicles!$L$30*(1/Vehicles!$CD$72+1/Vehicles!$CE$72)+Vehicles!$L$31/Vehicles!$CG$72)+AP23*(Vehicles!$L$30/Vehicles!$CE$72+Vehicles!$L$31/Vehicles!$CG$72)/(Vehicles!$L$30*(1/Vehicles!$CD$72+1/Vehicles!$CE$72)+Vehicles!$L$31/Vehicles!$CG$72) -> 2.464416411 | AC23: =(MeOH_FTD!$AJ178*MeOH_FTD!$AK$162+MeOH_FTD!$AK178)/1000000*HLOOKUP($J$10,$Z$5:$AD$6,2,FALSE)/HLOOKUP($J$11,$Z$7:$AD$8,2,FALSE) -> 0.4540673007 | AD23: =((1-Vehicles!$C$41)*(1-Vehicles!$C$13)*Fuel_Specs!$B$21/((1-Vehicles!$C$41)*(1-Vehicles!$C$13)*Fuel_Specs!$B$21+Vehicles!$C$41*(1-Vehicles!$C$13)*Fuel_Specs!$B$24+Vehicles!$C$13*Fuel_Specs!$B$42)*(Petroleum!B278*Petroleum!$J$262+Petroleum!$J278)+Vehicles!$C$41*(1-Vehicles!$C$13)*Fuel_Specs!$B$24/((1-Vehicles!$C$41)*(1-Vehicles!$C$13)*Fuel_Specs!$B$21+Vehicles!$C$41*(1-Vehicles!$C$13)*Fuel_Specs!$B$24+Vehicles!$C$13*Fuel_Specs!$B$42)*(Petroleum!B278*IF(Inputs!F$102=1,Petroleum!$K$262,Petroleum!$L$262)+IF(Inputs!F$102=1,Petroleum!$K278,Petroleum!$L278))+Vehicles!$C$13*Fuel_Specs!$B$42/((1-Vehicles!$C$41)*(1-Vehicles!$C$13)*Fuel_Specs!$B$21+Vehicles!$C$41*(1-Vehicles!$C$13)*Fuel_Specs!$B$24+Vehicles!$C$13*Fuel_Specs!$B$42)*(MeOH_FTD!$AZ178*MeOH_FTD!$BA$162+MeOH_FTD!$BA178))/1000000*HLOOKUP($J$10,$Z$5:$AD$6,2,FALSE)/HLOOKUP($J$11,$Z$7:$AD$8,2,FALSE) -> 0.2279166737 | AE23: =((1-Vehicles!$C$42)*(1-Vehicles!$C$14)*Fuel_Specs!$B$21/((1-Vehicles!$C$42)*(1-Vehicles!$C$14)*Fuel_Specs!$B$21+Vehicles!$C$42*(1-Vehicles!$C$14)*Fuel_Specs!$B$24+Vehicles!$C$14*Fuel_Specs!$B$41)*(Petroleum!B278*Petroleum!$J$262+Petroleum!$J278)+Vehicles!$C$42*(1-Vehicles!$C$14)*Fuel_Specs!$B$24/((1-Vehicles!$C$42)*(1-Vehicles!$C$14)*Fuel_Specs!$B$21+Vehicles!$C$42*(1-Vehicles!$C$14)*Fuel_Specs!$B$24+Vehicles!$C$14*Fuel_Specs!$B$41)*(Petroleum!B278*IF(Inputs!F$102=1,Petroleum!$K$262,Petroleum!$L$262)+IF(Inputs!F$102=1,Petroleum!$K278,Petroleum!$L278))+Vehicles!$C$14*Fuel_Specs!$B$41/((1-Vehicles!$C$42)*(1-Vehicles!$C$14)*Fuel_Specs!$B$21+Vehicles!$C$42*(1-Vehicles!$C$14)*Fuel_Specs!$B$24+Vehicles!$C$14*Fuel_Specs!$B$41)*(BioOil!$Y448*BioOil!$Z$431+BioOil!$Z448))/1000000*HLOOKUP($J$10,$Z$5:$AD$6,2,FALSE)/HLOOKUP($J$11,$Z$7:$AD$8,2,FALSE) -> 4.512033644 | AF23: =((1-Vehicles!$C$43)*(1-Vehicles!$C$15)*Fuel_Specs!$B$21/((1-Vehicles!$C$43)*(1-Vehicles!$C$15)*Fuel_Specs!$B$21+Vehicles!$C$43*(1-Vehicles!$C$15)*Fuel_Specs!$B$24+Vehicles!$C$15*IF(Inputs!$E$670=1,IF(Inputs!$E$670=1,Fuel_Specs!$B$43,IF(Inputs!$E$670=3,Fuel_Specs!$B$45,Fuel_Specs!$B$44)),Fuel_Specs!$B$44))*(Petroleum!B278*Petroleum!$J$262+Petroleum!$J278)+Vehicles!$C$43*(1-Vehicles!$C$15)*Fuel_Specs!$B$24/((1-Vehicles!$C$43)*(1-Vehicles!$C$15)*Fuel_Specs!$B$21+Vehicles!$C$43*(1-Vehicles!$C$15)*Fuel_Specs!$B$24+Vehicles!$C$15*IF(Inputs!$E$670=1,IF(Inputs!$E$670=1,Fuel_Specs!$B$43,IF(Inputs!$E$670=3,Fuel_Specs!$B$45,Fuel_Specs!$B$44)),Fuel_Specs!$B$44))*(Petroleum!B278*IF(Inputs!F$102=1,Petroleum!$K$262,Petroleum!$L$262)+IF(Inputs!F$102=1,Petroleum!$K278,Petroleum!$L278))+Vehicles!$C$15*IF(Inputs!$E$670=1,IF(Inputs!$E$670=1,Fuel_Specs!$B$43,IF(Inputs!$E$670=3,Fuel_Specs!$B$45,Fuel_Specs!$B$44)),Fuel_Specs!$B$44)/((1-Vehicles!$C$43)*(1-Vehicles!$C$15)*Fuel_Specs!$B$21+Vehicles!$C$43*(1-Vehicles!$C$15)*Fuel_Specs!$B$24+Vehicles!$C$15*IF(Inputs!$E$670=1,IF(Inputs!$E$670=1,Fuel_Specs!$B$43,IF(Inputs!$E$670=3,Fuel_Specs!$B$45,Fuel_Specs!$B$44)),Fuel_Specs!$B$44))*(BioOil!$BQ448*BioOil!$BR$431+BioOil!$BR448))/1000000*HLOOKUP($J$10,$Z$5:$AD$6,2,FALSE)/HLOOKUP($J$11,$Z$7:$AD$8,2,FALSE) -> 23.1156876 | AG23: =((1-Vehicles!$C$43)*(1-Vehicles!$C$15)*Fuel_Specs!$B$21/((1-Vehicles!$C$43)*(1-Vehicles!$C$15)*Fuel_Specs!$B$21+Vehicles!$C$43*(1-Vehicles!$C$15)*Fuel_Specs!$B$24+Vehicles!$C$15*IF(Inputs!$E$670=1,Fuel_Specs!$B$43,Fuel_Specs!$B$44))*(Petroleum!B278*Petroleum!$J$262+Petroleum!$J278)+Vehicles!$C$43*(1-Vehicles!$C$15)*Fuel_Specs!$B$24/((1-Vehicles!$C$43)*(1-Vehicles!$C$15)*Fuel_Specs!$B$21+Vehicles!$C$43*(1-Vehicles!$C$15)*Fuel_Specs!$B$24+Vehicles!$C$15*IF(Inputs!$E$670=1,Fuel_Specs!$B$43,Fuel_Specs!$B$44))*(Petroleum!B278*IF(Inputs!F$102=1,Petroleum!$K$262,Petroleum!$L$262)+IF(Inputs!F$102=1,Petroleum!$K278,Petroleum!$L278))+Vehicles!$C$15*IF(Inputs!$E$670=1,Fuel_Specs!$B$43,Fuel_Specs!$B$44)/((1-Vehicles!$C$43)*(1-Vehicles!$C$15)*Fuel_Specs!$B$21+Vehicles!$C$43*(1-Vehicles!$C$15)*Fuel_Specs!$B$24+Vehicles!$C$15*IF(Inputs!$E$670=1,Fuel_Specs!$B$43,Fuel_Specs!$B$44))*(Pyrolysis_IDL!$AF313*Pyrolysis_IDL!$AG$297+Pyrolysis_IDL!$AG313))/1000000*HLOOKUP($J$10,$Z$5:$AD$6,2,FALSE)/HLOOKUP($J$11,$Z$7:$AD$8,2,FALSE) -> 0.4658738901 | AH23: =(((1-Vehicles!$C$44)*(1-Vehicles!$C$17-Vehicles!$C$18)*Fuel_Specs!$B$21*(Petroleum!B278*Petroleum!$J$262+Petroleum!$J278)+Vehicles!$C$44*(1-Vehicles!$C$17-Vehicles!$C$18)*Fuel_Specs!$B$24*(Petroleum!B278*IF(Inputs!F$102=1,Petroleum!$K$262,Petroleum!$L$262)+IF(Inputs!F$102=1,Petroleum!$K278,Petroleum!$L278))+Vehicles!$C$17*Fuel_Specs!$B$33*(EtOH!BT562*EtOH!$BU$546+EtOH!$BU562)+Vehicles!$C$18*Fuel_Specs!$B$36*('EtOH-Diesel Additives'!$B69*'EtOH-Diesel Additives'!$B$53))/((1-Vehicles!$C$44)*(1-Vehicles!$C$17-Vehicles!$C$18)*Fuel_Specs!$B$21+Vehicles!$C$44*(1-Vehicles!$C$17-Vehicles!$C$18)*Fuel_Specs!$B$24+Vehicles!$C$17*Fuel_Specs!$B$33+Vehicles!$C$18*Fuel_Specs!$B$36))/1000000*HLOOKUP($J$10,$Z$5:$AD$6,2,FALSE)/HLOOKUP($J$11,$Z$7:$AD$8,2,FALSE) -> 2.50064697 | AI23: =AN23*(Vehicles!$M$30/Vehicles!$CO$72)/(Vehicles!$M$30*(1/Vehicles!$CO$72+1/Vehicles!$CP$72)+Vehicles!$M$31/Vehicles!$CQ$72)+E23*(Vehicles!$M$30/Vehicles!$CP$72+Vehicles!$M$31/Vehicles!$CQ$72)/(Vehicles!$M$30*(1/Vehicles!$CO$72+1/Vehicles!$CP$72)+Vehicles!$M$31/Vehicles!$CQ$72) -> 0.7964870421 | AJ23: =AN23*(Vehicles!$N$30/Vehicles!$CS$72)/(Vehicles!$N$30*(1/Vehicles!$CS$72+1/Vehicles!$CT$72)+Vehicles!$N$31/Vehicles!$CU$72)+AC23*(Vehicles!$N$30/Vehicles!$CT$72+Vehicles!$N$31/Vehicles!$CU$72)/(Vehicles!$N$30*(1/Vehicles!$CS$72+1/Vehicles!$CT$72)+Vehicles!$N$31/Vehicles!$CU$72) -> 0.9481510251 | AK23: =AN23*(Vehicles!$O$30/Vehicles!$CW$72)/(Vehicles!$O$30*(1/Vehicles!$CW$72+1/Vehicles!$CX$72)+Vehicles!$O$31/Vehicles!$CY$72)+AD23*(Vehicles!$O$30/Vehicles!$CX$72+Vehicles!$O$31/Vehicles!$CY$72)/(Vehicles!$O$30*(1/Vehicles!$CW$72+1/Vehicles!$CX$72)+Vehicles!$O$31/Vehicles!$CY$72) -> 0.7891897175 | AL23: =AN23*(Vehicles!$P$30/Vehicles!$DA$72)/(Vehicles!$P$30*(1/Vehicles!$DA$72+1/Vehicles!$DB$72)+Vehicles!$P$31/Vehicles!$DC$72)+AE23*(Vehicles!$P$30/Vehicles!$DB$72+Vehicles!$P$31/Vehicles!$DC$72)/(Vehicles!$P$30*(1/Vehicles!$DA$72+1/Vehicles!$DB$72)+Vehicles!$P$31/Vehicles!$DC$72) -> 3.800496139 | AM23: =AN23*(Vehicles!$R$30/Vehicles!$DI$72)/(Vehicles!$R$30*(1/Vehicles!$DI$72+1/Vehicles!$DJ$72)+Vehicles!$R$31/Vehicles!$DK$72)+AH23*(Vehicles!$R$30/Vehicles!$DJ$72+Vehicles!$R$31/Vehicles!$DK$72)/(Vehicles!$R$30*(1/Vehicles!$DI$72+1/Vehicles!$DJ$72)+Vehicles!$R$31/Vehicles!$DK$72) -> 2.386692163 | AN23: =(Electric!$G219+Electric!$F219)/1000000*HLOOKUP($J$10,$Z$5:$AD$6,2,FALSE)/HLOOKUP($J$11,$Z$7:$AD$8,2,FALSE) -> 2.117089713 | AO23: =(Hydrogen!$AJ321*Hydrogen!$AK$305+Hydrogen!$AK321)/1000000*HLOOKUP($J$10,$Z$5:$AD$6,2,FALSE)/HLOOKUP($J$11,$Z$7:$AD$8,2,FALSE) -> 1.968547885 | AP23: =(Hydrogen!$BT321*Hydrogen!$BU$305+Hydrogen!$BU321)/1000000*HLOOKUP($J$10,$Z$5:$AD$6,2,FALSE)/HLOOKUP($J$11,$Z$7:$AD$8,2,FALSE) -> 2.675368629 | AQ23: =AN23*(Vehicles!$S$30/Vehicles!$DY$72)/(Vehicles!$S$30*(1/Vehicles!$DY$72+1/Vehicles!$DZ$72)+Vehicles!$S$31/Vehicles!$EA$72)+AO23*(Vehicles!$S$30/Vehicles!$DZ$72+Vehicles!$S$31/Vehicles!$EA$72)/(Vehicles!$S$30*(1/Vehicles!$DY$72+1/Vehicles!$DZ$72)+Vehicles!$S$31/Vehicles!$EA$72) -> 2.028633127 | AR23: =AN23*(Vehicles!$S$30/Vehicles!$DY$72)/(Vehicles!$S$30*(1/Vehicles!$DY$72+1/Vehicles!$DZ$72)+Vehicles!$S$31/Vehicles!$EA$72)+AP23*(Vehicles!$S$30/Vehicles!$DZ$72+Vehicles!$S$31/Vehicles!$EA$72)/(Vehicles!$S$30*(1/Vehicles!$DY$72+1/Vehicles!$DZ$72)+Vehicles!$S$31/Vehicles!$EA$72) -> 2.449544534 | AS23: =((1-Vehicles!$C$40)*(1-Vehicles!$C$16)*Fuel_Specs!$B$15/((1-Vehicles!$C$40)*(1-Vehicles!$C$16)*Fuel_Specs!$B$15+Vehicles!$C$40*(1-Vehicles!$C$16)*Fuel_Specs!$B$17+Vehicles!$C$16*Fuel_Specs!$B$48)*(Petroleum!$B278*Petroleum!$D$262+Petroleum!$D278)+Vehicles!$C$40*(1-Vehicles!$C$16)*Fuel_Specs!$B$17/((1-Vehicles!$C$40)*(1-Vehicles!$C$16)*Fuel_Specs!$B$15+Vehicles!$C$40*(1-Vehicles!$C$16)*Fuel_Specs!$B$17+Vehicles!$C$16*Fuel_Specs!$B$48)*(Petroleum!B278*Petroleum!$F$262+Petroleum!$F278)+Vehicles!$C$16*Fuel_Specs!$B$48/((1-Vehicles!$C$40)*(1-Vehicles!$C$16)*Fuel_Specs!$B$15+Vehicles!$C$40*(1-Vehicles!$C$16)*Fuel_Specs!$B$17+Vehicles!$C$16*Fuel_Specs!$B$48)*(Pyrolysis_IDL!$AP313*Pyrolysis_IDL!$AQ$297+Pyrolysis_IDL!$AQ313))/1000000*HLOOKUP($J$10,$Z$5:$AD$6,2,FALSE)/HLOOKUP($J$11,$Z$7:$AD$8,2,FALSE) -> 8.730887687 | AT23: =(Petroleum!$B278*Petroleum!$S$262+Petroleum!$S278)/1000000*HLOOKUP($J$10,$Z$5:$AD$6,2,FALSE)/HLOOKUP($J$11,$Z$7:$AD$8,2,FALSE) -> 0.2657279772 | AU23: -1.11559501 | AV23: 0.8334327761 | BB23: SI - LPG Vehicle | BC23: RNAVLPG | BK23: SI HEV - EtOH | BL23: RNAVHEVETOH | BN23: SI PHEV - EtOH and Electricity | BO23: RNAVPHEVETOH
A24: GHGs | B24: =B21+SUMPRODUCT(B22:B23,Fuel_Specs!$B$141:$B$142)+SUMPRODUCT(B25:B27,Fuel_Specs!$B$147:$B$149)+SUMPRODUCT(B31:B32,Fuel_Specs!$B$150:$B$151) -> 17524.4898 | C24: =C21+SUMPRODUCT(C22:C23,Fuel_Specs!$B$141:$B$142)+SUMPRODUCT(C25:C27,Fuel_Specs!$B$147:$B$149)+SUMPRODUCT(C31:C32,Fuel_Specs!$B$150:$B$151) -> 16862.99169 | D24: =D21+SUMPRODUCT(D22:D23,Fuel_Specs!$B$141:$B$142)+SUMPRODUCT(D25:D27,Fuel_Specs!$B$147:$B$149)+SUMPRODUCT(D31:D32,Fuel_Specs!$B$150:$B$151) -> 17524.4898 | E24: =E21+SUMPRODUCT(E22:E23,Fuel_Specs!$B$141:$B$142)+SUMPRODUCT(E25:E27,Fuel_Specs!$B$147:$B$149)+SUMPRODUCT(E31:E32,Fuel_Specs!$B$150:$B$151) -> 15647.09735 | F24: =F21+SUMPRODUCT(F22:F23,Fuel_Specs!$B$141:$B$142)+SUMPRODUCT(F25:F27,Fuel_Specs!$B$147:$B$149)+SUMPRODUCT(F31:F32,Fuel_Specs!$B$150:$B$151) -> 20973.23302 | G24: =G21+SUMPRODUCT(G22:G23,Fuel_Specs!$B$141:$B$142)+SUMPRODUCT(G25:G27,Fuel_Specs!$B$147:$B$149)+SUMPRODUCT(G31:G32,Fuel_Specs!$B$150:$B$151) -> 22343.78514 | H24: =H21+SUMPRODUCT(H22:H23,Fuel_Specs!$B$141:$B$142)+SUMPRODUCT(H25:H27,Fuel_Specs!$B$147:$B$149)+SUMPRODUCT(H31:H32,Fuel_Specs!$B$150:$B$151) -> 16961.75998 | I24: =I21+SUMPRODUCT(I22:I23,Fuel_Specs!$B$141:$B$142)+SUMPRODUCT(I25:I27,Fuel_Specs!$B$147:$B$149)+SUMPRODUCT(I31:I32,Fuel_Specs!$B$150:$B$151) -> 43613.6675 | J24: =J21+SUMPRODUCT(J22:J23,Fuel_Specs!$B$141:$B$142)+SUMPRODUCT(J25:J27,Fuel_Specs!$B$147:$B$149)+SUMPRODUCT(J31:J32,Fuel_Specs!$B$150:$B$151) -> 25749.34313 | K24: =K21+SUMPRODUCT(K22:K23,Fuel_Specs!$B$141:$B$142)+SUMPRODUCT(K25:K27,Fuel_Specs!$B$147:$B$149)+SUMPRODUCT(K31:K32,Fuel_Specs!$B$150:$B$151) -> 26373.40785 | L24: =L21+SUMPRODUCT(L22:L23,Fuel_Specs!$B$141:$B$142)+SUMPRODUCT(L25:L27,Fuel_Specs!$B$147:$B$149)+SUMPRODUCT(L31:L32,Fuel_Specs!$B$150:$B$151) -> 27813.95632 | M24: =M21+SUMPRODUCT(M22:M23,Fuel_Specs!$B$141:$B$142)+SUMPRODUCT(M25:M27,Fuel_Specs!$B$147:$B$149)+SUMPRODUCT(M31:M32,Fuel_Specs!$B$150:$B$151) -> -7326.629411 | N24: =N21+SUMPRODUCT(N22:N23,Fuel_Specs!$B$141:$B$142)+SUMPRODUCT(N25:N27,Fuel_Specs!$B$147:$B$149)+SUMPRODUCT(N31:N32,Fuel_Specs!$B$150:$B$151) -> -15604.23329 | O24: =O21+SUMPRODUCT(O22:O23,Fuel_Specs!$B$141:$B$142)+SUMPRODUCT(O25:O27,Fuel_Specs!$B$147:$B$149)+SUMPRODUCT(O31:O32,Fuel_Specs!$B$150:$B$151) -> -7326.629411 | P24: =P21+SUMPRODUCT(P22:P23,Fuel_Specs!$B$141:$B$142)+SUMPRODUCT(P25:P27,Fuel_Specs!$B$147:$B$149)+SUMPRODUCT(P31:P32,Fuel_Specs!$B$150:$B$151) -> -15546.56406 | Q24: =Q21+SUMPRODUCT(Q22:Q23,Fuel_Specs!$B$141:$B$142)+SUMPRODUCT(Q25:Q27,Fuel_Specs!$B$147:$B$149)+SUMPRODUCT(Q31:Q32,Fuel_Specs!$B$150:$B$151) -> -58968.58944 | R24: =R21+SUMPRODUCT(R22:R23,Fuel_Specs!$B$141:$B$142)+SUMPRODUCT(R25:R27,Fuel_Specs!$B$147:$B$149)+SUMPRODUCT(R31:R32,Fuel_Specs!$B$150:$B$151) -> -50584.6771 | S24: =S21+SUMPRODUCT(S22:S23,Fuel_Specs!$B$141:$B$142)+SUMPRODUCT(S25:S27,Fuel_Specs!$B$147:$B$149)+SUMPRODUCT(S31:S32,Fuel_Specs!$B$150:$B$151) -> 48746.18671 | T24: =T21+SUMPRODUCT(T22:T23,Fuel_Specs!$B$141:$B$142)+SUMPRODUCT(T25:T27,Fuel_Specs!$B$147:$B$149)+SUMPRODUCT(T31:T32,Fuel_Specs!$B$150:$B$151) -> 48334.6434 | U24: =U21+SUMPRODUCT(U22:U23,Fuel_Specs!$B$141:$B$142)+SUMPRODUCT(U25:U27,Fuel_Specs!$B$147:$B$149)+SUMPRODUCT(U31:U32,Fuel_Specs!$B$150:$B$151) -> 48746.18671 | V24: =V21+SUMPRODUCT(V22:V23,Fuel_Specs!$B$141:$B$142)+SUMPRODUCT(V25:V27,Fuel_Specs!$B$147:$B$149)+SUMPRODUCT(V31:V32,Fuel_Specs!$B$150:$B$151) -> 50891.78197 | W24: =W21+SUMPRODUCT(W22:W23,Fuel_Specs!$B$141:$B$142)+SUMPRODUCT(W25:W27,Fuel_Specs!$B$147:$B$149)+SUMPRODUCT(W31:W32,Fuel_Specs!$B$150:$B$151) -> 51744.45495 | X24: =X21+SUMPRODUCT(X22:X23,Fuel_Specs!$B$141:$B$142)+SUMPRODUCT(X25:X27,Fuel_Specs!$B$147:$B$149)+SUMPRODUCT(X31:X32,Fuel_Specs!$B$150:$B$151) -> 48396.09094 | Y24: =Y21+SUMPRODUCT(Y22:Y23,Fuel_Specs!$B$141:$B$142)+SUMPRODUCT(Y25:Y27,Fuel_Specs!$B$147:$B$149)+SUMPRODUCT(Y31:Y32,Fuel_Specs!$B$150:$B$151) -> 54251.43758 | Z24: =Z21+SUMPRODUCT(Z22:Z23,Fuel_Specs!$B$141:$B$142)+SUMPRODUCT(Z25:Z27,Fuel_Specs!$B$147:$B$149)+SUMPRODUCT(Z31:Z32,Fuel_Specs!$B$150:$B$151) -> 33285.35355 | AA24: =AA21+SUMPRODUCT(AA22:AA23,Fuel_Specs!$B$141:$B$142)+SUMPRODUCT(AA25:AA27,Fuel_Specs!$B$147:$B$149)+SUMPRODUCT(AA31:AA32,Fuel_Specs!$B$150:$B$151) -> 102606.6135 | AB24: =AB21+SUMPRODUCT(AB22:AB23,Fuel_Specs!$B$141:$B$142)+SUMPRODUCT(AB25:AB27,Fuel_Specs!$B$147:$B$149)+SUMPRODUCT(AB31:AB32,Fuel_Specs!$B$150:$B$151) -> 118630.6936 | AC24: =AC21+SUMPRODUCT(AC22:AC23,Fuel_Specs!$B$141:$B$142)+SUMPRODUCT(AC25:AC27,Fuel_Specs!$B$147:$B$149)+SUMPRODUCT(AC31:AC32,Fuel_Specs!$B$150:$B$151) -> 36094.18457 | AD24: =AD21+SUMPRODUCT(AD22:AD23,Fuel_Specs!$B$141:$B$142)+SUMPRODUCT(AD25:AD27,Fuel_Specs!$B$147:$B$149)+SUMPRODUCT(AD31:AD32,Fuel_Specs!$B$150:$B$151) -> 24435.41069 | AE24: =AE21+SUMPRODUCT(AE22:AE23,Fuel_Specs!$B$141:$B$142)+SUMPRODUCT(AE25:AE27,Fuel_Specs!$B$147:$B$149)+SUMPRODUCT(AE31:AE32,Fuel_Specs!$B$150:$B$151) -> 3818.853956 | AF24: =AF21+SUMPRODUCT(AF22:AF23,Fuel_Specs!$B$141:$B$142)+SUMPRODUCT(AF25:AF27,Fuel_Specs!$B$147:$B$149)+SUMPRODUCT(AF31:AF32,Fuel_Specs!$B$150:$B$151) -> -41537.01521 | AG24: =AG21+SUMPRODUCT(AG22:AG23,Fuel_Specs!$B$141:$B$142)+SUMPRODUCT(AG25:AG27,Fuel_Specs!$B$147:$B$149)+SUMPRODUCT(AG31:AG32,Fuel_Specs!$B$150:$B$151) -> -48966.18429 | AH24: =AH21+SUMPRODUCT(AH22:AH23,Fuel_Specs!$B$141:$B$142)+SUMPRODUCT(AH25:AH27,Fuel_Specs!$B$147:$B$149)+SUMPRODUCT(AH31:AH32,Fuel_Specs!$B$150:$B$151) -> 13792.25616 | AI24: =AI21+SUMPRODUCT(AI22:AI23,Fuel_Specs!$B$141:$B$142)+SUMPRODUCT(AI25:AI27,Fuel_Specs!$B$147:$B$149)+SUMPRODUCT(AI31:AI32,Fuel_Specs!$B$150:$B$151) -> 40753.4337 | AJ24: =AJ21+SUMPRODUCT(AJ22:AJ23,Fuel_Specs!$B$141:$B$142)+SUMPRODUCT(AJ25:AJ27,Fuel_Specs!$B$147:$B$149)+SUMPRODUCT(AJ31:AJ32,Fuel_Specs!$B$150:$B$151) -> 55125.69418 | AK24: =AK21+SUMPRODUCT(AK22:AK23,Fuel_Specs!$B$141:$B$142)+SUMPRODUCT(AK25:AK27,Fuel_Specs!$B$147:$B$149)+SUMPRODUCT(AK31:AK32,Fuel_Specs!$B$150:$B$151) -> 46930.74038 | AL24: =AL21+SUMPRODUCT(AL22:AL23,Fuel_Specs!$B$141:$B$142)+SUMPRODUCT(AL25:AL27,Fuel_Specs!$B$147:$B$149)+SUMPRODUCT(AL31:AL32,Fuel_Specs!$B$150:$B$151) -> 32439.35975 | AM24: =AM21+SUMPRODUCT(AM22:AM23,Fuel_Specs!$B$141:$B$142)+SUMPRODUCT(AM25:AM27,Fuel_Specs!$B$147:$B$149)+SUMPRODUCT(AM31:AM32,Fuel_Specs!$B$150:$B$151) -> 39449.66556 | AN24: =AN21+SUMPRODUCT(AN22:AN23,Fuel_Specs!$B$141:$B$142)+SUMPRODUCT(AN25:AN27,Fuel_Specs!$B$147:$B$149)+SUMPRODUCT(AN31:AN32,Fuel_Specs!$B$150:$B$151) -> 100151.8037 | AO24: =AO21+SUMPRODUCT(AO22:AO23,Fuel_Specs!$B$141:$B$142)+SUMPRODUCT(AO25:AO27,Fuel_Specs!$B$147:$B$149)+SUMPRODUCT(AO31:AO32,Fuel_Specs!$B$150:$B$151) -> 104097.5659 | AP24: =AP21+SUMPRODUCT(AP22:AP23,Fuel_Specs!$B$141:$B$142)+SUMPRODUCT(AP25:AP27,Fuel_Specs!$B$147:$B$149)+SUMPRODUCT(AP31:AP32,Fuel_Specs!$B$150:$B$151) -> 129854.0255 | AQ24: =AQ21+SUMPRODUCT(AQ22:AQ23,Fuel_Specs!$B$141:$B$142)+SUMPRODUCT(AQ25:AQ27,Fuel_Specs!$B$147:$B$149)+SUMPRODUCT(AQ31:AQ32,Fuel_Specs!$B$150:$B$151) -> 102501.5032 | AR24: =AR21+SUMPRODUCT(AR22:AR23,Fuel_Specs!$B$141:$B$142)+SUMPRODUCT(AR25:AR27,Fuel_Specs!$B$147:$B$149)+SUMPRODUCT(AR31:AR32,Fuel_Specs!$B$150:$B$151) -> 117839.4622 | AS24: =AS21+SUMPRODUCT(AS22:AS23,Fuel_Specs!$B$141:$B$142)+SUMPRODUCT(AS25:AS27,Fuel_Specs!$B$147:$B$149)+SUMPRODUCT(AS31:AS32,Fuel_Specs!$B$150:$B$151) -> -53690.73117 | AT24: =AT21+SUMPRODUCT(AT22:AT23,Fuel_Specs!$B$141:$B$142)+SUMPRODUCT(AT25:AT27,Fuel_Specs!$B$147:$B$149)+SUMPRODUCT(AT31:AT32,Fuel_Specs!$B$150:$B$151) -> 15681.25666 | AU24: 7377.83536 | AV24: 3281.950698 | BB24: SI - Dedi. MeOH Vehicle | BC24: RNAVMEOH | BN24: SI PHEV - Gaseous H2 and Electricity | BO24: RNAVPHEVGH2
A25: VOC: Total | B25: =(Inputs!$E$1518*(Petroleum!$B269*Petroleum!$F$262+Petroleum!$F269)+(1-Inputs!$E$1518)*(Petroleum!$B269*Petroleum!$D$262+Petroleum!$D269))/1000000*HLOOKUP($J$10,$Z$5:$AD$6,2,FALSE)/HLOOKUP($J$11,$Z$7:$AD$8,2,FALSE) -> 29.34330455 | C25: =(Petroleum!$C269*Petroleum!$G$262+Petroleum!$G269)/1000000*HLOOKUP($J$10,$Z$5:$AD$6,2,FALSE)/HLOOKUP($J$11,$Z$7:$AD$8,2,FALSE) -> 30.5329282 | D25: =((1-Vehicles!$C$35)*(1-Vehicles!$C$7)*Fuel_Specs!$B$15/((1-Vehicles!$C$35)*(1-Vehicles!$C$7)*Fuel_Specs!$B$15+Vehicles!$C$35*(1-Vehicles!$C$7)*Fuel_Specs!$B$17+Vehicles!$C$7*Fuel_Specs!$B$33)*(Petroleum!$B269*Petroleum!$D$262+(Petroleum!$D269-'T&D'!G222))+Vehicles!$C$35*(1-Vehicles!$C$7)*Fuel_Specs!$B$17/((1-Vehicles!$C$35)*(1-Vehicles!$C$7)*Fuel_Specs!$B$15+Vehicles!$C$35*(1-Vehicles!$C$7)*Fuel_Specs!$B$17+Vehicles!$C$7*Fuel_Specs!$B$33)*(Petroleum!B269*Petroleum!$F$262+Petroleum!$F269)+Vehicles!$C$7*Fuel_Specs!$B$33/((1-Vehicles!$C$35)*(1-Vehicles!$C$7)*Fuel_Specs!$B$15+Vehicles!$C$35*(1-Vehicles!$C$7)*Fuel_Specs!$B$17+Vehicles!$C$7*Fuel_Specs!$B$33)*(EtOH!BV553*EtOH!$BW$546+EtOH!$BW553)+Petroleum!AS131+Petroleum!AT131)/1000000*HLOOKUP($J$10,$Z$5:$AD$6,2,FALSE)/HLOOKUP($J$11,$Z$7:$AD$8,2,FALSE) -> 29.34330455 | E25: =(Inputs!$E$97*(IF(Inputs!F$102=1,Petroleum!$B269,Petroleum!$C269)*IF(Inputs!F$102=1,Petroleum!$K$262,Petroleum!$L$262)+IF(Inputs!F$102=1,Petroleum!$K269,Petroleum!$L269))+(1-Inputs!$E$97)*(IF(Inputs!F$101=1,Petroleum!$B269,Petroleum!$C269)*Petroleum!$J$262+Petroleum!$J269))/1000000*HLOOKUP($J$10,$Z$5:$AD$6,2,FALSE)/HLOOKUP($J$11,$Z$7:$AD$8,2,FALSE) -> 7.438482132 | F25: =(NG!$J91*NG!$K$84+NG!$K91)/1000000*HLOOKUP($J$10,$Z$5:$AD$6,2,FALSE)/HLOOKUP($J$11,$Z$7:$AD$8,2,FALSE) -> 13.25622419 | G25: =(NG!$R91*NG!$S$84+NG!$S91)/1000000*HLOOKUP($J$10,$Z$5:$AD$6,2,FALSE)/HLOOKUP($J$11,$Z$7:$AD$8,2,FALSE) -> 8.562863458 | H25: =(NG!$X91*NG!$Y$84+NG!$Y91)/1000000*HLOOKUP($J$10,$Z$5:$AD$6,2,FALSE)/HLOOKUP($J$11,$Z$7:$AD$8,2,FALSE) -> 12.29916417 | I25: =(MeOH_FTD!BJ169*MeOH_FTD!BK$162+MeOH_FTD!BK169)/1000000*HLOOKUP($J$10,$Z$5:$AD$6,2,FALSE)/HLOOKUP($J$11,$Z$7:$AD$8,2,FALSE) -> 33.31999696 | J25: =((1-Vehicles!$C$34)*(1-Vehicles!$C$5)*Fuel_Specs!$B$15/((1-Vehicles!$C$34)*(1-Vehicles!$C$5)*Fuel_Specs!$B$15+Vehicles!$C$34*(1-Vehicles!$C$5)*Fuel_Specs!$B$17+Vehicles!$C$5*Fuel_Specs!$B$32)*(Petroleum!$B269*Petroleum!$D$262+Petroleum!$D269)+Vehicles!$C$34*(1-Vehicles!$C$5)*Fuel_Specs!$B$17/((1-Vehicles!$C$34)*(1-Vehicles!$C$5)*Fuel_Specs!$B$15+Vehicles!$C$34*(1-Vehicles!$C$5)*Fuel_Specs!$B$17+Vehicles!$C$5*Fuel_Specs!$B$32)*(Petroleum!B269*Petroleum!$F$262+Petroleum!$F269)+Vehicles!$C$5*Fuel_Specs!$B$32/((1-Vehicles!$C$34)*(1-Vehicles!$C$5)*Fuel_Specs!$B$15+Vehicles!$C$34*(1-Vehicles!$C$5)*Fuel_Specs!$B$17+Vehicles!$C$5*Fuel_Specs!$B$32)*(MeOH_FTD!$N169*MeOH_FTD!$O$162+MeOH_FTD!$O169))/1000000*HLOOKUP($J$10,$Z$5:$AD$6,2,FALSE)/HLOOKUP($J$11,$Z$7:$AD$8,2,FALSE) -> 25.13814786 | K25: =((1-Vehicles!$C$34)*(1-Vehicles!$C$6)*Fuel_Specs!$B$15/((1-Vehicles!$C$34)*(1-Vehicles!$C$6)*Fuel_Specs!$B$15+Vehicles!$C$34*(1-Vehicles!$C$6)*Fuel_Specs!$B$17+Vehicles!$C$6*Fuel_Specs!$B$32)*(Petroleum!$B269*Petroleum!$D$262+Petroleum!$D269)+Vehicles!$C$34*(1-Vehicles!$C$6)*Fuel_Specs!$B$17/((1-Vehicles!$C$34)*(1-Vehicles!$C$6)*Fuel_Specs!$B$15+Vehicles!$C$34*(1-Vehicles!$C$6)*Fuel_Specs!$B$17+Vehicles!$C$6*Fuel_Specs!$B$32)*(Petroleum!B269*Petroleum!$F$262+Petroleum!$F269)+Vehicles!$C$6*Fuel_Specs!$B$32/((1-Vehicles!$C$34)*(1-Vehicles!$C$6)*Fuel_Specs!$B$15+Vehicles!$C$34*(1-Vehicles!$C$6)*Fuel_Specs!$B$17+Vehicles!$C$6*Fuel_Specs!$B$32)*(MeOH_FTD!$N169*MeOH_FTD!$O$162+MeOH_FTD!$O169))/1000000*HLOOKUP($J$10,$Z$5:$AD$6,2,FALSE)/HLOOKUP($J$11,$Z$7:$AD$8,2,FALSE) -> 24.90773826 | L25: =(MeOH_FTD!$N169*MeOH_FTD!$O$162+MeOH_FTD!$O169)/1000000*HLOOKUP($J$10,$Z$5:$AD$6,2,FALSE)/HLOOKUP($J$11,$Z$7:$AD$8,2,FALSE) -> 24.37587645 | M25: =((1-Vehicles!$C$36)*(1-Vehicles!$C$8)*Fuel_Specs!$B$15/((1-Vehicles!$C$36)*(1-Vehicles!$C$8)*Fuel_Specs!$B$15+Vehicles!$C$36*(1-Vehicles!$C$8)*Fuel_Specs!$B$17+Vehicles!$C$8*Fuel_Specs!$B$33)*(Petroleum!$B269*Petroleum!$D$262+(Petroleum!$D269-'T&D'!G222))+Vehicles!$C$36*(1-Vehicles!$C$8)*Fuel_Specs!$B$17/((1-Vehicles!$C$36)*(1-Vehicles!$C$8)*Fuel_Specs!$B$15+Vehicles!$C$36*(1-Vehicles!$C$8)*Fuel_Specs!$B$17+Vehicles!$C$8*Fuel_Specs!$B$33)*(Petroleum!B269*Petroleum!$F$262+Petroleum!$F269)+Vehicles!$C$8*Fuel_Specs!$B$33/((1-Vehicles!$C$36)*(1-Vehicles!$C$8)*Fuel_Specs!$B$15+Vehicles!$C$36*(1-Vehicles!$C$8)*Fuel_Specs!$B$17+Vehicles!$C$8*Fuel_Specs!$B$33)*(EtOH!BV553*EtOH!$BW$546+EtOH!$BW553)+Petroleum!AS131+Petroleum!AT131)/1000000*HLOOKUP($J$10,$Z$5:$AD$6,2,FALSE)/HLOOKUP($J$11,$Z$7:$AD$8,2,FALSE) -> 51.23407692 | N25: =((1-Vehicles!$C$37)*(1-Vehicles!$C$12)*Fuel_Specs!$B$15/((1-Vehicles!$C$37)*(1-Vehicles!$C$12)*Fuel_Specs!$B$15+Vehicles!$C$37*(1-Vehicles!$C$12)*Fuel_Specs!$B$17+Vehicles!$C$12*Fuel_Specs!$B$34)*(Petroleum!$B269*Petroleum!$D$262+Petroleum!$D269)+Vehicles!$C$37*(1-Vehicles!$C$12)*Fuel_Specs!$B$17/((1-Vehicles!$C$37)*(1-Vehicles!$C$12)*Fuel_Specs!$B$15+Vehicles!$C$37*(1-Vehicles!$C$12)*Fuel_Specs!$B$17+Vehicles!$C$12*Fuel_Specs!$B$34)*(Petroleum!B269*Petroleum!$F$262+Petroleum!$F269)+Vehicles!$C$12*Fuel_Specs!$B$34/((1-Vehicles!$C$37)*(1-Vehicles!$C$12)*Fuel_Specs!$B$15+Vehicles!$C$37*(1-Vehicles!$C$12)*Fuel_Specs!$B$17+Vehicles!$C$12*Fuel_Specs!$B$34)*(EtOH!$BX553*EtOH!$BY$546+EtOH!$BY553))/1000000*HLOOKUP($J$10,$Z$5:$AD$6,2,FALSE)/HLOOKUP($J$11,$Z$7:$AD$8,2,FALSE) -> 57.4904792 | O25: =((1-Vehicles!$C$36)*(1-Vehicles!$C$9)*Fuel_Specs!$B$15/((1-Vehicles!$C$36)*(1-Vehicles!$C$9)*Fuel_Specs!$B$15+Vehicles!$C$36*(1-Vehicles!$C$9)*Fuel_Specs!$B$17+Vehicles!$C$9*Fuel_Specs!$B$33)*(Petroleum!$B269*Petroleum!$D$262+(Petroleum!$D269-'T&D'!G222))+Vehicles!$C$36*(1-Vehicles!$C$9)*Fuel_Specs!$B$17/((1-Vehicles!$C$36)*(1-Vehicles!$C$9)*Fuel_Specs!$B$15+Vehicles!$C$36*(1-Vehicles!$C$9)*Fuel_Specs!$B$17+Vehicles!$C$9*Fuel_Specs!$B$33)*(Petroleum!B269*Petroleum!$F$262+Petroleum!$F269)+Vehicles!$C$9*Fuel_Specs!$B$33/((1-Vehicles!$C$36)*(1-Vehicles!$C$9)*Fuel_Specs!$B$15+Vehicles!$C$36*(1-Vehicles!$C$9)*Fuel_Specs!$B$17+Vehicles!$C$9*Fuel_Specs!$B$33)*(EtOH!BV553*EtOH!$BW$546+EtOH!$BW553)+Petroleum!AS131+Petroleum!AT131)/1000000*HLOOKUP($J$10,$Z$5:$AD$6,2,FALSE)/HLOOKUP($J$11,$Z$7:$AD$8,2,FALSE) -> 51.23407692 | P25: =(EtOH!$BT553*EtOH!$BU$546+EtOH!$BU553)/1000000*HLOOKUP($J$10,$Z$5:$AD$6,2,FALSE)/HLOOKUP($J$11,$Z$7:$AD$8,2,FALSE) -> 58.55495947 | Q25: =((1-Vehicles!$C$40)*(1-Vehicles!$C$16)*Fuel_Specs!$B$15/((1-Vehicles!$C$40)*(1-Vehicles!$C$16)*Fuel_Specs!$B$15+Vehicles!$C$40*(1-Vehicles!$C$16)*Fuel_Specs!$B$17+Vehicles!$C$16*Fuel_Specs!$B$47)*(Petroleum!$B269*Petroleum!$D$262+Petroleum!$D269)+Vehicles!$C$40*(1-Vehicles!$C$16)*Fuel_Specs!$B$17/((1-Vehicles!$C$40)*(1-Vehicles!$C$16)*Fuel_Specs!$B$15+Vehicles!$C$40*(1-Vehicles!$C$16)*Fuel_Specs!$B$17+Vehicles!$C$16*Fuel_Specs!$B$47)*(Petroleum!B269*Petroleum!$F$262+Petroleum!$F269)+Vehicles!$C$16*Fuel_Specs!$B$47/((1-Vehicles!$C$40)*(1-Vehicles!$C$16)*Fuel_Specs!$B$15+Vehicles!$C$40*(1-Vehicles!$C$16)*Fuel_Specs!$B$17+Vehicles!$C$16*Fuel_Specs!$B$47)*(BioOil!$CE439*BioOil!$CF$431+BioOil!$CF439))/1000000*HLOOKUP($J$10,$Z$5:$AD$6,2,FALSE)/HLOOKUP($J$11,$Z$7:$AD$8,2,FALSE) -> 19.46374373 | R25: =((1-Vehicles!$C$40)*(1-Vehicles!$C$16)*Fuel_Specs!$B$15/((1-Vehicles!$C$40)*(1-Vehicles!$C$16)*Fuel_Specs!$B$15+Vehicles!$C$40*(1-Vehicles!$C$16)*Fuel_Specs!$B$17+Vehicles!$C$16*Fuel_Specs!$B$47)*(Petroleum!$B269*Petroleum!$D$262+Petroleum!$D269)+Vehicles!$C$40*(1-Vehicles!$C$16)*Fuel_Specs!$B$17/((1-Vehicles!$C$40)*(1-Vehicles!$C$16)*Fuel_Specs!$B$15+Vehicles!$C$40*(1-Vehicles!$C$16)*Fuel_Specs!$B$17+Vehicles!$C$16*Fuel_Specs!$B$47)*(Petroleum!B269*Petroleum!$F$262+Petroleum!$F269)+Vehicles!$C$16*Fuel_Specs!$B$47/((1-Vehicles!$C$40)*(1-Vehicles!$C$16)*Fuel_Specs!$B$15+Vehicles!$C$40*(1-Vehicles!$C$16)*Fuel_Specs!$B$17+Vehicles!$C$16*Fuel_Specs!$B$47)*(Pyrolysis_IDL!$AD304*Pyrolysis_IDL!$AE$297+Pyrolysis_IDL!$AE304))/1000000*HLOOKUP($J$10,$Z$5:$AD$6,2,FALSE)/HLOOKUP($J$11,$Z$7:$AD$8,2,FALSE) -> 5.865731862 | S25: =AN25*(Vehicles!$C$30/Vehicles!$AT$72)/(Vehicles!$C$30*(1/Vehicles!$AT$72+1/Vehicles!$AU$72)+Vehicles!$C$31/Vehicles!$AV$72)+B25*(Vehicles!$C$30/Vehicles!$AU$72+Vehicles!$C$31/Vehicles!$AV$72)/(Vehicles!$C$30*(1/Vehicles!$AT$72+1/Vehicles!$AU$72)+Vehicles!$C$31/Vehicles!$AV$72) -> 22.01168998 | T25: =AN25*(Vehicles!$D$30/Vehicles!$AX$72)/(Vehicles!$D$30*(1/Vehicles!$AX$72+1/Vehicles!$AY$72)+Vehicles!$D$31/Vehicles!$AZ$72)+C25*(Vehicles!$D$30/Vehicles!$AY$72+Vehicles!$D$31/Vehicles!$AZ$72)/(Vehicles!$D$30*(1/Vehicles!$AX$72+1/Vehicles!$AY$72)+Vehicles!$D$31/Vehicles!$AZ$72) -> 22.75180041 | U25: =AN25*(Vehicles!$F$30/Vehicles!$BF$72)/(Vehicles!$F$30*(1/Vehicles!$BF$72+1/Vehicles!$BG$72)+Vehicles!$F$31/Vehicles!$BH$72)+D25*(Vehicles!$F$30/Vehicles!$BG$72+Vehicles!$F$31/Vehicles!$BH$72)/(Vehicles!$F$30*(1/Vehicles!$BF$72+1/Vehicles!$BG$72)+Vehicles!$F$31/Vehicles!$BH$72) -> 22.01168998 | V25: =AN25*(Vehicles!$G$30/Vehicles!$BJ$72)/(Vehicles!$G$30*(1/Vehicles!$BJ$72+1/Vehicles!$BK$72)+Vehicles!$G$31/Vehicles!$BL$72)+F25*(Vehicles!$G$30/Vehicles!$BK$72+Vehicles!$G$31/Vehicles!$BL$72)/(Vehicles!$G$30*(1/Vehicles!$BJ$72+1/Vehicles!$BK$72)+Vehicles!$G$31/Vehicles!$BL$72) -> 12.00330107 | W25: =AN25*(Vehicles!$H$30/Vehicles!$BN$72)/(Vehicles!$H$30*(1/Vehicles!$BN$72+1/Vehicles!$BO$72)+Vehicles!$H$31/Vehicles!$BP$72)+G25*(Vehicles!$H$30/Vehicles!$BO$72+Vehicles!$H$31/Vehicles!$BP$72)/(Vehicles!$H$30*(1/Vehicles!$BN$72+1/Vehicles!$BO$72)+Vehicles!$H$31/Vehicles!$BP$72) -> 9.083381586 | X25: =AN25*(Vehicles!$I$30/Vehicles!$BR$72)/(Vehicles!$I$30*(1/Vehicles!$BR$72+1/Vehicles!$BS$72)+Vehicles!$I$31/Vehicles!$BT$72)+H25*(Vehicles!$I$30/Vehicles!$BS$72+Vehicles!$I$31/Vehicles!$BT$72)/(Vehicles!$I$30*(1/Vehicles!$BR$72+1/Vehicles!$BS$72)+Vehicles!$I$31/Vehicles!$BT$72) -> 11.40787738 | Y25: =AN25*(Vehicles!$J$30/Vehicles!$BV$72)/(Vehicles!$J$30*(1/Vehicles!$BV$72+1/Vehicles!$BW$72)+Vehicles!$J$31/Vehicles!$BX$72)+K25*(Vehicles!$J$30/Vehicles!$BW$72+Vehicles!$J$31/Vehicles!$BX$72)/(Vehicles!$J$30*(1/Vehicles!$BV$72+1/Vehicles!$BW$72)+Vehicles!$J$31/Vehicles!$BX$72) -> 19.25215428 | Z25: =AN25*(Vehicles!$K$30/Vehicles!$BZ$72)/(Vehicles!$K$30*(1/Vehicles!$BZ$72+1/Vehicles!$CA$72)+Vehicles!$K$31/Vehicles!$CB$72)+O25*(Vehicles!$K$30/Vehicles!$CA$72+Vehicles!$K$31/Vehicles!$CB$72)/(Vehicles!$K$30*(1/Vehicles!$BZ$72+1/Vehicles!$CA$72)+Vehicles!$K$31/Vehicles!$CB$72) -> 35.63077798 | AA25: =AN25*(Vehicles!$L$30/Vehicles!$CD$72)/(Vehicles!$L$30*(1/Vehicles!$CD$72+1/Vehicles!$CE$72)+Vehicles!$L$31/Vehicles!$CF$72)+AO25*(Vehicles!$L$30/Vehicles!$CE$72+Vehicles!$L$31/Vehicles!$CF$72)/(Vehicles!$L$30*(1/Vehicles!$CD$72+1/Vehicles!$CE$72)+Vehicles!$L$31/Vehicles!$CF$72) -> 13.70169717 | AB25: =AN25*(Vehicles!$L$30/Vehicles!$CD$72)/(Vehicles!$L$30*(1/Vehicles!$CD$72+1/Vehicles!$CE$72)+Vehicles!$L$31/Vehicles!$CG$72)+AP25*(Vehicles!$L$30/Vehicles!$CE$72+Vehicles!$L$31/Vehicles!$CG$72)/(Vehicles!$L$30*(1/Vehicles!$CD$72+1/Vehicles!$CE$72)+Vehicles!$L$31/Vehicles!$CG$72) -> 15.39645378 | AC25: =(MeOH_FTD!$AJ169*MeOH_FTD!$AK$162+MeOH_FTD!$AK169)/1000000*HLOOKUP($J$10,$Z$5:$AD$6,2,FALSE)/HLOOKUP($J$11,$Z$7:$AD$8,2,FALSE) -> 13.46145421 | AD25: =((1-Vehicles!$C$41)*(1-Vehicles!$C$13)*Fuel_Specs!$B$21/((1-Vehicles!$C$41)*(1-Vehicles!$C$13)*Fuel_Specs!$B$21+Vehicles!$C$41*(1-Vehicles!$C$13)*Fuel_Specs!$B$24+Vehicles!$C$13*Fuel_Specs!$B$42)*(Petroleum!B269*Petroleum!$J$262+Petroleum!$J269)+Vehicles!$C$41*(1-Vehicles!$C$13)*Fuel_Specs!$B$24/((1-Vehicles!$C$41)*(1-Vehicles!$C$13)*Fuel_Specs!$B$21+Vehicles!$C$41*(1-Vehicles!$C$13)*Fuel_Specs!$B$24+Vehicles!$C$13*Fuel_Specs!$B$42)*(Petroleum!B269*IF(Inputs!F$102=1,Petroleum!$K$262,Petroleum!$L$262)+IF(Inputs!F$102=1,Petroleum!$K269,Petroleum!$L269))+Vehicles!$C$13*Fuel_Specs!$B$42/((1-Vehicles!$C$41)*(1-Vehicles!$C$13)*Fuel_Specs!$B$21+Vehicles!$C$41*(1-Vehicles!$C$13)*Fuel_Specs!$B$24+Vehicles!$C$13*Fuel_Specs!$B$42)*(MeOH_FTD!$AZ169*MeOH_FTD!$BA$162+MeOH_FTD!$BA169))/1000000*HLOOKUP($J$10,$Z$5:$AD$6,2,FALSE)/HLOOKUP($J$11,$Z$7:$AD$8,2,FALSE) -> 13.69491538 | AE25: =((1-Vehicles!$C$42)*(1-Vehicles!$C$14)*Fuel_Specs!$B$21/((1-Vehicles!$C$42)*(1-Vehicles!$C$14)*Fuel_Specs!$B$21+Vehicles!$C$42*(1-Vehicles!$C$14)*Fuel_Specs!$B$24+Vehicles!$C$14*Fuel_Specs!$B$41)*(Petroleum!B269*Petroleum!$J$262+Petroleum!$J269)+Vehicles!$C$42*(1-Vehicles!$C$14)*Fuel_Specs!$B$24/((1-Vehicles!$C$42)*(1-Vehicles!$C$14)*Fuel_Specs!$B$21+Vehicles!$C$42*(1-Vehicles!$C$14)*Fuel_Specs!$B$24+Vehicles!$C$14*Fuel_Specs!$B$41)*(Petroleum!B269*IF(Inputs!F$102=1,Petroleum!$K$262,Petroleum!$L$262)+IF(Inputs!F$102=1,Petroleum!$K269,Petroleum!$L269))+Vehicles!$C$14*Fuel_Specs!$B$41/((1-Vehicles!$C$42)*(1-Vehicles!$C$14)*Fuel_Specs!$B$21+Vehicles!$C$42*(1-Vehicles!$C$14)*Fuel_Specs!$B$24+Vehicles!$C$14*Fuel_Specs!$B$41)*(BioOil!$Y439*BioOil!$Z$431+BioOil!$Z439))/1000000*HLOOKUP($J$10,$Z$5:$AD$6,2,FALSE)/HLOOKUP($J$11,$Z$7:$AD$8,2,FALSE) -> 9.878934819 | AF25: =((1-Vehicles!$C$43)*(1-Vehicles!$C$15)*Fuel_Specs!$B$21/((1-Vehicles!$C$43)*(1-Vehicles!$C$15)*Fuel_Specs!$B$21+Vehicles!$C$43*(1-Vehicles!$C$15)*Fuel_Specs!$B$24+Vehicles!$C$15*IF(Inputs!$E$670=1,IF(Inputs!$E$670=1,Fuel_Specs!$B$43,IF(Inputs!$E$670=3,Fuel_Specs!$B$45,Fuel_Specs!$B$44)),Fuel_Specs!$B$44))*(Petroleum!B269*Petroleum!$J$262+Petroleum!$J269)+Vehicles!$C$43*(1-Vehicles!$C$15)*Fuel_Specs!$B$24/((1-Vehicles!$C$43)*(1-Vehicles!$C$15)*Fuel_Specs!$B$21+Vehicles!$C$43*(1-Vehicles!$C$15)*Fuel_Specs!$B$24+Vehicles!$C$15*IF(Inputs!$E$670=1,IF(Inputs!$E$670=1,Fuel_Specs!$B$43,IF(Inputs!$E$670=3,Fuel_Specs!$B$45,Fuel_Specs!$B$44)),Fuel_Specs!$B$44))*(Petroleum!B269*IF(Inputs!F$102=1,Petroleum!$K$262,Petroleum!$L$262)+IF(Inputs!F$102=1,Petroleum!$K269,Petroleum!$L269))+Vehicles!$C$15*IF(Inputs!$E$670=1,IF(Inputs!$E$670=1,Fuel_Specs!$B$43,IF(Inputs!$E$670=3,Fuel_Specs!$B$45,Fuel_Specs!$B$44)),Fuel_Specs!$B$44)/((1-Vehicles!$C$43)*(1-Vehicles!$C$15)*Fuel_Specs!$B$21+Vehicles!$C$43*(1-Vehicles!$C$15)*Fuel_Specs!$B$24+Vehicles!$C$15*IF(Inputs!$E$670=1,IF(Inputs!$E$670=1,Fuel_Specs!$B$43,IF(Inputs!$E$670=3,Fuel_Specs!$B$45,Fuel_Specs!$B$44)),Fuel_Specs!$B$44))*(BioOil!$BQ439*BioOil!$BR$431+BioOil!$BR439))/1000000*HLOOKUP($J$10,$Z$5:$AD$6,2,FALSE)/HLOOKUP($J$11,$Z$7:$AD$8,2,FALSE) -> 20.35300413 | AG25: =((1-Vehicles!$C$43)*(1-Vehicles!$C$15)*Fuel_Specs!$B$21/((1-Vehicles!$C$43)*(1-Vehicles!$C$15)*Fuel_Specs!$B$21+Vehicles!$C$43*(1-Vehicles!$C$15)*Fuel_Specs!$B$24+Vehicles!$C$15*IF(Inputs!$E$670=1,Fuel_Specs!$B$43,Fuel_Specs!$B$44))*(Petroleum!B269*Petroleum!$J$262+Petroleum!$J269)+Vehicles!$C$43*(1-Vehicles!$C$15)*Fuel_Specs!$B$24/((1-Vehicles!$C$43)*(1-Vehicles!$C$15)*Fuel_Specs!$B$21+Vehicles!$C$43*(1-Vehicles!$C$15)*Fuel_Specs!$B$24+Vehicles!$C$15*IF(Inputs!$E$670=1,Fuel_Specs!$B$43,Fuel_Specs!$B$44))*(Petroleum!B269*IF(Inputs!F$102=1,Petroleum!$K$262,Petroleum!$L$262)+IF(Inputs!F$102=1,Petroleum!$K269,Petroleum!$L269))+Vehicles!$C$15*IF(Inputs!$E$670=1,Fuel_Specs!$B$43,Fuel_Specs!$B$44)/((1-Vehicles!$C$43)*(1-Vehicles!$C$15)*Fuel_Specs!$B$21+Vehicles!$C$43*(1-Vehicles!$C$15)*Fuel_Specs!$B$24+Vehicles!$C$15*IF(Inputs!$E$670=1,Fuel_Specs!$B$43,Fuel_Specs!$B$44))*(Pyrolysis_IDL!$AF304*Pyrolysis_IDL!$AG$297+Pyrolysis_IDL!$AG304))/1000000*HLOOKUP($J$10,$Z$5:$AD$6,2,FALSE)/HLOOKUP($J$11,$Z$7:$AD$8,2,FALSE) -> 5.637377162 | AH25: =(((1-Vehicles!$C$44)*(1-Vehicles!$C$17-Vehicles!$C$18)*Fuel_Specs!$B$21*(Petroleum!B269*Petroleum!$J$262+Petroleum!$J269)+Vehicles!$C$44*(1-Vehicles!$C$17-Vehicles!$C$18)*Fuel_Specs!$B$24*(Petroleum!B269*IF(Inputs!F$102=1,Petroleum!$K$262,Petroleum!$L$262)+IF(Inputs!F$102=1,Petroleum!$K269,Petroleum!$L269))+Vehicles!$C$17*Fuel_Specs!$B$33*(EtOH!BT553*EtOH!$BU$546+EtOH!$BU553)+Vehicles!$C$18*Fuel_Specs!$B$36*('EtOH-Diesel Additives'!$B60*'EtOH-Diesel Additives'!$B$53))/((1-Vehicles!$C$44)*(1-Vehicles!$C$17-Vehicles!$C$18)*Fuel_Specs!$B$21+Vehicles!$C$44*(1-Vehicles!$C$17-Vehicles!$C$18)*Fuel_Specs!$B$24+Vehicles!$C$17*Fuel_Specs!$B$33+Vehicles!$C$18*Fuel_Specs!$B$36))/1000000*HLOOKUP($J$10,$Z$5:$AD$6,2,FALSE)/HLOOKUP($J$11,$Z$7:$AD$8,2,FALSE) -> 10.59982631 | AI25: =AN25*(Vehicles!$M$30/Vehicles!$CO$72)/(Vehicles!$M$30*(1/Vehicles!$CO$72+1/Vehicles!$CP$72)+Vehicles!$M$31/Vehicles!$CQ$72)+E25*(Vehicles!$M$30/Vehicles!$CP$72+Vehicles!$M$31/Vehicles!$CQ$72)/(Vehicles!$M$30*(1/Vehicles!$CO$72+1/Vehicles!$CP$72)+Vehicles!$M$31/Vehicles!$CQ$72) -> 8.181801448 | AJ25: =AN25*(Vehicles!$N$30/Vehicles!$CS$72)/(Vehicles!$N$30*(1/Vehicles!$CS$72+1/Vehicles!$CT$72)+Vehicles!$N$31/Vehicles!$CU$72)+AC25*(Vehicles!$N$30/Vehicles!$CT$72+Vehicles!$N$31/Vehicles!$CU$72)/(Vehicles!$N$30*(1/Vehicles!$CS$72+1/Vehicles!$CT$72)+Vehicles!$N$31/Vehicles!$CU$72) -> 12.41534937 | AK25: =AN25*(Vehicles!$O$30/Vehicles!$CW$72)/(Vehicles!$O$30*(1/Vehicles!$CW$72+1/Vehicles!$CX$72)+Vehicles!$O$31/Vehicles!$CY$72)+AD25*(Vehicles!$O$30/Vehicles!$CX$72+Vehicles!$O$31/Vehicles!$CY$72)/(Vehicles!$O$30*(1/Vehicles!$CW$72+1/Vehicles!$CX$72)+Vehicles!$O$31/Vehicles!$CY$72) -> 12.57944926 | AL25: =AN25*(Vehicles!$P$30/Vehicles!$DA$72)/(Vehicles!$P$30*(1/Vehicles!$DA$72+1/Vehicles!$DB$72)+Vehicles!$P$31/Vehicles!$DC$72)+AE25*(Vehicles!$P$30/Vehicles!$DB$72+Vehicles!$P$31/Vehicles!$DC$72)/(Vehicles!$P$30*(1/Vehicles!$DA$72+1/Vehicles!$DB$72)+Vehicles!$P$31/Vehicles!$DC$72) -> 9.897195985 | AM25: =AN25*(Vehicles!$R$30/Vehicles!$DI$72)/(Vehicles!$R$30*(1/Vehicles!$DI$72+1/Vehicles!$DJ$72)+Vehicles!$R$31/Vehicles!$DK$72)+AH25*(Vehicles!$R$30/Vehicles!$DJ$72+Vehicles!$R$31/Vehicles!$DK$72)/(Vehicles!$R$30*(1/Vehicles!$DI$72+1/Vehicles!$DJ$72)+Vehicles!$R$31/Vehicles!$DK$72) -> 10.40391072 | AN25: =(Electric!$G210+Electric!$F210)/1000000*HLOOKUP($J$10,$Z$5:$AD$6,2,FALSE)/HLOOKUP($J$11,$Z$7:$AD$8,2,FALSE) -> 9.940399561 | AO25: =(Hydrogen!$AJ312*Hydrogen!$AK$305+Hydrogen!$AK312)/1000000*HLOOKUP($J$10,$Z$5:$AD$6,2,FALSE)/HLOOKUP($J$11,$Z$7:$AD$8,2,FALSE) -> 15.98615753 | AP25: =(Hydrogen!$BT312*Hydrogen!$BU$305+Hydrogen!$BU312)/1000000*HLOOKUP($J$10,$Z$5:$AD$6,2,FALSE)/HLOOKUP($J$11,$Z$7:$AD$8,2,FALSE) -> 18.71024089 | AQ25: =AN25*(Vehicles!$S$30/Vehicles!$DY$72)/(Vehicles!$S$30*(1/Vehicles!$DY$72+1/Vehicles!$DZ$72)+Vehicles!$S$31/Vehicles!$EA$72)+AO25*(Vehicles!$S$30/Vehicles!$DZ$72+Vehicles!$S$31/Vehicles!$EA$72)/(Vehicles!$S$30*(1/Vehicles!$DY$72+1/Vehicles!$DZ$72)+Vehicles!$S$31/Vehicles!$EA$72) -> 13.54064548 | AR25: =AN25*(Vehicles!$S$30/Vehicles!$DY$72)/(Vehicles!$S$30*(1/Vehicles!$DY$72+1/Vehicles!$DZ$72)+Vehicles!$S$31/Vehicles!$EA$72)+AP25*(Vehicles!$S$30/Vehicles!$DZ$72+Vehicles!$S$31/Vehicles!$EA$72)/(Vehicles!$S$30*(1/Vehicles!$DY$72+1/Vehicles!$DZ$72)+Vehicles!$S$31/Vehicles!$EA$72) -> 15.16283579 | AS25: =((1-Vehicles!$C$40)*(1-Vehicles!$C$16)*Fuel_Specs!$B$15/((1-Vehicles!$C$40)*(1-Vehicles!$C$16)*Fuel_Specs!$B$15+Vehicles!$C$40*(1-Vehicles!$C$16)*Fuel_Specs!$B$17+Vehicles!$C$16*Fuel_Specs!$B$48)*(Petroleum!$B269*Petroleum!$D$262+Petroleum!$D269)+Vehicles!$C$40*(1-Vehicles!$C$16)*Fuel_Specs!$B$17/((1-Vehicles!$C$40)*(1-Vehicles!$C$16)*Fuel_Specs!$B$15+Vehicles!$C$40*(1-Vehicles!$C$16)*Fuel_Specs!$B$17+Vehicles!$C$16*Fuel_Specs!$B$48)*(Petroleum!B269*Petroleum!$F$262+Petroleum!$F269)+Vehicles!$C$16*Fuel_Specs!$B$48/((1-Vehicles!$C$40)*(1-Vehicles!$C$16)*Fuel_Specs!$B$15+Vehicles!$C$40*(1-Vehicles!$C$16)*Fuel_Specs!$B$17+Vehicles!$C$16*Fuel_Specs!$B$48)*(Pyrolysis_IDL!$AP304*Pyrolysis_IDL!$AQ$297+Pyrolysis_IDL!$AQ304))/1000000*HLOOKUP($J$10,$Z$5:$AD$6,2,FALSE)/HLOOKUP($J$11,$Z$7:$AD$8,2,FALSE) -> 7.912649877 | AT25: =(Petroleum!$B269*Petroleum!$S$262+Petroleum!$S269)/1000000*HLOOKUP($J$10,$Z$5:$AD$6,2,FALSE)/HLOOKUP($J$11,$Z$7:$AD$8,2,FALSE) -> 26.43289921 | AU25: 24.83514887 | AV25: 22.53015783 | BB25: SI - Dedi. EtOH Vehicle | BC25: RNAVETOHDED | BN25: SI PHEV - Liquid H2 and Electricity | BO25: RNAVPHEVLH2
A26: CO: Total | B26: =(Inputs!$E$1518*(Petroleum!$B270*Petroleum!$F$262+Petroleum!$F270)+(1-Inputs!$E$1518)*(Petroleum!$B270*Petroleum!$D$262+Petroleum!$D270))/1000000*HLOOKUP($J$10,$Z$5:$AD$6,2,FALSE)/HLOOKUP($J$11,$Z$7:$AD$8,2,FALSE) -> 15.97493449 | C26: =(Petroleum!$C270*Petroleum!$G$262+Petroleum!$G270)/1000000*HLOOKUP($J$10,$Z$5:$AD$6,2,FALSE)/HLOOKUP($J$11,$Z$7:$AD$8,2,FALSE) -> 17.630008 | D26: =((1-Vehicles!$C$35)*(1-Vehicles!$C$7)*Fuel_Specs!$B$15/((1-Vehicles!$C$35)*(1-Vehicles!$C$7)*Fuel_Specs!$B$15+Vehicles!$C$35*(1-Vehicles!$C$7)*Fuel_Specs!$B$17+Vehicles!$C$7*Fuel_Specs!$B$33)*(Petroleum!$B270*Petroleum!$D$262+(Petroleum!$D270-'T&D'!G223))+Vehicles!$C$35*(1-Vehicles!$C$7)*Fuel_Specs!$B$17/((1-Vehicles!$C$35)*(1-Vehicles!$C$7)*Fuel_Specs!$B$15+Vehicles!$C$35*(1-Vehicles!$C$7)*Fuel_Specs!$B$17+Vehicles!$C$7*Fuel_Specs!$B$33)*(Petroleum!B270*Petroleum!$F$262+Petroleum!$F270)+Vehicles!$C$7*Fuel_Specs!$B$33/((1-Vehicles!$C$35)*(1-Vehicles!$C$7)*Fuel_Specs!$B$15+Vehicles!$C$35*(1-Vehicles!$C$7)*Fuel_Specs!$B$17+Vehicles!$C$7*Fuel_Specs!$B$33)*(EtOH!BV554*EtOH!$BW$546+EtOH!$BW554)+Petroleum!AS132+Petroleum!AT132)/1000000*HLOOKUP($J$10,$Z$5:$AD$6,2,FALSE)/HLOOKUP($J$11,$Z$7:$AD$8,2,FALSE) -> 15.97493449 | E26: =(Inputs!$E$97*(IF(Inputs!F$102=1,Petroleum!$B270,Petroleum!$C270)*IF(Inputs!F$102=1,Petroleum!$K$262,Petroleum!$L$262)+IF(Inputs!F$102=1,Petroleum!$K270,Petroleum!$L270))+(1-Inputs!$E$97)*(IF(Inputs!F$101=1,Petroleum!$B270,Petroleum!$C270)*Petroleum!$J$262+Petroleum!$J270))/1000000*HLOOKUP($J$10,$Z$5:$AD$6,2,FALSE)/HLOOKUP($J$11,$Z$7:$AD$8,2,FALSE) -> 12.25365537 | F26: =(NG!$J92*NG!$K$84+NG!$K92)/1000000*HLOOKUP($J$10,$Z$5:$AD$6,2,FALSE)/HLOOKUP($J$11,$Z$7:$AD$8,2,FALSE) -> 46.15169194 | G26: =(NG!$R92*NG!$S$84+NG!$S92)/1000000*HLOOKUP($J$10,$Z$5:$AD$6,2,FALSE)/HLOOKUP($J$11,$Z$7:$AD$8,2,FALSE) -> 23.44516867 | H26: =(NG!$X92*NG!$Y$84+NG!$Y92)/1000000*HLOOKUP($J$10,$Z$5:$AD$6,2,FALSE)/HLOOKUP($J$11,$Z$7:$AD$8,2,FALSE) -> 19.77035147 | I26: =(MeOH_FTD!BJ170*MeOH_FTD!BK$162+MeOH_FTD!BK170)/1000000*HLOOKUP($J$10,$Z$5:$AD$6,2,FALSE)/HLOOKUP($J$11,$Z$7:$AD$8,2,FALSE) -> 28.81277116 | J26: =((1-Vehicles!$C$34)*(1-Vehicles!$C$5)*Fuel_Specs!$B$15/((1-Vehicles!$C$34)*(1-Vehicles!$C$5)*Fuel_Specs!$B$15+Vehicles!$C$34*(1-Vehicles!$C$5)*Fuel_Specs!$B$17+Vehicles!$C$5*Fuel_Specs!$B$32)*(Petroleum!$B270*Petroleum!$D$262+Petroleum!$D270)+Vehicles!$C$34*(1-Vehicles!$C$5)*Fuel_Specs!$B$17/((1-Vehicles!$C$34)*(1-Vehicles!$C$5)*Fuel_Specs!$B$15+Vehicles!$C$34*(1-Vehicles!$C$5)*Fuel_Specs!$B$17+Vehicles!$C$5*Fuel_Specs!$B$32)*(Petroleum!B270*Petroleum!$F$262+Petroleum!$F270)+Vehicles!$C$5*Fuel_Specs!$B$32/((1-Vehicles!$C$34)*(1-Vehicles!$C$5)*Fuel_Specs!$B$15+Vehicles!$C$34*(1-Vehicles!$C$5)*Fuel_Specs!$B$17+Vehicles!$C$5*Fuel_Specs!$B$32)*(MeOH_FTD!$N170*MeOH_FTD!$O$162+MeOH_FTD!$O170))/1000000*HLOOKUP($J$10,$Z$5:$AD$6,2,FALSE)/HLOOKUP($J$11,$Z$7:$AD$8,2,FALSE) -> 22.91902911 | K26: =((1-Vehicles!$C$34)*(1-Vehicles!$C$6)*Fuel_Specs!$B$15/((1-Vehicles!$C$34)*(1-Vehicles!$C$6)*Fuel_Specs!$B$15+Vehicles!$C$34*(1-Vehicles!$C$6)*Fuel_Specs!$B$17+Vehicles!$C$6*Fuel_Specs!$B$32)*(Petroleum!$B270*Petroleum!$D$262+Petroleum!$D270)+Vehicles!$C$34*(1-Vehicles!$C$6)*Fuel_Specs!$B$17/((1-Vehicles!$C$34)*(1-Vehicles!$C$6)*Fuel_Specs!$B$15+Vehicles!$C$34*(1-Vehicles!$C$6)*Fuel_Specs!$B$17+Vehicles!$C$6*Fuel_Specs!$B$32)*(Petroleum!B270*Petroleum!$F$262+Petroleum!$F270)+Vehicles!$C$6*Fuel_Specs!$B$32/((1-Vehicles!$C$34)*(1-Vehicles!$C$6)*Fuel_Specs!$B$15+Vehicles!$C$34*(1-Vehicles!$C$6)*Fuel_Specs!$B$17+Vehicles!$C$6*Fuel_Specs!$B$32)*(MeOH_FTD!$N170*MeOH_FTD!$O$162+MeOH_FTD!$O170))/1000000*HLOOKUP($J$10,$Z$5:$AD$6,2,FALSE)/HLOOKUP($J$11,$Z$7:$AD$8,2,FALSE) -> 23.8499679 | L26: =(MeOH_FTD!$N170*MeOH_FTD!$O$162+MeOH_FTD!$O170)/1000000*HLOOKUP($J$10,$Z$5:$AD$6,2,FALSE)/HLOOKUP($J$11,$Z$7:$AD$8,2,FALSE) -> 25.9988836 | M26: =((1-Vehicles!$C$36)*(1-Vehicles!$C$8)*Fuel_Specs!$B$15/((1-Vehicles!$C$36)*(1-Vehicles!$C$8)*Fuel_Specs!$B$15+Vehicles!$C$36*(1-Vehicles!$C$8)*Fuel_Specs!$B$17+Vehicles!$C$8*Fuel_Specs!$B$33)*(Petroleum!$B270*Petroleum!$D$262+(Petroleum!$D270-'T&D'!G223))+Vehicles!$C$36*(1-Vehicles!$C$8)*Fuel_Specs!$B$17/((1-Vehicles!$C$36)*(1-Vehicles!$C$8)*Fuel_Specs!$B$15+Vehicles!$C$36*(1-Vehicles!$C$8)*Fuel_Specs!$B$17+Vehicles!$C$8*Fuel_Specs!$B$33)*(Petroleum!B270*Petroleum!$F$262+Petroleum!$F270)+Vehicles!$C$8*Fuel_Specs!$B$33/((1-Vehicles!$C$36)*(1-Vehicles!$C$8)*Fuel_Specs!$B$15+Vehicles!$C$36*(1-Vehicles!$C$8)*Fuel_Specs!$B$17+Vehicles!$C$8*Fuel_Specs!$B$33)*(EtOH!BV554*EtOH!$BW$546+EtOH!$BW554)+Petroleum!AS132+Petroleum!AT132)/1000000*HLOOKUP($J$10,$Z$5:$AD$6,2,FALSE)/HLOOKUP($J$11,$Z$7:$AD$8,2,FALSE) -> 34.7647952 | N26: =((1-Vehicles!$C$37)*(1-Vehicles!$C$12)*Fuel_Specs!$B$15/((1-Vehicles!$C$37)*(1-Vehicles!$C$12)*Fuel_Specs!$B$15+Vehicles!$C$37*(1-Vehicles!$C$12)*Fuel_Specs!$B$17+Vehicles!$C$12*Fuel_Specs!$B$34)*(Petroleum!$B270*Petroleum!$D$262+Petroleum!$D270)+Vehicles!$C$37*(1-Vehicles!$C$12)*Fuel_Specs!$B$17/((1-Vehicles!$C$37)*(1-Vehicles!$C$12)*Fuel_Specs!$B$15+Vehicles!$C$37*(1-Vehicles!$C$12)*Fuel_Specs!$B$17+Vehicles!$C$12*Fuel_Specs!$B$34)*(Petroleum!B270*Petroleum!$F$262+Petroleum!$F270)+Vehicles!$C$12*Fuel_Specs!$B$34/((1-Vehicles!$C$37)*(1-Vehicles!$C$12)*Fuel_Specs!$B$15+Vehicles!$C$37*(1-Vehicles!$C$12)*Fuel_Specs!$B$17+Vehicles!$C$12*Fuel_Specs!$B$34)*(EtOH!$BX554*EtOH!$BY$546+EtOH!$BY554))/1000000*HLOOKUP($J$10,$Z$5:$AD$6,2,FALSE)/HLOOKUP($J$11,$Z$7:$AD$8,2,FALSE) -> 47.45187233 | O26: =((1-Vehicles!$C$36)*(1-Vehicles!$C$9)*Fuel_Specs!$B$15/((1-Vehicles!$C$36)*(1-Vehicles!$C$9)*Fuel_Specs!$B$15+Vehicles!$C$36*(1-Vehicles!$C$9)*Fuel_Specs!$B$17+Vehicles!$C$9*Fuel_Specs!$B$33)*(Petroleum!$B270*Petroleum!$D$262+(Petroleum!$D270-'T&D'!G223))+Vehicles!$C$36*(1-Vehicles!$C$9)*Fuel_Specs!$B$17/((1-Vehicles!$C$36)*(1-Vehicles!$C$9)*Fuel_Specs!$B$15+Vehicles!$C$36*(1-Vehicles!$C$9)*Fuel_Specs!$B$17+Vehicles!$C$9*Fuel_Specs!$B$33)*(Petroleum!B270*Petroleum!$F$262+Petroleum!$F270)+Vehicles!$C$9*Fuel_Specs!$B$33/((1-Vehicles!$C$36)*(1-Vehicles!$C$9)*Fuel_Specs!$B$15+Vehicles!$C$36*(1-Vehicles!$C$9)*Fuel_Specs!$B$17+Vehicles!$C$9*Fuel_Specs!$B$33)*(EtOH!BV554*EtOH!$BW$546+EtOH!$BW554)+Petroleum!AS132+Petroleum!AT132)/1000000*HLOOKUP($J$10,$Z$5:$AD$6,2,FALSE)/HLOOKUP($J$11,$Z$7:$AD$8,2,FALSE) -> 34.7647952 | P26: =(EtOH!$BT554*EtOH!$BU$546+EtOH!$BU554)/1000000*HLOOKUP($J$10,$Z$5:$AD$6,2,FALSE)/HLOOKUP($J$11,$Z$7:$AD$8,2,FALSE) -> 41.15671766 | Q26: =((1-Vehicles!$C$40)*(1-Vehicles!$C$16)*Fuel_Specs!$B$15/((1-Vehicles!$C$40)*(1-Vehicles!$C$16)*Fuel_Specs!$B$15+Vehicles!$C$40*(1-Vehicles!$C$16)*Fuel_Specs!$B$17+Vehicles!$C$16*Fuel_Specs!$B$47)*(Petroleum!$B270*Petroleum!$D$262+Petroleum!$D270)+Vehicles!$C$40*(1-Vehicles!$C$16)*Fuel_Specs!$B$17/((1-Vehicles!$C$40)*(1-Vehicles!$C$16)*Fuel_Specs!$B$15+Vehicles!$C$40*(1-Vehicles!$C$16)*Fuel_Specs!$B$17+Vehicles!$C$16*Fuel_Specs!$B$47)*(Petroleum!B270*Petroleum!$F$262+Petroleum!$F270)+Vehicles!$C$16*Fuel_Specs!$B$47/((1-Vehicles!$C$40)*(1-Vehicles!$C$16)*Fuel_Specs!$B$15+Vehicles!$C$40*(1-Vehicles!$C$16)*Fuel_Specs!$B$17+Vehicles!$C$16*Fuel_Specs!$B$47)*(BioOil!$CE440*BioOil!$CF$431+BioOil!$CF440))/1000000*HLOOKUP($J$10,$Z$5:$AD$6,2,FALSE)/HLOOKUP($J$11,$Z$7:$AD$8,2,FALSE) -> 166.5155535 | R26: =((1-Vehicles!$C$40)*(1-Vehicles!$C$16)*Fuel_Specs!$B$15/((1-Vehicles!$C$40)*(1-Vehicles!$C$16)*Fuel_Specs!$B$15+Vehicles!$C$40*(1-Vehicles!$C$16)*Fuel_Specs!$B$17+Vehicles!$C$16*Fuel_Specs!$B$47)*(Petroleum!$B270*Petroleum!$D$262+Petroleum!$D270)+Vehicles!$C$40*(1-Vehicles!$C$16)*Fuel_Specs!$B$17/((1-Vehicles!$C$40)*(1-Vehicles!$C$16)*Fuel_Specs!$B$15+Vehicles!$C$40*(1-Vehicles!$C$16)*Fuel_Specs!$B$17+Vehicles!$C$16*Fuel_Specs!$B$47)*(Petroleum!B270*Petroleum!$F$262+Petroleum!$F270)+Vehicles!$C$16*Fuel_Specs!$B$47/((1-Vehicles!$C$40)*(1-Vehicles!$C$16)*Fuel_Specs!$B$15+Vehicles!$C$40*(1-Vehicles!$C$16)*Fuel_Specs!$B$17+Vehicles!$C$16*Fuel_Specs!$B$47)*(Pyrolysis_IDL!$AD305*Pyrolysis_IDL!$AE$297+Pyrolysis_IDL!$AE305))/1000000*HLOOKUP($J$10,$Z$5:$AD$6,2,FALSE)/HLOOKUP($J$11,$Z$7:$AD$8,2,FALSE) -> 16.99022051 | S26: =AN26*(Vehicles!$C$30/Vehicles!$AT$72)/(Vehicles!$C$30*(1/Vehicles!$AT$72+1/Vehicles!$AU$72)+Vehicles!$C$31/Vehicles!$AV$72)+B26*(Vehicles!$C$30/Vehicles!$AU$72+Vehicles!$C$31/Vehicles!$AV$72)/(Vehicles!$C$30*(1/Vehicles!$AT$72+1/Vehicles!$AU$72)+Vehicles!$C$31/Vehicles!$AV$72) -> 25.34542688 | T26: =AN26*(Vehicles!$D$30/Vehicles!$AX$72)/(Vehicles!$D$30*(1/Vehicles!$AX$72+1/Vehicles!$AY$72)+Vehicles!$D$31/Vehicles!$AZ$72)+C26*(Vehicles!$D$30/Vehicles!$AY$72+Vehicles!$D$31/Vehicles!$AZ$72)/(Vehicles!$D$30*(1/Vehicles!$AX$72+1/Vehicles!$AY$72)+Vehicles!$D$31/Vehicles!$AZ$72) -> 26.37511151 | U26: =AN26*(Vehicles!$F$30/Vehicles!$BF$72)/(Vehicles!$F$30*(1/Vehicles!$BF$72+1/Vehicles!$BG$72)+Vehicles!$F$31/Vehicles!$BH$72)+D26*(Vehicles!$F$30/Vehicles!$BG$72+Vehicles!$F$31/Vehicles!$BH$72)/(Vehicles!$F$30*(1/Vehicles!$BF$72+1/Vehicles!$BG$72)+Vehicles!$F$31/Vehicles!$BH$72) -> 25.34542688 | V26: =AN26*(Vehicles!$G$30/Vehicles!$BJ$72)/(Vehicles!$G$30*(1/Vehicles!$BJ$72+1/Vehicles!$BK$72)+Vehicles!$G$31/Vehicles!$BL$72)+F26*(Vehicles!$G$30/Vehicles!$BK$72+Vehicles!$G$31/Vehicles!$BL$72)/(Vehicles!$G$30*(1/Vehicles!$BJ$72+1/Vehicles!$BK$72)+Vehicles!$G$31/Vehicles!$BL$72) -> 44.11954359 | W26: =AN26*(Vehicles!$H$30/Vehicles!$BN$72)/(Vehicles!$H$30*(1/Vehicles!$BN$72+1/Vehicles!$BO$72)+Vehicles!$H$31/Vehicles!$BP$72)+G26*(Vehicles!$H$30/Vehicles!$BO$72+Vehicles!$H$31/Vehicles!$BP$72)/(Vehicles!$H$30*(1/Vehicles!$BN$72+1/Vehicles!$BO$72)+Vehicles!$H$31/Vehicles!$BP$72) -> 29.99294571 | X26: =AN26*(Vehicles!$I$30/Vehicles!$BR$72)/(Vehicles!$I$30*(1/Vehicles!$BR$72+1/Vehicles!$BS$72)+Vehicles!$I$31/Vehicles!$BT$72)+H26*(Vehicles!$I$30/Vehicles!$BS$72+Vehicles!$I$31/Vehicles!$BT$72)/(Vehicles!$I$30*(1/Vehicles!$BR$72+1/Vehicles!$BS$72)+Vehicles!$I$31/Vehicles!$BT$72) -> 27.70670116 | Y26: =AN26*(Vehicles!$J$30/Vehicles!$BV$72)/(Vehicles!$J$30*(1/Vehicles!$BV$72+1/Vehicles!$BW$72)+Vehicles!$J$31/Vehicles!$BX$72)+K26*(Vehicles!$J$30/Vehicles!$BW$72+Vehicles!$J$31/Vehicles!$BX$72)/(Vehicles!$J$30*(1/Vehicles!$BV$72+1/Vehicles!$BW$72)+Vehicles!$J$31/Vehicles!$BX$72) -> 30.24478682 | Z26: =AN26*(Vehicles!$K$30/Vehicles!$BZ$72)/(Vehicles!$K$30*(1/Vehicles!$BZ$72+1/Vehicles!$CA$72)+Vehicles!$K$31/Vehicles!$CB$72)+O26*(Vehicles!$K$30/Vehicles!$CA$72+Vehicles!$K$31/Vehicles!$CB$72)/(Vehicles!$K$30*(1/Vehicles!$BZ$72+1/Vehicles!$CA$72)+Vehicles!$K$31/Vehicles!$CB$72) -> 37.03531896 | AA26: =AN26*(Vehicles!$L$30/Vehicles!$CD$72)/(Vehicles!$L$30*(1/Vehicles!$CD$72+1/Vehicles!$CE$72)+Vehicles!$L$31/Vehicles!$CF$72)+AO26*(Vehicles!$L$30/Vehicles!$CE$72+Vehicles!$L$31/Vehicles!$CF$72)/(Vehicles!$L$30*(1/Vehicles!$CD$72+1/Vehicles!$CE$72)+Vehicles!$L$31/Vehicles!$CF$72) -> 49.8920113 | AB26: =AN26*(Vehicles!$L$30/Vehicles!$CD$72)/(Vehicles!$L$30*(1/Vehicles!$CD$72+1/Vehicles!$CE$72)+Vehicles!$L$31/Vehicles!$CG$72)+AP26*(Vehicles!$L$30/Vehicles!$CE$72+Vehicles!$L$31/Vehicles!$CG$72)/(Vehicles!$L$30*(1/Vehicles!$CD$72+1/Vehicles!$CE$72)+Vehicles!$L$31/Vehicles!$CG$72) -> 50.31937115 | AC26: =(MeOH_FTD!$AJ170*MeOH_FTD!$AK$162+MeOH_FTD!$AK170)/1000000*HLOOKUP($J$10,$Z$5:$AD$6,2,FALSE)/HLOOKUP($J$11,$Z$7:$AD$8,2,FALSE) -> 29.54618857 | AD26: =((1-Vehicles!$C$41)*(1-Vehicles!$C$13)*Fuel_Specs!$B$21/((1-Vehicles!$C$41)*(1-Vehicles!$C$13)*Fuel_Specs!$B$21+Vehicles!$C$41*(1-Vehicles!$C$13)*Fuel_Specs!$B$24+Vehicles!$C$13*Fuel_Specs!$B$42)*(Petroleum!B270*Petroleum!$J$262+Petroleum!$J270)+Vehicles!$C$41*(1-Vehicles!$C$13)*Fuel_Specs!$B$24/((1-Vehicles!$C$41)*(1-Vehicles!$C$13)*Fuel_Specs!$B$21+Vehicles!$C$41*(1-Vehicles!$C$13)*Fuel_Specs!$B$24+Vehicles!$C$13*Fuel_Specs!$B$42)*(Petroleum!B270*IF(Inputs!F$102=1,Petroleum!$K$262,Petroleum!$L$262)+IF(Inputs!F$102=1,Petroleum!$K270,Petroleum!$L270))+Vehicles!$C$13*Fuel_Specs!$B$42/((1-Vehicles!$C$41)*(1-Vehicles!$C$13)*Fuel_Specs!$B$21+Vehicles!$C$41*(1-Vehicles!$C$13)*Fuel_Specs!$B$24+Vehicles!$C$13*Fuel_Specs!$B$42)*(MeOH_FTD!$AZ170*MeOH_FTD!$BA$162+MeOH_FTD!$BA170))/1000000*HLOOKUP($J$10,$Z$5:$AD$6,2,FALSE)/HLOOKUP($J$11,$Z$7:$AD$8,2,FALSE) -> 27.78899845 | AE26: =((1-Vehicles!$C$42)*(1-Vehicles!$C$14)*Fuel_Specs!$B$21/((1-Vehicles!$C$42)*(1-Vehicles!$C$14)*Fuel_Specs!$B$21+Vehicles!$C$42*(1-Vehicles!$C$14)*Fuel_Specs!$B$24+Vehicles!$C$14*Fuel_Specs!$B$41)*(Petroleum!B270*Petroleum!$J$262+Petroleum!$J270)+Vehicles!$C$42*(1-Vehicles!$C$14)*Fuel_Specs!$B$24/((1-Vehicles!$C$42)*(1-Vehicles!$C$14)*Fuel_Specs!$B$21+Vehicles!$C$42*(1-Vehicles!$C$14)*Fuel_Specs!$B$24+Vehicles!$C$14*Fuel_Specs!$B$41)*(Petroleum!B270*IF(Inputs!F$102=1,Petroleum!$K$262,Petroleum!$L$262)+IF(Inputs!F$102=1,Petroleum!$K270,Petroleum!$L270))+Vehicles!$C$14*Fuel_Specs!$B$41/((1-Vehicles!$C$42)*(1-Vehicles!$C$14)*Fuel_Specs!$B$21+Vehicles!$C$42*(1-Vehicles!$C$14)*Fuel_Specs!$B$24+Vehicles!$C$14*Fuel_Specs!$B$41)*(BioOil!$Y440*BioOil!$Z$431+BioOil!$Z440))/1000000*HLOOKUP($J$10,$Z$5:$AD$6,2,FALSE)/HLOOKUP($J$11,$Z$7:$AD$8,2,FALSE) -> 12.82250348 | AF26: =((1-Vehicles!$C$43)*(1-Vehicles!$C$15)*Fuel_Specs!$B$21/((1-Vehicles!$C$43)*(1-Vehicles!$C$15)*Fuel_Specs!$B$21+Vehicles!$C$43*(1-Vehicles!$C$15)*Fuel_Specs!$B$24+Vehicles!$C$15*IF(Inputs!$E$670=1,IF(Inputs!$E$670=1,Fuel_Specs!$B$43,IF(Inputs!$E$670=3,Fuel_Specs!$B$45,Fuel_Specs!$B$44)),Fuel_Specs!$B$44))*(Petroleum!B270*Petroleum!$J$262+Petroleum!$J270)+Vehicles!$C$43*(1-Vehicles!$C$15)*Fuel_Specs!$B$24/((1-Vehicles!$C$43)*(1-Vehicles!$C$15)*Fuel_Specs!$B$21+Vehicles!$C$43*(1-Vehicles!$C$15)*Fuel_Specs!$B$24+Vehicles!$C$15*IF(Inputs!$E$670=1,IF(Inputs!$E$670=1,Fuel_Specs!$B$43,IF(Inputs!$E$670=3,Fuel_Specs!$B$45,Fuel_Specs!$B$44)),Fuel_Specs!$B$44))*(Petroleum!B270*IF(Inputs!F$102=1,Petroleum!$K$262,Petroleum!$L$262)+IF(Inputs!F$102=1,Petroleum!$K270,Petroleum!$L270))+Vehicles!$C$15*IF(Inputs!$E$670=1,IF(Inputs!$E$670=1,Fuel_Specs!$B$43,IF(Inputs!$E$670=3,Fuel_Specs!$B$45,Fuel_Specs!$B$44)),Fuel_Specs!$B$44)/((1-Vehicles!$C$43)*(1-Vehicles!$C$15)*Fuel_Specs!$B$21+Vehicles!$C$43*(1-Vehicles!$C$15)*Fuel_Specs!$B$24+Vehicles!$C$15*IF(Inputs!$E$670=1,IF(Inputs!$E$670=1,Fuel_Specs!$B$43,IF(Inputs!$E$670=3,Fuel_Specs!$B$45,Fuel_Specs!$B$44)),Fuel_Specs!$B$44))*(BioOil!$BQ440*BioOil!$BR$431+BioOil!$BR440))/1000000*HLOOKUP($J$10,$Z$5:$AD$6,2,FALSE)/HLOOKUP($J$11,$Z$7:$AD$8,2,FALSE) -> 17.06334317 | AG26: =((1-Vehicles!$C$43)*(1-Vehicles!$C$15)*Fuel_Specs!$B$21/((1-Vehicles!$C$43)*(1-Vehicles!$C$15)*Fuel_Specs!$B$21+Vehicles!$C$43*(1-Vehicles!$C$15)*Fuel_Specs!$B$24+Vehicles!$C$15*IF(Inputs!$E$670=1,Fuel_Specs!$B$43,Fuel_Specs!$B$44))*(Petroleum!B270*Petroleum!$J$262+Petroleum!$J270)+Vehicles!$C$43*(1-Vehicles!$C$15)*Fuel_Specs!$B$24/((1-Vehicles!$C$43)*(1-Vehicles!$C$15)*Fuel_Specs!$B$21+Vehicles!$C$43*(1-Vehicles!$C$15)*Fuel_Specs!$B$24+Vehicles!$C$15*IF(Inputs!$E$670=1,Fuel_Specs!$B$43,Fuel_Specs!$B$44))*(Petroleum!B270*IF(Inputs!F$102=1,Petroleum!$K$262,Petroleum!$L$262)+IF(Inputs!F$102=1,Petroleum!$K270,Petroleum!$L270))+Vehicles!$C$15*IF(Inputs!$E$670=1,Fuel_Specs!$B$43,Fuel_Specs!$B$44)/((1-Vehicles!$C$43)*(1-Vehicles!$C$15)*Fuel_Specs!$B$21+Vehicles!$C$43*(1-Vehicles!$C$15)*Fuel_Specs!$B$24+Vehicles!$C$15*IF(Inputs!$E$670=1,Fuel_Specs!$B$43,Fuel_Specs!$B$44))*(Pyrolysis_IDL!$AF305*Pyrolysis_IDL!$AG$297+Pyrolysis_IDL!$AG305))/1000000*HLOOKUP($J$10,$Z$5:$AD$6,2,FALSE)/HLOOKUP($J$11,$Z$7:$AD$8,2,FALSE) -> 20.31456301 | AH26: =(((1-Vehicles!$C$44)*(1-Vehicles!$C$17-Vehicles!$C$18)*Fuel_Specs!$B$21*(Petroleum!B270*Petroleum!$J$262+Petroleum!$J270)+Vehicles!$C$44*(1-Vehicles!$C$17-Vehicles!$C$18)*Fuel_Specs!$B$24*(Petroleum!B270*IF(Inputs!F$102=1,Petroleum!$K$262,Petroleum!$L$262)+IF(Inputs!F$102=1,Petroleum!$K270,Petroleum!$L270))+Vehicles!$C$17*Fuel_Specs!$B$33*(EtOH!BT554*EtOH!$BU$546+EtOH!$BU554)+Vehicles!$C$18*Fuel_Specs!$B$36*('EtOH-Diesel Additives'!$B61*'EtOH-Diesel Additives'!$B$53))/((1-Vehicles!$C$44)*(1-Vehicles!$C$17-Vehicles!$C$18)*Fuel_Specs!$B$21+Vehicles!$C$44*(1-Vehicles!$C$17-Vehicles!$C$18)*Fuel_Specs!$B$24+Vehicles!$C$17*Fuel_Specs!$B$33+Vehicles!$C$18*Fuel_Specs!$B$36))/1000000*HLOOKUP($J$10,$Z$5:$AD$6,2,FALSE)/HLOOKUP($J$11,$Z$7:$AD$8,2,FALSE) -> 14.11569141 | AI26: =AN26*(Vehicles!$M$30/Vehicles!$CO$72)/(Vehicles!$M$30*(1/Vehicles!$CO$72+1/Vehicles!$CP$72)+Vehicles!$M$31/Vehicles!$CQ$72)+E26*(Vehicles!$M$30/Vehicles!$CP$72+Vehicles!$M$31/Vehicles!$CQ$72)/(Vehicles!$M$30*(1/Vehicles!$CO$72+1/Vehicles!$CP$72)+Vehicles!$M$31/Vehicles!$CQ$72) -> 20.72694781 | AJ26: =AN26*(Vehicles!$N$30/Vehicles!$CS$72)/(Vehicles!$N$30*(1/Vehicles!$CS$72+1/Vehicles!$CT$72)+Vehicles!$N$31/Vehicles!$CU$72)+AC26*(Vehicles!$N$30/Vehicles!$CT$72+Vehicles!$N$31/Vehicles!$CU$72)/(Vehicles!$N$30*(1/Vehicles!$CS$72+1/Vehicles!$CT$72)+Vehicles!$N$31/Vehicles!$CU$72) -> 32.88187183 | AK26: =AN26*(Vehicles!$O$30/Vehicles!$CW$72)/(Vehicles!$O$30*(1/Vehicles!$CW$72+1/Vehicles!$CX$72)+Vehicles!$O$31/Vehicles!$CY$72)+AD26*(Vehicles!$O$30/Vehicles!$CX$72+Vehicles!$O$31/Vehicles!$CY$72)/(Vehicles!$O$30*(1/Vehicles!$CW$72+1/Vehicles!$CX$72)+Vehicles!$O$31/Vehicles!$CY$72) -> 31.64674265 | AL26: =AN26*(Vehicles!$P$30/Vehicles!$DA$72)/(Vehicles!$P$30*(1/Vehicles!$DA$72+1/Vehicles!$DB$72)+Vehicles!$P$31/Vehicles!$DC$72)+AE26*(Vehicles!$P$30/Vehicles!$DB$72+Vehicles!$P$31/Vehicles!$DC$72)/(Vehicles!$P$30*(1/Vehicles!$DA$72+1/Vehicles!$DB$72)+Vehicles!$P$31/Vehicles!$DC$72) -> 21.12679123 | AM26: =AN26*(Vehicles!$R$30/Vehicles!$DI$72)/(Vehicles!$R$30*(1/Vehicles!$DI$72+1/Vehicles!$DJ$72)+Vehicles!$R$31/Vehicles!$DK$72)+AH26*(Vehicles!$R$30/Vehicles!$DJ$72+Vehicles!$R$31/Vehicles!$DK$72)/(Vehicles!$R$30*(1/Vehicles!$DI$72+1/Vehicles!$DJ$72)+Vehicles!$R$31/Vehicles!$DK$72) -> 22.03577321 | AN26: =(Electric!$G211+Electric!$F211)/1000000*HLOOKUP($J$10,$Z$5:$AD$6,2,FALSE)/HLOOKUP($J$11,$Z$7:$AD$8,2,FALSE) -> 40.77367038 | AO26: =(Hydrogen!$AJ313*Hydrogen!$AK$305+Hydrogen!$AK313)/1000000*HLOOKUP($J$10,$Z$5:$AD$6,2,FALSE)/HLOOKUP($J$11,$Z$7:$AD$8,2,FALSE) -> 55.43012355 | AP26: =(Hydrogen!$BT313*Hydrogen!$BU$305+Hydrogen!$BU313)/1000000*HLOOKUP($J$10,$Z$5:$AD$6,2,FALSE)/HLOOKUP($J$11,$Z$7:$AD$8,2,FALSE) -> 56.11704452 | AQ26: =AN26*(Vehicles!$S$30/Vehicles!$DY$72)/(Vehicles!$S$30*(1/Vehicles!$DY$72+1/Vehicles!$DZ$72)+Vehicles!$S$31/Vehicles!$EA$72)+AO26*(Vehicles!$S$30/Vehicles!$DZ$72+Vehicles!$S$31/Vehicles!$EA$72)/(Vehicles!$S$30*(1/Vehicles!$DY$72+1/Vehicles!$DZ$72)+Vehicles!$S$31/Vehicles!$EA$72) -> 49.50158108 | AR26: =AN26*(Vehicles!$S$30/Vehicles!$DY$72)/(Vehicles!$S$30*(1/Vehicles!$DY$72+1/Vehicles!$DZ$72)+Vehicles!$S$31/Vehicles!$EA$72)+AP26*(Vehicles!$S$30/Vehicles!$DZ$72+Vehicles!$S$31/Vehicles!$EA$72)/(Vehicles!$S$30*(1/Vehicles!$DY$72+1/Vehicles!$DZ$72)+Vehicles!$S$31/Vehicles!$EA$72) -> 49.91064218 | AS26: =((1-Vehicles!$C$40)*(1-Vehicles!$C$16)*Fuel_Specs!$B$15/((1-Vehicles!$C$40)*(1-Vehicles!$C$16)*Fuel_Specs!$B$15+Vehicles!$C$40*(1-Vehicles!$C$16)*Fuel_Specs!$B$17+Vehicles!$C$16*Fuel_Specs!$B$48)*(Petroleum!$B270*Petroleum!$D$262+Petroleum!$D270)+Vehicles!$C$40*(1-Vehicles!$C$16)*Fuel_Specs!$B$17/((1-Vehicles!$C$40)*(1-Vehicles!$C$16)*Fuel_Specs!$B$15+Vehicles!$C$40*(1-Vehicles!$C$16)*Fuel_Specs!$B$17+Vehicles!$C$16*Fuel_Specs!$B$48)*(Petroleum!B270*Petroleum!$F$262+Petroleum!$F270)+Vehicles!$C$16*Fuel_Specs!$B$48/((1-Vehicles!$C$40)*(1-Vehicles!$C$16)*Fuel_Specs!$B$15+Vehicles!$C$40*(1-Vehicles!$C$16)*Fuel_Specs!$B$17+Vehicles!$C$16*Fuel_Specs!$B$48)*(Pyrolysis_IDL!$AP305*Pyrolysis_IDL!$AQ$297+Pyrolysis_IDL!$AQ305))/1000000*HLOOKUP($J$10,$Z$5:$AD$6,2,FALSE)/HLOOKUP($J$11,$Z$7:$AD$8,2,FALSE) -> 54.70365664 | AT26: =(Petroleum!$B270*Petroleum!$S$262+Petroleum!$S270)/1000000*HLOOKUP($J$10,$Z$5:$AD$6,2,FALSE)/HLOOKUP($J$11,$Z$7:$AD$8,2,FALSE) -> 13.07997015 | AU26: 17.0435525 | AV26: 16.96981281 | BB26: SI - Gaseous H2 | BC26: RNAVGH2ICE
A27: NOx: Total | B27: =(Inputs!$E$1518*(Petroleum!$B271*Petroleum!$F$262+Petroleum!$F271)+(1-Inputs!$E$1518)*(Petroleum!$B271*Petroleum!$D$262+Petroleum!$D271))/1000000*HLOOKUP($J$10,$Z$5:$AD$6,2,FALSE)/HLOOKUP($J$11,$Z$7:$AD$8,2,FALSE) -> 25.82928213 | C27: =(Petroleum!$C271*Petroleum!$G$262+Petroleum!$G271)/1000000*HLOOKUP($J$10,$Z$5:$AD$6,2,FALSE)/HLOOKUP($J$11,$Z$7:$AD$8,2,FALSE) -> 42.00390206 | D27: =((1-Vehicles!$C$35)*(1-Vehicles!$C$7)*Fuel_Specs!$B$15/((1-Vehicles!$C$35)*(1-Vehicles!$C$7)*Fuel_Specs!$B$15+Vehicles!$C$35*(1-Vehicles!$C$7)*Fuel_Specs!$B$17+Vehicles!$C$7*Fuel_Specs!$B$33)*(Petroleum!$B271*Petroleum!$D$262+(Petroleum!$D271-'T&D'!G224))+Vehicles!$C$35*(1-Vehicles!$C$7)*Fuel_Specs!$B$17/((1-Vehicles!$C$35)*(1-Vehicles!$C$7)*Fuel_Specs!$B$15+Vehicles!$C$35*(1-Vehicles!$C$7)*Fuel_Specs!$B$17+Vehicles!$C$7*Fuel_Specs!$B$33)*(Petroleum!B271*Petroleum!$F$262+Petroleum!$F271)+Vehicles!$C$7*Fuel_Specs!$B$33/((1-Vehicles!$C$35)*(1-Vehicles!$C$7)*Fuel_Specs!$B$15+Vehicles!$C$35*(1-Vehicles!$C$7)*Fuel_Specs!$B$17+Vehicles!$C$7*Fuel_Specs!$B$33)*(EtOH!BV555*EtOH!$BW$546+EtOH!$BW555)+Petroleum!AS133+Petroleum!AT133)/1000000*HLOOKUP($J$10,$Z$5:$AD$6,2,FALSE)/HLOOKUP($J$11,$Z$7:$AD$8,2,FALSE) -> 25.82928213 | E27: =(Inputs!$E$97*(IF(Inputs!F$102=1,Petroleum!$B271,Petroleum!$C271)*IF(Inputs!F$102=1,Petroleum!$K$262,Petroleum!$L$262)+IF(Inputs!F$102=1,Petroleum!$K271,Petroleum!$L271))+(1-Inputs!$E$97)*(IF(Inputs!F$101=1,Petroleum!$B271,Petroleum!$C271)*Petroleum!$J$262+Petroleum!$J271))/1000000*HLOOKUP($J$10,$Z$5:$AD$6,2,FALSE)/HLOOKUP($J$11,$Z$7:$AD$8,2,FALSE) -> 18.60105553 | F27: =(NG!$J93*NG!$K$84+NG!$K93)/1000000*HLOOKUP($J$10,$Z$5:$AD$6,2,FALSE)/HLOOKUP($J$11,$Z$7:$AD$8,2,FALSE) -> 53.97070943 | G27: =(NG!$R93*NG!$S$84+NG!$S93)/1000000*HLOOKUP($J$10,$Z$5:$AD$6,2,FALSE)/HLOOKUP($J$11,$Z$7:$AD$8,2,FALSE) -> 27.46163644 | H27: =(NG!$X93*NG!$Y$84+NG!$Y93)/1000000*HLOOKUP($J$10,$Z$5:$AD$6,2,FALSE)/HLOOKUP($J$11,$Z$7:$AD$8,2,FALSE) -> 22.64960508 | I27: =(MeOH_FTD!BJ171*MeOH_FTD!BK$162+MeOH_FTD!BK171)/1000000*HLOOKUP($J$10,$Z$5:$AD$6,2,FALSE)/HLOOKUP($J$11,$Z$7:$AD$8,2,FALSE) -> 32.59504559 | J27: =((1-Vehicles!$C$34)*(1-Vehicles!$C$5)*Fuel_Specs!$B$15/((1-Vehicles!$C$34)*(1-Vehicles!$C$5)*Fuel_Specs!$B$15+Vehicles!$C$34*(1-Vehicles!$C$5)*Fuel_Specs!$B$17+Vehicles!$C$5*Fuel_Specs!$B$32)*(Petroleum!$B271*Petroleum!$D$262+Petroleum!$D271)+Vehicles!$C$34*(1-Vehicles!$C$5)*Fuel_Specs!$B$17/((1-Vehicles!$C$34)*(1-Vehicles!$C$5)*Fuel_Specs!$B$15+Vehicles!$C$34*(1-Vehicles!$C$5)*Fuel_Specs!$B$17+Vehicles!$C$5*Fuel_Specs!$B$32)*(Petroleum!B271*Petroleum!$F$262+Petroleum!$F271)+Vehicles!$C$5*Fuel_Specs!$B$32/((1-Vehicles!$C$34)*(1-Vehicles!$C$5)*Fuel_Specs!$B$15+Vehicles!$C$34*(1-Vehicles!$C$5)*Fuel_Specs!$B$17+Vehicles!$C$5*Fuel_Specs!$B$32)*(MeOH_FTD!$N171*MeOH_FTD!$O$162+MeOH_FTD!$O171))/1000000*HLOOKUP($J$10,$Z$5:$AD$6,2,FALSE)/HLOOKUP($J$11,$Z$7:$AD$8,2,FALSE) -> 27.27579582 | K27: =((1-Vehicles!$C$34)*(1-Vehicles!$C$6)*Fuel_Specs!$B$15/((1-Vehicles!$C$34)*(1-Vehicles!$C$6)*Fuel_Specs!$B$15+Vehicles!$C$34*(1-Vehicles!$C$6)*Fuel_Specs!$B$17+Vehicles!$C$6*Fuel_Specs!$B$32)*(Petroleum!$B271*Petroleum!$D$262+Petroleum!$D271)+Vehicles!$C$34*(1-Vehicles!$C$6)*Fuel_Specs!$B$17/((1-Vehicles!$C$34)*(1-Vehicles!$C$6)*Fuel_Specs!$B$15+Vehicles!$C$34*(1-Vehicles!$C$6)*Fuel_Specs!$B$17+Vehicles!$C$6*Fuel_Specs!$B$32)*(Petroleum!B271*Petroleum!$F$262+Petroleum!$F271)+Vehicles!$C$6*Fuel_Specs!$B$32/((1-Vehicles!$C$34)*(1-Vehicles!$C$6)*Fuel_Specs!$B$15+Vehicles!$C$34*(1-Vehicles!$C$6)*Fuel_Specs!$B$17+Vehicles!$C$6*Fuel_Specs!$B$32)*(MeOH_FTD!$N171*MeOH_FTD!$O$162+MeOH_FTD!$O171))/1000000*HLOOKUP($J$10,$Z$5:$AD$6,2,FALSE)/HLOOKUP($J$11,$Z$7:$AD$8,2,FALSE) -> 27.91214648 | L27: =(MeOH_FTD!$N171*MeOH_FTD!$O$162+MeOH_FTD!$O171)/1000000*HLOOKUP($J$10,$Z$5:$AD$6,2,FALSE)/HLOOKUP($J$11,$Z$7:$AD$8,2,FALSE) -> 29.38105501 | M27: =((1-Vehicles!$C$36)*(1-Vehicles!$C$8)*Fuel_Specs!$B$15/((1-Vehicles!$C$36)*(1-Vehicles!$C$8)*Fuel_Specs!$B$15+Vehicles!$C$36*(1-Vehicles!$C$8)*Fuel_Specs!$B$17+Vehicles!$C$8*Fuel_Specs!$B$33)*(Petroleum!$B271*Petroleum!$D$262+(Petroleum!$D271-'T&D'!G224))+Vehicles!$C$36*(1-Vehicles!$C$8)*Fuel_Specs!$B$17/((1-Vehicles!$C$36)*(1-Vehicles!$C$8)*Fuel_Specs!$B$15+Vehicles!$C$36*(1-Vehicles!$C$8)*Fuel_Specs!$B$17+Vehicles!$C$8*Fuel_Specs!$B$33)*(Petroleum!B271*Petroleum!$F$262+Petroleum!$F271)+Vehicles!$C$8*Fuel_Specs!$B$33/((1-Vehicles!$C$36)*(1-Vehicles!$C$8)*Fuel_Specs!$B$15+Vehicles!$C$36*(1-Vehicles!$C$8)*Fuel_Specs!$B$17+Vehicles!$C$8*Fuel_Specs!$B$33)*(EtOH!BV555*EtOH!$BW$546+EtOH!$BW555)+Petroleum!AS133+Petroleum!AT133)/1000000*HLOOKUP($J$10,$Z$5:$AD$6,2,FALSE)/HLOOKUP($J$11,$Z$7:$AD$8,2,FALSE) -> 73.3357814 | N27: =((1-Vehicles!$C$37)*(1-Vehicles!$C$12)*Fuel_Specs!$B$15/((1-Vehicles!$C$37)*(1-Vehicles!$C$12)*Fuel_Specs!$B$15+Vehicles!$C$37*(1-Vehicles!$C$12)*Fuel_Specs!$B$17+Vehicles!$C$12*Fuel_Specs!$B$34)*(Petroleum!$B271*Petroleum!$D$262+Petroleum!$D271)+Vehicles!$C$37*(1-Vehicles!$C$12)*Fuel_Specs!$B$17/((1-Vehicles!$C$37)*(1-Vehicles!$C$12)*Fuel_Specs!$B$15+Vehicles!$C$37*(1-Vehicles!$C$12)*Fuel_Specs!$B$17+Vehicles!$C$12*Fuel_Specs!$B$34)*(Petroleum!B271*Petroleum!$F$262+Petroleum!$F271)+Vehicles!$C$12*Fuel_Specs!$B$34/((1-Vehicles!$C$37)*(1-Vehicles!$C$12)*Fuel_Specs!$B$15+Vehicles!$C$37*(1-Vehicles!$C$12)*Fuel_Specs!$B$17+Vehicles!$C$12*Fuel_Specs!$B$34)*(EtOH!$BX555*EtOH!$BY$546+EtOH!$BY555))/1000000*HLOOKUP($J$10,$Z$5:$AD$6,2,FALSE)/HLOOKUP($J$11,$Z$7:$AD$8,2,FALSE) -> 85.96965791 | O27: =((1-Vehicles!$C$36)*(1-Vehicles!$C$9)*Fuel_Specs!$B$15/((1-Vehicles!$C$36)*(1-Vehicles!$C$9)*Fuel_Specs!$B$15+Vehicles!$C$36*(1-Vehicles!$C$9)*Fuel_Specs!$B$17+Vehicles!$C$9*Fuel_Specs!$B$33)*(Petroleum!$B271*Petroleum!$D$262+(Petroleum!$D271-'T&D'!G224))+Vehicles!$C$36*(1-Vehicles!$C$9)*Fuel_Specs!$B$17/((1-Vehicles!$C$36)*(1-Vehicles!$C$9)*Fuel_Specs!$B$15+Vehicles!$C$36*(1-Vehicles!$C$9)*Fuel_Specs!$B$17+Vehicles!$C$9*Fuel_Specs!$B$33)*(Petroleum!B271*Petroleum!$F$262+Petroleum!$F271)+Vehicles!$C$9*Fuel_Specs!$B$33/((1-Vehicles!$C$36)*(1-Vehicles!$C$9)*Fuel_Specs!$B$15+Vehicles!$C$36*(1-Vehicles!$C$9)*Fuel_Specs!$B$17+Vehicles!$C$9*Fuel_Specs!$B$33)*(EtOH!BV555*EtOH!$BW$546+EtOH!$BW555)+Petroleum!AS133+Petroleum!AT133)/1000000*HLOOKUP($J$10,$Z$5:$AD$6,2,FALSE)/HLOOKUP($J$11,$Z$7:$AD$8,2,FALSE) -> 73.3357814 | P27: =(EtOH!$BT555*EtOH!$BU$546+EtOH!$BU555)/1000000*HLOOKUP($J$10,$Z$5:$AD$6,2,FALSE)/HLOOKUP($J$11,$Z$7:$AD$8,2,FALSE) -> 89.28381447 | Q27: =((1-Vehicles!$C$40)*(1-Vehicles!$C$16)*Fuel_Specs!$B$15/((1-Vehicles!$C$40)*(1-Vehicles!$C$16)*Fuel_Specs!$B$15+Vehicles!$C$40*(1-Vehicles!$C$16)*Fuel_Specs!$B$17+Vehicles!$C$16*Fuel_Specs!$B$47)*(Petroleum!$B271*Petroleum!$D$262+Petroleum!$D271)+Vehicles!$C$40*(1-Vehicles!$C$16)*Fuel_Specs!$B$17/((1-Vehicles!$C$40)*(1-Vehicles!$C$16)*Fuel_Specs!$B$15+Vehicles!$C$40*(1-Vehicles!$C$16)*Fuel_Specs!$B$17+Vehicles!$C$16*Fuel_Specs!$B$47)*(Petroleum!B271*Petroleum!$F$262+Petroleum!$F271)+Vehicles!$C$16*Fuel_Specs!$B$47/((1-Vehicles!$C$40)*(1-Vehicles!$C$16)*Fuel_Specs!$B$15+Vehicles!$C$40*(1-Vehicles!$C$16)*Fuel_Specs!$B$17+Vehicles!$C$16*Fuel_Specs!$B$47)*(BioOil!$CE441*BioOil!$CF$431+BioOil!$CF441))/1000000*HLOOKUP($J$10,$Z$5:$AD$6,2,FALSE)/HLOOKUP($J$11,$Z$7:$AD$8,2,FALSE) -> 261.3763559 | R27: =((1-Vehicles!$C$40)*(1-Vehicles!$C$16)*Fuel_Specs!$B$15/((1-Vehicles!$C$40)*(1-Vehicles!$C$16)*Fuel_Specs!$B$15+Vehicles!$C$40*(1-Vehicles!$C$16)*Fuel_Specs!$B$17+Vehicles!$C$16*Fuel_Specs!$B$47)*(Petroleum!$B271*Petroleum!$D$262+Petroleum!$D271)+Vehicles!$C$40*(1-Vehicles!$C$16)*Fuel_Specs!$B$17/((1-Vehicles!$C$40)*(1-Vehicles!$C$16)*Fuel_Specs!$B$15+Vehicles!$C$40*(1-Vehicles!$C$16)*Fuel_Specs!$B$17+Vehicles!$C$16*Fuel_Specs!$B$47)*(Petroleum!B271*Petroleum!$F$262+Petroleum!$F271)+Vehicles!$C$16*Fuel_Specs!$B$47/((1-Vehicles!$C$40)*(1-Vehicles!$C$16)*Fuel_Specs!$B$15+Vehicles!$C$40*(1-Vehicles!$C$16)*Fuel_Specs!$B$17+Vehicles!$C$16*Fuel_Specs!$B$47)*(Pyrolysis_IDL!$AD306*Pyrolysis_IDL!$AE$297+Pyrolysis_IDL!$AE306))/1000000*HLOOKUP($J$10,$Z$5:$AD$6,2,FALSE)/HLOOKUP($J$11,$Z$7:$AD$8,2,FALSE) -> 23.17053524 | S27: =AN27*(Vehicles!$C$30/Vehicles!$AT$72)/(Vehicles!$C$30*(1/Vehicles!$AT$72+1/Vehicles!$AU$72)+Vehicles!$C$31/Vehicles!$AV$72)+B27*(Vehicles!$C$30/Vehicles!$AU$72+Vehicles!$C$31/Vehicles!$AV$72)/(Vehicles!$C$30*(1/Vehicles!$AT$72+1/Vehicles!$AU$72)+Vehicles!$C$31/Vehicles!$AV$72) -> 38.48892428 | T27: =AN27*(Vehicles!$D$30/Vehicles!$AX$72)/(Vehicles!$D$30*(1/Vehicles!$AX$72+1/Vehicles!$AY$72)+Vehicles!$D$31/Vehicles!$AZ$72)+C27*(Vehicles!$D$30/Vehicles!$AY$72+Vehicles!$D$31/Vehicles!$AZ$72)/(Vehicles!$D$30*(1/Vehicles!$AX$72+1/Vehicles!$AY$72)+Vehicles!$D$31/Vehicles!$AZ$72) -> 48.5517749 | U27: =AN27*(Vehicles!$F$30/Vehicles!$BF$72)/(Vehicles!$F$30*(1/Vehicles!$BF$72+1/Vehicles!$BG$72)+Vehicles!$F$31/Vehicles!$BH$72)+D27*(Vehicles!$F$30/Vehicles!$BG$72+Vehicles!$F$31/Vehicles!$BH$72)/(Vehicles!$F$30*(1/Vehicles!$BF$72+1/Vehicles!$BG$72)+Vehicles!$F$31/Vehicles!$BH$72) -> 38.48892428 | V27: =AN27*(Vehicles!$G$30/Vehicles!$BJ$72)/(Vehicles!$G$30*(1/Vehicles!$BJ$72+1/Vehicles!$BK$72)+Vehicles!$G$31/Vehicles!$BL$72)+F27*(Vehicles!$G$30/Vehicles!$BK$72+Vehicles!$G$31/Vehicles!$BL$72)/(Vehicles!$G$30*(1/Vehicles!$BJ$72+1/Vehicles!$BK$72)+Vehicles!$G$31/Vehicles!$BL$72) -> 55.99678414 | W27: =AN27*(Vehicles!$H$30/Vehicles!$BN$72)/(Vehicles!$H$30*(1/Vehicles!$BN$72+1/Vehicles!$BO$72)+Vehicles!$H$31/Vehicles!$BP$72)+G27*(Vehicles!$H$30/Vehicles!$BO$72+Vehicles!$H$31/Vehicles!$BP$72)/(Vehicles!$H$30*(1/Vehicles!$BN$72+1/Vehicles!$BO$72)+Vehicles!$H$31/Vehicles!$BP$72) -> 39.50447442 | X27: =AN27*(Vehicles!$I$30/Vehicles!$BR$72)/(Vehicles!$I$30*(1/Vehicles!$BR$72+1/Vehicles!$BS$72)+Vehicles!$I$31/Vehicles!$BT$72)+H27*(Vehicles!$I$30/Vehicles!$BS$72+Vehicles!$I$31/Vehicles!$BT$72)/(Vehicles!$I$30*(1/Vehicles!$BR$72+1/Vehicles!$BS$72)+Vehicles!$I$31/Vehicles!$BT$72) -> 36.51072539 | Y27: =AN27*(Vehicles!$J$30/Vehicles!$BV$72)/(Vehicles!$J$30*(1/Vehicles!$BV$72+1/Vehicles!$BW$72)+Vehicles!$J$31/Vehicles!$BX$72)+K27*(Vehicles!$J$30/Vehicles!$BW$72+Vehicles!$J$31/Vehicles!$BX$72)/(Vehicles!$J$30*(1/Vehicles!$BV$72+1/Vehicles!$BW$72)+Vehicles!$J$31/Vehicles!$BX$72) -> 39.78475398 | Z27: =AN27*(Vehicles!$K$30/Vehicles!$BZ$72)/(Vehicles!$K$30*(1/Vehicles!$BZ$72+1/Vehicles!$CA$72)+Vehicles!$K$31/Vehicles!$CB$72)+O27*(Vehicles!$K$30/Vehicles!$CA$72+Vehicles!$K$31/Vehicles!$CB$72)/(Vehicles!$K$30*(1/Vehicles!$BZ$72+1/Vehicles!$CA$72)+Vehicles!$K$31/Vehicles!$CB$72) -> 68.04453719 | AA27: =AN27*(Vehicles!$L$30/Vehicles!$CD$72)/(Vehicles!$L$30*(1/Vehicles!$CD$72+1/Vehicles!$CE$72)+Vehicles!$L$31/Vehicles!$CF$72)+AO27*(Vehicles!$L$30/Vehicles!$CE$72+Vehicles!$L$31/Vehicles!$CF$72)/(Vehicles!$L$30*(1/Vehicles!$CD$72+1/Vehicles!$CE$72)+Vehicles!$L$31/Vehicles!$CF$72) -> 59.08560857 | AB27: =AN27*(Vehicles!$L$30/Vehicles!$CD$72)/(Vehicles!$L$30*(1/Vehicles!$CD$72+1/Vehicles!$CE$72)+Vehicles!$L$31/Vehicles!$CG$72)+AP27*(Vehicles!$L$30/Vehicles!$CE$72+Vehicles!$L$31/Vehicles!$CG$72)/(Vehicles!$L$30*(1/Vehicles!$CD$72+1/Vehicles!$CE$72)+Vehicles!$L$31/Vehicles!$CG$72) -> 65.61153648 | AC27: =(MeOH_FTD!$AJ171*MeOH_FTD!$AK$162+MeOH_FTD!$AK171)/1000000*HLOOKUP($J$10,$Z$5:$AD$6,2,FALSE)/HLOOKUP($J$11,$Z$7:$AD$8,2,FALSE) -> 34.84108312 | AD27: =((1-Vehicles!$C$41)*(1-Vehicles!$C$13)*Fuel_Specs!$B$21/((1-Vehicles!$C$41)*(1-Vehicles!$C$13)*Fuel_Specs!$B$21+Vehicles!$C$41*(1-Vehicles!$C$13)*Fuel_Specs!$B$24+Vehicles!$C$13*Fuel_Specs!$B$42)*(Petroleum!B271*Petroleum!$J$262+Petroleum!$J271)+Vehicles!$C$41*(1-Vehicles!$C$13)*Fuel_Specs!$B$24/((1-Vehicles!$C$41)*(1-Vehicles!$C$13)*Fuel_Specs!$B$21+Vehicles!$C$41*(1-Vehicles!$C$13)*Fuel_Specs!$B$24+Vehicles!$C$13*Fuel_Specs!$B$42)*(Petroleum!B271*IF(Inputs!F$102=1,Petroleum!$K$262,Petroleum!$L$262)+IF(Inputs!F$102=1,Petroleum!$K271,Petroleum!$L271))+Vehicles!$C$13*Fuel_Specs!$B$42/((1-Vehicles!$C$41)*(1-Vehicles!$C$13)*Fuel_Specs!$B$21+Vehicles!$C$41*(1-Vehicles!$C$13)*Fuel_Specs!$B$24+Vehicles!$C$13*Fuel_Specs!$B$42)*(MeOH_FTD!$AZ171*MeOH_FTD!$BA$162+MeOH_FTD!$BA171))/1000000*HLOOKUP($J$10,$Z$5:$AD$6,2,FALSE)/HLOOKUP($J$11,$Z$7:$AD$8,2,FALSE) -> 32.18454802 | AE27: =((1-Vehicles!$C$42)*(1-Vehicles!$C$14)*Fuel_Specs!$B$21/((1-Vehicles!$C$42)*(1-Vehicles!$C$14)*Fuel_Specs!$B$21+Vehicles!$C$42*(1-Vehicles!$C$14)*Fuel_Specs!$B$24+Vehicles!$C$14*Fuel_Specs!$B$41)*(Petroleum!B271*Petroleum!$J$262+Petroleum!$J271)+Vehicles!$C$42*(1-Vehicles!$C$14)*Fuel_Specs!$B$24/((1-Vehicles!$C$42)*(1-Vehicles!$C$14)*Fuel_Specs!$B$21+Vehicles!$C$42*(1-Vehicles!$C$14)*Fuel_Specs!$B$24+Vehicles!$C$14*Fuel_Specs!$B$41)*(Petroleum!B271*IF(Inputs!F$102=1,Petroleum!$K$262,Petroleum!$L$262)+IF(Inputs!F$102=1,Petroleum!$K271,Petroleum!$L271))+Vehicles!$C$14*Fuel_Specs!$B$41/((1-Vehicles!$C$42)*(1-Vehicles!$C$14)*Fuel_Specs!$B$21+Vehicles!$C$42*(1-Vehicles!$C$14)*Fuel_Specs!$B$24+Vehicles!$C$14*Fuel_Specs!$B$41)*(BioOil!$Y441*BioOil!$Z$431+BioOil!$Z441))/1000000*HLOOKUP($J$10,$Z$5:$AD$6,2,FALSE)/HLOOKUP($J$11,$Z$7:$AD$8,2,FALSE) -> 19.07323517 | AF27: =((1-Vehicles!$C$43)*(1-Vehicles!$C$15)*Fuel_Specs!$B$21/((1-Vehicles!$C$43)*(1-Vehicles!$C$15)*Fuel_Specs!$B$21+Vehicles!$C$43*(1-Vehicles!$C$15)*Fuel_Specs!$B$24+Vehicles!$C$15*IF(Inputs!$E$670=1,IF(Inputs!$E$670=1,Fuel_Specs!$B$43,IF(Inputs!$E$670=3,Fuel_Specs!$B$45,Fuel_Specs!$B$44)),Fuel_Specs!$B$44))*(Petroleum!B271*Petroleum!$J$262+Petroleum!$J271)+Vehicles!$C$43*(1-Vehicles!$C$15)*Fuel_Specs!$B$24/((1-Vehicles!$C$43)*(1-Vehicles!$C$15)*Fuel_Specs!$B$21+Vehicles!$C$43*(1-Vehicles!$C$15)*Fuel_Specs!$B$24+Vehicles!$C$15*IF(Inputs!$E$670=1,IF(Inputs!$E$670=1,Fuel_Specs!$B$43,IF(Inputs!$E$670=3,Fuel_Specs!$B$45,Fuel_Specs!$B$44)),Fuel_Specs!$B$44))*(Petroleum!B271*IF(Inputs!F$102=1,Petroleum!$K$262,Petroleum!$L$262)+IF(Inputs!F$102=1,Petroleum!$K271,Petroleum!$L271))+Vehicles!$C$15*IF(Inputs!$E$670=1,IF(Inputs!$E$670=1,Fuel_Specs!$B$43,IF(Inputs!$E$670=3,Fuel_Specs!$B$45,Fuel_Specs!$B$44)),Fuel_Specs!$B$44)/((1-Vehicles!$C$43)*(1-Vehicles!$C$15)*Fuel_Specs!$B$21+Vehicles!$C$43*(1-Vehicles!$C$15)*Fuel_Specs!$B$24+Vehicles!$C$15*IF(Inputs!$E$670=1,IF(Inputs!$E$670=1,Fuel_Specs!$B$43,IF(Inputs!$E$670=3,Fuel_Specs!$B$45,Fuel_Specs!$B$44)),Fuel_Specs!$B$44))*(BioOil!$BQ441*BioOil!$BR$431+BioOil!$BR441))/1000000*HLOOKUP($J$10,$Z$5:$AD$6,2,FALSE)/HLOOKUP($J$11,$Z$7:$AD$8,2,FALSE) -> 23.22888895 | AG27: =((1-Vehicles!$C$43)*(1-Vehicles!$C$15)*Fuel_Specs!$B$21/((1-Vehicles!$C$43)*(1-Vehicles!$C$15)*Fuel_Specs!$B$21+Vehicles!$C$43*(1-Vehicles!$C$15)*Fuel_Specs!$B$24+Vehicles!$C$15*IF(Inputs!$E$670=1,Fuel_Specs!$B$43,Fuel_Specs!$B$44))*(Petroleum!B271*Petroleum!$J$262+Petroleum!$J271)+Vehicles!$C$43*(1-Vehicles!$C$15)*Fuel_Specs!$B$24/((1-Vehicles!$C$43)*(1-Vehicles!$C$15)*Fuel_Specs!$B$21+Vehicles!$C$43*(1-Vehicles!$C$15)*Fuel_Specs!$B$24+Vehicles!$C$15*IF(Inputs!$E$670=1,Fuel_Specs!$B$43,Fuel_Specs!$B$44))*(Petroleum!B271*IF(Inputs!F$102=1,Petroleum!$K$262,Petroleum!$L$262)+IF(Inputs!F$102=1,Petroleum!$K271,Petroleum!$L271))+Vehicles!$C$15*IF(Inputs!$E$670=1,Fuel_Specs!$B$43,Fuel_Specs!$B$44)/((1-Vehicles!$C$43)*(1-Vehicles!$C$15)*Fuel_Specs!$B$21+Vehicles!$C$43*(1-Vehicles!$C$15)*Fuel_Specs!$B$24+Vehicles!$C$15*IF(Inputs!$E$670=1,Fuel_Specs!$B$43,Fuel_Specs!$B$44))*(Pyrolysis_IDL!$AF306*Pyrolysis_IDL!$AG$297+Pyrolysis_IDL!$AG306))/1000000*HLOOKUP($J$10,$Z$5:$AD$6,2,FALSE)/HLOOKUP($J$11,$Z$7:$AD$8,2,FALSE) -> 24.30232535 | AH27: =(((1-Vehicles!$C$44)*(1-Vehicles!$C$17-Vehicles!$C$18)*Fuel_Specs!$B$21*(Petroleum!B271*Petroleum!$J$262+Petroleum!$J271)+Vehicles!$C$44*(1-Vehicles!$C$17-Vehicles!$C$18)*Fuel_Specs!$B$24*(Petroleum!B271*IF(Inputs!F$102=1,Petroleum!$K$262,Petroleum!$L$262)+IF(Inputs!F$102=1,Petroleum!$K271,Petroleum!$L271))+Vehicles!$C$17*Fuel_Specs!$B$33*(EtOH!BT555*EtOH!$BU$546+EtOH!$BU555)+Vehicles!$C$18*Fuel_Specs!$B$36*('EtOH-Diesel Additives'!$B62*'EtOH-Diesel Additives'!$B$53))/((1-Vehicles!$C$44)*(1-Vehicles!$C$17-Vehicles!$C$18)*Fuel_Specs!$B$21+Vehicles!$C$44*(1-Vehicles!$C$17-Vehicles!$C$18)*Fuel_Specs!$B$24+Vehicles!$C$17*Fuel_Specs!$B$33+Vehicles!$C$18*Fuel_Specs!$B$36))/1000000*HLOOKUP($J$10,$Z$5:$AD$6,2,FALSE)/HLOOKUP($J$11,$Z$7:$AD$8,2,FALSE) -> 23.07038658 | AI27: =AN27*(Vehicles!$M$30/Vehicles!$CO$72)/(Vehicles!$M$30*(1/Vehicles!$CO$72+1/Vehicles!$CP$72)+Vehicles!$M$31/Vehicles!$CQ$72)+E27*(Vehicles!$M$30/Vehicles!$CP$72+Vehicles!$M$31/Vehicles!$CQ$72)/(Vehicles!$M$30*(1/Vehicles!$CO$72+1/Vehicles!$CP$72)+Vehicles!$M$31/Vehicles!$CQ$72) -> 30.70240868 | AJ27: =AN27*(Vehicles!$N$30/Vehicles!$CS$72)/(Vehicles!$N$30*(1/Vehicles!$CS$72+1/Vehicles!$CT$72)+Vehicles!$N$31/Vehicles!$CU$72)+AC27*(Vehicles!$N$30/Vehicles!$CT$72+Vehicles!$N$31/Vehicles!$CU$72)/(Vehicles!$N$30*(1/Vehicles!$CS$72+1/Vehicles!$CT$72)+Vehicles!$N$31/Vehicles!$CU$72) -> 42.11752636 | AK27: =AN27*(Vehicles!$O$30/Vehicles!$CW$72)/(Vehicles!$O$30*(1/Vehicles!$CW$72+1/Vehicles!$CX$72)+Vehicles!$O$31/Vehicles!$CY$72)+AD27*(Vehicles!$O$30/Vehicles!$CX$72+Vehicles!$O$31/Vehicles!$CY$72)/(Vehicles!$O$30*(1/Vehicles!$CW$72+1/Vehicles!$CX$72)+Vehicles!$O$31/Vehicles!$CY$72) -> 40.25024746 | AL27: =AN27*(Vehicles!$P$30/Vehicles!$DA$72)/(Vehicles!$P$30*(1/Vehicles!$DA$72+1/Vehicles!$DB$72)+Vehicles!$P$31/Vehicles!$DC$72)+AE27*(Vehicles!$P$30/Vehicles!$DB$72+Vehicles!$P$31/Vehicles!$DC$72)/(Vehicles!$P$30*(1/Vehicles!$DA$72+1/Vehicles!$DB$72)+Vehicles!$P$31/Vehicles!$DC$72) -> 31.03430382 | AM27: =AN27*(Vehicles!$R$30/Vehicles!$DI$72)/(Vehicles!$R$30*(1/Vehicles!$DI$72+1/Vehicles!$DJ$72)+Vehicles!$R$31/Vehicles!$DK$72)+AH27*(Vehicles!$R$30/Vehicles!$DJ$72+Vehicles!$R$31/Vehicles!$DK$72)/(Vehicles!$R$30*(1/Vehicles!$DI$72+1/Vehicles!$DJ$72)+Vehicles!$R$31/Vehicles!$DK$72) -> 33.84390211 | AN27: =(Electric!$G212+Electric!$F212)/1000000*HLOOKUP($J$10,$Z$5:$AD$6,2,FALSE)/HLOOKUP($J$11,$Z$7:$AD$8,2,FALSE) -> 59.3326573 | AO27: =(Hydrogen!$AJ314*Hydrogen!$AK$305+Hydrogen!$AK314)/1000000*HLOOKUP($J$10,$Z$5:$AD$6,2,FALSE)/HLOOKUP($J$11,$Z$7:$AD$8,2,FALSE) -> 58.93556114 | AP27: =(Hydrogen!$BT314*Hydrogen!$BU$305+Hydrogen!$BU314)/1000000*HLOOKUP($J$10,$Z$5:$AD$6,2,FALSE)/HLOOKUP($J$11,$Z$7:$AD$8,2,FALSE) -> 69.42507427 | AQ27: =AN27*(Vehicles!$S$30/Vehicles!$DY$72)/(Vehicles!$S$30*(1/Vehicles!$DY$72+1/Vehicles!$DZ$72)+Vehicles!$S$31/Vehicles!$EA$72)+AO27*(Vehicles!$S$30/Vehicles!$DZ$72+Vehicles!$S$31/Vehicles!$EA$72)/(Vehicles!$S$30*(1/Vehicles!$DY$72+1/Vehicles!$DZ$72)+Vehicles!$S$31/Vehicles!$EA$72) -> 59.09618673 | AR27: =AN27*(Vehicles!$S$30/Vehicles!$DY$72)/(Vehicles!$S$30*(1/Vehicles!$DY$72+1/Vehicles!$DZ$72)+Vehicles!$S$31/Vehicles!$EA$72)+AP27*(Vehicles!$S$30/Vehicles!$DZ$72+Vehicles!$S$31/Vehicles!$EA$72)/(Vehicles!$S$30*(1/Vehicles!$DY$72+1/Vehicles!$DZ$72)+Vehicles!$S$31/Vehicles!$EA$72) -> 65.34268667 | AS27: =((1-Vehicles!$C$40)*(1-Vehicles!$C$16)*Fuel_Specs!$B$15/((1-Vehicles!$C$40)*(1-Vehicles!$C$16)*Fuel_Specs!$B$15+Vehicles!$C$40*(1-Vehicles!$C$16)*Fuel_Specs!$B$17+Vehicles!$C$16*Fuel_Specs!$B$48)*(Petroleum!$B271*Petroleum!$D$262+Petroleum!$D271)+Vehicles!$C$40*(1-Vehicles!$C$16)*Fuel_Specs!$B$17/((1-Vehicles!$C$40)*(1-Vehicles!$C$16)*Fuel_Specs!$B$15+Vehicles!$C$40*(1-Vehicles!$C$16)*Fuel_Specs!$B$17+Vehicles!$C$16*Fuel_Specs!$B$48)*(Petroleum!B271*Petroleum!$F$262+Petroleum!$F271)+Vehicles!$C$16*Fuel_Specs!$B$48/((1-Vehicles!$C$40)*(1-Vehicles!$C$16)*Fuel_Specs!$B$15+Vehicles!$C$40*(1-Vehicles!$C$16)*Fuel_Specs!$B$17+Vehicles!$C$16*Fuel_Specs!$B$48)*(Pyrolysis_IDL!$AP306*Pyrolysis_IDL!$AQ$297+Pyrolysis_IDL!$AQ306))/1000000*HLOOKUP($J$10,$Z$5:$AD$6,2,FALSE)/HLOOKUP($J$11,$Z$7:$AD$8,2,FALSE) -> 152.0492912 | AT27: =(Petroleum!$B271*Petroleum!$S$262+Petroleum!$S271)/1000000*HLOOKUP($J$10,$Z$5:$AD$6,2,FALSE)/HLOOKUP($J$11,$Z$7:$AD$8,2,FALSE) -> 20.49036051 | AU27: 22.78958685 | AV27: 23.21284887 | BB27: SI - Liquid H2 | BC27: RNAVLH2ICE
A28: PM10: Total | B28: =(Inputs!$E$1518*(Petroleum!$B272*Petroleum!$F$262+Petroleum!$F272)+(1-Inputs!$E$1518)*(Petroleum!$B272*Petroleum!$D$262+Petroleum!$D272))/1000000*HLOOKUP($J$10,$Z$5:$AD$6,2,FALSE)/HLOOKUP($J$11,$Z$7:$AD$8,2,FALSE) -> 2.943463244 | C28: =(Petroleum!$C272*Petroleum!$G$262+Petroleum!$G272)/1000000*HLOOKUP($J$10,$Z$5:$AD$6,2,FALSE)/HLOOKUP($J$11,$Z$7:$AD$8,2,FALSE) -> 4.454163664 | D28: =((1-Vehicles!$C$35)*(1-Vehicles!$C$7)*Fuel_Specs!$B$15/((1-Vehicles!$C$35)*(1-Vehicles!$C$7)*Fuel_Specs!$B$15+Vehicles!$C$35*(1-Vehicles!$C$7)*Fuel_Specs!$B$17+Vehicles!$C$7*Fuel_Specs!$B$33)*(Petroleum!$B272*Petroleum!$D$262+(Petroleum!$D272-'T&D'!G225))+Vehicles!$C$35*(1-Vehicles!$C$7)*Fuel_Specs!$B$17/((1-Vehicles!$C$35)*(1-Vehicles!$C$7)*Fuel_Specs!$B$15+Vehicles!$C$35*(1-Vehicles!$C$7)*Fuel_Specs!$B$17+Vehicles!$C$7*Fuel_Specs!$B$33)*(Petroleum!B272*Petroleum!$F$262+Petroleum!$F272)+Vehicles!$C$7*Fuel_Specs!$B$33/((1-Vehicles!$C$35)*(1-Vehicles!$C$7)*Fuel_Specs!$B$15+Vehicles!$C$35*(1-Vehicles!$C$7)*Fuel_Specs!$B$17+Vehicles!$C$7*Fuel_Specs!$B$33)*(EtOH!BV556*EtOH!$BW$546+EtOH!$BW556)+Petroleum!AS134+Petroleum!AT134)/1000000*HLOOKUP($J$10,$Z$5:$AD$6,2,FALSE)/HLOOKUP($J$11,$Z$7:$AD$8,2,FALSE) -> 2.943463244 | E28: =(Inputs!$E$97*(IF(Inputs!F$102=1,Petroleum!$B272,Petroleum!$C272)*IF(Inputs!F$102=1,Petroleum!$K$262,Petroleum!$L$262)+IF(Inputs!F$102=1,Petroleum!$K272,Petroleum!$L272))+(1-Inputs!$E$97)*(IF(Inputs!F$101=1,Petroleum!$B272,Petroleum!$C272)*Petroleum!$J$262+Petroleum!$J272))/1000000*HLOOKUP($J$10,$Z$5:$AD$6,2,FALSE)/HLOOKUP($J$11,$Z$7:$AD$8,2,FALSE) -> 1.374323596 | F28: =(NG!$J94*NG!$K$84+NG!$K94)/1000000*HLOOKUP($J$10,$Z$5:$AD$6,2,FALSE)/HLOOKUP($J$11,$Z$7:$AD$8,2,FALSE) -> 1.052086182 | G28: =(NG!$R94*NG!$S$84+NG!$S94)/1000000*HLOOKUP($J$10,$Z$5:$AD$6,2,FALSE)/HLOOKUP($J$11,$Z$7:$AD$8,2,FALSE) -> 0.9781584713 | H28: =(NG!$X94*NG!$Y$84+NG!$Y94)/1000000*HLOOKUP($J$10,$Z$5:$AD$6,2,FALSE)/HLOOKUP($J$11,$Z$7:$AD$8,2,FALSE) -> 1.0404287 | I28: =(MeOH_FTD!BJ172*MeOH_FTD!BK$162+MeOH_FTD!BK172)/1000000*HLOOKUP($J$10,$Z$5:$AD$6,2,FALSE)/HLOOKUP($J$11,$Z$7:$AD$8,2,FALSE) -> 1.513973567 | J28: =((1-Vehicles!$C$34)*(1-Vehicles!$C$5)*Fuel_Specs!$B$15/((1-Vehicles!$C$34)*(1-Vehicles!$C$5)*Fuel_Specs!$B$15+Vehicles!$C$34*(1-Vehicles!$C$5)*Fuel_Specs!$B$17+Vehicles!$C$5*Fuel_Specs!$B$32)*(Petroleum!$B272*Petroleum!$D$262+Petroleum!$D272)+Vehicles!$C$34*(1-Vehicles!$C$5)*Fuel_Specs!$B$17/((1-Vehicles!$C$34)*(1-Vehicles!$C$5)*Fuel_Specs!$B$15+Vehicles!$C$34*(1-Vehicles!$C$5)*Fuel_Specs!$B$17+Vehicles!$C$5*Fuel_Specs!$B$32)*(Petroleum!B272*Petroleum!$F$262+Petroleum!$F272)+Vehicles!$C$5*Fuel_Specs!$B$32/((1-Vehicles!$C$34)*(1-Vehicles!$C$5)*Fuel_Specs!$B$15+Vehicles!$C$34*(1-Vehicles!$C$5)*Fuel_Specs!$B$17+Vehicles!$C$5*Fuel_Specs!$B$32)*(MeOH_FTD!$N172*MeOH_FTD!$O$162+MeOH_FTD!$O172))/1000000*HLOOKUP($J$10,$Z$5:$AD$6,2,FALSE)/HLOOKUP($J$11,$Z$7:$AD$8,2,FALSE) -> 2.216981223 | K28: =((1-Vehicles!$C$34)*(1-Vehicles!$C$6)*Fuel_Specs!$B$15/((1-Vehicles!$C$34)*(1-Vehicles!$C$6)*Fuel_Specs!$B$15+Vehicles!$C$34*(1-Vehicles!$C$6)*Fuel_Specs!$B$17+Vehicles!$C$6*Fuel_Specs!$B$32)*(Petroleum!$B272*Petroleum!$D$262+Petroleum!$D272)+Vehicles!$C$34*(1-Vehicles!$C$6)*Fuel_Specs!$B$17/((1-Vehicles!$C$34)*(1-Vehicles!$C$6)*Fuel_Specs!$B$15+Vehicles!$C$34*(1-Vehicles!$C$6)*Fuel_Specs!$B$17+Vehicles!$C$6*Fuel_Specs!$B$32)*(Petroleum!B272*Petroleum!$F$262+Petroleum!$F272)+Vehicles!$C$6*Fuel_Specs!$B$32/((1-Vehicles!$C$34)*(1-Vehicles!$C$6)*Fuel_Specs!$B$15+Vehicles!$C$34*(1-Vehicles!$C$6)*Fuel_Specs!$B$17+Vehicles!$C$6*Fuel_Specs!$B$32)*(MeOH_FTD!$N172*MeOH_FTD!$O$162+MeOH_FTD!$O172))/1000000*HLOOKUP($J$10,$Z$5:$AD$6,2,FALSE)/HLOOKUP($J$11,$Z$7:$AD$8,2,FALSE) -> 2.24271324 | L28: =(MeOH_FTD!$N172*MeOH_FTD!$O$162+MeOH_FTD!$O172)/1000000*HLOOKUP($J$10,$Z$5:$AD$6,2,FALSE)/HLOOKUP($J$11,$Z$7:$AD$8,2,FALSE) -> 2.302111274 | M28: =((1-Vehicles!$C$36)*(1-Vehicles!$C$8)*Fuel_Specs!$B$15/((1-Vehicles!$C$36)*(1-Vehicles!$C$8)*Fuel_Specs!$B$15+Vehicles!$C$36*(1-Vehicles!$C$8)*Fuel_Specs!$B$17+Vehicles!$C$8*Fuel_Specs!$B$33)*(Petroleum!$B272*Petroleum!$D$262+(Petroleum!$D272-'T&D'!G225))+Vehicles!$C$36*(1-Vehicles!$C$8)*Fuel_Specs!$B$17/((1-Vehicles!$C$36)*(1-Vehicles!$C$8)*Fuel_Specs!$B$15+Vehicles!$C$36*(1-Vehicles!$C$8)*Fuel_Specs!$B$17+Vehicles!$C$8*Fuel_Specs!$B$33)*(Petroleum!B272*Petroleum!$F$262+Petroleum!$F272)+Vehicles!$C$8*Fuel_Specs!$B$33/((1-Vehicles!$C$36)*(1-Vehicles!$C$8)*Fuel_Specs!$B$15+Vehicles!$C$36*(1-Vehicles!$C$8)*Fuel_Specs!$B$17+Vehicles!$C$8*Fuel_Specs!$B$33)*(EtOH!BV556*EtOH!$BW$546+EtOH!$BW556)+Petroleum!AS134+Petroleum!AT134)/1000000*HLOOKUP($J$10,$Z$5:$AD$6,2,FALSE)/HLOOKUP($J$11,$Z$7:$AD$8,2,FALSE) -> 13.11803982 | N28: =((1-Vehicles!$C$37)*(1-Vehicles!$C$12)*Fuel_Specs!$B$15/((1-Vehicles!$C$37)*(1-Vehicles!$C$12)*Fuel_Specs!$B$15+Vehicles!$C$37*(1-Vehicles!$C$12)*Fuel_Specs!$B$17+Vehicles!$C$12*Fuel_Specs!$B$34)*(Petroleum!$B272*Petroleum!$D$262+Petroleum!$D272)+Vehicles!$C$37*(1-Vehicles!$C$12)*Fuel_Specs!$B$17/((1-Vehicles!$C$37)*(1-Vehicles!$C$12)*Fuel_Specs!$B$15+Vehicles!$C$37*(1-Vehicles!$C$12)*Fuel_Specs!$B$17+Vehicles!$C$12*Fuel_Specs!$B$34)*(Petroleum!B272*Petroleum!$F$262+Petroleum!$F272)+Vehicles!$C$12*Fuel_Specs!$B$34/((1-Vehicles!$C$37)*(1-Vehicles!$C$12)*Fuel_Specs!$B$15+Vehicles!$C$37*(1-Vehicles!$C$12)*Fuel_Specs!$B$17+Vehicles!$C$12*Fuel_Specs!$B$34)*(EtOH!$BX556*EtOH!$BY$546+EtOH!$BY556))/1000000*HLOOKUP($J$10,$Z$5:$AD$6,2,FALSE)/HLOOKUP($J$11,$Z$7:$AD$8,2,FALSE) -> 13.53850255 | O28: =((1-Vehicles!$C$36)*(1-Vehicles!$C$9)*Fuel_Specs!$B$15/((1-Vehicles!$C$36)*(1-Vehicles!$C$9)*Fuel_Specs!$B$15+Vehicles!$C$36*(1-Vehicles!$C$9)*Fuel_Specs!$B$17+Vehicles!$C$9*Fuel_Specs!$B$33)*(Petroleum!$B272*Petroleum!$D$262+(Petroleum!$D272-'T&D'!G225))+Vehicles!$C$36*(1-Vehicles!$C$9)*Fuel_Specs!$B$17/((1-Vehicles!$C$36)*(1-Vehicles!$C$9)*Fuel_Specs!$B$15+Vehicles!$C$36*(1-Vehicles!$C$9)*Fuel_Specs!$B$17+Vehicles!$C$9*Fuel_Specs!$B$33)*(Petroleum!B272*Petroleum!$F$262+Petroleum!$F272)+Vehicles!$C$9*Fuel_Specs!$B$33/((1-Vehicles!$C$36)*(1-Vehicles!$C$9)*Fuel_Specs!$B$15+Vehicles!$C$36*(1-Vehicles!$C$9)*Fuel_Specs!$B$17+Vehicles!$C$9*Fuel_Specs!$B$33)*(EtOH!BV556*EtOH!$BW$546+EtOH!$BW556)+Petroleum!AS134+Petroleum!AT134)/1000000*HLOOKUP($J$10,$Z$5:$AD$6,2,FALSE)/HLOOKUP($J$11,$Z$7:$AD$8,2,FALSE) -> 13.11803982 | P28: =(EtOH!$BT556*EtOH!$BU$546+EtOH!$BU556)/1000000*HLOOKUP($J$10,$Z$5:$AD$6,2,FALSE)/HLOOKUP($J$11,$Z$7:$AD$8,2,FALSE) -> 16.52073834 | Q28: =((1-Vehicles!$C$40)*(1-Vehicles!$C$16)*Fuel_Specs!$B$15/((1-Vehicles!$C$40)*(1-Vehicles!$C$16)*Fuel_Specs!$B$15+Vehicles!$C$40*(1-Vehicles!$C$16)*Fuel_Specs!$B$17+Vehicles!$C$16*Fuel_Specs!$B$47)*(Petroleum!$B272*Petroleum!$D$262+Petroleum!$D272)+Vehicles!$C$40*(1-Vehicles!$C$16)*Fuel_Specs!$B$17/((1-Vehicles!$C$40)*(1-Vehicles!$C$16)*Fuel_Specs!$B$15+Vehicles!$C$40*(1-Vehicles!$C$16)*Fuel_Specs!$B$17+Vehicles!$C$16*Fuel_Specs!$B$47)*(Petroleum!B272*Petroleum!$F$262+Petroleum!$F272)+Vehicles!$C$16*Fuel_Specs!$B$47/((1-Vehicles!$C$40)*(1-Vehicles!$C$16)*Fuel_Specs!$B$15+Vehicles!$C$40*(1-Vehicles!$C$16)*Fuel_Specs!$B$17+Vehicles!$C$16*Fuel_Specs!$B$47)*(BioOil!$CE442*BioOil!$CF$431+BioOil!$CF442))/1000000*HLOOKUP($J$10,$Z$5:$AD$6,2,FALSE)/HLOOKUP($J$11,$Z$7:$AD$8,2,FALSE) -> 1.544302308 | R28: =((1-Vehicles!$C$40)*(1-Vehicles!$C$16)*Fuel_Specs!$B$15/((1-Vehicles!$C$40)*(1-Vehicles!$C$16)*Fuel_Specs!$B$15+Vehicles!$C$40*(1-Vehicles!$C$16)*Fuel_Specs!$B$17+Vehicles!$C$16*Fuel_Specs!$B$47)*(Petroleum!$B272*Petroleum!$D$262+Petroleum!$D272)+Vehicles!$C$40*(1-Vehicles!$C$16)*Fuel_Specs!$B$17/((1-Vehicles!$C$40)*(1-Vehicles!$C$16)*Fuel_Specs!$B$15+Vehicles!$C$40*(1-Vehicles!$C$16)*Fuel_Specs!$B$17+Vehicles!$C$16*Fuel_Specs!$B$47)*(Petroleum!B272*Petroleum!$F$262+Petroleum!$F272)+Vehicles!$C$16*Fuel_Specs!$B$47/((1-Vehicles!$C$40)*(1-Vehicles!$C$16)*Fuel_Specs!$B$15+Vehicles!$C$40*(1-Vehicles!$C$16)*Fuel_Specs!$B$17+Vehicles!$C$16*Fuel_Specs!$B$47)*(Pyrolysis_IDL!$AD307*Pyrolysis_IDL!$AE$297+Pyrolysis_IDL!$AE307))/1000000*HLOOKUP($J$10,$Z$5:$AD$6,2,FALSE)/HLOOKUP($J$11,$Z$7:$AD$8,2,FALSE) -> 2.078435861 | S28: =AN28*(Vehicles!$C$30/Vehicles!$AT$72)/(Vehicles!$C$30*(1/Vehicles!$AT$72+1/Vehicles!$AU$72)+Vehicles!$C$31/Vehicles!$AV$72)+B28*(Vehicles!$C$30/Vehicles!$AU$72+Vehicles!$C$31/Vehicles!$AV$72)/(Vehicles!$C$30*(1/Vehicles!$AT$72+1/Vehicles!$AU$72)+Vehicles!$C$31/Vehicles!$AV$72) -> 7.70809335 | T28: =AN28*(Vehicles!$D$30/Vehicles!$AX$72)/(Vehicles!$D$30*(1/Vehicles!$AX$72+1/Vehicles!$AY$72)+Vehicles!$D$31/Vehicles!$AZ$72)+C28*(Vehicles!$D$30/Vehicles!$AY$72+Vehicles!$D$31/Vehicles!$AZ$72)/(Vehicles!$D$30*(1/Vehicles!$AX$72+1/Vehicles!$AY$72)+Vehicles!$D$31/Vehicles!$AZ$72) -> 8.647957948 | U28: =AN28*(Vehicles!$F$30/Vehicles!$BF$72)/(Vehicles!$F$30*(1/Vehicles!$BF$72+1/Vehicles!$BG$72)+Vehicles!$F$31/Vehicles!$BH$72)+D28*(Vehicles!$F$30/Vehicles!$BG$72+Vehicles!$F$31/Vehicles!$BH$72)/(Vehicles!$F$30*(1/Vehicles!$BF$72+1/Vehicles!$BG$72)+Vehicles!$F$31/Vehicles!$BH$72) -> 7.70809335 | V28: =AN28*(Vehicles!$G$30/Vehicles!$BJ$72)/(Vehicles!$G$30*(1/Vehicles!$BJ$72+1/Vehicles!$BK$72)+Vehicles!$G$31/Vehicles!$BL$72)+F28*(Vehicles!$G$30/Vehicles!$BK$72+Vehicles!$G$31/Vehicles!$BL$72)/(Vehicles!$G$30*(1/Vehicles!$BJ$72+1/Vehicles!$BK$72)+Vehicles!$G$31/Vehicles!$BL$72) -> 6.531395231 | W28: =AN28*(Vehicles!$H$30/Vehicles!$BN$72)/(Vehicles!$H$30*(1/Vehicles!$BN$72+1/Vehicles!$BO$72)+Vehicles!$H$31/Vehicles!$BP$72)+G28*(Vehicles!$H$30/Vehicles!$BO$72+Vehicles!$H$31/Vehicles!$BP$72)/(Vehicles!$H$30*(1/Vehicles!$BN$72+1/Vehicles!$BO$72)+Vehicles!$H$31/Vehicles!$BP$72) -> 6.485401971 | X28: =AN28*(Vehicles!$I$30/Vehicles!$BR$72)/(Vehicles!$I$30*(1/Vehicles!$BR$72+1/Vehicles!$BS$72)+Vehicles!$I$31/Vehicles!$BT$72)+H28*(Vehicles!$I$30/Vehicles!$BS$72+Vehicles!$I$31/Vehicles!$BT$72)/(Vehicles!$I$30*(1/Vehicles!$BR$72+1/Vehicles!$BS$72)+Vehicles!$I$31/Vehicles!$BT$72) -> 6.524142665 | Y28: =AN28*(Vehicles!$J$30/Vehicles!$BV$72)/(Vehicles!$J$30*(1/Vehicles!$BV$72+1/Vehicles!$BW$72)+Vehicles!$J$31/Vehicles!$BX$72)+K28*(Vehicles!$J$30/Vehicles!$BW$72+Vehicles!$J$31/Vehicles!$BX$72)/(Vehicles!$J$30*(1/Vehicles!$BV$72+1/Vehicles!$BW$72)+Vehicles!$J$31/Vehicles!$BX$72) -> 7.27212993 | Z28: =AN28*(Vehicles!$K$30/Vehicles!$BZ$72)/(Vehicles!$K$30*(1/Vehicles!$BZ$72+1/Vehicles!$CA$72)+Vehicles!$K$31/Vehicles!$CB$72)+O28*(Vehicles!$K$30/Vehicles!$CA$72+Vehicles!$K$31/Vehicles!$CB$72)/(Vehicles!$K$30*(1/Vehicles!$BZ$72+1/Vehicles!$CA$72)+Vehicles!$K$31/Vehicles!$CB$72) -> 14.03808717 | AA28: =AN28*(Vehicles!$L$30/Vehicles!$CD$72)/(Vehicles!$L$30*(1/Vehicles!$CD$72+1/Vehicles!$CE$72)+Vehicles!$L$31/Vehicles!$CF$72)+AO28*(Vehicles!$L$30/Vehicles!$CE$72+Vehicles!$L$31/Vehicles!$CF$72)/(Vehicles!$L$30*(1/Vehicles!$CD$72+1/Vehicles!$CE$72)+Vehicles!$L$31/Vehicles!$CF$72) -> 8.576792337 | AB28: =AN28*(Vehicles!$L$30/Vehicles!$CD$72)/(Vehicles!$L$30*(1/Vehicles!$CD$72+1/Vehicles!$CE$72)+Vehicles!$L$31/Vehicles!$CG$72)+AP28*(Vehicles!$L$30/Vehicles!$CE$72+Vehicles!$L$31/Vehicles!$CG$72)/(Vehicles!$L$30*(1/Vehicles!$CD$72+1/Vehicles!$CE$72)+Vehicles!$L$31/Vehicles!$CG$72) -> 11.08206898 | AC28: =(MeOH_FTD!$AJ172*MeOH_FTD!$AK$162+MeOH_FTD!$AK172)/1000000*HLOOKUP($J$10,$Z$5:$AD$6,2,FALSE)/HLOOKUP($J$11,$Z$7:$AD$8,2,FALSE) -> 1.462537957 | AD28: =((1-Vehicles!$C$41)*(1-Vehicles!$C$13)*Fuel_Specs!$B$21/((1-Vehicles!$C$41)*(1-Vehicles!$C$13)*Fuel_Specs!$B$21+Vehicles!$C$41*(1-Vehicles!$C$13)*Fuel_Specs!$B$24+Vehicles!$C$13*Fuel_Specs!$B$42)*(Petroleum!B272*Petroleum!$J$262+Petroleum!$J272)+Vehicles!$C$41*(1-Vehicles!$C$13)*Fuel_Specs!$B$24/((1-Vehicles!$C$41)*(1-Vehicles!$C$13)*Fuel_Specs!$B$21+Vehicles!$C$41*(1-Vehicles!$C$13)*Fuel_Specs!$B$24+Vehicles!$C$13*Fuel_Specs!$B$42)*(Petroleum!B272*IF(Inputs!F$102=1,Petroleum!$K$262,Petroleum!$L$262)+IF(Inputs!F$102=1,Petroleum!$K272,Petroleum!$L272))+Vehicles!$C$13*Fuel_Specs!$B$42/((1-Vehicles!$C$41)*(1-Vehicles!$C$13)*Fuel_Specs!$B$21+Vehicles!$C$41*(1-Vehicles!$C$13)*Fuel_Specs!$B$24+Vehicles!$C$13*Fuel_Specs!$B$42)*(MeOH_FTD!$AZ172*MeOH_FTD!$BA$162+MeOH_FTD!$BA172))/1000000*HLOOKUP($J$10,$Z$5:$AD$6,2,FALSE)/HLOOKUP($J$11,$Z$7:$AD$8,2,FALSE) -> 2.141246058 | AE28: =((1-Vehicles!$C$42)*(1-Vehicles!$C$14)*Fuel_Specs!$B$21/((1-Vehicles!$C$42)*(1-Vehicles!$C$14)*Fuel_Specs!$B$21+Vehicles!$C$42*(1-Vehicles!$C$14)*Fuel_Specs!$B$24+Vehicles!$C$14*Fuel_Specs!$B$41)*(Petroleum!B272*Petroleum!$J$262+Petroleum!$J272)+Vehicles!$C$42*(1-Vehicles!$C$14)*Fuel_Specs!$B$24/((1-Vehicles!$C$42)*(1-Vehicles!$C$14)*Fuel_Specs!$B$21+Vehicles!$C$42*(1-Vehicles!$C$14)*Fuel_Specs!$B$24+Vehicles!$C$14*Fuel_Specs!$B$41)*(Petroleum!B272*IF(Inputs!F$102=1,Petroleum!$K$262,Petroleum!$L$262)+IF(Inputs!F$102=1,Petroleum!$K272,Petroleum!$L272))+Vehicles!$C$14*Fuel_Specs!$B$41/((1-Vehicles!$C$42)*(1-Vehicles!$C$14)*Fuel_Specs!$B$21+Vehicles!$C$42*(1-Vehicles!$C$14)*Fuel_Specs!$B$24+Vehicles!$C$14*Fuel_Specs!$B$41)*(BioOil!$Y442*BioOil!$Z$431+BioOil!$Z442))/1000000*HLOOKUP($J$10,$Z$5:$AD$6,2,FALSE)/HLOOKUP($J$11,$Z$7:$AD$8,2,FALSE) -> 1.435190692 | AF28: =((1-Vehicles!$C$43)*(1-Vehicles!$C$15)*Fuel_Specs!$B$21/((1-Vehicles!$C$43)*(1-Vehicles!$C$15)*Fuel_Specs!$B$21+Vehicles!$C$43*(1-Vehicles!$C$15)*Fuel_Specs!$B$24+Vehicles!$C$15*IF(Inputs!$E$670=1,IF(Inputs!$E$670=1,Fuel_Specs!$B$43,IF(Inputs!$E$670=3,Fuel_Specs!$B$45,Fuel_Specs!$B$44)),Fuel_Specs!$B$44))*(Petroleum!B272*Petroleum!$J$262+Petroleum!$J272)+Vehicles!$C$43*(1-Vehicles!$C$15)*Fuel_Specs!$B$24/((1-Vehicles!$C$43)*(1-Vehicles!$C$15)*Fuel_Specs!$B$21+Vehicles!$C$43*(1-Vehicles!$C$15)*Fuel_Specs!$B$24+Vehicles!$C$15*IF(Inputs!$E$670=1,IF(Inputs!$E$670=1,Fuel_Specs!$B$43,IF(Inputs!$E$670=3,Fuel_Specs!$B$45,Fuel_Specs!$B$44)),Fuel_Specs!$B$44))*(Petroleum!B272*IF(Inputs!F$102=1,Petroleum!$K$262,Petroleum!$L$262)+IF(Inputs!F$102=1,Petroleum!$K272,Petroleum!$L272))+Vehicles!$C$15*IF(Inputs!$E$670=1,IF(Inputs!$E$670=1,Fuel_Specs!$B$43,IF(Inputs!$E$670=3,Fuel_Specs!$B$45,Fuel_Specs!$B$44)),Fuel_Specs!$B$44)/((1-Vehicles!$C$43)*(1-Vehicles!$C$15)*Fuel_Specs!$B$21+Vehicles!$C$43*(1-Vehicles!$C$15)*Fuel_Specs!$B$24+Vehicles!$C$15*IF(Inputs!$E$670=1,IF(Inputs!$E$670=1,Fuel_Specs!$B$43,IF(Inputs!$E$670=3,Fuel_Specs!$B$45,Fuel_Specs!$B$44)),Fuel_Specs!$B$44))*(BioOil!$BQ442*BioOil!$BR$431+BioOil!$BR442))/1000000*HLOOKUP($J$10,$Z$5:$AD$6,2,FALSE)/HLOOKUP($J$11,$Z$7:$AD$8,2,FALSE) -> 1.811580959 | AG28: =((1-Vehicles!$C$43)*(1-Vehicles!$C$15)*Fuel_Specs!$B$21/((1-Vehicles!$C$43)*(1-Vehicles!$C$15)*Fuel_Specs!$B$21+Vehicles!$C$43*(1-Vehicles!$C$15)*Fuel_Specs!$B$24+Vehicles!$C$15*IF(Inputs!$E$670=1,Fuel_Specs!$B$43,Fuel_Specs!$B$44))*(Petroleum!B272*Petroleum!$J$262+Petroleum!$J272)+Vehicles!$C$43*(1-Vehicles!$C$15)*Fuel_Specs!$B$24/((1-Vehicles!$C$43)*(1-Vehicles!$C$15)*Fuel_Specs!$B$21+Vehicles!$C$43*(1-Vehicles!$C$15)*Fuel_Specs!$B$24+Vehicles!$C$15*IF(Inputs!$E$670=1,Fuel_Specs!$B$43,Fuel_Specs!$B$44))*(Petroleum!B272*IF(Inputs!F$102=1,Petroleum!$K$262,Petroleum!$L$262)+IF(Inputs!F$102=1,Petroleum!$K272,Petroleum!$L272))+Vehicles!$C$15*IF(Inputs!$E$670=1,Fuel_Specs!$B$43,Fuel_Specs!$B$44)/((1-Vehicles!$C$43)*(1-Vehicles!$C$15)*Fuel_Specs!$B$21+Vehicles!$C$43*(1-Vehicles!$C$15)*Fuel_Specs!$B$24+Vehicles!$C$15*IF(Inputs!$E$670=1,Fuel_Specs!$B$43,Fuel_Specs!$B$44))*(Pyrolysis_IDL!$AF307*Pyrolysis_IDL!$AG$297+Pyrolysis_IDL!$AG307))/1000000*HLOOKUP($J$10,$Z$5:$AD$6,2,FALSE)/HLOOKUP($J$11,$Z$7:$AD$8,2,FALSE) -> 1.891582404 | AH28: =(((1-Vehicles!$C$44)*(1-Vehicles!$C$17-Vehicles!$C$18)*Fuel_Specs!$B$21*(Petroleum!B272*Petroleum!$J$262+Petroleum!$J272)+Vehicles!$C$44*(1-Vehicles!$C$17-Vehicles!$C$18)*Fuel_Specs!$B$24*(Petroleum!B272*IF(Inputs!F$102=1,Petroleum!$K$262,Petroleum!$L$262)+IF(Inputs!F$102=1,Petroleum!$K272,Petroleum!$L272))+Vehicles!$C$17*Fuel_Specs!$B$33*(EtOH!BT556*EtOH!$BU$546+EtOH!$BU556)+Vehicles!$C$18*Fuel_Specs!$B$36*('EtOH-Diesel Additives'!$B63*'EtOH-Diesel Additives'!$B$53))/((1-Vehicles!$C$44)*(1-Vehicles!$C$17-Vehicles!$C$18)*Fuel_Specs!$B$21+Vehicles!$C$44*(1-Vehicles!$C$17-Vehicles!$C$18)*Fuel_Specs!$B$24+Vehicles!$C$17*Fuel_Specs!$B$33+Vehicles!$C$18*Fuel_Specs!$B$36))/1000000*HLOOKUP($J$10,$Z$5:$AD$6,2,FALSE)/HLOOKUP($J$11,$Z$7:$AD$8,2,FALSE) -> 2.326388463 | AI28: =AN28*(Vehicles!$M$30/Vehicles!$CO$72)/(Vehicles!$M$30*(1/Vehicles!$CO$72+1/Vehicles!$CP$72)+Vehicles!$M$31/Vehicles!$CQ$72)+E28*(Vehicles!$M$30/Vehicles!$CP$72+Vehicles!$M$31/Vehicles!$CQ$72)/(Vehicles!$M$30*(1/Vehicles!$CO$72+1/Vehicles!$CP$72)+Vehicles!$M$31/Vehicles!$CQ$72) -> 5.586782117 | AJ28: =AN28*(Vehicles!$N$30/Vehicles!$CS$72)/(Vehicles!$N$30*(1/Vehicles!$CS$72+1/Vehicles!$CT$72)+Vehicles!$N$31/Vehicles!$CU$72)+AC28*(Vehicles!$N$30/Vehicles!$CT$72+Vehicles!$N$31/Vehicles!$CU$72)/(Vehicles!$N$30*(1/Vehicles!$CS$72+1/Vehicles!$CT$72)+Vehicles!$N$31/Vehicles!$CU$72) -> 5.648788004 | AK28: =AN28*(Vehicles!$O$30/Vehicles!$CW$72)/(Vehicles!$O$30*(1/Vehicles!$CW$72+1/Vehicles!$CX$72)+Vehicles!$O$31/Vehicles!$CY$72)+AD28*(Vehicles!$O$30/Vehicles!$CX$72+Vehicles!$O$31/Vehicles!$CY$72)/(Vehicles!$O$30*(1/Vehicles!$CW$72+1/Vehicles!$CX$72)+Vehicles!$O$31/Vehicles!$CY$72) -> 6.125852023 | AL28: =AN28*(Vehicles!$P$30/Vehicles!$DA$72)/(Vehicles!$P$30*(1/Vehicles!$DA$72+1/Vehicles!$DB$72)+Vehicles!$P$31/Vehicles!$DC$72)+AE28*(Vehicles!$P$30/Vehicles!$DB$72+Vehicles!$P$31/Vehicles!$DC$72)/(Vehicles!$P$30*(1/Vehicles!$DA$72+1/Vehicles!$DB$72)+Vehicles!$P$31/Vehicles!$DC$72) -> 5.629565607 | AM28: =AN28*(Vehicles!$R$30/Vehicles!$DI$72)/(Vehicles!$R$30*(1/Vehicles!$DI$72+1/Vehicles!$DJ$72)+Vehicles!$R$31/Vehicles!$DK$72)+AH28*(Vehicles!$R$30/Vehicles!$DJ$72+Vehicles!$R$31/Vehicles!$DK$72)/(Vehicles!$R$30*(1/Vehicles!$DI$72+1/Vehicles!$DJ$72)+Vehicles!$R$31/Vehicles!$DK$72) -> 6.255988645 | AN28: =(Electric!$G213+Electric!$F213)/1000000*HLOOKUP($J$10,$Z$5:$AD$6,2,FALSE)/HLOOKUP($J$11,$Z$7:$AD$8,2,FALSE) -> 15.5529184 | AO28: =(Hydrogen!$AJ315*Hydrogen!$AK$305+Hydrogen!$AK315)/1000000*HLOOKUP($J$10,$Z$5:$AD$6,2,FALSE)/HLOOKUP($J$11,$Z$7:$AD$8,2,FALSE) -> 4.339774934 | AP28: =(Hydrogen!$BT315*Hydrogen!$BU$305+Hydrogen!$BU315)/1000000*HLOOKUP($J$10,$Z$5:$AD$6,2,FALSE)/HLOOKUP($J$11,$Z$7:$AD$8,2,FALSE) -> 8.366655489 | AQ28: =AN28*(Vehicles!$S$30/Vehicles!$DY$72)/(Vehicles!$S$30*(1/Vehicles!$DY$72+1/Vehicles!$DZ$72)+Vehicles!$S$31/Vehicles!$EA$72)+AO28*(Vehicles!$S$30/Vehicles!$DZ$72+Vehicles!$S$31/Vehicles!$EA$72)/(Vehicles!$S$30*(1/Vehicles!$DY$72+1/Vehicles!$DZ$72)+Vehicles!$S$31/Vehicles!$EA$72) -> 8.875496947 | AR28: =AN28*(Vehicles!$S$30/Vehicles!$DY$72)/(Vehicles!$S$30*(1/Vehicles!$DY$72+1/Vehicles!$DZ$72)+Vehicles!$S$31/Vehicles!$EA$72)+AP28*(Vehicles!$S$30/Vehicles!$DZ$72+Vehicles!$S$31/Vehicles!$EA$72)/(Vehicles!$S$30*(1/Vehicles!$DY$72+1/Vehicles!$DZ$72)+Vehicles!$S$31/Vehicles!$EA$72) -> 11.27350235 | AS28: =((1-Vehicles!$C$40)*(1-Vehicles!$C$16)*Fuel_Specs!$B$15/((1-Vehicles!$C$40)*(1-Vehicles!$C$16)*Fuel_Specs!$B$15+Vehicles!$C$40*(1-Vehicles!$C$16)*Fuel_Specs!$B$17+Vehicles!$C$16*Fuel_Specs!$B$48)*(Petroleum!$B272*Petroleum!$D$262+Petroleum!$D272)+Vehicles!$C$40*(1-Vehicles!$C$16)*Fuel_Specs!$B$17/((1-Vehicles!$C$40)*(1-Vehicles!$C$16)*Fuel_Specs!$B$15+Vehicles!$C$40*(1-Vehicles!$C$16)*Fuel_Specs!$B$17+Vehicles!$C$16*Fuel_Specs!$B$48)*(Petroleum!B272*Petroleum!$F$262+Petroleum!$F272)+Vehicles!$C$16*Fuel_Specs!$B$48/((1-Vehicles!$C$40)*(1-Vehicles!$C$16)*Fuel_Specs!$B$15+Vehicles!$C$40*(1-Vehicles!$C$16)*Fuel_Specs!$B$17+Vehicles!$C$16*Fuel_Specs!$B$48)*(Pyrolysis_IDL!$AP307*Pyrolysis_IDL!$AQ$297+Pyrolysis_IDL!$AQ307))/1000000*HLOOKUP($J$10,$Z$5:$AD$6,2,FALSE)/HLOOKUP($J$11,$Z$7:$AD$8,2,FALSE) -> 23.07815131 | AT28: =(Petroleum!$B272*Petroleum!$S$262+Petroleum!$S272)/1000000*HLOOKUP($J$10,$Z$5:$AD$6,2,FALSE)/HLOOKUP($J$11,$Z$7:$AD$8,2,FALSE) -> 1.539757042 | AU28: 2.403577367 | AV28: 2.219115139 | BB28: SI - RG from Bio Oil | BC28: RNAVRENGASSI
